Workbook

Sheet Change
A1: =RIGHT(CELL("filename", A1), LEN(CELL("filename", A1)) - SEARCH("]", CELL("filename", A1))) -> Change | U1: InpS_Ann | V1: =Time!J$45 -> 2021-12-31 | W1: =Time!K$45 -> 2022-12-31 | X1: =Time!L$45 -> 2023-12-31 | Y1: =Time!M$45 -> 2024-12-31 | Z1: =Time!N$45 -> 2025-12-31 | AA1: =Time!O$45 -> 2026-12-31 | AB1: =Time!P$45 -> 2027-12-31 | AC1: =Time!Q$45 -> 2028-12-31 | AD1: =Time!R$45 -> 2029-12-31 | AE1: =Time!S$45 -> 2030-12-31 | AF1: =Time!T$45 -> 2031-12-31 | AG1: =Time!U$45 -> 2032-12-31 | AH1: =Time!V$45 -> 2033-12-31 | AI1: =Time!W$45 -> 2034-12-31 | AJ1: =Time!X$45 -> 2035-12-31 | AK1: =Time!Y$45 -> 2036-12-31 | AL1: =Time!Z$45 -> 2037-12-31 | AM1: =Time!AA$45 -> 2038-12-31 | AN1: =Time!AB$45 -> 2039-12-31 | AO1: =Time!AC$45 -> 2040-12-31 | AP1: =Time!AD$45 -> 2041-12-31 | AQ1: =Time!AE$45 -> 2042-12-31 | AR1: =Time!AF$45 -> 2043-12-31 | AS1: =Time!AG$45 -> 2044-12-31 | AT1: =Time!AH$45 -> 2045-12-31 | AU1: =Time!AI$45 -> 2046-12-31 | AV1: =Time!AJ$45 -> 2047-12-31 | AW1: =Time!AK$45 -> 2048-12-31 | AX1: =Time!AL$45 -> 2049-12-31 | AY1: =Time!AM$45 -> 2050-12-31 | AZ1: =Time!AN$45 -> 2051-12-31 | BA1: =Time!AO$45 -> 2052-12-31 | BB1: =Time!AP$45 -> 2053-12-31 | BC1: =Time!AQ$45 -> 2054-12-31 | BD1: =Time!AR$45 -> 2055-12-31 | BE1: =Time!AS$45 -> 2056-12-31 | BF1: =Time!AT$45 -> 2057-12-31 | BG1: =Time!AU$45 -> 2058-12-31 | BH1: =Time!AV$45 -> 2059-12-31 | BI1: =Time!AW$45 -> 2060-12-31 | BJ1: =Time!AX$45 -> 2061-12-31 | BK1: =Time!AY$45 -> 2062-12-31 | BL1: =Time!AZ$45 -> 2063-12-31 | BM1: =Time!BA$45 -> 2064-12-31 | BN1: =Time!BB$45 -> 2065-12-31 | BO1: =Time!BC$45 -> 00:00:00 | BP1: =Time!BD$45 -> 00:00:00
U2: InpS_Ann | V2: =Time!J$50 -> Pre-fcst | W2: =Time!K$50 -> Construction | X2: =Time!L$50 -> Construction | Y2: =Time!M$50 -> Operations | Z2: =Time!N$50 -> Operations | AA2: =Time!O$50 -> Operations | AB2: =Time!P$50 -> Operations | AC2: =Time!Q$50 -> Operations | AD2: =Time!R$50 -> Operations | AE2: =Time!S$50 -> Operations | AF2: =Time!T$50 -> Operations | AG2: =Time!U$50 -> Operations | AH2: =Time!V$50 -> Operations | AI2: =Time!W$50 -> Operations | AJ2: =Time!X$50 -> Operations | AK2: =Time!Y$50 -> Operations | AL2: =Time!Z$50 -> Operations | AM2: =Time!AA$50 -> Operations | AN2: =Time!AB$50 -> Operations | AO2: =Time!AC$50 -> Operations | AP2: =Time!AD$50 -> Operations | AQ2: =Time!AE$50 -> Operations | AR2: =Time!AF$50 -> Operations | AS2: =Time!AG$50 -> Post ops | AT2: =Time!AH$50 -> Post ops | AU2: =Time!AI$50 -> Post ops | AV2: =Time!AJ$50 -> Post ops | AW2: =Time!AK$50 -> Post ops | AX2: =Time!AL$50 -> Post ops | AY2: =Time!AM$50 -> Post ops | AZ2: =Time!AN$50 -> Post ops | BA2: =Time!AO$50 -> Post ops | BB2: =Time!AP$50 -> Post ops | BC2: =Time!AQ$50 -> Post ops | BD2: =Time!AR$50 -> Post ops | BE2: =Time!AS$50 -> Post ops | BF2: =Time!AT$50 -> Post ops | BG2: =Time!AU$50 -> Post ops | BH2: =Time!AV$50 -> Post ops | BI2: =Time!AW$50 -> Post ops | BJ2: =Time!AX$50 -> Post ops | BK2: =Time!AY$50 -> Post ops | BL2: =Time!AZ$50 -> Post ops | BM2: =Time!BA$50 -> Post ops | BN2: =Time!BB$50 -> Post ops | BO2: =Time!BC$50 -> 0 | BP2: =Time!BD$50 -> 0
F3: =TODAY() -> 2026-06-26 | G3: =NOW() -> 46199.13301 | H3: [Template issued stamp line] | O3: =Output!#REF! ->  | P3: =Output!$H$17 -> 1.613802733 | Q3: =Output!$H$18 -> 1.707645285 | R3: =InpC!$F$3 -> Seasonal - Leverage Method
H4: [Template change line] | O4: =O3 ->  | P4: =P3 -> 1.613802733 | Q4: =Q3 -> 1.707645285 | R4: =R3 -> Seasonal - Leverage Method | U4: InpS_Qtr | V4: =Time!J$25 -> 2021-06-30 | W4: =Time!K$25 -> 2021-12-31 | X4: =Time!L$25 -> 2022-06-30 | Y4: =Time!M$25 -> 2022-12-31 | Z4: =Time!N$25 -> 2023-06-30 | AA4: =Time!O$25 -> 2023-12-31 | AB4: =Time!P$25 -> 2024-06-30 | AC4: =Time!Q$25 -> 2024-12-31 | AD4: =Time!R$25 -> 2025-06-30 | AE4: =Time!S$25 -> 2025-12-31 | AF4: =Time!T$25 -> 2026-06-30 | AG4: =Time!U$25 -> 2026-12-31 | AH4: =Time!V$25 -> 2027-06-30 | AI4: =Time!W$25 -> 2027-12-31 | AJ4: =Time!X$25 -> 2028-06-30 | AK4: =Time!Y$25 -> 2028-12-31 | AL4: =Time!Z$25 -> 2029-06-30 | AM4: =Time!AA$25 -> 2029-12-31 | AN4: =Time!AB$25 -> 2030-06-30 | AO4: =Time!AC$25 -> 2030-12-31 | AP4: =Time!AD$25 -> 2031-06-30 | AQ4: =Time!AE$25 -> 2031-12-31 | AR4: =Time!AF$25 -> 2032-06-30 | AS4: =Time!AG$25 -> 2032-12-31 | AT4: =Time!AH$25 -> 2033-06-30 | AU4: =Time!AI$25 -> 2033-12-31 | AV4: =Time!AJ$25 -> 2034-06-30 | AW4: =Time!AK$25 -> 2034-12-31 | AX4: =Time!AL$25 -> 2035-06-30 | AY4: =Time!AM$25 -> 2035-12-31 | AZ4: =Time!AN$25 -> 2036-06-30 | BA4: =Time!AO$25 -> 2036-12-31 | BB4: =Time!AP$25 -> 2037-06-30 | BC4: =Time!AQ$25 -> 2037-12-31 | BD4: =Time!AR$25 -> 2038-06-30 | BE4: =Time!AS$25 -> 2038-12-31 | BF4: =Time!AT$25 -> 2039-06-30 | BG4: =Time!AU$25 -> 2039-12-31 | BH4: =Time!AV$25 -> 2040-06-30 | BI4: =Time!AW$25 -> 2040-12-31 | BJ4: =Time!AX$25 -> 2041-06-30 | BK4: =Time!AY$25 -> 2041-12-31 | BL4: =Time!AZ$25 -> 2042-06-30 | BM4: =Time!BA$25 -> 2042-12-31 | BN4: =Time!BB$25 -> 2043-06-30 | BO4: =Time!BC$25 -> 2043-12-31 | BP4: =Time!BD$25 -> 2044-06-30 | BQ4: =Time!BE$25 -> 2044-12-31 | BR4: =Time!BF$25 -> 2045-06-30 | BS4: =Time!BG$25 -> 2045-12-31 | BT4: =Time!BH$25 -> 2046-06-30 | BU4: =Time!BI$25 -> 2046-12-31 | BV4: =Time!BJ$25 -> 2047-06-30 | BW4: =Time!BK$25 -> 2047-12-31 | BX4: =Time!BL$25 -> 2048-06-30 | BY4: =Time!BM$25 -> 2048-12-31 | BZ4: =Time!BN$25 -> 2049-06-30 | CA4: =Time!BO$25 -> 2049-12-31 | CB4: =Time!BP$25 -> 2050-06-30 | CC4: =Time!BQ$25 -> 2050-12-31 | CD4: =Time!BR$25 -> 2051-06-30 | CE4: =Time!BS$25 -> 2051-12-31 | CF4: =Time!BT$25 -> 2052-06-30 | CG4: =Time!BU$25 -> 2052-12-31 | CH4: =Time!BV$25 -> 2053-06-30 | CI4: =Time!BW$25 -> 2053-12-31 | CJ4: =Time!BX$25 -> 2054-06-30 | CK4: =Time!BY$25 -> 2054-12-31 | CL4: =Time!BZ$25 -> 2055-06-30 | CM4: =Time!CA$25 -> 2055-12-31 | CN4: =Time!CB$25 -> 2056-06-30 | CO4: =Time!CC$25 -> 2056-12-31 | CP4: =Time!CD$25 -> 2057-06-30 | CQ4: =Time!CE$25 -> 2057-12-31 | CR4: =Time!CF$25 -> 2058-06-30 | CS4: =Time!CG$25 -> 2058-12-31 | CT4: =Time!CH$25 -> 2059-06-30 | CU4: =Time!CI$25 -> 2059-12-31 | CV4: =Time!CJ$25 -> 2060-06-30 | CW4: =Time!CK$25 -> 2060-12-31 | CX4: =Time!CL$25 -> 2061-06-30 | CY4: =Time!CM$25 -> 2061-12-31 | CZ4: =Time!CN$25 -> 2062-06-30 | DA4: =Time!CO$25 -> 2062-12-31 | DB4: =Time!CP$25 -> 2063-06-30 | DC4: =Time!CQ$25 -> 2063-12-31 | DD4: =Time!CR$25 -> 2064-06-30 | DE4: =Time!CS$25 -> 2064-12-31 | DF4: =Time!CT$25 -> 2065-06-30 | DG4: =Time!CU$25 -> 2065-12-31 | DH4: =Time!CV$25 -> 2066-06-30 | DI4: =Time!CW$25 -> 2066-12-31 | DJ4: =Time!CX$25 -> 2067-06-30 | DK4: =Time!CY$25 -> 2067-12-31 | DL4: =Time!CZ$25 -> 2068-06-30 | DM4: =Time!DA$25 -> 2068-12-31 | DN4: =Time!DB$25 -> 2069-06-30 | DO4: =Time!DC$25 -> 2069-12-31 | DP4: =Time!DD$25 -> 2070-06-30 | DQ4: =Time!DE$25 -> 2070-12-31 | DR4: =Time!DF$25 -> 2071-06-30 | DS4: =Time!DG$25 -> 2071-12-31 | DT4: =Time!DH$25 -> 2072-06-30 | DU4: =Time!DI$25 -> 2072-12-31 | DV4: =Time!DJ$25 -> 2073-06-30 | DW4: =Time!DK$25 -> 2073-12-31 | DX4: =Time!DL$25 -> 2074-06-30 | DY4: =Time!DM$25 -> 2074-12-31 | DZ4: =Time!DN$25 -> 2075-06-30 | EA4: =Time!DO$25 -> 2075-12-31 | EB4: =Time!DP$25 -> 2076-06-30 | EC4: =Time!DQ$25 -> 2076-12-31 | ED4: =Time!DR$25 -> 2077-06-30 | EE4: =Time!DS$25 -> 2077-12-31 | EF4: =Time!DT$25 -> 2078-06-30 | EG4: =Time!DU$25 -> 2078-12-31 | EH4: =Time!DV$25 -> 2079-06-30 | EI4: =Time!DW$25 -> 2079-12-31 | EJ4: =Time!DX$25 -> 2080-06-30 | EK4: =Time!DY$25 -> 2080-12-31 | EL4: =Time!DZ$25 -> 2081-06-30 | EM4: =Time!EA$25 -> 2081-12-31 | EN4: =Time!EB$25 -> 2082-06-30 | EO4: =Time!EC$25 -> 2082-12-31 | EP4: =Time!ED$25 -> 2083-06-30 | EQ4: =Time!EE$25 -> 2083-12-31 | ER4: =Time!EF$25 -> 2084-06-30 | ES4: =Time!EG$25 -> 2084-12-31 | ET4: =Time!EH$25 -> 2085-06-30 | EU4: =Time!EI$25 -> 2085-12-31 | EV4: =Time!EJ$25 -> 2086-06-30 | EW4: =Time!EK$25 -> 2086-12-31 | EX4: =Time!EL$25 -> 2087-06-30 | EY4: =Time!EM$25 -> 2087-12-31 | EZ4: =Time!EN$25 -> 2088-06-30 | FA4: =Time!EO$25 -> 2088-12-31 | FB4: =Time!EP$25 -> 2089-06-30 | FC4: =Time!EQ$25 -> 2089-12-31 | FD4: =Time!ER$25 -> 2090-06-30 | FE4: =Time!ES$25 -> 2090-12-31 | FF4: =Time!ET$25 -> 2091-06-30 | FG4: =Time!EU$25 -> 2091-12-31 | FH4: =Time!EV$25 -> 2092-06-30 | FI4: =Time!EW$25 -> 2092-12-31 | FJ4: =Time!EX$25 -> 2093-06-30 | FK4: =Time!EY$25 -> 2093-12-31 | FL4: =Time!EZ$25 -> 2094-06-30 | FM4: =Time!FA$25 -> 2094-12-31 | FN4: =Time!FB$25 -> 2095-06-30 | FO4: =Time!FC$25 -> 2095-12-31 | FP4: =Time!FD$25 -> 2096-06-30 | FQ4: =Time!FE$25 -> 2096-12-31 | FR4: =Time!FF$25 -> 2097-06-30 | FS4: =Time!FG$25 -> 2097-12-31 | FT4: =Time!FH$25 -> 2098-06-30 | FU4: =Time!FI$25 -> 2098-12-31 | FV4: =Time!FJ$25 -> 2099-06-30 | FW4: =Time!FK$25 -> 2099-12-31 | FX4: =Time!FL$25 -> 2100-06-30 | FY4: =Time!FM$25 -> 2100-12-31 | FZ4: =Time!FN$25 -> 2101-06-30 | GA4: =Time!FO$25 -> 2101-12-31 | GB4: =Time!FP$25 -> 2102-06-30 | GC4: =Time!FQ$25 -> 2102-12-31 | GD4: =Time!FR$25 -> 2103-06-30 | GE4: =Time!FS$25 -> 2103-12-31 | GF4: =Time!FT$25 -> 2104-06-30 | GG4: =Time!FU$25 -> 2104-12-31 | GH4: =Time!FV$25 -> 2105-06-30 | GI4: =Time!FW$25 -> 2105-12-31 | GJ4: =Time!FX$25 -> 2106-06-30 | GK4: =Time!FY$25 -> 2106-12-31 | GL4: =Time!FZ$25 -> 2107-06-30 | GM4: =Time!GA$25 -> 2107-12-31 | GN4: =Time!GB$25 -> 2108-06-30 | GO4: =Time!GC$25 -> 2108-12-31 | GP4: =Time!GD$25 -> 2109-06-30 | GQ4: =Time!GE$25 -> 2109-12-31 | GR4: =Time!GF$25 -> 2110-06-30 | GS4: =Time!GG$25 -> 2110-12-31 | GT4: =Time!GH$25 -> 2111-06-30 | GU4: =Time!GI$25 -> 2111-12-31 | GV4: =Time!GJ$25 -> 2112-06-30
E5: Version | F5: Date | G5: Time | H5: Description | I5: Label link | J5: Current value | K5: Previous value | L5: Requested by | M5: Additional details | N5: Scenario | O5: =Output!$E$15 -> Blended project IRR | P5: =Output!$E$17 -> Min DSCR P50 | Q5: =Output!$E$18 -> Avg DSCR P50 | R5: Scenario Active | U5: InpS_Qtr | V5: =Time!J$66 -> Pre-fcst | W5: =Time!K$66 -> Pre-fcst | X5: =Time!L$66 -> Fin Close | Y5: =Time!M$66 -> Construction | Z5: =Time!N$66 -> Construction | AA5: =Time!O$66 -> Construction | AB5: =Time!P$66 -> Construction | AC5: =Time!Q$66 -> Operations | AD5: =Time!R$66 -> Operations | AE5: =Time!S$66 -> Operations | AF5: =Time!T$66 -> Operations | AG5: =Time!U$66 -> Operations | AH5: =Time!V$66 -> Operations | AI5: =Time!W$66 -> Operations | AJ5: =Time!X$66 -> Operations | AK5: =Time!Y$66 -> Operations | AL5: =Time!Z$66 -> Operations | AM5: =Time!AA$66 -> Operations | AN5: =Time!AB$66 -> Operations | AO5: =Time!AC$66 -> Operations | AP5: =Time!AD$66 -> Operations | AQ5: =Time!AE$66 -> Operations | AR5: =Time!AF$66 -> Operations | AS5: =Time!AG$66 -> Operations | AT5: =Time!AH$66 -> Operations | AU5: =Time!AI$66 -> Operations | AV5: =Time!AJ$66 -> Operations | AW5: =Time!AK$66 -> Operations | AX5: =Time!AL$66 -> Operations | AY5: =Time!AM$66 -> Operations | AZ5: =Time!AN$66 -> Operations | BA5: =Time!AO$66 -> Operations | BB5: =Time!AP$66 -> Operations | BC5: =Time!AQ$66 -> Operations | BD5: =Time!AR$66 -> Operations | BE5: =Time!AS$66 -> Operations | BF5: =Time!AT$66 -> Operations | BG5: =Time!AU$66 -> Operations | BH5: =Time!AV$66 -> Operations | BI5: =Time!AW$66 -> Operations | BJ5: =Time!AX$66 -> Operations | BK5: =Time!AY$66 -> Operations | BL5: =Time!AZ$66 -> Operations | BM5: =Time!BA$66 -> Operations | BN5: =Time!BB$66 -> Operations | BO5: =Time!BC$66 -> Operations | BP5: =Time!BD$66 -> Operations | BQ5: =Time!BE$66 -> Post ops | BR5: =Time!BF$66 -> Post ops | BS5: =Time!BG$66 -> Post ops | BT5: =Time!BH$66 -> Post ops | BU5: =Time!BI$66 -> Post ops | BV5: =Time!BJ$66 -> Post ops | BW5: =Time!BK$66 -> Post ops | BX5: =Time!BL$66 -> Post ops | BY5: =Time!BM$66 -> Post ops | BZ5: =Time!BN$66 -> Post ops | CA5: =Time!BO$66 -> Post ops | CB5: =Time!BP$66 -> Post ops | CC5: =Time!BQ$66 -> Post ops | CD5: =Time!BR$66 -> Post ops | CE5: =Time!BS$66 -> Post ops | CF5: =Time!BT$66 -> Post ops | CG5: =Time!BU$66 -> Post ops | CH5: =Time!BV$66 -> Post ops | CI5: =Time!BW$66 -> Post ops | CJ5: =Time!BX$66 -> Post ops | CK5: =Time!BY$66 -> Post ops | CL5: =Time!BZ$66 -> Post ops | CM5: =Time!CA$66 -> Post ops | CN5: =Time!CB$66 -> Post ops | CO5: =Time!CC$66 -> Post ops | CP5: =Time!CD$66 -> Post ops | CQ5: =Time!CE$66 -> Post ops | CR5: =Time!CF$66 -> Post ops | CS5: =Time!CG$66 -> Post ops | CT5: =Time!CH$66 -> Post ops | CU5: =Time!CI$66 -> Post ops | CV5: =Time!CJ$66 -> Post ops | CW5: =Time!CK$66 -> Post ops | CX5: =Time!CL$66 -> Post ops | CY5: =Time!CM$66 -> Post ops | CZ5: =Time!CN$66 -> Post ops | DA5: =Time!CO$66 -> Post ops | DB5: =Time!CP$66 -> Post ops | DC5: =Time!CQ$66 -> Post ops | DD5: =Time!CR$66 -> Post ops | DE5: =Time!CS$66 -> Post ops | DF5: =Time!CT$66 -> Post ops | DG5: =Time!CU$66 -> Post ops | DH5: =Time!CV$66 -> Post ops | DI5: =Time!CW$66 -> Post ops | DJ5: =Time!CX$66 -> Post ops | DK5: =Time!CY$66 -> Post ops | DL5: =Time!CZ$66 -> Post ops | DM5: =Time!DA$66 -> Post ops | DN5: =Time!DB$66 -> Post ops | DO5: =Time!DC$66 -> Post ops | DP5: =Time!DD$66 -> Post ops | DQ5: =Time!DE$66 -> Post ops | DR5: =Time!DF$66 -> Post ops | DS5: =Time!DG$66 -> Post ops | DT5: =Time!DH$66 -> Post ops | DU5: =Time!DI$66 -> Post ops | DV5: =Time!DJ$66 -> Post ops | DW5: =Time!DK$66 -> Post ops | DX5: =Time!DL$66 -> Post ops | DY5: =Time!DM$66 -> Post ops | DZ5: =Time!DN$66 -> Post ops | EA5: =Time!DO$66 -> Post ops | EB5: =Time!DP$66 -> Post ops | EC5: =Time!DQ$66 -> Post ops | ED5: =Time!DR$66 -> Post ops | EE5: =Time!DS$66 -> Post ops | EF5: =Time!DT$66 -> Post ops | EG5: =Time!DU$66 -> Post ops | EH5: =Time!DV$66 -> Post ops | EI5: =Time!DW$66 -> Post ops | EJ5: =Time!DX$66 -> Post ops | EK5: =Time!DY$66 -> Post ops | EL5: =Time!DZ$66 -> Post ops | EM5: =Time!EA$66 -> Post ops | EN5: =Time!EB$66 -> Post ops | EO5: =Time!EC$66 -> Post ops | EP5: =Time!ED$66 -> Post ops | EQ5: =Time!EE$66 -> Post ops | ER5: =Time!EF$66 -> Post ops | ES5: =Time!EG$66 -> Post ops | ET5: =Time!EH$66 -> Post ops | EU5: =Time!EI$66 -> Post ops | EV5: =Time!EJ$66 -> Post ops | EW5: =Time!EK$66 -> Post ops | EX5: =Time!EL$66 -> Post ops | EY5: =Time!EM$66 -> Post ops | EZ5: =Time!EN$66 -> Post ops | FA5: =Time!EO$66 -> Post ops | FB5: =Time!EP$66 -> Post ops | FC5: =Time!EQ$66 -> Post ops | FD5: =Time!ER$66 -> Post ops | FE5: =Time!ES$66 -> Post ops | FF5: =Time!ET$66 -> Post ops | FG5: =Time!EU$66 -> Post ops | FH5: =Time!EV$66 -> Post ops | FI5: =Time!EW$66 -> Post ops | FJ5: =Time!EX$66 -> Post ops | FK5: =Time!EY$66 -> Post ops | FL5: =Time!EZ$66 -> Post ops | FM5: =Time!FA$66 -> Post ops | FN5: =Time!FB$66 -> Post ops | FO5: =Time!FC$66 -> Post ops | FP5: =Time!FD$66 -> Post ops | FQ5: =Time!FE$66 -> Post ops | FR5: =Time!FF$66 -> Post ops | FS5: =Time!FG$66 -> Post ops | FT5: =Time!FH$66 -> Post ops | FU5: =Time!FI$66 -> Post ops | FV5: =Time!FJ$66 -> Post ops | FW5: =Time!FK$66 -> Post ops | FX5: =Time!FL$66 -> Post ops | FY5: =Time!FM$66 -> Post ops | FZ5: =Time!FN$66 -> Post ops | GA5: =Time!FO$66 -> Post ops | GB5: =Time!FP$66 -> Post ops | GC5: =Time!FQ$66 -> Post ops | GD5: =Time!FR$66 -> Post ops | GE5: =Time!FS$66 -> Post ops | GF5: =Time!FT$66 -> Post ops | GG5: =Time!FU$66 -> Post ops | GH5: =Time!FV$66 -> Post ops | GI5: =Time!FW$66 -> Post ops | GJ5: =Time!FX$66 -> Post ops | GK5: =Time!FY$66 -> Post ops | GL5: =Time!FZ$66 -> Post ops | GM5: =Time!GA$66 -> Post ops | GN5: =Time!GB$66 -> Post ops | GO5: =Time!GC$66 -> Post ops | GP5: =Time!GD$66 -> Post ops | GQ5: =Time!GE$66 -> Post ops | GR5: =Time!GF$66 -> Post ops | GS5: =Time!GG$66 -> Post ops | GT5: =Time!GH$66 -> Post ops | GU5: =Time!GI$66 -> Post ops | GV5: =Time!GJ$66 -> Post ops
A7: NOTE: CHANGES ARE LISTED IN REVERSE ORDER WITH MOST RECENT CHANGES AT THE TOP
F8: 2022-10-18T17:58:09 | G8: 44852.74872 | H8: EGRs update | O8: =Output!#REF! ->  | P8: =Output!$H$17 -> 1.613802733 | Q8: =Output!$H$18 -> 1.707645285 | R8: =InpC!$F$3 -> Seasonal - Leverage Method
D9: CPFM 2.21 S2 01a_Cleaned version.xlsm | F9: 2022-10-18T17:58:09 | G9: 44852.74872 | H9: Updated the sculpted repayment to avoid negative repayment.
D10: CPFM 2.21 S2 01a_Cleaned version.xlsm | F10: 2022-10-18T17:55:53 | G10: 44852.74714 | H10: Updated the CFADS to exclude the EGR cash for debt sizing.
D11: CPFM 2.21 S2 01a_RB.xlsm | F11: 2022-10-18T17:50:44 | G11: 44852.74356 | H11: Restricted the cash received from EGRs to adjust funding requirement during construction period only. | I11: =ConFin!$E$162 -> Project costs / funding requirement
D12: CPFM 2.21 S2 01a_RB.xlsm | F12: 2022-10-18T17:49:46 | G12: 44852.74289 | H12: Removed the construction period flag restriction | I12: =ConFin!$E$29 -> Cash received from EGRs - m P50
D13: CPFM 2.21 S2 01a_RB.xlsm | F13: 2022-10-18T17:48:55 | G13: 44852.7423 | H13: Updated check to consider only construction period values. | I13: ='S&U'!$E$41 -> Sources and uses check
D14: CPFM 2.21 S2 01a_RB.xlsm | F14: 2022-10-18T17:48:21 | G14: 44852.74191 | H14: Calculated the revenue incl. EGRs for working capital calcs. | I14: =Ops!$E$103 -> Electricity generation revenue - incl. EGRs P50
D15: CPFM 2.21 S2 01a_RB.xlsm | F15: 2022-10-18T17:47:41 | G15: 44852.74145 | H15: Net cash incl EGRs included to account receivable balance and removed the separate balance of EGR receivables. | I15: =Ops!$E$170 -> Net cash received - incl. EGRs P50
F17: 2020-08-25T15:49:58 | G17: 44068.6597 | H17: EBL functionality included | O17: =Output!#REF! ->  | P17: =Output!$H$17 -> 1.613802733 | Q17: =Output!$H$18 -> 1.707645285 | R17: =InpC!$F$3 -> Seasonal - Leverage Method
F18: 2020-08-25T15:49:58 | G18: 44068.6597 | H18: EBL adjustment in Output sheet | I18: =Output!$E$101 -> Cashflow available for shareholder loan P50 | L18: Financial team | N18: ALL
F19: 2020-08-25T15:49:56 | G19: 44068.65968 | H19: EBL adjustment in Output sheet | I19: =Output!$E$100 -> Equity bridge interest | L19: Financial team | N19: ALL
F20: 2020-08-25T15:48:21 | G20: 44068.65858 | H20: EBL adjustment in Output sheet | I20: =Output!$E$55 -> Equity bridge interest | L20: Financial team | N20: ALL
F21: 2020-08-25T15:46:52 | G21: 44068.65755 | H21: EBL adjustment in solver sheet | I21: =Solve!$E$114 -> Equity bridge interest and fees rolled up - total check | L21: Financial team | N21: ALL
F22: 2020-08-25T15:46:51 | G22: 44068.65753 | H22: EBL adjustment in solver sheet | I22: =Solve!$E$113 -> EBL requirement check | L22: Financial team | N22: ALL
F23: 2020-08-25T15:46:46 | G23: 44068.65748 | H23: EBL adjustment in solver sheet | I23: =Solve!$E$89 -> Equity bridge interest and fees rolled up - total - fixed | L23: Financial team | N23: ALL
F24: 2020-08-25T15:46:37 | G24: 44068.65737 | H24: EBL adjustment in solver sheet | I24: =Solve!$E$88 -> EBL requirement fixed | L24: Financial team | N24: ALL
F25: 2020-08-25T15:45:46 | G25: 44068.65678 | H25: Additional adjustment in solver sheet | I25: =Solve!$E$26 -> Equity bridge interest and fees rolled up - total - calc | L25: Financial team | N25: ALL
F26: 2020-08-25T15:45:37 | G26: 44068.65668 | H26: Additional adjustment in solver sheet | I26: =Solve!$E$25 -> EBL requirement | L26: Financial team | N26: ALL
F27: 2020-08-25T15:44:06 | G27: 44068.65562 | H27: Adjustment in share capital to make drawdown for EBL repayment post COD | I27: =Equity!$E$15 -> Share capital drawdown | L27: Financial team | N27: ALL
F28: 2020-08-25T15:43:06 | G28: 44068.65493 | H28: EBL interset linked in tax calculations | I28: =Tax!$E$57 -> Equity bridge interest POS | L28: Financial team | N28: ALL
F29: 2020-08-25T15:42:45 | G29: 44068.65469 | H29: EBL linking in FS ann sheet | I29: ='FS Ann'!$E$68 -> Cash flow available for shareholder loan | L29: Financial team | N29: ALL
F30: 2020-08-25T15:42:45 | G30: 44068.65469 | H30: EBL linking in FS ann sheet | I30: ='FS Ann'!$E$67 -> Equity bridge interest | L30: Financial team | N30: ALL
F31: 2020-08-25T15:42:43 | G31: 44068.65466 | H31: EBL linking in FS ann sheet | I31: ='FS Ann'!$E$65 -> Cashflow available for equity bridge loan | L31: Financial team | N31: ALL
F32: 2020-08-25T15:42:17 | G32: 44068.65436 | H32: EBL linking in FS ann sheet | I32: ='FS Ann'!$E$23 -> Equity bridge interest | L32: Financial team | N32: ALL
F33: 2020-08-25T15:42:11 | G33: 44068.65429 | H33: EBL linking in FS ann sheet | I33: ='FS Ann'!$E$51 -> Shareholder loan drawdown | L33: Financial team | N33: ALL
F34: 2020-08-25T15:42:11 | G34: 44068.65429 | H34: EBL linking in FS ann sheet | I34: ='FS Ann'!$E$50 -> Equity bridge drawdown | L34: Financial team | N34: ALL
F35: 2020-08-25T15:42:11 | G35: 44068.65429 | H35: EBL linking in FS ann sheet | I35: ='FS Ann'!$E$49 -> Share capital drawdown | L35: Financial team | N35: ALL
F36: 2020-08-25T15:42:06 | G36: 44068.65424 | H36: EBL linking in FS ann sheet | I36: ='FS Ann'!$E$48 -> Equity bridge repayment | L36: Financial team | N36: ALL
F37: 2020-08-25T15:41:45 | G37: 44068.65399 | H37: EBL linking in FS ann sheet | I37: ='FS Ann'!$E$100 -> Equity bridge balance | L37: Financial team | N37: ALL
F38: 2020-08-25T15:41:17 | G38: 44068.65367 | H38: EBl adjustmnents in metrics sheet | I38: =Metrics!$E$9 -> Shareholder loan drawdown during operations | L38: Financial team | N38: ALL
F39: 2020-08-24T17:18:29 | G39: 44067.72117 | H39: EBL drawdown adjusted in funding cascade | I39: =ConFin!#REF! ->  | L39: Financial team | N39: ALL
F40: 2020-08-24T17:13:57 | G40: 44067.71802 | H40: Updated the cashflow available for shareholder loan line | I40: =Debt!$E$386 -> Cashflow available for shareholder loan P50 | L40: Financial team | N40: ALL
F41: 2020-08-24T17:07:16 | G41: 44067.71338 | H41: EBL entry in financial statement | I41: ='FS semi'!$E$70 -> Cashflow available for shareholder loan P50 | L41: Financial team | N41: ALL
F42: 2020-08-24T17:07:16 | G42: 44067.71338 | H42: EBL entry in financial statement | I42: ='FS semi'!$E$50 -> Equity bridge repayment | L42: Financial team | N42: ALL
F43: 2020-08-24T17:07:12 | G43: 44067.71333 | H43: EBL entry in financial statement | I43: ='FS semi'!$E$69 -> Equity bridge interest | L43: Financial team | N43: ALL
F44: 2020-08-24T17:07:04 | G44: 44067.71324 | H44: EBL entry in financial statement | I44: ='FS semi'!$E$52 -> Equity bridge drawdown | L44: Financial team | N44: ALL
F45: 2020-08-24T15:59:14 | G45: 44067.66613 | H45: EBL interest and fees adjusted in EBL debt size calculations | I45: =ConFin!$E$173 -> Equity bridge interest and fees rolled up - total - fixed | L45: Financial team | N45: ALL
F46: 2020-08-24T13:37:50 | G46: 44067.56794 | H46: EBL interest and fees linked to Uses | I46: ='S&U'!$E$27 -> Equity bridge interest - paid | L46: Financial team | N46: ALL
F47: 2020-08-24T13:37:50 | G47: 44067.56794 | H47: EBL interest and fees linked to Uses | I47: ='S&U'!$E$26 -> Equity bridge commitment fee - paid | L47: Financial team | N47: ALL
F48: 2020-08-24T13:37:34 | G48: 44067.56775 | H48: EBL interest and fees linked to Uses | I48: ='S&U'!$E$25 -> Equity bridge upfront fee - paid | L48: Financial team | N48: ALL
F49: 2020-08-24T13:33:17 | G49: 44067.56478 | H49: EBL drawdown included in Sources and Uses | I49: ='S&U'!$E$10 -> Equity bridge drawdown - m | L49: Financial team | N49: ALL
F50: 2020-08-24T13:28:16 | G50: 44067.5613 | H50: EBL during construction modelling included | I50: =ConFin!$A$223 -> EQUITY BRIDGE | L50: Financial team | N50: All | GW50: ='InpS -m'!GK$21 -> 0 | GX50: ='InpS -m'!GL$21 -> 0 | GY50: ='InpS -m'!GM$21 -> 0 | GZ50: ='InpS -m'!GN$21 -> 0 | HA50: ='InpS -m'!GO$21 -> 0 | HB50: ='InpS -m'!GP$21 -> 0 | HC50: ='InpS -m'!GQ$21 -> 0 | HD50: ='InpS -m'!GR$21 -> 0 | HE50: ='InpS -m'!GS$21 -> 0 | HF50: ='InpS -m'!GT$21 -> 0 | HG50: ='InpS -m'!GU$21 -> 0 | HH50: ='InpS -m'!GV$21 -> 0 | HI50: ='InpS -m'!GW$21 -> 0 | HJ50: ='InpS -m'!GX$21 -> 0 | HK50: ='InpS -m'!GY$21 -> 0 | HL50: ='InpS -m'!GZ$21 -> 0 | HM50: ='InpS -m'!HA$21 -> 0 | HN50: ='InpS -m'!HB$21 -> 0 | HO50: ='InpS -m'!HC$21 -> 0 | HP50: ='InpS -m'!HD$21 -> 0 | HQ50: ='InpS -m'!HE$21 -> 0 | HR50: ='InpS -m'!HF$21 -> 0 | HS50: ='InpS -m'!HG$21 -> 0 | HT50: ='InpS -m'!HH$21 -> 0 | HU50: ='InpS -m'!HI$21 -> 0 | HV50: ='InpS -m'!HJ$21 -> 0 | HW50: ='InpS -m'!HK$21 -> 0 | HX50: ='InpS -m'!HL$21 -> 0 | HY50: ='InpS -m'!HM$21 -> 0 | HZ50: ='InpS -m'!HN$21 -> 0 | IA50: ='InpS -m'!HO$21 -> 0 | IB50: ='InpS -m'!HP$21 -> 0 | IC50: ='InpS -m'!HQ$21 -> 0 | ID50: ='InpS -m'!HR$21 -> 0 | IE50: ='InpS -m'!HS$21 -> 0 | IF50: ='InpS -m'!HT$21 -> 0 | IG50: ='InpS -m'!HU$21 -> 0 | IH50: ='InpS -m'!HV$21 -> 0 | II50: ='InpS -m'!HW$21 -> 0 | IJ50: ='InpS -m'!HX$21 -> 0 | IK50: ='InpS -m'!HY$21 -> 0 | IL50: ='InpS -m'!HZ$21 -> 0 | IM50: ='InpS -m'!IA$21 -> 0 | IN50: ='InpS -m'!IB$21 -> 0 | IO50: ='InpS -m'!IC$21 -> 0 | IP50: ='InpS -m'!ID$21 -> 0 | IQ50: ='InpS -m'!IE$21 -> 0 | IR50: ='InpS -m'!IF$21 -> 0 | IS50: ='InpS -m'!IG$21 -> 0 | IT50: ='InpS -m'!IH$21 -> 0 | IU50: ='InpS -m'!II$21 -> 0 | IV50: ='InpS -m'!IJ$21 -> 0 | IW50: ='InpS -m'!IK$21 -> 0 | IX50: ='InpS -m'!IL$21 -> 0 | IY50: ='InpS -m'!IM$21 -> 0 | IZ50: ='InpS -m'!IN$21 -> 0 | JA50: ='InpS -m'!IO$21 -> 0 | JB50: ='InpS -m'!IP$21 -> 0 | JC50: ='InpS -m'!IQ$21 -> 0 | JD50: ='InpS -m'!IR$21 -> 0 | JE50: ='InpS -m'!IS$21 -> 0 | JF50: ='InpS -m'!IT$21 -> 0 | JG50: ='InpS -m'!IU$21 -> 0 | JH50: ='InpS -m'!IV$21 -> 0 | JI50: ='InpS -m'!IW$21 -> 0 | JJ50: ='InpS -m'!IX$21 -> 0 | JK50: ='InpS -m'!IY$21 -> 0 | JL50: ='InpS -m'!IZ$21 -> 0 | JM50: ='InpS -m'!JA$21 -> 0 | JN50: ='InpS -m'!JB$21 -> 0 | JO50: ='InpS -m'!JC$21 -> 0 | JP50: ='InpS -m'!JD$21 -> 0 | JQ50: ='InpS -m'!JE$21 -> 0 | JR50: ='InpS -m'!JF$21 -> 0 | JS50: ='InpS -m'!JG$21 -> 0 | JT50: ='InpS -m'!JH$21 -> 0 | JU50: ='InpS -m'!JI$21 -> 0 | JV50: ='InpS -m'!JJ$21 -> 0 | JW50: ='InpS -m'!JK$21 -> 0 | JX50: ='InpS -m'!JL$21 -> 0 | JY50: ='InpS -m'!JM$21 -> 0 | JZ50: ='InpS -m'!JN$21 -> 0 | KA50: ='InpS -m'!JO$21 -> 0 | KB50: ='InpS -m'!JP$21 -> 0 | KC50: ='InpS -m'!JQ$21 -> 0 | KD50: ='InpS -m'!JR$21 -> 0 | KE50: ='InpS -m'!JS$21 -> 0 | KF50: ='InpS -m'!JT$21 -> 0 | KG50: ='InpS -m'!JU$21 -> 0 | KH50: ='InpS -m'!JV$21 -> 0 | KI50: ='InpS -m'!JW$21 -> 0 | KJ50: ='InpS -m'!JX$21 -> 0 | KK50: ='InpS -m'!JY$21 -> 0 | KL50: ='InpS -m'!JZ$21 -> 0 | KM50: ='InpS -m'!KA$21 -> 0 | KN50: ='InpS -m'!KB$21 -> 0 | KO50: ='InpS -m'!KC$21 -> 0 | KP50: ='InpS -m'!KD$21 -> 0 | KQ50: ='InpS -m'!KE$21 -> 0 | KR50: ='InpS -m'!KF$21 -> 0 | KS50: ='InpS -m'!KG$21 -> 0 | KT50: ='InpS -m'!KH$21 -> 0 | KU50: ='InpS -m'!KI$21 -> 0 | KV50: ='InpS -m'!KJ$21 -> 0 | KW50: ='InpS -m'!KK$21 -> 0 | KX50: ='InpS -m'!KL$21 -> 0 | KY50: ='InpS -m'!KM$21 -> 0 | KZ50: ='InpS -m'!KN$21 -> 0 | LA50: ='InpS -m'!KO$21 -> 0 | LB50: ='InpS -m'!KP$21 -> 0 | LC50: ='InpS -m'!KQ$21 -> 0 | LD50: ='InpS -m'!KR$21 -> 0 | LE50: ='InpS -m'!KS$21 -> 0 | LF50: ='InpS -m'!KT$21 -> 0 | LG50: ='InpS -m'!KU$21 -> 0 | LH50: ='InpS -m'!KV$21 -> 0 | LI50: ='InpS -m'!KW$21 -> 0 | LJ50: ='InpS -m'!KX$21 -> 0 | LK50: ='InpS -m'!KY$21 -> 0 | LL50: ='InpS -m'!KZ$21 -> 0 | LM50: ='InpS -m'!LA$21 -> 0 | LN50: ='InpS -m'!LB$21 -> 0 | LO50: ='InpS -m'!LC$21 -> 0
F51: 2020-08-24T13:28:16 | G51: 44067.5613 | H51: Forward curve included for interest calculation during construction | I51: ='InpS -m'!$E$21 -> Active senior debt forward curve -m | L51: Financial team | N51: All | U51: New - InpS -m | V51: ='InpS -m'!J$21 -> 0.0019172 | W51: ='InpS -m'!K$21 -> 0.0018992 | X51: ='InpS -m'!L$21 -> 0.0015041 | Y51: ='InpS -m'!M$21 -> 0.0010983 | Z51: ='InpS -m'!N$21 -> 0.0010581 | AA51: ='InpS -m'!O$21 -> 0.0015092 | AB51: ='InpS -m'!P$21 -> 0.001465 | AC51: ='InpS -m'!Q$21 -> 0.0013596 | AD51: ='InpS -m'!R$21 -> 0.0014169 | AE51: ='InpS -m'!S$21 -> 0.0014812 | AF51: ='InpS -m'!T$21 -> 0.0014021 | AG51: ='InpS -m'!U$21 -> 0.0016615 | AH51: ='InpS -m'!V$21 -> 0.0020192 | AI51: ='InpS -m'!W$21 -> 0.0020404 | AJ51: ='InpS -m'!X$21 -> 0.0020627 | AK51: ='InpS -m'!Y$21 -> 0.0020866 | AL51: ='InpS -m'!Z$21 -> 0.0021136 | AM51: ='InpS -m'!AA$21 -> 0.0022487 | AN51: ='InpS -m'!AB$21 -> 0.0022722 | AO51: ='InpS -m'!AC$21 -> 0.0022961 | AP51: ='InpS -m'!AD$21 -> 0.0023204 | AQ51: ='InpS -m'!AE$21 -> 0.0023439 | AR51: ='InpS -m'!AF$21 -> 0.0023666 | AS51: ='InpS -m'!AG$21 -> 0.0023908 | AT51: ='InpS -m'!AH$21 -> 0.0024146 | AU51: ='InpS -m'!AI$21 -> 0.0024364 | AV51: ='InpS -m'!AJ$21 -> 0.0024599 | AW51: ='InpS -m'!AK$21 -> 0.0024836 | AX51: ='InpS -m'!AL$21 -> 0.0025636 | AY51: ='InpS -m'!AM$21 -> 0.0034167 | AZ51: ='InpS -m'!AN$21 -> 0.0034852 | BA51: ='InpS -m'!AO$21 -> 0.0035525 | BB51: ='InpS -m'!AP$21 -> 0.003622 | BC51: ='InpS -m'!AQ$21 -> 0.0036902 | BD51: ='InpS -m'!AR$21 -> 0.0037573 | BE51: ='InpS -m'!AS$21 -> 0.0038266 | BF51: ='InpS -m'!AT$21 -> 0.0038 | BG51: ='InpS -m'!AU$21 -> 0.0039 | BH51: ='InpS -m'!AV$21 -> 0.004 | BI51: ='InpS -m'!AW$21 -> 0.0041 | BJ51: ='InpS -m'!AX$21 -> 0.0042 | BK51: ='InpS -m'!AY$21 -> 0.0044 | BL51: ='InpS -m'!AZ$21 -> 0.0045 | BM51: ='InpS -m'!BA$21 -> 0.0045 | BN51: ='InpS -m'!BB$21 -> 0.0044 | BO51: ='InpS -m'!BC$21 -> 0.0044 | BP51: ='InpS -m'!BD$21 -> 0.0044 | BQ51: ='InpS -m'!BE$21 -> 0.0044 | BR51: ='InpS -m'!BF$21 -> 0.022684 | BS51: ='InpS -m'!BG$21 -> 0.022734 | BT51: ='InpS -m'!BH$21 -> 0.022806 | BU51: ='InpS -m'!BI$21 -> 0.022852 | BV51: ='InpS -m'!BJ$21 -> 0.022899 | BW51: ='InpS -m'!BK$21 -> 0.022953 | BX51: ='InpS -m'!BL$21 -> 0.023028 | BY51: ='InpS -m'!BM$21 -> 0.023094 | BZ51: ='InpS -m'!BN$21 -> 0.023146 | CA51: ='InpS -m'!BO$21 -> 0.023212 | CB51: ='InpS -m'!BP$21 -> 0.023254 | CC51: ='InpS -m'!BQ$21 -> 0.023289 | CD51: ='InpS -m'!BR$21 -> 0.023334 | CE51: ='InpS -m'!BS$21 -> 0.023373 | CF51: ='InpS -m'!BT$21 -> 0.023414 | CG51: ='InpS -m'!BU$21 -> 0.023473 | CH51: ='InpS -m'!BV$21 -> 0.02352 | CI51: ='InpS -m'!BW$21 -> 0.023593 | CJ51: ='InpS -m'!BX$21 -> 0.023661 | CK51: ='InpS -m'!BY$21 -> 0.023729 | CL51: ='InpS -m'!BZ$21 -> 0.023786 | CM51: ='InpS -m'!CA$21 -> 0.023842 | CN51: ='InpS -m'!CB$21 -> 0.023908 | CO51: ='InpS -m'!CC$21 -> 0.023962 | CP51: ='InpS -m'!CD$21 -> 0.024012 | CQ51: ='InpS -m'!CE$21 -> 0.024071 | CR51: ='InpS -m'!CF$21 -> 0.02412 | CS51: ='InpS -m'!CG$21 -> 0.024167 | CT51: ='InpS -m'!CH$21 -> 0.024216 | CU51: ='InpS -m'!CI$21 -> 0.024264 | CV51: ='InpS -m'!CJ$21 -> 0.024302 | CW51: ='InpS -m'!CK$21 -> 0.024366 | CX51: ='InpS -m'!CL$21 -> 0.024409 | CY51: ='InpS -m'!CM$21 -> 0.024463 | CZ51: ='InpS -m'!CN$21 -> 0.024531 | DA51: ='InpS -m'!CO$21 -> 0.024587 | DB51: ='InpS -m'!CP$21 -> 0.024623 | DC51: ='InpS -m'!CQ$21 -> 0.024689 | DD51: ='InpS -m'!CR$21 -> 0.024739 | DE51: ='InpS -m'!CS$21 -> 0.02479 | DF51: ='InpS -m'!CT$21 -> 0.024835 | DG51: ='InpS -m'!CU$21 -> 0.024873 | DH51: ='InpS -m'!CV$21 -> 0.024931 | DI51: ='InpS -m'!CW$21 -> 0.024984 | DJ51: ='InpS -m'!CX$21 -> 0.025049 | DK51: ='InpS -m'!CY$21 -> 0.025112 | DL51: ='InpS -m'!CZ$21 -> 0.025182 | DM51: ='InpS -m'!DA$21 -> 0.025252 | DN51: ='InpS -m'!DB$21 -> 0.02529 | DO51: ='InpS -m'!DC$21 -> 0.025333 | DP51: ='InpS -m'!DD$21 -> 0.025394 | DQ51: ='InpS -m'!DE$21 -> 0.025439 | DR51: ='InpS -m'!DF$21 -> 0.025491 | DS51: ='InpS -m'!DG$21 -> 0.025562 | DT51: ='InpS -m'!DH$21 -> 0.025624 | DU51: ='InpS -m'!DI$21 -> 0.025666 | DV51: ='InpS -m'!DJ$21 -> 0.025739 | DW51: ='InpS -m'!DK$21 -> 0.025799 | DX51: ='InpS -m'!DL$21 -> 0.025837 | DY51: ='InpS -m'!DM$21 -> 0.025907 | DZ51: ='InpS -m'!DN$21 -> 0.025947 | EA51: ='InpS -m'!DO$21 -> 0.025986 | EB51: ='InpS -m'!DP$21 -> 0.026059 | EC51: ='InpS -m'!DQ$21 -> 0.026104 | ED51: ='InpS -m'!DR$21 -> 0.026177 | EE51: ='InpS -m'!DS$21 -> 0.02622 | EF51: ='InpS -m'!DT$21 -> 0.026291 | EG51: ='InpS -m'!DU$21 -> 0.026347 | EH51: ='InpS -m'!DV$21 -> 0.026388 | EI51: ='InpS -m'!DW$21 -> 0.026447 | EJ51: ='InpS -m'!DX$21 -> 0.026511 | EK51: ='InpS -m'!DY$21 -> 0.026547 | EL51: ='InpS -m'!DZ$21 -> 0.026589 | EM51: ='InpS -m'!EA$21 -> 0.026655 | EN51: ='InpS -m'!EB$21 -> 0.026693 | EO51: ='InpS -m'!EC$21 -> 0.026738 | EP51: ='InpS -m'!ED$21 -> 0.026811 | EQ51: ='InpS -m'!EE$21 -> 0.026864 | ER51: ='InpS -m'!EF$21 -> 0.026917 | ES51: ='InpS -m'!EG$21 -> 0.026985 | ET51: ='InpS -m'!EH$21 -> 0.027028 | EU51: ='InpS -m'!EI$21 -> 0.02709 | EV51: ='InpS -m'!EJ$21 -> 0.027134 | EW51: ='InpS -m'!EK$21 -> 0.027205 | EX51: ='InpS -m'!EL$21 -> 0.02727 | EY51: ='InpS -m'!EM$21 -> 0.027308 | EZ51: ='InpS -m'!EN$21 -> 0.027346 | FA51: ='InpS -m'!EO$21 -> 0.027391 | FB51: ='InpS -m'!EP$21 -> 0.027437 | FC51: ='InpS -m'!EQ$21 -> 0.027496 | FD51: ='InpS -m'!ER$21 -> 0.027551 | FE51: ='InpS -m'!ES$21 -> 0.027621 | FF51: ='InpS -m'!ET$21 -> 0.027689 | FG51: ='InpS -m'!EU$21 -> 0.027753 | FH51: ='InpS -m'!EV$21 -> 0.027788 | FI51: ='InpS -m'!EW$21 -> 0.027828 | FJ51: ='InpS -m'!EX$21 -> 0.027891 | FK51: ='InpS -m'!EY$21 -> 0.027952 | FL51: ='InpS -m'!EZ$21 -> 0.028004 | FM51: ='InpS -m'!FA$21 -> 0.028051 | FN51: ='InpS -m'!FB$21 -> 0.028117 | FO51: ='InpS -m'!FC$21 -> 0.028162 | FP51: ='InpS -m'!FD$21 -> 0.028226 | FQ51: ='InpS -m'!FE$21 -> 0.028283 | FR51: ='InpS -m'!FF$21 -> 0.028351 | FS51: ='InpS -m'!FG$21 -> 0.028407 | FT51: ='InpS -m'!FH$21 -> 0.028452 | FU51: ='InpS -m'!FI$21 -> 0.028495 | FV51: ='InpS -m'!FJ$21 -> 0.02857 | FW51: ='InpS -m'!FK$21 -> 0.028613 | FX51: ='InpS -m'!FL$21 -> 0.028678 | FY51: ='InpS -m'!FM$21 -> 0.028726 | FZ51: ='InpS -m'!FN$21 -> 0.028797 | GA51: ='InpS -m'!FO$21 -> 0.028861 | GB51: ='InpS -m'!FP$21 -> 0.028935 | GC51: ='InpS -m'!FQ$21 -> 0.028995 | GD51: ='InpS -m'!FR$21 -> 0.02905 | GE51: ='InpS -m'!FS$21 -> 0.029109 | GF51: ='InpS -m'!FT$21 -> 0.029181 | GG51: ='InpS -m'!FU$21 -> 0.029232 | GH51: ='InpS -m'!FV$21 -> 0.029283 | GI51: ='InpS -m'!FW$21 -> 0.029322 | GJ51: ='InpS -m'!FX$21 -> 0.029382 | GK51: ='InpS -m'!FY$21 -> 0.029447 | GL51: ='InpS -m'!FZ$21 -> 0.029488 | GM51: ='InpS -m'!GA$21 -> 0.029557 | GN51: ='InpS -m'!GB$21 -> 0.029595 | GO51: ='InpS -m'!GC$21 -> 0.02967 | GP51: ='InpS -m'!GD$21 -> 0.029737 | GQ51: ='InpS -m'!GE$21 -> 0.029788 | GR51: ='InpS -m'!GF$21 -> 0.029841 | GS51: ='InpS -m'!GG$21 -> 0.029881 | GT51: ='InpS -m'!GH$21 -> 0.029955 | GU51: ='InpS -m'!GI$21 -> 0.030029 | GV51: ='InpS -m'!GJ$21 -> 0.030092 | GW51: ='InpS -m'!GK$21 -> 0 | GX51: ='InpS -m'!GL$21 -> 0 | GY51: ='InpS -m'!GM$21 -> 0 | GZ51: ='InpS -m'!GN$21 -> 0 | HA51: ='InpS -m'!GO$21 -> 0 | HB51: ='InpS -m'!GP$21 -> 0 | HC51: ='InpS -m'!GQ$21 -> 0 | HD51: ='InpS -m'!GR$21 -> 0 | HE51: ='InpS -m'!GS$21 -> 0 | HF51: ='InpS -m'!GT$21 -> 0 | HG51: ='InpS -m'!GU$21 -> 0 | HH51: ='InpS -m'!GV$21 -> 0 | HI51: ='InpS -m'!GW$21 -> 0 | HJ51: ='InpS -m'!GX$21 -> 0 | HK51: ='InpS -m'!GY$21 -> 0 | HL51: ='InpS -m'!GZ$21 -> 0 | HM51: ='InpS -m'!HA$21 -> 0 | HN51: ='InpS -m'!HB$21 -> 0 | HO51: ='InpS -m'!HC$21 -> 0 | HP51: ='InpS -m'!HD$21 -> 0 | HQ51: ='InpS -m'!HE$21 -> 0 | HR51: ='InpS -m'!HF$21 -> 0 | HS51: ='InpS -m'!HG$21 -> 0 | HT51: ='InpS -m'!HH$21 -> 0 | HU51: ='InpS -m'!HI$21 -> 0 | HV51: ='InpS -m'!HJ$21 -> 0 | HW51: ='InpS -m'!HK$21 -> 0 | HX51: ='InpS -m'!HL$21 -> 0 | HY51: ='InpS -m'!HM$21 -> 0 | HZ51: ='InpS -m'!HN$21 -> 0 | IA51: ='InpS -m'!HO$21 -> 0 | IB51: ='InpS -m'!HP$21 -> 0 | IC51: ='InpS -m'!HQ$21 -> 0 | ID51: ='InpS -m'!HR$21 -> 0 | IE51: ='InpS -m'!HS$21 -> 0 | IF51: ='InpS -m'!HT$21 -> 0 | IG51: ='InpS -m'!HU$21 -> 0 | IH51: ='InpS -m'!HV$21 -> 0 | II51: ='InpS -m'!HW$21 -> 0 | IJ51: ='InpS -m'!HX$21 -> 0 | IK51: ='InpS -m'!HY$21 -> 0 | IL51: ='InpS -m'!HZ$21 -> 0 | IM51: ='InpS -m'!IA$21 -> 0 | IN51: ='InpS -m'!IB$21 -> 0 | IO51: ='InpS -m'!IC$21 -> 0 | IP51: ='InpS -m'!ID$21 -> 0 | IQ51: ='InpS -m'!IE$21 -> 0 | IR51: ='InpS -m'!IF$21 -> 0 | IS51: ='InpS -m'!IG$21 -> 0 | IT51: ='InpS -m'!IH$21 -> 0 | IU51: ='InpS -m'!II$21 -> 0 | IV51: ='InpS -m'!IJ$21 -> 0 | IW51: ='InpS -m'!IK$21 -> 0 | IX51: ='InpS -m'!IL$21 -> 0 | IY51: ='InpS -m'!IM$21 -> 0 | IZ51: ='InpS -m'!IN$21 -> 0 | JA51: ='InpS -m'!IO$21 -> 0 | JB51: ='InpS -m'!IP$21 -> 0 | JC51: ='InpS -m'!IQ$21 -> 0 | JD51: ='InpS -m'!IR$21 -> 0 | JE51: ='InpS -m'!IS$21 -> 0 | JF51: ='InpS -m'!IT$21 -> 0 | JG51: ='InpS -m'!IU$21 -> 0 | JH51: ='InpS -m'!IV$21 -> 0 | JI51: ='InpS -m'!IW$21 -> 0 | JJ51: ='InpS -m'!IX$21 -> 0 | JK51: ='InpS -m'!IY$21 -> 0 | JL51: ='InpS -m'!IZ$21 -> 0 | JM51: ='InpS -m'!JA$21 -> 0 | JN51: ='InpS -m'!JB$21 -> 0 | JO51: ='InpS -m'!JC$21 -> 0 | JP51: ='InpS -m'!JD$21 -> 0 | JQ51: ='InpS -m'!JE$21 -> 0 | JR51: ='InpS -m'!JF$21 -> 0 | JS51: ='InpS -m'!JG$21 -> 0 | JT51: ='InpS -m'!JH$21 -> 0 | JU51: ='InpS -m'!JI$21 -> 0 | JV51: ='InpS -m'!JJ$21 -> 0 | JW51: ='InpS -m'!JK$21 -> 0 | JX51: ='InpS -m'!JL$21 -> 0 | JY51: ='InpS -m'!JM$21 -> 0 | JZ51: ='InpS -m'!JN$21 -> 0 | KA51: ='InpS -m'!JO$21 -> 0 | KB51: ='InpS -m'!JP$21 -> 0 | KC51: ='InpS -m'!JQ$21 -> 0 | KD51: ='InpS -m'!JR$21 -> 0 | KE51: ='InpS -m'!JS$21 -> 0 | KF51: ='InpS -m'!JT$21 -> 0 | KG51: ='InpS -m'!JU$21 -> 0 | KH51: ='InpS -m'!JV$21 -> 0 | KI51: ='InpS -m'!JW$21 -> 0 | KJ51: ='InpS -m'!JX$21 -> 0 | KK51: ='InpS -m'!JY$21 -> 0 | KL51: ='InpS -m'!JZ$21 -> 0 | KM51: ='InpS -m'!KA$21 -> 0 | KN51: ='InpS -m'!KB$21 -> 0 | KO51: ='InpS -m'!KC$21 -> 0 | KP51: ='InpS -m'!KD$21 -> 0 | KQ51: ='InpS -m'!KE$21 -> 0 | KR51: ='InpS -m'!KF$21 -> 0 | KS51: ='InpS -m'!KG$21 -> 0 | KT51: ='InpS -m'!KH$21 -> 0 | KU51: ='InpS -m'!KI$21 -> 0 | KV51: ='InpS -m'!KJ$21 -> 0 | KW51: ='InpS -m'!KK$21 -> 0 | KX51: ='InpS -m'!KL$21 -> 0 | KY51: ='InpS -m'!KM$21 -> 0 | KZ51: ='InpS -m'!KN$21 -> 0 | LA51: ='InpS -m'!KO$21 -> 0 | LB51: ='InpS -m'!KP$21 -> 0 | LC51: ='InpS -m'!KQ$21 -> 0 | LD51: ='InpS -m'!KR$21 -> 0 | LE51: ='InpS -m'!KS$21 -> 0 | LF51: ='InpS -m'!KT$21 -> 0 | LG51: ='InpS -m'!KU$21 -> 0 | LH51: ='InpS -m'!KV$21 -> 0 | LI51: ='InpS -m'!KW$21 -> 0 | LJ51: ='InpS -m'!KX$21 -> 0 | LK51: ='InpS -m'!KY$21 -> 0 | LL51: ='InpS -m'!KZ$21 -> 0 | LM51: ='InpS -m'!LA$21 -> 0 | LN51: ='InpS -m'!LB$21 -> 0 | LO51: ='InpS -m'!LC$21 -> 0
F52: 2020-08-24T13:25:24 | G52: 44067.55931 | H52: EBl Assumptions in InpC added | I52: =InpC!$E$87 -> Equity bridge swap rate | J52: =InpC!$J$87 -> 0.015 | L52: Financial team
F53: 2020-08-24T13:25:24 | G53: 44067.55931 | H53: EBl Assumptions in InpC added | I53: =InpC!$E$86 -> % of EBL hedged | J53: =InpC!$J$86 -> 1 | L53: Financial team
F54: 2020-08-24T13:25:24 | G54: 44067.55931 | H54: EBl Assumptions in InpC added | I54: =InpC!$E$84 -> Term of equity bridge beyond PCOD | J54: =InpC!$J$84 -> 2 | L54: Financial team
F55: 2020-08-24T13:25:24 | G55: 44067.55931 | H55: EBl Assumptions in InpC added | I55: =InpC!$E$83 -> Equity bridge repaid at end construction? | J55: =InpC!$J$83 -> 1 | L55: Financial team
F56: 2020-08-24T13:25:24 | G56: 44067.55931 | H56: EBl Assumptions in InpC added | I56: =InpC!$E$81 -> Equity bridge day count convention | J56: =InpC!$J$81 -> 360 | L56: Financial team
F57: 2020-08-24T13:25:23 | G57: 44067.55929 | H57: EBl Assumptions in InpC added | I57: =InpC!$E$79 -> EBL interest & fee pre-PCOD paid vs rolled-up switch | J57: =InpC!$J$79 -> 0 | L57: Financial team
F58: 2020-08-24T13:25:23 | G58: 44067.55929 | H58: EBl Assumptions in InpC added | I58: =InpC!$E$92 -> Equity bridge commitment fee | J58: =InpC!$J$92 -> 0.3 | L58: Financial team
F59: 2020-08-24T13:25:23 | G59: 44067.55929 | H59: EBl Assumptions in InpC added | I59: =InpC!$E$91 -> Equity bridge upfront fee | J59: =InpC!$J$91 -> 0.015 | L59: Financial team
F60: 2020-08-24T13:25:23 | G60: 44067.55929 | H60: EBl Assumptions in InpC added | I60: =InpC!$E$90 -> Equity bridge margin - operations | J60: =InpC!$J$90 -> 0.025 | L60: Financial team
F61: 2020-08-24T13:25:23 | G61: 44067.55929 | H61: EBl Assumptions in InpC added | I61: =InpC!$E$89 -> Equity bridge margin - construction | J61: =InpC!$J$89 -> 0.025 | L61: Financial team
F62: 2020-08-24T13:24:52 | G62: 44067.55894 | H62: EBl Assumptions in InpC added | I62: =InpC!$E$77 -> EBL active switch | J62: =InpC!$J$77 -> 0 | L62: Financial team
F64: 2020-08-07T07:53:42 | G64: 44050.32896 | H64: Senior debt level DS repayment profile | O64: 0.1475514233 | P64: 0.6149336234 | Q64: 1.358484498 | R64: Base case 1
F65: 2020-08-07T07:53:42 | G65: 44050.32896 | H65: Level ds principal repayment profile added as an input option | I65: =InpC!$E$179 -> Senior debt - T1 active principal repayment profile | J65: 3 | K65: 2 | L65: Financial team | M65: Demo only - not relevant for this project | N65: Base case 1
F66: 2020-08-07T07:53:17 | G66: 44050.32867 | H66: Level ds principal repayment profile added as an option | I66: =Debt!#REF! ->  | L66: Financial team | M66: Demo only - not relevant for this project | N66: ALL
F67: 2020-08-07T07:52:51 | G67: 44050.32837 | H67: Level ds principal repayment calculation added | I67: =Debt!#REF! ->  | L67: Financial team | M67: Demo only - not relevant for this project | N67: ALL
F68: 2020-04-27T20:16:32 | G68: 43948.84481 | H68: Partial hedging of senior debt interest | O68: 0.142944175 | P68: 1.3 | Q68: 1.39 | R68: Base case 1
F69: 2020-04-27T20:16:32 | G69: 43948.84481 | H69: Senior debt forward curve selection input added | I69: =InpC!$E$118 -> Senior debt forward curve selection | J69: 1 | K69: 0 | L69: Financial team | M69: Exploratory analysis - inputs not yet confirmed | N69: Base case 1
F70: 2020-04-27T20:10:30 | G70: 43948.84062 | H70: Adjustment to senior debt interest rate calculation | I70: =Debt!#REF! ->  | L70: Financial team | M70: Exploratory analysis - inputs not yet confirmed | N70: ALL
F71: 2020-04-27T20:06:42 | G71: 43948.83799 | H71: All in annual senior debt interest rate calculation added | I71: =Debt!#REF! ->  | L71: Financial team | M71: Exploratory analysis - inputs not yet confirmed | N71: ALL
F72: 2020-04-27T20:06:20 | G72: 43948.83773 | H72: Proportion of senior debt hedged input added | I72: =InpC!$E$119 -> Propoprtion of senior debt hedged | J72: 0.8 | K72: 0 | L72: Financial team | M72: Exploratory analysis - inputs not yet confirmed | N72: Base case 1
F73: 2020-04-27T19:59:46 | G73: 43948.83317 | H73: Senior debt forward curve inputs added | I73: =InpS!$E$10 -> Senior debt forward curve as at April 27th | L73: Financial team | M73: Exploratory analysis - inputs not yet confirmed | N73: All | U73: New - InpS | V73: 0.02 | W73: 0.020062 | X73: 0.020124 | Y73: 0.020184 | Z73: 0.020241 | AA73: 0.020308 | AB73: 0.020375 | AC73: 0.020434 | AD73: 0.020506 | AE73: 0.020569 | AF73: 0.02062 | AG73: 0.020666 | AH73: 0.020719 | AI73: 0.020757 | AJ73: 0.020795 | AK73: 0.02085 | AL73: 0.020888 | AM73: 0.020954 | AN73: 0.021024 | AO73: 0.021091 | AP73: 0.021134 | AQ73: 0.021205 | AR73: 0.021279 | AS73: 0.021316 | AT73: 0.021367 | AU73: 0.021421 | AV73: 0.02147 | AW73: 0.021516 | AX73: 0.02157 | AY73: 0.021639 | AZ73: 0.021709 | BA73: 0.021772 | BB73: 0.021813 | BC73: 0.021858 | BD73: 0.021913 | BE73: 0.021986 | BF73: 0.022041 | BG73: 0.022089 | BH73: 0.022148 | BI73: 0.022216 | BJ73: 0.022282 | BK73: 0.022351 | BL73: 0.022409 | BM73: 0.022445 | BN73: 0.022489 | BO73: 0.022535 | BP73: 0.022607 | BQ73: 0.022647 | BR73: 0.022684 | BS73: 0.022734 | BT73: 0.022806 | BU73: 0.022852 | BV73: 0.022899 | BW73: 0.022953 | BX73: 0.023028 | BY73: 0.023094 | BZ73: 0.023146 | CA73: 0.023212 | CB73: 0.023254 | CC73: 0.023289 | CD73: 0.023334 | CE73: 0.023373 | CF73: 0.023414 | CG73: 0.023473 | CH73: 0.02352 | CI73: 0.023593 | CJ73: 0.023661 | CK73: 0.023729 | CL73: 0.023786 | CM73: 0.023842 | CN73: 0.023908 | CO73: 0.023962 | CP73: 0.024012 | CQ73: 0.024071 | CR73: 0.02412 | CS73: 0.024167 | CT73: 0.024216 | CU73: 0.024264 | CV73: 0.024302 | CW73: 0.024366 | CX73: 0.024409 | CY73: 0.024463 | CZ73: 0.024531 | DA73: 0.024587 | DB73: 0.024623 | DC73: 0.024689 | DD73: 0.024739 | DE73: 0.02479 | DF73: 0.024835 | DG73: 0.024873 | DH73: 0.024931 | DI73: 0.024984 | DJ73: 0.025049 | DK73: 0.025112 | DL73: 0.025182 | DM73: 0.025252 | DN73: 0.02529 | DO73: 0.025333 | DP73: 0.025394 | DQ73: 0.025439 | DR73: 0.025491 | DS73: 0.025562 | DT73: 0.025624 | DU73: 0.025666 | DV73: 0.025739 | DW73: 0.025799 | DX73: 0.025837 | DY73: 0.025907 | DZ73: 0.025947 | EA73: 0.025986 | EB73: 0.026059 | EC73: 0.026104 | ED73: 0.026177 | EE73: 0.02622 | EF73: 0.026291 | EG73: 0.026347 | EH73: 0.026388 | EI73: 0.026447 | EJ73: 0.026511 | EK73: 0.026547 | EL73: 0.026589 | EM73: 0.026655 | EN73: 0.026693 | EO73: 0.026738 | EP73: 0.026811 | EQ73: 0.026864 | ER73: 0.026917 | ES73: 0.026985 | ET73: 0.027028 | EU73: 0.02709 | EV73: 0.027134 | EW73: 0.027205 | EX73: 0.02727 | EY73: 0.027308 | EZ73: 0.027346 | FA73: 0.027391 | FB73: 0.027437 | FC73: 0.027496 | FD73: 0.027551 | FE73: 0.027621 | FF73: 0.027689 | FG73: 0.027753 | FH73: 0.027788 | FI73: 0.027828 | FJ73: 0.027891 | FK73: 0.027952 | FL73: 0.028004 | FM73: 0.028051 | FN73: 0.028117 | FO73: 0.028162 | FP73: 0.028226 | FQ73: 0.028283 | FR73: 0.028351 | FS73: 0.028407 | FT73: 0.028452 | FU73: 0.028495 | FV73: 0.02857 | FW73: 0.028613 | FX73: 0.028678 | FY73: 0.028726 | FZ73: 0.028797 | GA73: 0.028861 | GB73: 0.028935 | GC73: 0.028995 | GD73: 0.02905 | GE73: 0.029109 | GF73: 0.029181 | GG73: 0.029232 | GH73: 0.029283 | GI73: 0.029322 | GJ73: 0.029382 | GK73: 0.029447 | GL73: 0.029488 | GM73: 0.029557 | GN73: 0.029595 | GO73: 0.02967 | GP73: 0.029737 | GQ73: 0.029788 | GR73: 0.029841 | GS73: 0.029881 | GT73: 0.029955 | GU73: 0.030029 | GV73: 0.030092
F74: 2020-04-27T19:59:46 | G74: 43948.83317 | H74: Senior debt forward curve inputs added | I74: =InpS!$E$10 -> Senior debt forward curve as at April 27th | L74: Financial team | M74: Exploratory analysis - inputs not yet confirmed | N74: All | U74: Previous - InpS
F75: 2020-04-27T19:41:20 | G75: 43948.82037 | H75: Annual profile of senior debt DSCR | O75: 0.1420709193 | P75: 1.3 | Q75: 1.39 | R75: Base case 1
F76: 2020-04-27T19:41:20 | G76: 43948.82037 | H76: Adjustment of senior debt service for debt sizing | I76: =Debt!#REF! ->  | L76: Financial team | M76: Exploratory analysis - inputs not yet confirmed | N76: ALL
F77: 2020-04-27T19:35:54 | G77: 43948.8166 | H77: Senior debt DSCR profiling calculation added | I77: =Debt!#REF! ->  | L77: Financial team | M77: Exploratory analysis - inputs not yet confirmed | N77: ALL
F78: 2020-04-27T19:26:57 | G78: 43948.81038 | H78: Senior debt DSCR annual inputs added | I78: =InpC!$E$131 -> Senior debt DSCR - year 10 | J78: 1.45 | K78: 1.45 | L78: Financial team | M78: Exploratory analysis - inputs not yet confirmed | N78: Base case 1
F79: 2020-04-27T19:26:09 | G79: 43948.80983 | H79: Senior debt DSCR annual inputs added | I79: =InpC!$E$130 -> Senior debt DSCR - year 9 | J79: 1.45 | K79: 1.45 | L79: Financial team | M79: Exploratory analysis - inputs not yet confirmed | N79: Base case 1
F80: 2020-04-27T19:26:09 | G80: 43948.80983 | H80: Senior debt DSCR annual inputs added | I80: =InpC!$E$129 -> Senior debt DSCR - year 8 | J80: 1.45 | K80: 1.45 | L80: Financial team | M80: Exploratory analysis - inputs not yet confirmed | N80: Base case 1
F81: 2020-04-27T19:26:09 | G81: 43948.80983 | H81: Senior debt DSCR annual inputs added | I81: =InpC!$E$128 -> Senior debt DSCR - year 7 | J81: 1.45 | K81: 1.45 | L81: Financial team | M81: Exploratory analysis - inputs not yet confirmed | N81: Base case 1
F82: 2020-04-27T19:26:09 | G82: 43948.80983 | H82: Senior debt DSCR annual inputs added | I82: =InpC!$E$127 -> Senior debt DSCR - year 6 | J82: 1.45 | K82: 1.45 | L82: Financial team | M82: Exploratory analysis - inputs not yet confirmed | N82: Base case 1
F83: 2020-04-27T19:26:09 | G83: 43948.80983 | H83: Senior debt DSCR annual inputs added | I83: =InpC!$E$126 -> Senior debt DSCR - year 5 | J83: 1.45 | K83: 1.45 | L83: Financial team | M83: Exploratory analysis - inputs not yet confirmed | N83: Base case 1
F84: 2020-04-27T19:26:09 | G84: 43948.80983 | H84: Senior debt DSCR annual inputs added | I84: =InpC!$E$125 -> Senior debt DSCR - year 4 | J84: 1.3 | K84: 1.45 | L84: Financial team | M84: Exploratory analysis - inputs not yet confirmed | N84: Base case 1
F85: 2020-04-27T19:26:09 | G85: 43948.80983 | H85: Senior debt DSCR annual inputs added | I85: =InpC!$E$124 -> Senior debt DSCR - year 3 | J85: 1.3 | K85: 1.45 | L85: Financial team | M85: Exploratory analysis - inputs not yet confirmed | N85: Base case 1
F86: 2020-04-27T19:26:09 | G86: 43948.80983 | H86: Senior debt DSCR annual inputs added | I86: =InpC!$E$123 -> Senior debt DSCR - year 2 | J86: 1.3 | K86: 1.45 | L86: Financial team | M86: Exploratory analysis - inputs not yet confirmed | N86: Base case 1
F87: 2020-04-27T19:25:30 | G87: 43948.80937 | H87: Senior debt DSCR annual inputs added | I87: =InpC!$E$122 -> Senior debt DSCR - year 1 | J87: 1.3 | K87: 1.45 | L87: Financial team | M87: Exploratory analysis - inputs not yet confirmed | N87: Base case 1
F88: 2020-04-27T13:55:34 | G88: 43948.58025 | H88: Input assumption update from Technical team | O88: 0.1388480723 | P88: 1.44999998 | Q88: 1.449999999 | R88: Scenario 1
F89: 2020-04-27T13:55:34 | G89: 43948.58025 | H89: O&M cost assumption update | I89: =InpC!$E$52 -> ProjectCo costs | J89: 1700 | K89: 1500 | L89: Technical team | M89: Per update email April 27th | N89: Base case 1
F90: 2020-04-27T13:54:50 | G90: 43948.57975 | H90: Year 1 P50 production input update | I90: =InpC!#REF! ->  | J90: 245 | K90: 250 | L90: Technical team | M90: Per update email April 27th | N90: Base case 1
F91: 2020-04-27T13:51:16 | G91: 43948.57727 | H91: Length of PPA assumption update | I91: =InpC!$E$24 -> Length of PPA | J91: 25 | K91: 30 | L91: Technical team | M91: Per update email April 27th | N91: Base case 1
F94: 2020-04-20 | H94: Indexation assignment solution | O94: 0.1566715419 | P94: 1.44999997 | Q94: 1.449999999 | R94: Scenario 1

Sheet InpC
A1: =RIGHT(CELL("filename", A1), LEN(CELL("filename", A1)) - SEARCH("]", CELL("filename", A1))) & " - " & $F$3 -> InpC - Seasonal - Leverage Method
J2: =IF(J4 = $F4, "q", "") ->  | K2: =IF(K4 = $F4, "q", "") -> q | L2: =IF(L4 = $F4, "q", "") ->  | M2: =IF(M4 = $F4, "q", "") ->  | U2: =IF(U4 = $F4, "q", "") ->  | V2: =IF(V4 = $F4, "q", "") ->  | AR2: =IF(AR4 = $F4, "q", "") -> 
F3: =INDEX(J3:AS3,MATCH(F4,J4:AS4)) -> Seasonal - Leverage Method | J3: Base case 1 | K3: Seasonal - Leverage Method | L3: Seasonal - Leverage Method and Price Compute | M3: Higher Target IRR and Higher EPC | N3: Construction delay | O3: Higher O&M Leverage Set Price from IRR | P3: Higher EPC Cost and Degradation | Q3: Lower Target IRR of 8% | R3: Construction Over-Run and IRR | S3: Higher O&M and 11% IRR | T3: Degradation Sensitivity and 15% IRR | U3: Higher EPC Cost | V3: Lower Target IRR | W3: Construction delay | X3: Higher O&M | Y3: No Working Capital | Z3: Scenario 14 - 1 yr debt term | AA3: Scenario 15 Tranch 2 = Tranch 1 | AB3: Scenario 16 Terminal Value 20% EPC | AC3: Scenario 17 DSCR 1,30 | AD3: Scenario 18 +2% Capacity factor | AE3: Scenario 19 -2% Capacity factor | AF3: Scenario 20 no debt withholding tax | AG3: Scenario 21 EBL long | AH3: High Inflation Rate | AI3: Scenario 23 | AJ3: Scenario 24 | AK3: Scenario 25 | AL3: Scenario 26 | AM3: Scenario 27 | AN3: Scenario 28 | AO3: Scenario 29 | AP3: Scenario 30 | AQ3: Scenario 31 | AR3: Scenario 32
E4: Active scenario | F4: 2 | I4: =F4 -> 2 | J4: 1 | K4: 2 | L4: 3 | M4: 4 | N4: 5 | O4: 6 | P4: 7 | Q4: 8 | R4: 9 | S4: 10 | T4: 11 | U4: 12 | V4: 13 | W4: 14 | X4: 15 | Y4: 16 | Z4: 17 | AA4: 18 | AB4: 19 | AC4: 20 | AD4: 21 | AE4: 22 | AF4: 23 | AG4: 24 | AH4: 25 | AI4: 26 | AJ4: 27 | AK4: 28 | AL4: 29 | AM4: 30 | AN4: 31 | AO4: 32 | AP4: 33 | AQ4: 34 | AR4: 35
E5: Comparison scenario | F5: 1 | I5: =I4 -> 2
E6: Base case | F6: =INDEX(J6:AS6,MATCH(F4,J4:AS4,0)) -> 2 | I6: =MATCH(F6, $J$4:$AS$4) -> 2 | J6: 1 | K6: 2 | L6: 3 | M6: 1 | N6: 1 | O6: 1 | P6: 1 | Q6: 1 | R6: 1 | S6: 1 | T6: 1 | U6: 1 | V6: 1 | W6: 1 | X6: 1 | Y6: 1 | Z6: 1 | AA6: 1 | AB6: 1 | AC6: 1 | AD6: 1 | AE6: 1 | AF6: 1 | AG6: 1 | AH6: 1 | AI6: 1 | AJ6: 1 | AK6: 1 | AL6: 1 | AM6: 1 | AN6: 1 | AO6: 1 | AP6: 1 | AQ6: 1 | AR6: 1
E7: Input differences | F7: =COUNTIF(I10:I274, "tu") -> 139 | J7: =IF(J6 = $F$6, "Base case", "") ->  | K7: =IF(K6 = $F$6, "Base case", "") -> Base case | L7: =IF(L6 = $F$6, "Base case", "") -> 
F9: Constant | G9: Unit | H9: Source
A11: TIMING ASSUMPTIONS
E13: First date of time rulers | F13: =IF( INDEX(J13:AS13, $I$4) = "", INDEX(J13:AR13, 1), INDEX(J13:AS13, $I$5)) -> 2021-01-01 | G13: date | I13: =IF( INDEX(J13:AS13, I$5) = "", IF( INDEX(J13:AS13, I$6) = F13, "vw", "tu"), IF(INDEX(J13:AS13, I$5) = F13, "vw", "tu")) -> tu | J13: 2021-01-01
E14: Financial year end date of first model period | F14: =IF( INDEX(J14:AS14, $I$4) = "", INDEX(J14:AR14, 1), INDEX(J14:AS14, $I$5)) -> 2021-12-31 | G14: date | I14: =IF( INDEX(J14:AS14, I$5) = "", IF( INDEX(J14:AS14, I$6) = F14, "vw", "tu"), IF(INDEX(J14:AS14, I$5) = F14, "vw", "tu")) -> tu | J14: 2021-12-31
E15: Financial year end month number | F15: 12 | G15: month # | I15: =IF( INDEX(J15:AS15, I$5) = "", IF( INDEX(J15:AS15, I$6) = F15, "vw", "tu"), IF(INDEX(J15:AS15, I$5) = F15, "vw", "tu")) -> tu | J15: 12
E16: Length of operating period | F16: 6 | G16: months | I16: =IF( INDEX(J16:AS16, I$5) = "", IF( INDEX(J16:AS16, I$6) = F16, "vw", "tu"), IF(INDEX(J16:AS16, I$5) = F16, "vw", "tu")) -> tu | J16: 6
E18: Semi-annual first period end month | F18: 6 | G18: month # | I18: =IF( INDEX(J18:AS18, I$5) = "", IF( INDEX(J18:AS18, I$6) = F18, "vw", "tu"), IF(INDEX(J18:AS18, I$5) = F18, "vw", "tu")) -> tu | J18: 6
E19: Semi-annual second period end month | F19: 12 | G19: month # | I19: =IF( INDEX(J19:AS19, I$5) = "", IF( INDEX(J19:AS19, I$6) = F19, "vw", "tu"), IF(INDEX(J19:AS19, I$5) = F19, "vw", "tu")) -> tu | J19: 12
E21: Financial close date | F21: 2022-04-30 | G21: date | H21: =DATEDIF(F13,F21,"m")+1 -> 16 | I21: =IF( INDEX(J21:AS21, I$5) = "", IF( INDEX(J21:AS21, I$6) = F21, "vw", "tu"), IF(INDEX(J21:AS21, I$5) = F21, "vw", "tu")) -> tu | J21: 2022-04-30
E22: Construction period length | F22: 26 | G22: months | I22: =IF( INDEX(J22:AS22, I$5) = "", IF( INDEX(J22:AS22, I$6) = F22, "vw", "tu"), IF(INDEX(J22:AS22, I$5) = F22, "vw", "tu")) -> tu | J22: 26 | N22: 26
E24: Length of PPA | F24: 20 | G24: years | I24: =IF( INDEX(J24:AS24, I$5) = "", IF( INDEX(J24:AS24, I$6) = F24, "vw", "tu"), IF(INDEX(J24:AS24, I$5) = F24, "vw", "tu")) -> tu | J24: 20
E25: Extend PPA in the event of delay | F25: 0 | G25: 1 = yes, 0 = no | I25: =IF( INDEX(J25:AS25, I$5) = "", IF( INDEX(J25:AS25, I$6) = F25, "vw", "tu"), IF(INDEX(J25:AS25, I$5) = F25, "vw", "tu")) -> vw | J25: 0
E26: Contract extension | F26: 0 | G26: years | I26: =IF( INDEX(J26:AS26, I$5) = "", IF( INDEX(J26:AS26, I$6) = F26, "vw", "tu"), IF(INDEX(J26:AS26, I$5) = F26, "vw", "tu")) -> vw | J26: 0
A29: OPTIMISATION
E31: Tariff solving mode | F31: 0 | G31: 1 = changes go to tariff, 2 = changes go to IRR | I31: =IF( INDEX(J31:AS31, I$5) = "", IF( INDEX(J31:AS31, I$6) = F31, "vw", "tu"), IF(INDEX(J31:AS31, I$5) = F31, "vw", "tu")) -> vw | J31: 0 | K31: 0 | L31: 1 | M31: 1 | Q31: 1 | R31: 1 | S31: 1 | T31: 1 | X31: 1 | AG31: 2
E32: Target IRR | F32: 0.1 | G32: % | I32: =IF( INDEX(J32:AS32, I$5) = "", IF( INDEX(J32:AS32, I$6) = F32, "vw", "tu"), IF(INDEX(J32:AS32, I$5) = F32, "vw", "tu")) -> tu | J32: 0.1 | L32: 0.1 | M32: 0.13 | Q32: 0.08 | R32: 0.1 | S32: 0.11 | T32: 0.15 | X32: 0.1
E33: Annual discount rate - tariff indexation | F33: 0.1 | G33: % | I33: =IF( INDEX(J33:AS33, I$5) = "", IF( INDEX(J33:AS33, I$6) = F33, "vw", "tu"), IF(INDEX(J33:AS33, I$5) = F33, "vw", "tu")) -> tu | J33: 0.1
A35: OPERATIONS
B37: Revenue
E38: H1 seasonal adjustment | F38: 0.5 | G38: % of annual yield | I38: =IF( INDEX(J38:AS38, I$5) = "", IF( INDEX(J38:AS38, I$6) = F38, "vw", "tu"), IF(INDEX(J38:AS38, I$5) = F38, "vw", "tu")) -> tu | J38: 0.5 | L38: 0.52 | M38: 0.52 | N38: 0.52 | O38: 0.52 | P38: 0.52 | Q38: 0.52 | R38: 0.52 | S38: 0.52 | U38: 0.52 | V38: 0.52 | W38: 0.52 | X38: 0.52
E39: H2 seasonal adjustment | F39: 0.5 | G39: % of annual yield | I39: =IF( INDEX(J39:AS39, I$5) = "", IF( INDEX(J39:AS39, I$6) = F39, "vw", "tu"), IF(INDEX(J39:AS39, I$5) = F39, "vw", "tu")) -> tu | J39: 0.5 | L39: 0.48 | M39: 0.48 | N39: 0.48 | O39: 0.48 | P39: 0.48 | Q39: 0.48 | R39: 0.48 | S39: 0.48 | U39: 0.48 | V39: 0.48 | W39: 0.48 | X39: 0.48
E40: Q3 seasonal adjustment | F40: 0 | G40: % of annual yield | I40: =IF( INDEX(J40:AS40, I$5) = "", IF( INDEX(J40:AS40, I$6) = F40, "vw", "tu"), IF(INDEX(J40:AS40, I$5) = F40, "vw", "tu")) -> vw | J40: 0
E41: Q4 seasonal adjustment | F41: 0 | G41: % of annual yield | I41: =IF( INDEX(J41:AS41, I$5) = "", IF( INDEX(J41:AS41, I$6) = F41, "vw", "tu"), IF(INDEX(J41:AS41, I$5) = F41, "vw", "tu")) -> vw | J41: 0
E42: Annual yield allocation check | F42: 0 | G42: check
E44: Annual degradation | F44: 0.002 | G44: % p.a. | I44: =IF( INDEX(J44:AS44, I$5) = "", IF( INDEX(J44:AS44, I$6) = F44, "vw", "tu"), IF(INDEX(J44:AS44, I$5) = F44, "vw", "tu")) -> tu | J44: 0.002 | P44: 0.005 | T44: 0.1
E45: Production capacity | F45: 300 | G45: MW | I45: =IF( INDEX(J45:AS45, I$5) = "", IF( INDEX(J45:AS45, I$6) = F45, "vw", "tu"), IF(INDEX(J45:AS45, I$5) = F45, "vw", "tu")) -> tu | J45: 300
E46: Year 1 P50 capacity factor | F46: 0.4 | G46: % | I46: =IF( INDEX(J46:AS46, I$5) = "", IF( INDEX(J46:AS46, I$6) = F46, "vw", "tu"), IF(INDEX(J46:AS46, I$5) = F46, "vw", "tu")) -> tu | J46: 0.4 | AD46: 0.42 | AE46: 0.38
E47: Availability | F47: 0.98 | G47: % | I47: =IF( INDEX(J47:AS47, I$5) = "", IF( INDEX(J47:AS47, I$6) = F47, "vw", "tu"), IF(INDEX(J47:AS47, I$5) = F47, "vw", "tu")) -> tu | J47: =UDF_Output2!E2 -> 0.98
E49: Terminal value % of EPC cost | F49: 0 | G49: % | J49: 0 | AB49: 0.2
B51: Opex
E52: ProjectCo costs | F52: 500 | G52: $ 000s p.a. | I52: =IF( INDEX(J52:AS52, I$5) = "", IF( INDEX(J52:AS52, I$6) = F52, "vw", "tu"), IF(INDEX(J52:AS52, I$5) = F52, "vw", "tu")) -> tu | J52: 500
E53: Annual fixed O&M per MW | F53: 25 | G53: $ 000s / MW | I53: =IF( INDEX(J53:AS53, I$5) = "", IF( INDEX(J53:AS53, I$6) = F53, "vw", "tu"), IF(INDEX(J53:AS53, I$5) = F53, "vw", "tu")) -> tu | J53: 25 | O53: 50 | P53: 26
B54: Indexation | F54: 0
E55: Escalation period end month | F55: 12 | G55: month | I55: =IF( INDEX(J55:AS55, I$5) = "", IF( INDEX(J55:AS55, I$6) = F55, "vw", "tu"), IF(INDEX(J55:AS55, I$5) = F55, "vw", "tu")) -> tu | J55: 12
E56: Expected CPI at close | F56: 170 | G56: index | I56: =IF( INDEX(J56:AS56, I$5) = "", IF( INDEX(J56:AS56, I$6) = F56, "vw", "tu"), IF(INDEX(J56:AS56, I$5) = F56, "vw", "tu")) -> tu | J56: 170
E57: CPI at O&M contract signature date | F57: 100 | G57: index | H57: 100 if escalation from COD chosen | I57: =IF( INDEX(J57:AS57, I$5) = "", IF( INDEX(J57:AS57, I$6) = F57, "vw", "tu"), IF(INDEX(J57:AS57, I$5) = F57, "vw", "tu")) -> tu | J57: 100
E58: CPI active switch | F58: 0 | G58: 1 = from FC; 0 = from COD | J58: 0
E59: CPI at COD escalated from COD | F59: 100 | G59: index | J59: 100
E60: Forecast CPI growth rate | F60: 0.02 | G60: % p.a. | I60: =IF( INDEX(J60:AS60, I$5) = "", IF( INDEX(J60:AS60, I$6) = F60, "vw", "tu"), IF(INDEX(J60:AS60, I$5) = F60, "vw", "tu")) -> tu | J60: 0.02 | AH60: 0.1
A63: PROJECT COSTS
E65: EPC cost | F65: =IF( INDEX(J65:AS65, $I$4) = "", INDEX(J65:AR65, 1), INDEX(J65:AS65, $I$5)) -> 300000 | G65: =SMU -> $ 000s | I65: =IF( INDEX(J65:AS65, I$5) = "", IF( INDEX(J65:AS65, I$6) = F65, "vw", "tu"), IF(INDEX(J65:AS65, I$5) = F65, "vw", "tu")) -> tu | J65: 300000 | L65: 300000 | M65: =1.05*J65 -> 315000 | N65: 300000 | P65: 400000 | R65: 400000
E66: EPC spent contingency | F66: 0.02 | G66: % | I66: =IF( INDEX(J66:AS66, I$5) = "", IF( INDEX(J66:AS66, I$6) = F66, "vw", "tu"), IF(INDEX(J66:AS66, I$5) = F66, "vw", "tu")) -> tu | J66: 0.02
E67: Annual SPV costs | F67: 1500 | G67: $ 000s p.a. | I67: =IF( INDEX(J67:AS67, I$5) = "", IF( INDEX(J67:AS67, I$6) = F67, "vw", "tu"), IF(INDEX(J67:AS67, I$5) = F67, "vw", "tu")) -> tu | J67: 1500
E68: Construction insurance - base amount | F68: 1300 | G68: =SMU -> $ 000s | I68: =IF( INDEX(J68:AS68, I$5) = "", IF( INDEX(J68:AS68, I$6) = F68, "vw", "tu"), IF(INDEX(J68:AS68, I$5) = F68, "vw", "tu")) -> tu | J68: 1300
E69: Development costs - base amount | F69: 5000 | G69: =SMU -> $ 000s | I69: =IF( INDEX(J69:AS69, I$5) = "", IF( INDEX(J69:AS69, I$6) = F69, "vw", "tu"), IF(INDEX(J69:AS69, I$5) = F69, "vw", "tu")) -> tu | J69: 5000 | W69: 6000 | X69: 4000
E70: Development fee - base amount | F70: 2000 | G70: =SMU -> $ 000s | I70: =IF( INDEX(J70:AS70, I$5) = "", IF( INDEX(J70:AS70, I$6) = F70, "vw", "tu"), IF(INDEX(J70:AS70, I$5) = F70, "vw", "tu")) -> tu | J70: 2000 | U70: 3000 | V70: 1000
E71: O&M mobilisation - base amount | G71: =SMU -> $ 000s | I71: =IF( INDEX(J71:AS71, I$5) = "", IF( INDEX(J71:AS71, I$6) = F71, "vw", "tu"), IF(INDEX(J71:AS71, I$5) = F71, "vw", "tu")) -> vw | J71: 0
A74: FINANCING
B76: Equity bridge
E77: EBL active switch | F77: 0 | G77: 1 = yes; 0 = no | I77: =IF( INDEX(J77:AS77, I$5) = "", IF( INDEX(J77:AS77, I$6) = F77, "vw", "tu"), IF(INDEX(J77:AS77, I$5) = F77, "vw", "tu")) -> vw | J77: 0
E79: EBL interest & fee pre-PCOD paid vs rolled-up switch | F79: =IF( INDEX(J79:AS79, $I$4) = "", INDEX(J79:AR79, 1), INDEX(J79:AS79, $I$5)) -> 0 | G79: 0 = paid, 1 = rolled-up | I79: =IF( INDEX(J79:AS79, I$5) = "", IF( INDEX(J79:AS79, I$6) = F79, "vw", "tu"), IF(INDEX(J79:AS79, I$5) = F79, "vw", "tu")) -> vw | J79: 0
E81: Equity bridge day count convention | F81: 360 | G81: days | I81: =IF( INDEX(J81:AS81, I$5) = "", IF( INDEX(J81:AS81, I$6) = F81, "vw", "tu"), IF(INDEX(J81:AS81, I$5) = F81, "vw", "tu")) -> tu | J81: 360
E83: Equity bridge repaid at end construction? | F83: 1 | G83: 1 = yes, 0 = no | I83: =IF( INDEX(J83:AS83, I$5) = "", IF( INDEX(J83:AS83, I$6) = F83, "vw", "tu"), IF(INDEX(J83:AS83, I$5) = F83, "vw", "tu")) -> tu | J83: 1 | AG83: 0
E84: Term of equity bridge beyond PCOD | F84: 2 | G84: years | I84: =IF( INDEX(J84:AS84, I$5) = "", IF( INDEX(J84:AS84, I$6) = F84, "vw", "tu"), IF(INDEX(J84:AS84, I$5) = F84, "vw", "tu")) -> tu | J84: 2
E86: % of EBL hedged | F86: 1 | G86: % | I86: =IF( INDEX(J86:AS86, I$5) = "", IF( INDEX(J86:AS86, I$6) = F86, "vw", "tu"), IF(INDEX(J86:AS86, I$5) = F86, "vw", "tu")) -> tu | J86: 1
E87: Equity bridge swap rate | F87: 0.015 | G87: % p.a. | I87: =IF( INDEX(J87:AS87, I$5) = "", IF( INDEX(J87:AS87, I$6) = F87, "vw", "tu"), IF(INDEX(J87:AS87, I$5) = F87, "vw", "tu")) -> tu | J87: 0.015
E89: Equity bridge margin - construction | F89: 0.025 | G89: % p.a. | I89: =IF( INDEX(J89:AS89, I$5) = "", IF( INDEX(J89:AS89, I$6) = F89, "vw", "tu"), IF(INDEX(J89:AS89, I$5) = F89, "vw", "tu")) -> tu | J89: 0.025
E90: Equity bridge margin - operations | F90: 0.025 | G90: % p.a. | I90: =IF( INDEX(J90:AS90, I$5) = "", IF( INDEX(J90:AS90, I$6) = F90, "vw", "tu"), IF(INDEX(J90:AS90, I$5) = F90, "vw", "tu")) -> tu | J90: 0.025
E91: Equity bridge upfront fee | F91: 0.015 | G91: % | I91: =IF( INDEX(J91:AS91, I$5) = "", IF( INDEX(J91:AS91, I$6) = F91, "vw", "tu"), IF(INDEX(J91:AS91, I$5) = F91, "vw", "tu")) -> tu | J91: 0.015
E92: Equity bridge commitment fee | F92: 0.3 | G92: % of margin | I92: =IF( INDEX(J92:AS92, I$5) = "", IF( INDEX(J92:AS92, I$6) = F92, "vw", "tu"), IF(INDEX(J92:AS92, I$5) = F92, "vw", "tu")) -> tu | J92: 0.3
B94: Construction debt
E95: Senior debt - T1 - % of debt | F95: 0.5 | G95: % | I95: =IF( INDEX(J95:AS95, I$5) = "", IF( INDEX(J95:AS95, I$6) = F95, "vw", "tu"), IF(INDEX(J95:AS95, I$5) = F95, "vw", "tu")) -> tu | J95: 0.5
E96: Senior debt - T2 - % of debt | F96: 0.5 | G96: % | J96: 0.5
C98: Tranche 1
E99: Construction debt - T1 upfront fee amount | F99: 0.02 | G99: % | I99: =IF( INDEX(J99:AS99, I$5) = "", IF( INDEX(J99:AS99, I$6) = F99, "vw", "tu"), IF(INDEX(J99:AS99, I$5) = F99, "vw", "tu")) -> tu | J99: 0.02
E100: Construction debt - T1 commitment amount | F100: 131500 | G100: =SMU -> $ 000s | I100: =IF( INDEX(J100:AS100, I$5) = "", IF( INDEX(J100:AS100, I$6) = F100, "vw", "tu"), IF(INDEX(J100:AS100, I$5) = F100, "vw", "tu")) -> tu | J100: 131500
E101: Construction debt - T1 commitment amount over sized | F101: 500 | G101: =SMU -> $ 000s | J101: 500
E102: Construction debt - T1 commitment fee % | F102: 0.0075 | G102: % p.a. | I102: =IF( INDEX(J102:AS102, I$5) = "", IF( INDEX(J102:AS102, I$6) = F102, "vw", "tu"), IF(INDEX(J102:AS102, I$5) = F102, "vw", "tu")) -> tu | J102: =0.3*J104 -> 0.0075
E103: Construction debt - T1 swap rate | F103: 0.015 | G103: % p.a. | I103: =IF( INDEX(J103:AS103, I$5) = "", IF( INDEX(J103:AS103, I$6) = F103, "vw", "tu"), IF(INDEX(J103:AS103, I$5) = F103, "vw", "tu")) -> tu | J103: 0.015
E104: Construction debt - T1 margin | F104: 0.025 | G104: % p.a. | I104: =IF( INDEX(J104:AS104, I$5) = "", IF( INDEX(J104:AS104, I$6) = F104, "vw", "tu"), IF(INDEX(J104:AS104, I$5) = F104, "vw", "tu")) -> tu | J104: 0.025 | Q104: 0.03 | R104: 0.02
C106: Tranche 2
E107: Construction debt - T2 upfront fee amount | F107: 0.022 | G107: % | I107: =IF( INDEX(J107:AS107, I$5) = "", IF( INDEX(J107:AS107, I$6) = F107, "vw", "tu"), IF(INDEX(J107:AS107, I$5) = F107, "vw", "tu")) -> tu | J107: 0.022 | AA107: 0.02
E108: Construction debt - T2 commitment amount | F108: 131500 | G108: =SMU -> $ 000s | I108: =IF( INDEX(J108:AS108, I$5) = "", IF( INDEX(J108:AS108, I$6) = F108, "vw", "tu"), IF(INDEX(J108:AS108, I$5) = F108, "vw", "tu")) -> tu | J108: 131500 | AA108: 131500
E109: Construction debt - T2 commitment amount over sized | F109: 500 | G109: =SMU -> $ 000s | J109: 500 | AA109: 500
E110: Construction debt - T2 commitment fee % | F110: 0.0081 | G110: % p.a. | I110: =IF( INDEX(J110:AS110, I$5) = "", IF( INDEX(J110:AS110, I$6) = F110, "vw", "tu"), IF(INDEX(J110:AS110, I$5) = F110, "vw", "tu")) -> tu | J110: =0.3*J112 -> 0.0081 | AA110: =0.3*AA112 -> 0.0075
E111: Construction debt - T2 swap rate | F111: 0.015 | G111: % p.a. | I111: =IF( INDEX(J111:AS111, I$5) = "", IF( INDEX(J111:AS111, I$6) = F111, "vw", "tu"), IF(INDEX(J111:AS111, I$5) = F111, "vw", "tu")) -> tu | J111: 0.015 | AA111: 0.015
E112: Construction debt - T2 margin | F112: 0.027 | G112: % p.a. | I112: =IF( INDEX(J112:AS112, I$5) = "", IF( INDEX(J112:AS112, I$6) = F112, "vw", "tu"), IF(INDEX(J112:AS112, I$5) = F112, "vw", "tu")) -> tu | J112: 0.027 | AA112: 0.025
Q113: 0.032 | R113: 0.022
B114: Senior term debt
E115: Senior debt target gearing | F115: 0.65 | G115: % | I115: =IF( INDEX(J115:AS115, I$5) = "", IF( INDEX(J115:AS115, I$6) = F115, "vw", "tu"), IF(INDEX(J115:AS115, I$5) = F115, "vw", "tu")) -> vw | J115: 0.8 | K115: 0.65
E117: Senior debt sizing method | F117: 1 | G117: 1 = leverage, 2 = DSCR | I117: =IF( INDEX(J117:AS117, I$5) = "", IF( INDEX(J117:AS117, I$6) = F117, "vw", "tu"), IF(INDEX(J117:AS117, I$5) = F117, "vw", "tu")) -> vw | J117: 2 | K117: 1 | L117: 1 | M117: 2 | O117: 1 | Q117: 2 | R117: 2
E118: Senior debt forward curve selection | F118: 1 | G118: profile | I118: =IF( INDEX(J118:AS118, I$5) = "", IF( INDEX(J118:AS118, I$6) = F118, "vw", "tu"), IF(INDEX(J118:AS118, I$5) = F118, "vw", "tu")) -> tu | J118: 1
E119: Propoprtion of senior debt hedged | F119: 1 | G119: % | I119: =IF( INDEX(J119:AS119, I$5) = "", IF( INDEX(J119:AS119, I$6) = F119, "vw", "tu"), IF(INDEX(J119:AS119, I$5) = F119, "vw", "tu")) -> tu | J119: 1
C121: Annual DSCR profile
E122: Senior debt DSCR - year 1 | F122: 1.4 | G122: ratio | I122: =IF( INDEX(J122:AS122, I$5) = "", IF( INDEX(J122:AS122, I$6) = F122, "vw", "tu"), IF(INDEX(J122:AS122, I$5) = F122, "vw", "tu")) -> tu | J122: 1.4 | AC122: 1.3
E123: Senior debt DSCR - year 2 | F123: 1.4 | G123: ratio | I123: =IF( INDEX(J123:AS123, I$5) = "", IF( INDEX(J123:AS123, I$6) = F123, "vw", "tu"), IF(INDEX(J123:AS123, I$5) = F123, "vw", "tu")) -> tu | J123: 1.4 | AC123: 1.3
E124: Senior debt DSCR - year 3 | F124: 1.4 | G124: ratio | I124: =IF( INDEX(J124:AS124, I$5) = "", IF( INDEX(J124:AS124, I$6) = F124, "vw", "tu"), IF(INDEX(J124:AS124, I$5) = F124, "vw", "tu")) -> tu | J124: 1.4 | AC124: 1.3
E125: Senior debt DSCR - year 4 | F125: 1.4 | G125: ratio | I125: =IF( INDEX(J125:AS125, I$5) = "", IF( INDEX(J125:AS125, I$6) = F125, "vw", "tu"), IF(INDEX(J125:AS125, I$5) = F125, "vw", "tu")) -> tu | J125: 1.4 | AC125: 1.3
E126: Senior debt DSCR - year 5 | F126: 1.4 | G126: ratio | I126: =IF( INDEX(J126:AS126, I$5) = "", IF( INDEX(J126:AS126, I$6) = F126, "vw", "tu"), IF(INDEX(J126:AS126, I$5) = F126, "vw", "tu")) -> tu | J126: 1.4 | AC126: 1.3
E127: Senior debt DSCR - year 6 | F127: 1.4 | G127: ratio | I127: =IF( INDEX(J127:AS127, I$5) = "", IF( INDEX(J127:AS127, I$6) = F127, "vw", "tu"), IF(INDEX(J127:AS127, I$5) = F127, "vw", "tu")) -> tu | J127: 1.4 | AC127: 1.3
E128: Senior debt DSCR - year 7 | F128: 1.4 | G128: ratio | I128: =IF( INDEX(J128:AS128, I$5) = "", IF( INDEX(J128:AS128, I$6) = F128, "vw", "tu"), IF(INDEX(J128:AS128, I$5) = F128, "vw", "tu")) -> tu | J128: 1.4 | AC128: 1.3
E129: Senior debt DSCR - year 8 | F129: 1.4 | G129: ratio | I129: =IF( INDEX(J129:AS129, I$5) = "", IF( INDEX(J129:AS129, I$6) = F129, "vw", "tu"), IF(INDEX(J129:AS129, I$5) = F129, "vw", "tu")) -> tu | J129: 1.4 | AC129: 1.3
E130: Senior debt DSCR - year 9 | F130: 1.4 | G130: ratio | I130: =IF( INDEX(J130:AS130, I$5) = "", IF( INDEX(J130:AS130, I$6) = F130, "vw", "tu"), IF(INDEX(J130:AS130, I$5) = F130, "vw", "tu")) -> tu | J130: 1.4 | AC130: 1.3
E131: Senior debt DSCR - year 10 | F131: 1.4 | G131: ratio | I131: =IF( INDEX(J131:AS131, I$5) = "", IF( INDEX(J131:AS131, I$6) = F131, "vw", "tu"), IF(INDEX(J131:AS131, I$5) = F131, "vw", "tu")) -> tu | J131: 1.4 | AC131: 1.3
E132: Senior debt DSCR - year 11 | F132: 1.4 | G132: ratio | I132: =IF( INDEX(J132:AS132, I$5) = "", IF( INDEX(J132:AS132, I$6) = F132, "vw", "tu"), IF(INDEX(J132:AS132, I$5) = F132, "vw", "tu")) -> tu | J132: 1.4 | AC132: 1.3
E133: Senior debt DSCR - year 12 | F133: 1.4 | G133: ratio | I133: =IF( INDEX(J133:AS133, I$5) = "", IF( INDEX(J133:AS133, I$6) = F133, "vw", "tu"), IF(INDEX(J133:AS133, I$5) = F133, "vw", "tu")) -> tu | J133: 1.4 | AC133: 1.3
E134: Senior debt DSCR - year 13 | F134: 1.4 | G134: ratio | I134: =IF( INDEX(J134:AS134, I$5) = "", IF( INDEX(J134:AS134, I$6) = F134, "vw", "tu"), IF(INDEX(J134:AS134, I$5) = F134, "vw", "tu")) -> tu | J134: 1.4 | AC134: 1.3
E135: Senior debt DSCR - year 14 | F135: 1.4 | G135: ratio | I135: =IF( INDEX(J135:AS135, I$5) = "", IF( INDEX(J135:AS135, I$6) = F135, "vw", "tu"), IF(INDEX(J135:AS135, I$5) = F135, "vw", "tu")) -> tu | J135: 1.4 | AC135: 1.3
E136: Senior debt DSCR - year 15 | F136: 1.4 | G136: ratio | I136: =IF( INDEX(J136:AS136, I$5) = "", IF( INDEX(J136:AS136, I$6) = F136, "vw", "tu"), IF(INDEX(J136:AS136, I$5) = F136, "vw", "tu")) -> tu | J136: 1.4 | AC136: 1.3
E137: Senior debt DSCR - year 16 | F137: 1.4 | G137: ratio | I137: =IF( INDEX(J137:AS137, I$5) = "", IF( INDEX(J137:AS137, I$6) = F137, "vw", "tu"), IF(INDEX(J137:AS137, I$5) = F137, "vw", "tu")) -> tu | J137: 1.4 | AC137: 1.3
E138: Senior debt DSCR - year 17 | F138: 1.4 | G138: ratio | I138: =IF( INDEX(J138:AS138, I$5) = "", IF( INDEX(J138:AS138, I$6) = F138, "vw", "tu"), IF(INDEX(J138:AS138, I$5) = F138, "vw", "tu")) -> tu | J138: 1.4 | AC138: 1.3
E139: Senior debt DSCR - year 18 | F139: 1.4 | G139: ratio | I139: =IF( INDEX(J139:AS139, I$5) = "", IF( INDEX(J139:AS139, I$6) = F139, "vw", "tu"), IF(INDEX(J139:AS139, I$5) = F139, "vw", "tu")) -> tu | J139: 1.4 | AC139: 1.3
E140: Senior debt DSCR - year 19 | F140: 0 | G140: ratio | I140: =IF( INDEX(J140:AS140, I$5) = "", IF( INDEX(J140:AS140, I$6) = F140, "vw", "tu"), IF(INDEX(J140:AS140, I$5) = F140, "vw", "tu")) -> vw | AC140: 1.3
E141: Senior debt DSCR - year 20 | F141: 0 | G141: ratio | I141: =IF( INDEX(J141:AS141, I$5) = "", IF( INDEX(J141:AS141, I$6) = F141, "vw", "tu"), IF(INDEX(J141:AS141, I$5) = F141, "vw", "tu")) -> vw | AC141: 1.3
E142: Senior debt DSCR - year 21 | F142: =IF( INDEX(J142:AS142, $I$4) = "", INDEX(J142:AR142, 1), INDEX(J142:AS142, $I$5)) -> 0 | G142: ratio | I142: =IF( INDEX(J142:AS142, I$5) = "", IF( INDEX(J142:AS142, I$6) = F142, "vw", "tu"), IF(INDEX(J142:AS142, I$5) = F142, "vw", "tu")) -> vw | AC142: 1.3
E143: Senior debt DSCR - year 22 | F143: 0 | G143: ratio | I143: =IF( INDEX(J143:AS143, I$5) = "", IF( INDEX(J143:AS143, I$6) = F143, "vw", "tu"), IF(INDEX(J143:AS143, I$5) = F143, "vw", "tu")) -> vw | AC143: 1.3
E144: Senior debt DSCR - year 23 | F144: 0 | G144: ratio | I144: =IF( INDEX(J144:AS144, I$5) = "", IF( INDEX(J144:AS144, I$6) = F144, "vw", "tu"), IF(INDEX(J144:AS144, I$5) = F144, "vw", "tu")) -> vw | AC144: 1.3
E145: Senior debt DSCR - year 24 | F145: 0 | G145: ratio | I145: =IF( INDEX(J145:AS145, I$5) = "", IF( INDEX(J145:AS145, I$6) = F145, "vw", "tu"), IF(INDEX(J145:AS145, I$5) = F145, "vw", "tu")) -> vw | AC145: 1.3
E146: Senior debt DSCR - year 25 | F146: 0 | G146: ratio | I146: =IF( INDEX(J146:AS146, I$5) = "", IF( INDEX(J146:AS146, I$6) = F146, "vw", "tu"), IF(INDEX(J146:AS146, I$5) = F146, "vw", "tu")) -> vw | AC146: 1.3
C148: Tranche 1
E149: Senior debt - T1 day count convention | F149: 360 | G149: days | I149: =IF( INDEX(J149:AS149, I$5) = "", IF( INDEX(J149:AS149, I$6) = F149, "vw", "tu"), IF(INDEX(J149:AS149, I$5) = F149, "vw", "tu")) -> tu | J149: 360
E150: Senior debt - T1 swap rate | F150: 0.017 | G150: % p.a. | I150: =IF( INDEX(J150:AS150, I$5) = "", IF( INDEX(J150:AS150, I$6) = F150, "vw", "tu"), IF(INDEX(J150:AS150, I$5) = F150, "vw", "tu")) -> tu | J150: 0.017
C151: Senior debt - T1 interest margin profile
E152: Senior debt - T1 interest margin - year 1 | F152: 0.025 | G152: % | I152: =IF( INDEX(J152:AS152, I$5) = "", IF( INDEX(J152:AS152, I$6) = F152, "vw", "tu"), IF(INDEX(J152:AS152, I$5) = F152, "vw", "tu")) -> tu | J152: 0.025
E153: Senior debt - T1 interest margin - year 2 | F153: 0.025 | G153: % | I153: =IF( INDEX(J153:AS153, I$5) = "", IF( INDEX(J153:AS153, I$6) = F153, "vw", "tu"), IF(INDEX(J153:AS153, I$5) = F153, "vw", "tu")) -> tu | J153: 0.025
E154: Senior debt - T1 interest margin - year 3 | F154: 0.025 | G154: % | I154: =IF( INDEX(J154:AS154, I$5) = "", IF( INDEX(J154:AS154, I$6) = F154, "vw", "tu"), IF(INDEX(J154:AS154, I$5) = F154, "vw", "tu")) -> tu | J154: 0.025
E155: Senior debt - T1 interest margin - year 4 | F155: 0.025 | G155: % | I155: =IF( INDEX(J155:AS155, I$5) = "", IF( INDEX(J155:AS155, I$6) = F155, "vw", "tu"), IF(INDEX(J155:AS155, I$5) = F155, "vw", "tu")) -> tu | J155: 0.025
E156: Senior debt - T1 interest margin - year 5 | F156: 0.025 | G156: % | I156: =IF( INDEX(J156:AS156, I$5) = "", IF( INDEX(J156:AS156, I$6) = F156, "vw", "tu"), IF(INDEX(J156:AS156, I$5) = F156, "vw", "tu")) -> tu | J156: 0.025
E157: Senior debt - T1 interest margin - year 6 | F157: 0.027 | G157: % | I157: =IF( INDEX(J157:AS157, I$5) = "", IF( INDEX(J157:AS157, I$6) = F157, "vw", "tu"), IF(INDEX(J157:AS157, I$5) = F157, "vw", "tu")) -> tu | J157: 0.027
E158: Senior debt - T1 interest margin - year 7 | F158: 0.027 | G158: % | I158: =IF( INDEX(J158:AS158, I$5) = "", IF( INDEX(J158:AS158, I$6) = F158, "vw", "tu"), IF(INDEX(J158:AS158, I$5) = F158, "vw", "tu")) -> tu | J158: 0.027
E159: Senior debt - T1 interest margin - year 8 | F159: 0.027 | G159: % | I159: =IF( INDEX(J159:AS159, I$5) = "", IF( INDEX(J159:AS159, I$6) = F159, "vw", "tu"), IF(INDEX(J159:AS159, I$5) = F159, "vw", "tu")) -> tu | J159: 0.027
E160: Senior debt - T1 interest margin - year 9 | F160: 0.027 | G160: % | I160: =IF( INDEX(J160:AS160, I$5) = "", IF( INDEX(J160:AS160, I$6) = F160, "vw", "tu"), IF(INDEX(J160:AS160, I$5) = F160, "vw", "tu")) -> tu | J160: 0.027
E161: Senior debt - T1 interest margin - year 10 | F161: 0.027 | G161: % | I161: =IF( INDEX(J161:AS161, I$5) = "", IF( INDEX(J161:AS161, I$6) = F161, "vw", "tu"), IF(INDEX(J161:AS161, I$5) = F161, "vw", "tu")) -> tu | J161: 0.027
E162: Senior debt - T1 interest margin - year 11 | F162: 0.029 | G162: % | I162: =IF( INDEX(J162:AS162, I$5) = "", IF( INDEX(J162:AS162, I$6) = F162, "vw", "tu"), IF(INDEX(J162:AS162, I$5) = F162, "vw", "tu")) -> tu | J162: 0.029
E163: Senior debt - T1 interest margin - year 12 | F163: 0.029 | G163: % | I163: =IF( INDEX(J163:AS163, I$5) = "", IF( INDEX(J163:AS163, I$6) = F163, "vw", "tu"), IF(INDEX(J163:AS163, I$5) = F163, "vw", "tu")) -> tu | J163: 0.029
E164: Senior debt - T1 interest margin - year 13 | F164: 0.029 | G164: % | I164: =IF( INDEX(J164:AS164, I$5) = "", IF( INDEX(J164:AS164, I$6) = F164, "vw", "tu"), IF(INDEX(J164:AS164, I$5) = F164, "vw", "tu")) -> tu | J164: 0.029
E165: Senior debt - T1 interest margin - year 14 | F165: 0.029 | G165: % | I165: =IF( INDEX(J165:AS165, I$5) = "", IF( INDEX(J165:AS165, I$6) = F165, "vw", "tu"), IF(INDEX(J165:AS165, I$5) = F165, "vw", "tu")) -> tu | J165: 0.029
E166: Senior debt - T1 interest margin - year 15 | F166: 0.029 | G166: % | I166: =IF( INDEX(J166:AS166, I$5) = "", IF( INDEX(J166:AS166, I$6) = F166, "vw", "tu"), IF(INDEX(J166:AS166, I$5) = F166, "vw", "tu")) -> tu | J166: 0.029
E167: Senior debt - T1 interest margin - year 16 | F167: 0.029 | G167: % | I167: =IF( INDEX(J167:AS167, I$5) = "", IF( INDEX(J167:AS167, I$6) = F167, "vw", "tu"), IF(INDEX(J167:AS167, I$5) = F167, "vw", "tu")) -> tu | J167: 0.029
E168: Senior debt - T1 interest margin - year 17 | F168: 0.029 | G168: % | I168: =IF( INDEX(J168:AS168, I$5) = "", IF( INDEX(J168:AS168, I$6) = F168, "vw", "tu"), IF(INDEX(J168:AS168, I$5) = F168, "vw", "tu")) -> tu | J168: 0.029
E169: Senior debt - T1 interest margin - year 18 | F169: 0 | G169: % | I169: =IF( INDEX(J169:AS169, I$5) = "", IF( INDEX(J169:AS169, I$6) = F169, "vw", "tu"), IF(INDEX(J169:AS169, I$5) = F169, "vw", "tu")) -> vw
E170: Senior debt - T1 interest margin - year 19 | F170: 0 | G170: % | I170: =IF( INDEX(J170:AS170, I$5) = "", IF( INDEX(J170:AS170, I$6) = F170, "vw", "tu"), IF(INDEX(J170:AS170, I$5) = F170, "vw", "tu")) -> vw
E171: Senior debt - T1 interest margin - year 20 | F171: 0 | G171: % | I171: =IF( INDEX(J171:AS171, I$5) = "", IF( INDEX(J171:AS171, I$6) = F171, "vw", "tu"), IF(INDEX(J171:AS171, I$5) = F171, "vw", "tu")) -> vw
E172: Senior debt - T1 interest margin - year 21 | F172: 0 | G172: % | I172: =IF( INDEX(J172:AS172, I$5) = "", IF( INDEX(J172:AS172, I$6) = F172, "vw", "tu"), IF(INDEX(J172:AS172, I$5) = F172, "vw", "tu")) -> vw
E173: Senior debt - T1 interest margin - year 22 | F173: 0 | G173: % | I173: =IF( INDEX(J173:AS173, I$5) = "", IF( INDEX(J173:AS173, I$6) = F173, "vw", "tu"), IF(INDEX(J173:AS173, I$5) = F173, "vw", "tu")) -> vw
E174: Senior debt - T1 interest margin - year 23 | F174: 0 | G174: % | I174: =IF( INDEX(J174:AS174, I$5) = "", IF( INDEX(J174:AS174, I$6) = F174, "vw", "tu"), IF(INDEX(J174:AS174, I$5) = F174, "vw", "tu")) -> vw
E175: Senior debt - T1 interest margin - year 24 | F175: 0 | G175: % | I175: =IF( INDEX(J175:AS175, I$5) = "", IF( INDEX(J175:AS175, I$6) = F175, "vw", "tu"), IF(INDEX(J175:AS175, I$5) = F175, "vw", "tu")) -> vw
E176: Senior debt - T1 interest margin - year 25 | F176: 0 | G176: % | I176: =IF( INDEX(J176:AS176, I$5) = "", IF( INDEX(J176:AS176, I$6) = F176, "vw", "tu"), IF(INDEX(J176:AS176, I$5) = F176, "vw", "tu")) -> vw
E177: Senior debt - T1 repayment term | F177: 17 | G177: years | H177: *T1 tenor should be <= T2 | I177: =IF( INDEX(J177:AS177, I$5) = "", IF( INDEX(J177:AS177, I$6) = F177, "vw", "tu"), IF(INDEX(J177:AS177, I$5) = F177, "vw", "tu")) -> tu | J177: 17 | Z177: 16
E179: Senior debt - T1 active principal repayment profile | F179: 2 | G179: 1 = level p, 2 = sculpted, 3 = level ds | I179: =IF( INDEX(J179:AS179, I$5) = "", IF( INDEX(J179:AS179, I$6) = F179, "vw", "tu"), IF(INDEX(J179:AS179, I$5) = F179, "vw", "tu")) -> tu | J179: 2
C181: Tranche 2
E182: Senior debt - T2 day count convention | F182: 360 | G182: days | I182: vw | J182: 360
E183: Senior debt - T2 swap rate | F183: 0.017 | G183: % p.a. | I183: vw | J183: 0.017
C184: Senior debt - T2 interest margin profile
E185: Senior debt - T2 interest margin - year 2 | F185: 0.03 | G185: % | I185: =IF( INDEX(J185:AS185, I$5) = "", IF( INDEX(J185:AS185, I$6) = F185, "vw", "tu"), IF(INDEX(J185:AS185, I$5) = F185, "vw", "tu")) -> tu | J185: 0.03 | AA185: 0.025
E186: Senior debt - T2 interest margin - year2 | F186: 0.03 | G186: % | I186: =IF( INDEX(J186:AS186, I$5) = "", IF( INDEX(J186:AS186, I$6) = F186, "vw", "tu"), IF(INDEX(J186:AS186, I$5) = F186, "vw", "tu")) -> tu | J186: 0.03 | AA186: 0.025
E187: Senior debt - T2 interest margin - year 3 | F187: 0.03 | G187: % | I187: =IF( INDEX(J187:AS187, I$5) = "", IF( INDEX(J187:AS187, I$6) = F187, "vw", "tu"), IF(INDEX(J187:AS187, I$5) = F187, "vw", "tu")) -> tu | J187: 0.03 | AA187: 0.025
E188: Senior debt - T2 interest margin - year 4 | F188: 0.03 | G188: % | I188: =IF( INDEX(J188:AS188, I$5) = "", IF( INDEX(J188:AS188, I$6) = F188, "vw", "tu"), IF(INDEX(J188:AS188, I$5) = F188, "vw", "tu")) -> tu | J188: 0.03 | AA188: 0.025
E189: Senior debt - T2 interest margin - year 5 | F189: 0.03 | G189: % | I189: =IF( INDEX(J189:AS189, I$5) = "", IF( INDEX(J189:AS189, I$6) = F189, "vw", "tu"), IF(INDEX(J189:AS189, I$5) = F189, "vw", "tu")) -> tu | J189: 0.03 | AA189: 0.025
E190: Senior debt - T2 interest margin - year 6 | F190: 0.032 | G190: % | I190: =IF( INDEX(J190:AS190, I$5) = "", IF( INDEX(J190:AS190, I$6) = F190, "vw", "tu"), IF(INDEX(J190:AS190, I$5) = F190, "vw", "tu")) -> tu | J190: 0.032 | AA190: 0.027
E191: Senior debt - T2 interest margin - year 7 | F191: 0.032 | G191: % | I191: =IF( INDEX(J191:AS191, I$5) = "", IF( INDEX(J191:AS191, I$6) = F191, "vw", "tu"), IF(INDEX(J191:AS191, I$5) = F191, "vw", "tu")) -> tu | J191: 0.032 | AA191: 0.027
E192: Senior debt - T2 interest margin - year 8 | F192: 0.032 | G192: % | I192: =IF( INDEX(J192:AS192, I$5) = "", IF( INDEX(J192:AS192, I$6) = F192, "vw", "tu"), IF(INDEX(J192:AS192, I$5) = F192, "vw", "tu")) -> tu | J192: 0.032 | AA192: 0.027
E193: Senior debt - T2 interest margin - year 9 | F193: 0.032 | G193: % | I193: =IF( INDEX(J193:AS193, I$5) = "", IF( INDEX(J193:AS193, I$6) = F193, "vw", "tu"), IF(INDEX(J193:AS193, I$5) = F193, "vw", "tu")) -> tu | J193: 0.032 | AA193: 0.027
E194: Senior debt - T2 interest margin - year 20 | F194: 0.032 | G194: % | I194: =IF( INDEX(J194:AS194, I$5) = "", IF( INDEX(J194:AS194, I$6) = F194, "vw", "tu"), IF(INDEX(J194:AS194, I$5) = F194, "vw", "tu")) -> tu | J194: 0.032 | AA194: 0.027
E195: Senior debt - T2 interest margin - year 22 | F195: 0.035 | G195: % | I195: =IF( INDEX(J195:AS195, I$5) = "", IF( INDEX(J195:AS195, I$6) = F195, "vw", "tu"), IF(INDEX(J195:AS195, I$5) = F195, "vw", "tu")) -> tu | J195: 0.035 | AA195: 0.029
E196: Senior debt - T2 interest margin - year 22 | F196: 0.035 | G196: % | I196: =IF( INDEX(J196:AS196, I$5) = "", IF( INDEX(J196:AS196, I$6) = F196, "vw", "tu"), IF(INDEX(J196:AS196, I$5) = F196, "vw", "tu")) -> tu | J196: 0.035 | AA196: 0.029
E197: Senior debt - T2 interest margin - year 23 | F197: 0.035 | G197: % | I197: =IF( INDEX(J197:AS197, I$5) = "", IF( INDEX(J197:AS197, I$6) = F197, "vw", "tu"), IF(INDEX(J197:AS197, I$5) = F197, "vw", "tu")) -> tu | J197: 0.035 | AA197: 0.029
E198: Senior debt - T2 interest margin - year 24 | F198: 0.035 | G198: % | I198: =IF( INDEX(J198:AS198, I$5) = "", IF( INDEX(J198:AS198, I$6) = F198, "vw", "tu"), IF(INDEX(J198:AS198, I$5) = F198, "vw", "tu")) -> tu | J198: 0.035 | AA198: 0.029
E199: Senior debt - T2 interest margin - year 25 | F199: 0.035 | G199: % | I199: =IF( INDEX(J199:AS199, I$5) = "", IF( INDEX(J199:AS199, I$6) = F199, "vw", "tu"), IF(INDEX(J199:AS199, I$5) = F199, "vw", "tu")) -> tu | J199: 0.035 | AA199: 0.029
E200: Senior debt - T2 interest margin - year 26 | F200: 0.035 | G200: % | I200: =IF( INDEX(J200:AS200, I$5) = "", IF( INDEX(J200:AS200, I$6) = F200, "vw", "tu"), IF(INDEX(J200:AS200, I$5) = F200, "vw", "tu")) -> tu | J200: 0.035 | AA200: 0.029
E201: Senior debt - T2 interest margin - year 27 | F201: 0.035 | G201: % | I201: =IF( INDEX(J201:AS201, I$5) = "", IF( INDEX(J201:AS201, I$6) = F201, "vw", "tu"), IF(INDEX(J201:AS201, I$5) = F201, "vw", "tu")) -> tu | J201: 0.035 | AA201: 0.029
E202: Senior debt - T2 interest margin - year 28 | F202: 0.035 | G202: % | I202: =IF( INDEX(J202:AS202, I$5) = "", IF( INDEX(J202:AS202, I$6) = F202, "vw", "tu"), IF(INDEX(J202:AS202, I$5) = F202, "vw", "tu")) -> tu | J202: 0.035 | AA202: 0.029
E203: Senior debt - T2 interest margin - year 29 | F203: 0.035 | G203: % | I203: =IF( INDEX(J203:AS203, I$5) = "", IF( INDEX(J203:AS203, I$6) = F203, "vw", "tu"), IF(INDEX(J203:AS203, I$5) = F203, "vw", "tu")) -> tu | J203: 0.035 | AA203: 0.029
E204: Senior debt - T2 interest margin - year20 | F204: 0.035 | G204: % | I204: =IF( INDEX(J204:AS204, I$5) = "", IF( INDEX(J204:AS204, I$6) = F204, "vw", "tu"), IF(INDEX(J204:AS204, I$5) = F204, "vw", "tu")) -> tu | J204: 0.035 | AA204: 0.029
E205: Senior debt - T2 interest margin - year22 | F205: 0.035 | G205: % | I205: =IF( INDEX(J205:AS205, I$5) = "", IF( INDEX(J205:AS205, I$6) = F205, "vw", "tu"), IF(INDEX(J205:AS205, I$5) = F205, "vw", "tu")) -> tu | J205: 0.035 | AA205: 0.029
E206: Senior debt - T2 interest margin - year22 | F206: =IF( INDEX(J206:AS206, $I$4) = "", INDEX(J206:AR206, 1), INDEX(J206:AS206, $I$5)) -> 0.035 | G206: % | I206: =IF( INDEX(J206:AS206, I$5) = "", IF( INDEX(J206:AS206, I$6) = F206, "vw", "tu"), IF(INDEX(J206:AS206, I$5) = F206, "vw", "tu")) -> tu | J206: 0.035 | AA206: 0.029
E207: Senior debt - T2 interest margin - year23 | F207: 0.035 | G207: % | I207: =IF( INDEX(J207:AS207, I$5) = "", IF( INDEX(J207:AS207, I$6) = F207, "vw", "tu"), IF(INDEX(J207:AS207, I$5) = F207, "vw", "tu")) -> tu | J207: 0.035 | AA207: 0.029
E208: Senior debt - T2 interest margin - year24 | F208: 0.035 | G208: % | I208: =IF( INDEX(J208:AS208, I$5) = "", IF( INDEX(J208:AS208, I$6) = F208, "vw", "tu"), IF(INDEX(J208:AS208, I$5) = F208, "vw", "tu")) -> tu | J208: 0.035 | AA208: 0.029
E209: Senior debt - T2 interest margin - year25 | F209: 0.035 | G209: % | I209: =IF( INDEX(J209:AS209, I$5) = "", IF( INDEX(J209:AS209, I$6) = F209, "vw", "tu"), IF(INDEX(J209:AS209, I$5) = F209, "vw", "tu")) -> tu | J209: 0.035 | AA209: 0.029
E210: Senior debt - T2 repayment term | F210: 17 | G210: years | H210: *T2 tenor should be >= T2 | I210: vw | J210: 17 | Z210: 16
E212: Senior debt - T2 active principal repayment profile | F212: 2 | G212: 1 = level p, 2 = sculpted, 3 = level ds | I212: vw | J212: 2
H213: *Choose scultped for both or none
B214: Revolving credit facility
E215: All in RCF annual interest rate | F215: 0.12 | G215: % | I215: =IF( INDEX(J215:AS215, I$5) = "", IF( INDEX(J215:AS215, I$6) = F215, "vw", "tu"), IF(INDEX(J215:AS215, I$5) = F215, "vw", "tu")) -> tu | J215: 0.12
E216: RCF - initial balance | F216: 0 | G216: =SMU -> $ 000s | I216: =IF( INDEX(J216:AS216, I$5) = "", IF( INDEX(J216:AS216, I$6) = F216, "vw", "tu"), IF(INDEX(J216:AS216, I$5) = F216, "vw", "tu")) -> vw
B218: DSRA
E219: DSRA target balance selection switch | F219: 1 | G219: 1 = 50% of 12m, 2 = next 6m | I219: =IF( INDEX(J219:AS219, I$5) = "", IF( INDEX(J219:AS219, I$6) = F219, "vw", "tu"), IF(INDEX(J219:AS219, I$5) = F219, "vw", "tu")) -> tu | J219: 1
E220: DSRA target balance % of 12 month debt service - Post TRD | F220: 0.5 | G220: % | I220: =IF( INDEX(J220:AS220, I$5) = "", IF( INDEX(J220:AS220, I$6) = F220, "vw", "tu"), IF(INDEX(J220:AS220, I$5) = F220, "vw", "tu")) -> tu | J220: 0.5
E222: Cash pre-funding of DSRA | F222: 1 | G222: 1 = yes, 0 = no | I222: =IF( INDEX(J222:AS222, I$5) = "", IF( INDEX(J222:AS222, I$6) = F222, "vw", "tu"), IF(INDEX(J222:AS222, I$5) = F222, "vw", "tu")) -> tu | J222: 1
F223: 0
B224: Equity | F224: 0
E225: Aurelius share of ProjectCo | F225: 0.4 | G225: % | I225: =IF( INDEX(J225:AS225, I$5) = "", IF( INDEX(J225:AS225, I$6) = F225, "vw", "tu"), IF(INDEX(J225:AS225, I$5) = F225, "vw", "tu")) -> tu | J225: 0.4
E226: Aurelius target IRR | F226: 0.12 | G226: % | I226: =IF( INDEX(J226:AS226, I$5) = "", IF( INDEX(J226:AS226, I$6) = F226, "vw", "tu"), IF(INDEX(J226:AS226, I$5) = F226, "vw", "tu")) -> tu | J226: 0.12
E228: Share capital amount | F228: 100 | G228: $ 000s | I228: =IF( INDEX(J228:AS228, I$5) = "", IF( INDEX(J228:AS228, I$6) = F228, "vw", "tu"), IF(INDEX(J228:AS228, I$5) = F228, "vw", "tu")) -> tu | J228: 100
E229: Shareholder loan annual interest rate | F229: 0.09 | G229: % p.a. | I229: =IF( INDEX(J229:AS229, I$5) = "", IF( INDEX(J229:AS229, I$6) = F229, "vw", "tu"), IF(INDEX(J229:AS229, I$5) = F229, "vw", "tu")) -> tu | J229: 0.09
A232: WORKING CAPITAL
E234: Accounts receivable days | F234: 45 | G234: days | I234: =IF( INDEX(J234:AS234, I$5) = "", IF( INDEX(J234:AS234, I$6) = F234, "vw", "tu"), IF(INDEX(J234:AS234, I$5) = F234, "vw", "tu")) -> tu | J234: 45 | Y234: 0
E235: Accounts payable days | F235: 45 | G235: days | I235: =IF( INDEX(J235:AS235, I$5) = "", IF( INDEX(J235:AS235, I$6) = F235, "vw", "tu"), IF(INDEX(J235:AS235, I$5) = F235, "vw", "tu")) -> tu | J235: 45 | Y235: 0
E236: EGR payment delay (months) | F236: 2 | G236: months | I236: =IF( INDEX(J236:AS236, I$5) = "", IF( INDEX(J236:AS236, I$6) = F236, "vw", "tu"), IF(INDEX(J236:AS236, I$5) = F236, "vw", "tu")) -> tu | J236: 2 | Y236: 0
E237: EG O&M costs payment delay (months) | F237: 2 | G237: months | I237: =IF( INDEX(J237:AS237, I$5) = "", IF( INDEX(J237:AS237, I$6) = F237, "vw", "tu"), IF(INDEX(J237:AS237, I$5) = F237, "vw", "tu")) -> tu | J237: 2 | Y237: 0
F238: 0
E239: Cash pre-funding of working capital | F239: 1 | G239: 1 = yes, 0 = no | I239: =IF( INDEX(J239:AS239, I$5) = "", IF( INDEX(J239:AS239, I$6) = F239, "vw", "tu"), IF(INDEX(J239:AS239, I$5) = F239, "vw", "tu")) -> tu | J239: 1
A241: ACCOUNTING
... 43 more rows

Sheet InpS
A1: =RIGHT(CELL("filename", A1), LEN(CELL("filename", A1)) - SEARCH("]", CELL("filename", A1))) & " - " & InpC!F3 -> InpS - Seasonal - Leverage Method
E2: =Time!E$25 -> Model period ending | F2: =Check!$F$9 -> 4 | G2: Error chks | J2: =Time!J$25 -> 2021-06-30 | K2: =Time!K$25 -> 2021-12-31 | L2: =Time!L$25 -> 2022-06-30 | M2: =Time!M$25 -> 2022-12-31 | N2: =Time!N$25 -> 2023-06-30 | O2: =Time!O$25 -> 2023-12-31 | P2: =Time!P$25 -> 2024-06-30 | Q2: =Time!Q$25 -> 2024-12-31 | R2: =Time!R$25 -> 2025-06-30 | S2: =Time!S$25 -> 2025-12-31 | T2: =Time!T$25 -> 2026-06-30 | U2: =Time!U$25 -> 2026-12-31 | V2: =Time!V$25 -> 2027-06-30 | W2: =Time!W$25 -> 2027-12-31 | X2: =Time!X$25 -> 2028-06-30 | Y2: =Time!Y$25 -> 2028-12-31 | Z2: =Time!Z$25 -> 2029-06-30 | AA2: =Time!AA$25 -> 2029-12-31 | AB2: =Time!AB$25 -> 2030-06-30 | AC2: =Time!AC$25 -> 2030-12-31 | AD2: =Time!AD$25 -> 2031-06-30 | AE2: =Time!AE$25 -> 2031-12-31 | AF2: =Time!AF$25 -> 2032-06-30 | AG2: =Time!AG$25 -> 2032-12-31 | AH2: =Time!AH$25 -> 2033-06-30 | AI2: =Time!AI$25 -> 2033-12-31 | AJ2: =Time!AJ$25 -> 2034-06-30 | AK2: =Time!AK$25 -> 2034-12-31 | AL2: =Time!AL$25 -> 2035-06-30 | AM2: =Time!AM$25 -> 2035-12-31 | AN2: =Time!AN$25 -> 2036-06-30 | AO2: =Time!AO$25 -> 2036-12-31 | AP2: =Time!AP$25 -> 2037-06-30 | AQ2: =Time!AQ$25 -> 2037-12-31 | AR2: =Time!AR$25 -> 2038-06-30 | AS2: =Time!AS$25 -> 2038-12-31 | AT2: =Time!AT$25 -> 2039-06-30 | AU2: =Time!AU$25 -> 2039-12-31 | AV2: =Time!AV$25 -> 2040-06-30 | AW2: =Time!AW$25 -> 2040-12-31 | AX2: =Time!AX$25 -> 2041-06-30 | AY2: =Time!AY$25 -> 2041-12-31 | AZ2: =Time!AZ$25 -> 2042-06-30 | BA2: =Time!BA$25 -> 2042-12-31 | BB2: =Time!BB$25 -> 2043-06-30 | BC2: =Time!BC$25 -> 2043-12-31 | BD2: =Time!BD$25 -> 2044-06-30 | BE2: =Time!BE$25 -> 2044-12-31 | BF2: =Time!BF$25 -> 2045-06-30 | BG2: =Time!BG$25 -> 2045-12-31 | BH2: =Time!BH$25 -> 2046-06-30 | BI2: =Time!BI$25 -> 2046-12-31 | BJ2: =Time!BJ$25 -> 2047-06-30 | BK2: =Time!BK$25 -> 2047-12-31 | BL2: =Time!BL$25 -> 2048-06-30 | BM2: =Time!BM$25 -> 2048-12-31 | BN2: =Time!BN$25 -> 2049-06-30 | BO2: =Time!BO$25 -> 2049-12-31 | BP2: =Time!BP$25 -> 2050-06-30 | BQ2: =Time!BQ$25 -> 2050-12-31 | BR2: =Time!BR$25 -> 2051-06-30 | BS2: =Time!BS$25 -> 2051-12-31 | BT2: =Time!BT$25 -> 2052-06-30 | BU2: =Time!BU$25 -> 2052-12-31 | BV2: =Time!BV$25 -> 2053-06-30 | BW2: =Time!BW$25 -> 2053-12-31 | BX2: =Time!BX$25 -> 2054-06-30 | BY2: =Time!BY$25 -> 2054-12-31 | BZ2: =Time!BZ$25 -> 2055-06-30 | CA2: =Time!CA$25 -> 2055-12-31 | CB2: =Time!CB$25 -> 2056-06-30 | CC2: =Time!CC$25 -> 2056-12-31 | CD2: =Time!CD$25 -> 2057-06-30 | CE2: =Time!CE$25 -> 2057-12-31 | CF2: =Time!CF$25 -> 2058-06-30 | CG2: =Time!CG$25 -> 2058-12-31 | CH2: =Time!CH$25 -> 2059-06-30 | CI2: =Time!CI$25 -> 2059-12-31 | CJ2: =Time!CJ$25 -> 2060-06-30 | CK2: =Time!CK$25 -> 2060-12-31 | CL2: =Time!CL$25 -> 2061-06-30 | CM2: =Time!CM$25 -> 2061-12-31 | CN2: =Time!CN$25 -> 2062-06-30 | CO2: =Time!CO$25 -> 2062-12-31 | CP2: =Time!CP$25 -> 2063-06-30 | CQ2: =Time!CQ$25 -> 2063-12-31 | CR2: =Time!CR$25 -> 2064-06-30 | CS2: =Time!CS$25 -> 2064-12-31 | CT2: =Time!CT$25 -> 2065-06-30 | CU2: =Time!CU$25 -> 2065-12-31 | CV2: =Time!CV$25 -> 2066-06-30 | CW2: =Time!CW$25 -> 2066-12-31 | CX2: =Time!CX$25 -> 2067-06-30 | CY2: =Time!CY$25 -> 2067-12-31 | CZ2: =Time!CZ$25 -> 2068-06-30 | DA2: =Time!DA$25 -> 2068-12-31 | DB2: =Time!DB$25 -> 2069-06-30 | DC2: =Time!DC$25 -> 2069-12-31 | DD2: =Time!DD$25 -> 2070-06-30 | DE2: =Time!DE$25 -> 2070-12-31 | DF2: =Time!DF$25 -> 2071-06-30 | DG2: =Time!DG$25 -> 2071-12-31 | DH2: =Time!DH$25 -> 2072-06-30 | DI2: =Time!DI$25 -> 2072-12-31 | DJ2: =Time!DJ$25 -> 2073-06-30 | DK2: =Time!DK$25 -> 2073-12-31 | DL2: =Time!DL$25 -> 2074-06-30 | DM2: =Time!DM$25 -> 2074-12-31 | DN2: =Time!DN$25 -> 2075-06-30 | DO2: =Time!DO$25 -> 2075-12-31 | DP2: =Time!DP$25 -> 2076-06-30 | DQ2: =Time!DQ$25 -> 2076-12-31 | DR2: =Time!DR$25 -> 2077-06-30 | DS2: =Time!DS$25 -> 2077-12-31 | DT2: =Time!DT$25 -> 2078-06-30 | DU2: =Time!DU$25 -> 2078-12-31 | DV2: =Time!DV$25 -> 2079-06-30 | DW2: =Time!DW$25 -> 2079-12-31 | DX2: =Time!DX$25 -> 2080-06-30 | DY2: =Time!DY$25 -> 2080-12-31 | DZ2: =Time!DZ$25 -> 2081-06-30 | EA2: =Time!EA$25 -> 2081-12-31 | EB2: =Time!EB$25 -> 2082-06-30 | EC2: =Time!EC$25 -> 2082-12-31 | ED2: =Time!ED$25 -> 2083-06-30 | EE2: =Time!EE$25 -> 2083-12-31 | EF2: =Time!EF$25 -> 2084-06-30 | EG2: =Time!EG$25 -> 2084-12-31 | EH2: =Time!EH$25 -> 2085-06-30 | EI2: =Time!EI$25 -> 2085-12-31 | EJ2: =Time!EJ$25 -> 2086-06-30 | EK2: =Time!EK$25 -> 2086-12-31 | EL2: =Time!EL$25 -> 2087-06-30 | EM2: =Time!EM$25 -> 2087-12-31 | EN2: =Time!EN$25 -> 2088-06-30 | EO2: =Time!EO$25 -> 2088-12-31 | EP2: =Time!EP$25 -> 2089-06-30 | EQ2: =Time!EQ$25 -> 2089-12-31 | ER2: =Time!ER$25 -> 2090-06-30 | ES2: =Time!ES$25 -> 2090-12-31 | ET2: =Time!ET$25 -> 2091-06-30 | EU2: =Time!EU$25 -> 2091-12-31 | EV2: =Time!EV$25 -> 2092-06-30 | EW2: =Time!EW$25 -> 2092-12-31 | EX2: =Time!EX$25 -> 2093-06-30 | EY2: =Time!EY$25 -> 2093-12-31 | EZ2: =Time!EZ$25 -> 2094-06-30 | FA2: =Time!FA$25 -> 2094-12-31 | FB2: =Time!FB$25 -> 2095-06-30 | FC2: =Time!FC$25 -> 2095-12-31 | FD2: =Time!FD$25 -> 2096-06-30 | FE2: =Time!FE$25 -> 2096-12-31 | FF2: =Time!FF$25 -> 2097-06-30 | FG2: =Time!FG$25 -> 2097-12-31 | FH2: =Time!FH$25 -> 2098-06-30 | FI2: =Time!FI$25 -> 2098-12-31 | FJ2: =Time!FJ$25 -> 2099-06-30 | FK2: =Time!FK$25 -> 2099-12-31 | FL2: =Time!FL$25 -> 2100-06-30 | FM2: =Time!FM$25 -> 2100-12-31 | FN2: =Time!FN$25 -> 2101-06-30 | FO2: =Time!FO$25 -> 2101-12-31 | FP2: =Time!FP$25 -> 2102-06-30 | FQ2: =Time!FQ$25 -> 2102-12-31 | FR2: =Time!FR$25 -> 2103-06-30 | FS2: =Time!FS$25 -> 2103-12-31 | FT2: =Time!FT$25 -> 2104-06-30 | FU2: =Time!FU$25 -> 2104-12-31 | FV2: =Time!FV$25 -> 2105-06-30 | FW2: =Time!FW$25 -> 2105-12-31 | FX2: =Time!FX$25 -> 2106-06-30 | FY2: =Time!FY$25 -> 2106-12-31 | FZ2: =Time!FZ$25 -> 2107-06-30 | GA2: =Time!GA$25 -> 2107-12-31 | GB2: =Time!GB$25 -> 2108-06-30 | GC2: =Time!GC$25 -> 2108-12-31 | GD2: =Time!GD$25 -> 2109-06-30 | GE2: =Time!GE$25 -> 2109-12-31 | GF2: =Time!GF$25 -> 2110-06-30 | GG2: =Time!GG$25 -> 2110-12-31 | GH2: =Time!GH$25 -> 2111-06-30 | GI2: =Time!GI$25 -> 2111-12-31 | GJ2: =Time!GJ$25 -> 2112-06-30
E3: =Time!E$66 -> Timeline label | F3: =Output!J2 -> 55 | G3: Track chgs | J3: =Time!J$66 -> Pre-fcst | K3: =Time!K$66 -> Pre-fcst | L3: =Time!L$66 -> Fin Close | M3: =Time!M$66 -> Construction | N3: =Time!N$66 -> Construction | O3: =Time!O$66 -> Construction | P3: =Time!P$66 -> Construction | Q3: =Time!Q$66 -> Operations | R3: =Time!R$66 -> Operations | S3: =Time!S$66 -> Operations | T3: =Time!T$66 -> Operations | U3: =Time!U$66 -> Operations | V3: =Time!V$66 -> Operations | W3: =Time!W$66 -> Operations | X3: =Time!X$66 -> Operations | Y3: =Time!Y$66 -> Operations | Z3: =Time!Z$66 -> Operations | AA3: =Time!AA$66 -> Operations | AB3: =Time!AB$66 -> Operations | AC3: =Time!AC$66 -> Operations | AD3: =Time!AD$66 -> Operations | AE3: =Time!AE$66 -> Operations | AF3: =Time!AF$66 -> Operations | AG3: =Time!AG$66 -> Operations | AH3: =Time!AH$66 -> Operations | AI3: =Time!AI$66 -> Operations | AJ3: =Time!AJ$66 -> Operations | AK3: =Time!AK$66 -> Operations | AL3: =Time!AL$66 -> Operations | AM3: =Time!AM$66 -> Operations | AN3: =Time!AN$66 -> Operations | AO3: =Time!AO$66 -> Operations | AP3: =Time!AP$66 -> Operations | AQ3: =Time!AQ$66 -> Operations | AR3: =Time!AR$66 -> Operations | AS3: =Time!AS$66 -> Operations | AT3: =Time!AT$66 -> Operations | AU3: =Time!AU$66 -> Operations | AV3: =Time!AV$66 -> Operations | AW3: =Time!AW$66 -> Operations | AX3: =Time!AX$66 -> Operations | AY3: =Time!AY$66 -> Operations | AZ3: =Time!AZ$66 -> Operations | BA3: =Time!BA$66 -> Operations | BB3: =Time!BB$66 -> Operations | BC3: =Time!BC$66 -> Operations | BD3: =Time!BD$66 -> Operations | BE3: =Time!BE$66 -> Post ops | BF3: =Time!BF$66 -> Post ops | BG3: =Time!BG$66 -> Post ops | BH3: =Time!BH$66 -> Post ops | BI3: =Time!BI$66 -> Post ops | BJ3: =Time!BJ$66 -> Post ops | BK3: =Time!BK$66 -> Post ops | BL3: =Time!BL$66 -> Post ops | BM3: =Time!BM$66 -> Post ops | BN3: =Time!BN$66 -> Post ops | BO3: =Time!BO$66 -> Post ops | BP3: =Time!BP$66 -> Post ops | BQ3: =Time!BQ$66 -> Post ops | BR3: =Time!BR$66 -> Post ops | BS3: =Time!BS$66 -> Post ops | BT3: =Time!BT$66 -> Post ops | BU3: =Time!BU$66 -> Post ops | BV3: =Time!BV$66 -> Post ops | BW3: =Time!BW$66 -> Post ops | BX3: =Time!BX$66 -> Post ops | BY3: =Time!BY$66 -> Post ops | BZ3: =Time!BZ$66 -> Post ops | CA3: =Time!CA$66 -> Post ops | CB3: =Time!CB$66 -> Post ops | CC3: =Time!CC$66 -> Post ops | CD3: =Time!CD$66 -> Post ops | CE3: =Time!CE$66 -> Post ops | CF3: =Time!CF$66 -> Post ops | CG3: =Time!CG$66 -> Post ops | CH3: =Time!CH$66 -> Post ops | CI3: =Time!CI$66 -> Post ops | CJ3: =Time!CJ$66 -> Post ops | CK3: =Time!CK$66 -> Post ops | CL3: =Time!CL$66 -> Post ops | CM3: =Time!CM$66 -> Post ops | CN3: =Time!CN$66 -> Post ops | CO3: =Time!CO$66 -> Post ops | CP3: =Time!CP$66 -> Post ops | CQ3: =Time!CQ$66 -> Post ops | CR3: =Time!CR$66 -> Post ops | CS3: =Time!CS$66 -> Post ops | CT3: =Time!CT$66 -> Post ops | CU3: =Time!CU$66 -> Post ops | CV3: =Time!CV$66 -> Post ops | CW3: =Time!CW$66 -> Post ops | CX3: =Time!CX$66 -> Post ops | CY3: =Time!CY$66 -> Post ops | CZ3: =Time!CZ$66 -> Post ops | DA3: =Time!DA$66 -> Post ops | DB3: =Time!DB$66 -> Post ops | DC3: =Time!DC$66 -> Post ops | DD3: =Time!DD$66 -> Post ops | DE3: =Time!DE$66 -> Post ops | DF3: =Time!DF$66 -> Post ops | DG3: =Time!DG$66 -> Post ops | DH3: =Time!DH$66 -> Post ops | DI3: =Time!DI$66 -> Post ops | DJ3: =Time!DJ$66 -> Post ops | DK3: =Time!DK$66 -> Post ops | DL3: =Time!DL$66 -> Post ops | DM3: =Time!DM$66 -> Post ops | DN3: =Time!DN$66 -> Post ops | DO3: =Time!DO$66 -> Post ops | DP3: =Time!DP$66 -> Post ops | DQ3: =Time!DQ$66 -> Post ops | DR3: =Time!DR$66 -> Post ops | DS3: =Time!DS$66 -> Post ops | DT3: =Time!DT$66 -> Post ops | DU3: =Time!DU$66 -> Post ops | DV3: =Time!DV$66 -> Post ops | DW3: =Time!DW$66 -> Post ops | DX3: =Time!DX$66 -> Post ops | DY3: =Time!DY$66 -> Post ops | DZ3: =Time!DZ$66 -> Post ops | EA3: =Time!EA$66 -> Post ops | EB3: =Time!EB$66 -> Post ops | EC3: =Time!EC$66 -> Post ops | ED3: =Time!ED$66 -> Post ops | EE3: =Time!EE$66 -> Post ops | EF3: =Time!EF$66 -> Post ops | EG3: =Time!EG$66 -> Post ops | EH3: =Time!EH$66 -> Post ops | EI3: =Time!EI$66 -> Post ops | EJ3: =Time!EJ$66 -> Post ops | EK3: =Time!EK$66 -> Post ops | EL3: =Time!EL$66 -> Post ops | EM3: =Time!EM$66 -> Post ops | EN3: =Time!EN$66 -> Post ops | EO3: =Time!EO$66 -> Post ops | EP3: =Time!EP$66 -> Post ops | EQ3: =Time!EQ$66 -> Post ops | ER3: =Time!ER$66 -> Post ops | ES3: =Time!ES$66 -> Post ops | ET3: =Time!ET$66 -> Post ops | EU3: =Time!EU$66 -> Post ops | EV3: =Time!EV$66 -> Post ops | EW3: =Time!EW$66 -> Post ops | EX3: =Time!EX$66 -> Post ops | EY3: =Time!EY$66 -> Post ops | EZ3: =Time!EZ$66 -> Post ops | FA3: =Time!FA$66 -> Post ops | FB3: =Time!FB$66 -> Post ops | FC3: =Time!FC$66 -> Post ops | FD3: =Time!FD$66 -> Post ops | FE3: =Time!FE$66 -> Post ops | FF3: =Time!FF$66 -> Post ops | FG3: =Time!FG$66 -> Post ops | FH3: =Time!FH$66 -> Post ops | FI3: =Time!FI$66 -> Post ops | FJ3: =Time!FJ$66 -> Post ops | FK3: =Time!FK$66 -> Post ops | FL3: =Time!FL$66 -> Post ops | FM3: =Time!FM$66 -> Post ops | FN3: =Time!FN$66 -> Post ops | FO3: =Time!FO$66 -> Post ops | FP3: =Time!FP$66 -> Post ops | FQ3: =Time!FQ$66 -> Post ops | FR3: =Time!FR$66 -> Post ops | FS3: =Time!FS$66 -> Post ops | FT3: =Time!FT$66 -> Post ops | FU3: =Time!FU$66 -> Post ops | FV3: =Time!FV$66 -> Post ops | FW3: =Time!FW$66 -> Post ops | FX3: =Time!FX$66 -> Post ops | FY3: =Time!FY$66 -> Post ops | FZ3: =Time!FZ$66 -> Post ops | GA3: =Time!GA$66 -> Post ops | GB3: =Time!GB$66 -> Post ops | GC3: =Time!GC$66 -> Post ops | GD3: =Time!GD$66 -> Post ops | GE3: =Time!GE$66 -> Post ops | GF3: =Time!GF$66 -> Post ops | GG3: =Time!GG$66 -> Post ops | GH3: =Time!GH$66 -> Post ops | GI3: =Time!GI$66 -> Post ops | GJ3: =Time!GJ$66 -> Post ops
E4: =Time!E$39 -> Financial year | F4: =Check!$F$28 -> 0 | G4: Alerts | J4: =Time!J$39 -> 2021 | K4: =Time!K$39 -> 2021 | L4: =Time!L$39 -> 2022 | M4: =Time!M$39 -> 2022 | N4: =Time!N$39 -> 2023 | O4: =Time!O$39 -> 2023 | P4: =Time!P$39 -> 2024 | Q4: =Time!Q$39 -> 2024 | R4: =Time!R$39 -> 2025 | S4: =Time!S$39 -> 2025 | T4: =Time!T$39 -> 2026 | U4: =Time!U$39 -> 2026 | V4: =Time!V$39 -> 2027 | W4: =Time!W$39 -> 2027 | X4: =Time!X$39 -> 2028 | Y4: =Time!Y$39 -> 2028 | Z4: =Time!Z$39 -> 2029 | AA4: =Time!AA$39 -> 2029 | AB4: =Time!AB$39 -> 2030 | AC4: =Time!AC$39 -> 2030 | AD4: =Time!AD$39 -> 2031 | AE4: =Time!AE$39 -> 2031 | AF4: =Time!AF$39 -> 2032 | AG4: =Time!AG$39 -> 2032 | AH4: =Time!AH$39 -> 2033 | AI4: =Time!AI$39 -> 2033 | AJ4: =Time!AJ$39 -> 2034 | AK4: =Time!AK$39 -> 2034 | AL4: =Time!AL$39 -> 2035 | AM4: =Time!AM$39 -> 2035 | AN4: =Time!AN$39 -> 2036 | AO4: =Time!AO$39 -> 2036 | AP4: =Time!AP$39 -> 2037 | AQ4: =Time!AQ$39 -> 2037 | AR4: =Time!AR$39 -> 2038 | AS4: =Time!AS$39 -> 2038 | AT4: =Time!AT$39 -> 2039 | AU4: =Time!AU$39 -> 2039 | AV4: =Time!AV$39 -> 2040 | AW4: =Time!AW$39 -> 2040 | AX4: =Time!AX$39 -> 2041 | AY4: =Time!AY$39 -> 2041 | AZ4: =Time!AZ$39 -> 2042 | BA4: =Time!BA$39 -> 2042 | BB4: =Time!BB$39 -> 2043 | BC4: =Time!BC$39 -> 2043 | BD4: =Time!BD$39 -> 2044 | BE4: =Time!BE$39 -> 2044 | BF4: =Time!BF$39 -> 2045 | BG4: =Time!BG$39 -> 2045 | BH4: =Time!BH$39 -> 2046 | BI4: =Time!BI$39 -> 2046 | BJ4: =Time!BJ$39 -> 2047 | BK4: =Time!BK$39 -> 2047 | BL4: =Time!BL$39 -> 2048 | BM4: =Time!BM$39 -> 2048 | BN4: =Time!BN$39 -> 2049 | BO4: =Time!BO$39 -> 2049 | BP4: =Time!BP$39 -> 2050 | BQ4: =Time!BQ$39 -> 2050 | BR4: =Time!BR$39 -> 2051 | BS4: =Time!BS$39 -> 2051 | BT4: =Time!BT$39 -> 2052 | BU4: =Time!BU$39 -> 2052 | BV4: =Time!BV$39 -> 2053 | BW4: =Time!BW$39 -> 2053 | BX4: =Time!BX$39 -> 2054 | BY4: =Time!BY$39 -> 2054 | BZ4: =Time!BZ$39 -> 2055 | CA4: =Time!CA$39 -> 2055 | CB4: =Time!CB$39 -> 2056 | CC4: =Time!CC$39 -> 2056 | CD4: =Time!CD$39 -> 2057 | CE4: =Time!CE$39 -> 2057 | CF4: =Time!CF$39 -> 2058 | CG4: =Time!CG$39 -> 2058 | CH4: =Time!CH$39 -> 2059 | CI4: =Time!CI$39 -> 2059 | CJ4: =Time!CJ$39 -> 2060 | CK4: =Time!CK$39 -> 2060 | CL4: =Time!CL$39 -> 2061 | CM4: =Time!CM$39 -> 2061 | CN4: =Time!CN$39 -> 2062 | CO4: =Time!CO$39 -> 2062 | CP4: =Time!CP$39 -> 2063 | CQ4: =Time!CQ$39 -> 2063 | CR4: =Time!CR$39 -> 2064 | CS4: =Time!CS$39 -> 2064 | CT4: =Time!CT$39 -> 2065 | CU4: =Time!CU$39 -> 2065 | CV4: =Time!CV$39 -> 2066 | CW4: =Time!CW$39 -> 2066 | CX4: =Time!CX$39 -> 2067 | CY4: =Time!CY$39 -> 2067 | CZ4: =Time!CZ$39 -> 2068 | DA4: =Time!DA$39 -> 2068 | DB4: =Time!DB$39 -> 2069 | DC4: =Time!DC$39 -> 2069 | DD4: =Time!DD$39 -> 2070 | DE4: =Time!DE$39 -> 2070 | DF4: =Time!DF$39 -> 2071 | DG4: =Time!DG$39 -> 2071 | DH4: =Time!DH$39 -> 2072 | DI4: =Time!DI$39 -> 2072 | DJ4: =Time!DJ$39 -> 2073 | DK4: =Time!DK$39 -> 2073 | DL4: =Time!DL$39 -> 2074 | DM4: =Time!DM$39 -> 2074 | DN4: =Time!DN$39 -> 2075 | DO4: =Time!DO$39 -> 2075 | DP4: =Time!DP$39 -> 2076 | DQ4: =Time!DQ$39 -> 2076 | DR4: =Time!DR$39 -> 2077 | DS4: =Time!DS$39 -> 2077 | DT4: =Time!DT$39 -> 2078 | DU4: =Time!DU$39 -> 2078 | DV4: =Time!DV$39 -> 2079 | DW4: =Time!DW$39 -> 2079 | DX4: =Time!DX$39 -> 2080 | DY4: =Time!DY$39 -> 2080 | DZ4: =Time!DZ$39 -> 2081 | EA4: =Time!EA$39 -> 2081 | EB4: =Time!EB$39 -> 2082 | EC4: =Time!EC$39 -> 2082 | ED4: =Time!ED$39 -> 2083 | EE4: =Time!EE$39 -> 2083 | EF4: =Time!EF$39 -> 2084 | EG4: =Time!EG$39 -> 2084 | EH4: =Time!EH$39 -> 2085 | EI4: =Time!EI$39 -> 2085 | EJ4: =Time!EJ$39 -> 2086 | EK4: =Time!EK$39 -> 2086 | EL4: =Time!EL$39 -> 2087 | EM4: =Time!EM$39 -> 2087 | EN4: =Time!EN$39 -> 2088 | EO4: =Time!EO$39 -> 2088 | EP4: =Time!EP$39 -> 2089 | EQ4: =Time!EQ$39 -> 2089 | ER4: =Time!ER$39 -> 2090 | ES4: =Time!ES$39 -> 2090 | ET4: =Time!ET$39 -> 2091 | EU4: =Time!EU$39 -> 2091 | EV4: =Time!EV$39 -> 2092 | EW4: =Time!EW$39 -> 2092 | EX4: =Time!EX$39 -> 2093 | EY4: =Time!EY$39 -> 2093 | EZ4: =Time!EZ$39 -> 2094 | FA4: =Time!FA$39 -> 2094 | FB4: =Time!FB$39 -> 2095 | FC4: =Time!FC$39 -> 2095 | FD4: =Time!FD$39 -> 2096 | FE4: =Time!FE$39 -> 2096 | FF4: =Time!FF$39 -> 2097 | FG4: =Time!FG$39 -> 2097 | FH4: =Time!FH$39 -> 2098 | FI4: =Time!FI$39 -> 2098 | FJ4: =Time!FJ$39 -> 2099 | FK4: =Time!FK$39 -> 2099 | FL4: =Time!FL$39 -> 2100 | FM4: =Time!FM$39 -> 2100 | FN4: =Time!FN$39 -> 2101 | FO4: =Time!FO$39 -> 2101 | FP4: =Time!FP$39 -> 2102 | FQ4: =Time!FQ$39 -> 2102 | FR4: =Time!FR$39 -> 2103 | FS4: =Time!FS$39 -> 2103 | FT4: =Time!FT$39 -> 2104 | FU4: =Time!FU$39 -> 2104 | FV4: =Time!FV$39 -> 2105 | FW4: =Time!FW$39 -> 2105 | FX4: =Time!FX$39 -> 2106 | FY4: =Time!FY$39 -> 2106 | FZ4: =Time!FZ$39 -> 2107 | GA4: =Time!GA$39 -> 2107 | GB4: =Time!GB$39 -> 2108 | GC4: =Time!GC$39 -> 2108 | GD4: =Time!GD$39 -> 2109 | GE4: =Time!GE$39 -> 2109 | GF4: =Time!GF$39 -> 2110 | GG4: =Time!GG$39 -> 2110 | GH4: =Time!GH$39 -> 2111 | GI4: =Time!GI$39 -> 2111 | GJ4: =Time!GJ$39 -> 2112
E5: =Time!E$10 -> Model column counter | F5: Constant | G5: Unit | H5: Total | J5: =Time!J$10 -> 1 | K5: =Time!K$10 -> 2 | L5: =Time!L$10 -> 3 | M5: =Time!M$10 -> 4 | N5: =Time!N$10 -> 5 | O5: =Time!O$10 -> 6 | P5: =Time!P$10 -> 7 | Q5: =Time!Q$10 -> 8 | R5: =Time!R$10 -> 9 | S5: =Time!S$10 -> 10 | T5: =Time!T$10 -> 11 | U5: =Time!U$10 -> 12 | V5: =Time!V$10 -> 13 | W5: =Time!W$10 -> 14 | X5: =Time!X$10 -> 15 | Y5: =Time!Y$10 -> 16 | Z5: =Time!Z$10 -> 17 | AA5: =Time!AA$10 -> 18 | AB5: =Time!AB$10 -> 19 | AC5: =Time!AC$10 -> 20 | AD5: =Time!AD$10 -> 21 | AE5: =Time!AE$10 -> 22 | AF5: =Time!AF$10 -> 23 | AG5: =Time!AG$10 -> 24 | AH5: =Time!AH$10 -> 25 | AI5: =Time!AI$10 -> 26 | AJ5: =Time!AJ$10 -> 27 | AK5: =Time!AK$10 -> 28 | AL5: =Time!AL$10 -> 29 | AM5: =Time!AM$10 -> 30 | AN5: =Time!AN$10 -> 31 | AO5: =Time!AO$10 -> 32 | AP5: =Time!AP$10 -> 33 | AQ5: =Time!AQ$10 -> 34 | AR5: =Time!AR$10 -> 35 | AS5: =Time!AS$10 -> 36 | AT5: =Time!AT$10 -> 37 | AU5: =Time!AU$10 -> 38 | AV5: =Time!AV$10 -> 39 | AW5: =Time!AW$10 -> 40 | AX5: =Time!AX$10 -> 41 | AY5: =Time!AY$10 -> 42 | AZ5: =Time!AZ$10 -> 43 | BA5: =Time!BA$10 -> 44 | BB5: =Time!BB$10 -> 45 | BC5: =Time!BC$10 -> 46 | BD5: =Time!BD$10 -> 47 | BE5: =Time!BE$10 -> 48 | BF5: =Time!BF$10 -> 49 | BG5: =Time!BG$10 -> 50 | BH5: =Time!BH$10 -> 51 | BI5: =Time!BI$10 -> 52 | BJ5: =Time!BJ$10 -> 53 | BK5: =Time!BK$10 -> 54 | BL5: =Time!BL$10 -> 55 | BM5: =Time!BM$10 -> 56 | BN5: =Time!BN$10 -> 57 | BO5: =Time!BO$10 -> 58 | BP5: =Time!BP$10 -> 59 | BQ5: =Time!BQ$10 -> 60 | BR5: =Time!BR$10 -> 61 | BS5: =Time!BS$10 -> 62 | BT5: =Time!BT$10 -> 63 | BU5: =Time!BU$10 -> 64 | BV5: =Time!BV$10 -> 65 | BW5: =Time!BW$10 -> 66 | BX5: =Time!BX$10 -> 67 | BY5: =Time!BY$10 -> 68 | BZ5: =Time!BZ$10 -> 69 | CA5: =Time!CA$10 -> 70 | CB5: =Time!CB$10 -> 71 | CC5: =Time!CC$10 -> 72 | CD5: =Time!CD$10 -> 73 | CE5: =Time!CE$10 -> 74 | CF5: =Time!CF$10 -> 75 | CG5: =Time!CG$10 -> 76 | CH5: =Time!CH$10 -> 77 | CI5: =Time!CI$10 -> 78 | CJ5: =Time!CJ$10 -> 79 | CK5: =Time!CK$10 -> 80 | CL5: =Time!CL$10 -> 81 | CM5: =Time!CM$10 -> 82 | CN5: =Time!CN$10 -> 83 | CO5: =Time!CO$10 -> 84 | CP5: =Time!CP$10 -> 85 | CQ5: =Time!CQ$10 -> 86 | CR5: =Time!CR$10 -> 87 | CS5: =Time!CS$10 -> 88 | CT5: =Time!CT$10 -> 89 | CU5: =Time!CU$10 -> 90 | CV5: =Time!CV$10 -> 91 | CW5: =Time!CW$10 -> 92 | CX5: =Time!CX$10 -> 93 | CY5: =Time!CY$10 -> 94 | CZ5: =Time!CZ$10 -> 95 | DA5: =Time!DA$10 -> 96 | DB5: =Time!DB$10 -> 97 | DC5: =Time!DC$10 -> 98 | DD5: =Time!DD$10 -> 99 | DE5: =Time!DE$10 -> 100 | DF5: =Time!DF$10 -> 101 | DG5: =Time!DG$10 -> 102 | DH5: =Time!DH$10 -> 103 | DI5: =Time!DI$10 -> 104 | DJ5: =Time!DJ$10 -> 105 | DK5: =Time!DK$10 -> 106 | DL5: =Time!DL$10 -> 107 | DM5: =Time!DM$10 -> 108 | DN5: =Time!DN$10 -> 109 | DO5: =Time!DO$10 -> 110 | DP5: =Time!DP$10 -> 111 | DQ5: =Time!DQ$10 -> 112 | DR5: =Time!DR$10 -> 113 | DS5: =Time!DS$10 -> 114 | DT5: =Time!DT$10 -> 115 | DU5: =Time!DU$10 -> 116 | DV5: =Time!DV$10 -> 117 | DW5: =Time!DW$10 -> 118 | DX5: =Time!DX$10 -> 119 | DY5: =Time!DY$10 -> 120 | DZ5: =Time!DZ$10 -> 121 | EA5: =Time!EA$10 -> 122 | EB5: =Time!EB$10 -> 123 | EC5: =Time!EC$10 -> 124 | ED5: =Time!ED$10 -> 125 | EE5: =Time!EE$10 -> 126 | EF5: =Time!EF$10 -> 127 | EG5: =Time!EG$10 -> 128 | EH5: =Time!EH$10 -> 129 | EI5: =Time!EI$10 -> 130 | EJ5: =Time!EJ$10 -> 131 | EK5: =Time!EK$10 -> 132 | EL5: =Time!EL$10 -> 133 | EM5: =Time!EM$10 -> 134 | EN5: =Time!EN$10 -> 135 | EO5: =Time!EO$10 -> 136 | EP5: =Time!EP$10 -> 137 | EQ5: =Time!EQ$10 -> 138 | ER5: =Time!ER$10 -> 139 | ES5: =Time!ES$10 -> 140 | ET5: =Time!ET$10 -> 141 | EU5: =Time!EU$10 -> 142 | EV5: =Time!EV$10 -> 143 | EW5: =Time!EW$10 -> 144 | EX5: =Time!EX$10 -> 145 | EY5: =Time!EY$10 -> 146 | EZ5: =Time!EZ$10 -> 147 | FA5: =Time!FA$10 -> 148 | FB5: =Time!FB$10 -> 149 | FC5: =Time!FC$10 -> 150 | FD5: =Time!FD$10 -> 151 | FE5: =Time!FE$10 -> 152 | FF5: =Time!FF$10 -> 153 | FG5: =Time!FG$10 -> 154 | FH5: =Time!FH$10 -> 155 | FI5: =Time!FI$10 -> 156 | FJ5: =Time!FJ$10 -> 157 | FK5: =Time!FK$10 -> 158 | FL5: =Time!FL$10 -> 159 | FM5: =Time!FM$10 -> 160 | FN5: =Time!FN$10 -> 161 | FO5: =Time!FO$10 -> 162 | FP5: =Time!FP$10 -> 163 | FQ5: =Time!FQ$10 -> 164 | FR5: =Time!FR$10 -> 165 | FS5: =Time!FS$10 -> 166 | FT5: =Time!FT$10 -> 167 | FU5: =Time!FU$10 -> 168 | FV5: =Time!FV$10 -> 169 | FW5: =Time!FW$10 -> 170 | FX5: =Time!FX$10 -> 171 | FY5: =Time!FY$10 -> 172 | FZ5: =Time!FZ$10 -> 173 | GA5: =Time!GA$10 -> 174 | GB5: =Time!GB$10 -> 175 | GC5: =Time!GC$10 -> 176 | GD5: =Time!GD$10 -> 177 | GE5: =Time!GE$10 -> 178 | GF5: =Time!GF$10 -> 179 | GG5: =Time!GG$10 -> 180 | GH5: =Time!GH$10 -> 181 | GI5: =Time!GI$10 -> 182 | GJ5: =Time!GJ$10 -> 183
A7: SENIOR DEBT FORWARD CURVE
E9: =InpC!E$118 -> Senior debt forward curve selection | F9: =InpC!F$118 -> 1 | G9: =InpC!G$118 -> profile
E10: Senior debt forward curve as at April 27th | G10: % p.a. | J10: 0.02 | K10: 0.020062 | L10: 0.020124 | M10: 0.020184 | N10: 0.020241 | O10: 0.020308 | P10: 0.020375 | Q10: 0.020434 | R10: 0.020506 | S10: 0.020569 | T10: 0.02062 | U10: 0.020666 | V10: 0.020719 | W10: 0.020757 | X10: 0.020795 | Y10: 0.02085 | Z10: 0.020888 | AA10: 0.020954 | AB10: 0.021024 | AC10: 0.021091 | AD10: 0.021134 | AE10: 0.021205 | AF10: 0.021279 | AG10: 0.021316 | AH10: 0.021367 | AI10: 0.021421 | AJ10: 0.02147 | AK10: 0.021516 | AL10: 0.02157 | AM10: 0.021639 | AN10: 0.021709 | AO10: 0.021772 | AP10: 0.021813 | AQ10: 0.021858 | AR10: 0.021913 | AS10: 0.021986 | AT10: 0.022041 | AU10: 0.022089 | AV10: 0.022148 | AW10: 0.022216 | AX10: 0.022282 | AY10: 0.022351 | AZ10: 0.022409 | BA10: 0.022445 | BB10: 0.022489 | BC10: 0.022535 | BD10: 0.022607 | BE10: 0.022647 | BF10: 0.022684 | BG10: 0.022734 | BH10: 0.022806 | BI10: 0.022852 | BJ10: 0.022899 | BK10: 0.022953 | BL10: 0.023028 | BM10: 0.023094 | BN10: 0.023146 | BO10: 0.023212 | BP10: 0.023254 | BQ10: 0.023289 | BR10: 0.023334 | BS10: 0.023373 | BT10: 0.023414 | BU10: 0.023473 | BV10: 0.02352 | BW10: 0.023593 | BX10: 0.023661 | BY10: 0.023729 | BZ10: 0.023786 | CA10: 0.023842 | CB10: 0.023908 | CC10: 0.023962 | CD10: 0.024012 | CE10: 0.024071 | CF10: 0.02412 | CG10: 0.024167 | CH10: 0.024216 | CI10: 0.024264 | CJ10: 0.024302 | CK10: 0.024366 | CL10: 0.024409 | CM10: 0.024463 | CN10: 0.024531 | CO10: 0.024587 | CP10: 0.024623 | CQ10: 0.024689 | CR10: 0.024739 | CS10: 0.02479 | CT10: 0.024835 | CU10: 0.024873 | CV10: 0.024931 | CW10: 0.024984 | CX10: 0.025049 | CY10: 0.025112 | CZ10: 0.025182 | DA10: 0.025252 | DB10: 0.02529 | DC10: 0.025333 | DD10: 0.025394 | DE10: 0.025439 | DF10: 0.025491 | DG10: 0.025562 | DH10: 0.025624 | DI10: 0.025666 | DJ10: 0.025739 | DK10: 0.025799 | DL10: 0.025837 | DM10: 0.025907 | DN10: 0.025947 | DO10: 0.025986 | DP10: 0.026059 | DQ10: 0.026104 | DR10: 0.026177 | DS10: 0.02622 | DT10: 0.026291 | DU10: 0.026347 | DV10: 0.026388 | DW10: 0.026447 | DX10: 0.026511 | DY10: 0.026547 | DZ10: 0.026589 | EA10: 0.026655 | EB10: 0.026693 | EC10: 0.026738 | ED10: 0.026811 | EE10: 0.026864 | EF10: 0.026917 | EG10: 0.026985 | EH10: 0.027028 | EI10: 0.02709 | EJ10: 0.027134 | EK10: 0.027205 | EL10: 0.02727 | EM10: 0.027308 | EN10: 0.027346 | EO10: 0.027391 | EP10: 0.027437 | EQ10: 0.027496 | ER10: 0.027551 | ES10: 0.027621 | ET10: 0.027689 | EU10: 0.027753 | EV10: 0.027788 | EW10: 0.027828 | EX10: 0.027891 | EY10: 0.027952 | EZ10: 0.028004 | FA10: 0.028051 | FB10: 0.028117 | FC10: 0.028162 | FD10: 0.028226 | FE10: 0.028283 | FF10: 0.028351 | FG10: 0.028407 | FH10: 0.028452 | FI10: 0.028495 | FJ10: 0.02857 | FK10: 0.028613 | FL10: 0.028678 | FM10: 0.028726 | FN10: 0.028797 | FO10: 0.028861 | FP10: 0.028935 | FQ10: 0.028995 | FR10: 0.02905 | FS10: 0.029109 | FT10: 0.029181 | FU10: 0.029232 | FV10: 0.029283 | FW10: 0.029322 | FX10: 0.029382 | FY10: 0.029447 | FZ10: 0.029488 | GA10: 0.029557 | GB10: 0.029595 | GC10: 0.02967 | GD10: 0.029737 | GE10: 0.029788 | GF10: 0.029841 | GG10: 0.029881 | GH10: 0.029955 | GI10: 0.030029 | GJ10: 0.030092
E11: Spare | G11: % p.a.
E12: Spare | G12: % p.a.
E13: Active senior debt forward curve | G13: % p.a. | J13: =INDEX(J10:J12, $F9) -> 0.02 | K13: 0.020062 | L13: 0.020124 | M13: 0.020184 | N13: 0.020241 | O13: 0.020308 | P13: 0.020375 | Q13: 0.020434 | R13: 0.020506 | S13: 0.020569 | T13: 0.02062 | U13: 0.020666 | V13: 0.020719 | W13: 0.020757 | X13: 0.020795 | Y13: 0.02085 | Z13: 0.020888 | AA13: 0.020954 | AB13: 0.021024 | AC13: 0.021091 | AD13: 0.021134 | AE13: 0.021205 | AF13: 0.021279 | AG13: 0.021316 | AH13: 0.021367 | AI13: 0.021421 | AJ13: 0.02147 | AK13: 0.021516 | AL13: 0.02157 | AM13: 0.021639 | AN13: 0.021709 | AO13: 0.021772 | AP13: =INDEX(AP10:AP12, $F9) -> 0.021813 | AQ13: 0.021858 | AR13: 0.021913 | AS13: 0.021986 | AT13: 0.022041 | AU13: 0.022089 | AV13: 0.022148 | AW13: 0.022216 | AX13: 0.022282 | AY13: 0.022351 | AZ13: 0.022409 | BA13: 0.022445 | BB13: 0.022489 | BC13: 0.022535 | BD13: 0.022607 | BE13: 0.022647 | BF13: 0.022684 | BG13: 0.022734 | BH13: 0.022806 | BI13: 0.022852 | BJ13: 0.022899 | BK13: 0.022953 | BL13: 0.023028 | BM13: 0.023094 | BN13: 0.023146 | BO13: 0.023212 | BP13: 0.023254 | BQ13: 0.023289 | BR13: 0.023334 | BS13: 0.023373 | BT13: 0.023414 | BU13: 0.023473 | BV13: =INDEX(BV10:BV12, $F9) -> 0.02352 | BW13: 0.023593 | BX13: 0.023661 | BY13: 0.023729 | BZ13: 0.023786 | CA13: 0.023842 | CB13: 0.023908 | CC13: 0.023962 | CD13: 0.024012 | CE13: 0.024071 | CF13: 0.02412 | CG13: 0.024167 | CH13: 0.024216 | CI13: 0.024264 | CJ13: 0.024302 | CK13: 0.024366 | CL13: 0.024409 | CM13: 0.024463 | CN13: 0.024531 | CO13: 0.024587 | CP13: 0.024623 | CQ13: 0.024689 | CR13: 0.024739 | CS13: 0.02479 | CT13: 0.024835 | CU13: 0.024873 | CV13: 0.024931 | CW13: 0.024984 | CX13: 0.025049 | CY13: 0.025112 | CZ13: 0.025182 | DA13: 0.025252 | DB13: =INDEX(DB10:DB12, $F9) -> 0.02529 | DC13: 0.025333 | DD13: 0.025394 | DE13: 0.025439 | DF13: 0.025491 | DG13: 0.025562 | DH13: 0.025624 | DI13: 0.025666 | DJ13: 0.025739 | DK13: 0.025799 | DL13: 0.025837 | DM13: 0.025907 | DN13: 0.025947 | DO13: 0.025986 | DP13: 0.026059 | DQ13: 0.026104 | DR13: 0.026177 | DS13: 0.02622 | DT13: 0.026291 | DU13: 0.026347 | DV13: 0.026388 | DW13: 0.026447 | DX13: 0.026511 | DY13: 0.026547 | DZ13: 0.026589 | EA13: 0.026655 | EB13: 0.026693 | EC13: 0.026738 | ED13: 0.026811 | EE13: 0.026864 | EF13: 0.026917 | EG13: 0.026985 | EH13: =INDEX(EH10:EH12, $F9) -> 0.027028 | EI13: 0.02709 | EJ13: 0.027134 | EK13: 0.027205 | EL13: 0.02727 | EM13: 0.027308 | EN13: 0.027346 | EO13: 0.027391 | EP13: 0.027437 | EQ13: 0.027496 | ER13: 0.027551 | ES13: 0.027621 | ET13: 0.027689 | EU13: 0.027753 | EV13: 0.027788 | EW13: 0.027828 | EX13: 0.027891 | EY13: 0.027952 | EZ13: 0.028004 | FA13: 0.028051 | FB13: 0.028117 | FC13: 0.028162 | FD13: 0.028226 | FE13: 0.028283 | FF13: 0.028351 | FG13: 0.028407 | FH13: 0.028452 | FI13: 0.028495 | FJ13: 0.02857 | FK13: 0.028613 | FL13: 0.028678 | FM13: 0.028726 | FN13: =INDEX(FN10:FN12, $F9) -> 0.028797 | FO13: 0.028861 | FP13: 0.028935 | FQ13: 0.028995 | FR13: 0.02905 | FS13: 0.029109 | FT13: 0.029181 | FU13: 0.029232 | FV13: 0.029283 | FW13: 0.029322 | FX13: 0.029382 | FY13: 0.029447 | FZ13: 0.029488 | GA13: 0.029557 | GB13: 0.029595 | GC13: 0.02967 | GD13: 0.029737 | GE13: 0.029788 | GF13: 0.029841 | GG13: 0.029881 | GH13: 0.029955 | GI13: 0.030029 | GJ13: 0.030092
A16: END

Sheet InpS -m
A1: =RIGHT(CELL("filename", A1), LEN(CELL("filename", A1)) - SEARCH("]", CELL("filename", A1))) & " - " & InpC!F3 -> InpS -m - Seasonal - Leverage Method
E2: =ConTime!E$23 -> Model period ending - m | F2: =Check!$F$9 -> 4 | G2: Error chks | J2: =ConTime!J$23 -> 2021-01-31 | K2: =ConTime!K$23 -> 2021-02-28 | L2: =ConTime!L$23 -> 2021-03-31 | M2: =ConTime!M$23 -> 2021-04-30 | N2: =ConTime!N$23 -> 2021-05-31 | O2: =ConTime!O$23 -> 2021-06-30 | P2: =ConTime!P$23 -> 2021-07-31 | Q2: =ConTime!Q$23 -> 2021-08-31 | R2: =ConTime!R$23 -> 2021-09-30 | S2: =ConTime!S$23 -> 2021-10-31 | T2: =ConTime!T$23 -> 2021-11-30 | U2: =ConTime!U$23 -> 2021-12-31 | V2: =ConTime!V$23 -> 2022-01-31 | W2: =ConTime!W$23 -> 2022-02-28 | X2: =ConTime!X$23 -> 2022-03-31 | Y2: =ConTime!Y$23 -> 2022-04-30 | Z2: =ConTime!Z$23 -> 2022-05-31 | AA2: =ConTime!AA$23 -> 2022-06-30 | AB2: =ConTime!AB$23 -> 2022-07-31 | AC2: =ConTime!AC$23 -> 2022-08-31 | AD2: =ConTime!AD$23 -> 2022-09-30 | AE2: =ConTime!AE$23 -> 2022-10-31 | AF2: =ConTime!AF$23 -> 2022-11-30 | AG2: =ConTime!AG$23 -> 2022-12-31 | AH2: =ConTime!AH$23 -> 2023-01-31 | AI2: =ConTime!AI$23 -> 2023-02-28 | AJ2: =ConTime!AJ$23 -> 2023-03-31 | AK2: =ConTime!AK$23 -> 2023-04-30 | AL2: =ConTime!AL$23 -> 2023-05-31 | AM2: =ConTime!AM$23 -> 2023-06-30 | AN2: =ConTime!AN$23 -> 2023-07-31 | AO2: =ConTime!AO$23 -> 2023-08-31 | AP2: =ConTime!AP$23 -> 2023-09-30 | AQ2: =ConTime!AQ$23 -> 2023-10-31 | AR2: =ConTime!AR$23 -> 2023-11-30 | AS2: =ConTime!AS$23 -> 2023-12-31 | AT2: =ConTime!AT$23 -> 2024-01-31 | AU2: =ConTime!AU$23 -> 2024-02-29 | AV2: =ConTime!AV$23 -> 2024-03-31 | AW2: =ConTime!AW$23 -> 2024-04-30 | AX2: =ConTime!AX$23 -> 2024-05-31 | AY2: =ConTime!AY$23 -> 2024-06-30 | AZ2: =ConTime!AZ$23 -> 2024-07-31 | BA2: =ConTime!BA$23 -> 2024-08-31 | BB2: =ConTime!BB$23 -> 2024-09-30 | BC2: =ConTime!BC$23 -> 2024-10-31 | BD2: =ConTime!BD$23 -> 2024-11-30 | BE2: =ConTime!BE$23 -> 2024-12-31
E3: =ConTime!E$50 -> Timeline label - m | F3: =Output!J2 -> 55 | G3: Track chgs | J3: =ConTime!J$50 -> Pre-fcst | K3: =ConTime!K$50 -> Pre-fcst | L3: =ConTime!L$50 -> Pre-fcst | M3: =ConTime!M$50 -> Pre-fcst | N3: =ConTime!N$50 -> Pre-fcst | O3: =ConTime!O$50 -> Pre-fcst | P3: =ConTime!P$50 -> Pre-fcst | Q3: =ConTime!Q$50 -> Pre-fcst | R3: =ConTime!R$50 -> Pre-fcst | S3: =ConTime!S$50 -> Pre-fcst | T3: =ConTime!T$50 -> Pre-fcst | U3: =ConTime!U$50 -> Pre-fcst | V3: =ConTime!V$50 -> Pre-fcst | W3: =ConTime!W$50 -> Pre-fcst | X3: =ConTime!X$50 -> Pre-fcst | Y3: =ConTime!Y$50 -> Fin Close | Z3: =ConTime!Z$50 -> Construction | AA3: =ConTime!AA$50 -> Construction | AB3: =ConTime!AB$50 -> Construction | AC3: =ConTime!AC$50 -> Construction | AD3: =ConTime!AD$50 -> Construction | AE3: =ConTime!AE$50 -> Construction | AF3: =ConTime!AF$50 -> Construction | AG3: =ConTime!AG$50 -> Construction | AH3: =ConTime!AH$50 -> Construction | AI3: =ConTime!AI$50 -> Construction | AJ3: =ConTime!AJ$50 -> Construction | AK3: =ConTime!AK$50 -> Construction | AL3: =ConTime!AL$50 -> Construction | AM3: =ConTime!AM$50 -> Construction | AN3: =ConTime!AN$50 -> Construction | AO3: =ConTime!AO$50 -> Construction | AP3: =ConTime!AP$50 -> Construction | AQ3: =ConTime!AQ$50 -> Construction | AR3: =ConTime!AR$50 -> Construction | AS3: =ConTime!AS$50 -> Construction | AT3: =ConTime!AT$50 -> Construction | AU3: =ConTime!AU$50 -> Construction | AV3: =ConTime!AV$50 -> Construction | AW3: =ConTime!AW$50 -> Construction | AX3: =ConTime!AX$50 -> Construction | AY3: =ConTime!AY$50 -> Construction | AZ3: =ConTime!AZ$50 -> Operations | BA3: =ConTime!BA$50 -> Operations | BB3: =ConTime!BB$50 -> Operations | BC3: =ConTime!BC$50 -> Operations | BD3: =ConTime!BD$50 -> Operations | BE3: =ConTime!BE$50 -> Operations
E4: =Time!E$39 -> Financial year | F4: =Check!$F$28 -> 0 | G4: Alerts | J4: =Time!J$39 -> 2021 | K4: =Time!K$39 -> 2021 | L4: =Time!L$39 -> 2022 | M4: =Time!M$39 -> 2022 | N4: =Time!N$39 -> 2023 | O4: =Time!O$39 -> 2023 | P4: =Time!P$39 -> 2024 | Q4: =Time!Q$39 -> 2024 | R4: =Time!R$39 -> 2025 | S4: =Time!S$39 -> 2025 | T4: =Time!T$39 -> 2026 | U4: =Time!U$39 -> 2026 | V4: =Time!V$39 -> 2027 | W4: =Time!W$39 -> 2027 | X4: =Time!X$39 -> 2028 | Y4: =Time!Y$39 -> 2028 | Z4: =Time!Z$39 -> 2029 | AA4: =Time!AA$39 -> 2029 | AB4: =Time!AB$39 -> 2030 | AC4: =Time!AC$39 -> 2030 | AD4: =Time!AD$39 -> 2031 | AE4: =Time!AE$39 -> 2031 | AF4: =Time!AF$39 -> 2032 | AG4: =Time!AG$39 -> 2032 | AH4: =Time!AH$39 -> 2033 | AI4: =Time!AI$39 -> 2033 | AJ4: =Time!AJ$39 -> 2034 | AK4: =Time!AK$39 -> 2034 | AL4: =Time!AL$39 -> 2035 | AM4: =Time!AM$39 -> 2035 | AN4: =Time!AN$39 -> 2036 | AO4: =Time!AO$39 -> 2036 | AP4: =Time!AP$39 -> 2037 | AQ4: =Time!AQ$39 -> 2037 | AR4: =Time!AR$39 -> 2038 | AS4: =Time!AS$39 -> 2038 | AT4: =Time!AT$39 -> 2039 | AU4: =Time!AU$39 -> 2039 | AV4: =Time!AV$39 -> 2040 | AW4: =Time!AW$39 -> 2040 | AX4: =Time!AX$39 -> 2041 | AY4: =Time!AY$39 -> 2041 | AZ4: =Time!AZ$39 -> 2042 | BA4: =Time!BA$39 -> 2042 | BB4: =Time!BB$39 -> 2043 | BC4: =Time!BC$39 -> 2043 | BD4: =Time!BD$39 -> 2044 | BE4: =Time!BE$39 -> 2044
E5: =Time!E$10 -> Model column counter | F5: Constant | G5: Unit | H5: Total | J5: =Time!J$10 -> 1 | K5: =Time!K$10 -> 2 | L5: =Time!L$10 -> 3 | M5: =Time!M$10 -> 4 | N5: =Time!N$10 -> 5 | O5: =Time!O$10 -> 6 | P5: =Time!P$10 -> 7 | Q5: =Time!Q$10 -> 8 | R5: =Time!R$10 -> 9 | S5: =Time!S$10 -> 10 | T5: =Time!T$10 -> 11 | U5: =Time!U$10 -> 12 | V5: =Time!V$10 -> 13 | W5: =Time!W$10 -> 14 | X5: =Time!X$10 -> 15 | Y5: =Time!Y$10 -> 16 | Z5: =Time!Z$10 -> 17 | AA5: =Time!AA$10 -> 18 | AB5: =Time!AB$10 -> 19 | AC5: =Time!AC$10 -> 20 | AD5: =Time!AD$10 -> 21 | AE5: =Time!AE$10 -> 22 | AF5: =Time!AF$10 -> 23 | AG5: =Time!AG$10 -> 24 | AH5: =Time!AH$10 -> 25 | AI5: =Time!AI$10 -> 26 | AJ5: =Time!AJ$10 -> 27 | AK5: =Time!AK$10 -> 28 | AL5: =Time!AL$10 -> 29 | AM5: =Time!AM$10 -> 30 | AN5: =Time!AN$10 -> 31 | AO5: =Time!AO$10 -> 32 | AP5: =Time!AP$10 -> 33 | AQ5: =Time!AQ$10 -> 34 | AR5: =Time!AR$10 -> 35 | AS5: =Time!AS$10 -> 36 | AT5: =Time!AT$10 -> 37 | AU5: =Time!AU$10 -> 38 | AV5: =Time!AV$10 -> 39 | AW5: =Time!AW$10 -> 40 | AX5: =Time!AX$10 -> 41 | AY5: =Time!AY$10 -> 42 | AZ5: =Time!AZ$10 -> 43 | BA5: =Time!BA$10 -> 44 | BB5: =Time!BB$10 -> 45 | BC5: =Time!BC$10 -> 46 | BD5: =Time!BD$10 -> 47 | BE5: =Time!BE$10 -> 48
A7: EPC PROFILE
E9: Base EPC spend curve | G9: % | H9: =SUM(J9:BE9) -> 1 | Z9: 0.03846153846 | AA9: 0.03846153846 | AB9: 0.03846153846 | AC9: 0.03846153846 | AD9: 0.03846153846 | AE9: 0.03846153846 | AF9: 0.03846153846 | AG9: 0.03846153846 | AH9: 0.03846153846 | AI9: 0.03846153846 | AJ9: 0.03846153846 | AK9: 0.03846153846 | AL9: 0.03846153846 | AM9: 0.03846153846 | AN9: 0.03846153846 | AO9: 0.03846153846 | AP9: 0.03846153846 | AQ9: 0.03846153846 | AR9: 0.03846153846 | AS9: 0.03846153846 | AT9: 0.03846153846 | AU9: 0.03846153846 | AV9: 0.03846153846 | AW9: 0.03846153846 | AX9: 0.03846153846 | AY9: 0.03846153846
A11: EGRs
E13: % of plant completed - during EGR period | G13: % | J13: =J26 -> 0 | K13: =K26 -> 0 | L13: 0 | M13: 0 | N13: 0 | O13: 0 | P13: 0 | Q13: 0 | R13: 0 | S13: 0 | T13: 0 | U13: 0 | V13: 0 | W13: 0 | X13: 0 | Y13: 0 | Z13: 0 | AA13: 0 | AB13: 0 | AC13: 0 | AD13: 0 | AE13: 0 | AF13: 0 | AG13: 0 | AH13: 0 | AI13: 0 | AJ13: 0 | AK13: 0 | AL13: 0 | AM13: 0 | AN13: 0 | AO13: 0 | AP13: 0 | AQ13: 0 | AR13: 0 | AS13: 0 | AT13: 0.3333333333 | AU13: 0.3333333333 | AV13: 0.3333333333 | AW13: 0.3333333333 | AX13: 0.3333333333 | AY13: 0.3333333333 | AZ13: 0 | BA13: 0 | BB13: 0 | BC13: 0 | BD13: 0 | BE13: 0
A15: SENIOR DEBT FORWARD CURVE
E17: =InpC!E$118 -> Senior debt forward curve selection | F17: =InpC!F$118 -> 1 | G17: =InpC!G$118 -> profile
E18: Senior debt forward curve as at April 27th | G18: % p.a. | J18: 0.0019172 | K18: 0.0018992 | L18: 0.0015041 | M18: 0.0010983 | N18: 0.0010581 | O18: 0.0015092 | P18: 0.001465 | Q18: 0.0013596 | R18: 0.0014169 | S18: 0.0014812 | T18: 0.0014021 | U18: 0.0016615 | V18: 0.0020192 | W18: 0.0020404 | X18: 0.0020627 | Y18: 0.0020866 | Z18: 0.0021136 | AA18: 0.0022487 | AB18: 0.0022722 | AC18: 0.0022961 | AD18: 0.0023204 | AE18: 0.0023439 | AF18: 0.0023666 | AG18: 0.0023908 | AH18: 0.0024146 | AI18: 0.0024364 | AJ18: 0.0024599 | AK18: 0.0024836 | AL18: 0.0025636 | AM18: 0.0034167 | AN18: 0.0034852 | AO18: 0.0035525 | AP18: 0.003622 | AQ18: 0.0036902 | AR18: 0.0037573 | AS18: 0.0038266 | AT18: 0.0038 | AU18: 0.0039 | AV18: 0.004 | AW18: 0.0041 | AX18: 0.0042 | AY18: 0.0044 | AZ18: 0.0045 | BA18: 0.0045 | BB18: 0.0044 | BC18: 0.0044 | BD18: 0.0044 | BE18: 0.0044 | BF18: 0.022684 | BG18: 0.022734 | BH18: 0.022806 | BI18: 0.022852 | BJ18: 0.022899 | BK18: 0.022953 | BL18: 0.023028 | BM18: 0.023094 | BN18: 0.023146 | BO18: 0.023212 | BP18: 0.023254 | BQ18: 0.023289 | BR18: 0.023334 | BS18: 0.023373 | BT18: 0.023414 | BU18: 0.023473 | BV18: 0.02352 | BW18: 0.023593 | BX18: 0.023661 | BY18: 0.023729 | BZ18: 0.023786 | CA18: 0.023842 | CB18: 0.023908 | CC18: 0.023962 | CD18: 0.024012 | CE18: 0.024071 | CF18: 0.02412 | CG18: 0.024167 | CH18: 0.024216 | CI18: 0.024264 | CJ18: 0.024302 | CK18: 0.024366 | CL18: 0.024409 | CM18: 0.024463 | CN18: 0.024531 | CO18: 0.024587 | CP18: 0.024623 | CQ18: 0.024689 | CR18: 0.024739 | CS18: 0.02479 | CT18: 0.024835 | CU18: 0.024873 | CV18: 0.024931 | CW18: 0.024984 | CX18: 0.025049 | CY18: 0.025112 | CZ18: 0.025182 | DA18: 0.025252 | DB18: 0.02529 | DC18: 0.025333 | DD18: 0.025394 | DE18: 0.025439 | DF18: 0.025491 | DG18: 0.025562 | DH18: 0.025624 | DI18: 0.025666 | DJ18: 0.025739 | DK18: 0.025799 | DL18: 0.025837 | DM18: 0.025907 | DN18: 0.025947 | DO18: 0.025986 | DP18: 0.026059 | DQ18: 0.026104 | DR18: 0.026177 | DS18: 0.02622 | DT18: 0.026291 | DU18: 0.026347 | DV18: 0.026388 | DW18: 0.026447 | DX18: 0.026511 | DY18: 0.026547 | DZ18: 0.026589 | EA18: 0.026655 | EB18: 0.026693 | EC18: 0.026738 | ED18: 0.026811 | EE18: 0.026864 | EF18: 0.026917 | EG18: 0.026985 | EH18: 0.027028 | EI18: 0.02709 | EJ18: 0.027134 | EK18: 0.027205 | EL18: 0.02727 | EM18: 0.027308 | EN18: 0.027346 | EO18: 0.027391 | EP18: 0.027437 | EQ18: 0.027496 | ER18: 0.027551 | ES18: 0.027621 | ET18: 0.027689 | EU18: 0.027753 | EV18: 0.027788 | EW18: 0.027828 | EX18: 0.027891 | EY18: 0.027952 | EZ18: 0.028004 | FA18: 0.028051 | FB18: 0.028117 | FC18: 0.028162 | FD18: 0.028226 | FE18: 0.028283 | FF18: 0.028351 | FG18: 0.028407 | FH18: 0.028452 | FI18: 0.028495 | FJ18: 0.02857 | FK18: 0.028613 | FL18: 0.028678 | FM18: 0.028726 | FN18: 0.028797 | FO18: 0.028861 | FP18: 0.028935 | FQ18: 0.028995 | FR18: 0.02905 | FS18: 0.029109 | FT18: 0.029181 | FU18: 0.029232 | FV18: 0.029283 | FW18: 0.029322 | FX18: 0.029382 | FY18: 0.029447 | FZ18: 0.029488 | GA18: 0.029557 | GB18: 0.029595 | GC18: 0.02967 | GD18: 0.029737 | GE18: 0.029788 | GF18: 0.029841 | GG18: 0.029881 | GH18: 0.029955 | GI18: 0.030029 | GJ18: 0.030092
E19: Spare | G19: % p.a.
E20: Spare | G20: % p.a.
E21: Active senior debt forward curve -m | G21: % p.a. | J21: =INDEX(J18:J20, $F17) -> 0.0019172 | K21: 0.0018992 | L21: 0.0015041 | M21: 0.0010983 | N21: 0.0010581 | O21: 0.0015092 | P21: 0.001465 | Q21: 0.0013596 | R21: 0.0014169 | S21: 0.0014812 | T21: 0.0014021 | U21: 0.0016615 | V21: 0.0020192 | W21: 0.0020404 | X21: 0.0020627 | Y21: 0.0020866 | Z21: 0.0021136 | AA21: 0.0022487 | AB21: 0.0022722 | AC21: 0.0022961 | AD21: 0.0023204 | AE21: 0.0023439 | AF21: 0.0023666 | AG21: 0.0023908 | AH21: 0.0024146 | AI21: 0.0024364 | AJ21: 0.0024599 | AK21: 0.0024836 | AL21: 0.0025636 | AM21: 0.0034167 | AN21: 0.0034852 | AO21: 0.0035525 | AP21: 0.003622 | AQ21: 0.0036902 | AR21: 0.0037573 | AS21: 0.0038266 | AT21: 0.0038 | AU21: 0.0039 | AV21: 0.004 | AW21: 0.0041 | AX21: 0.0042 | AY21: 0.0044 | AZ21: 0.0045 | BA21: 0.0045 | BB21: 0.0044 | BC21: 0.0044 | BD21: 0.0044 | BE21: 0.0044 | BF21: 0.022684 | BG21: 0.022734 | BH21: 0.022806 | BI21: 0.022852 | BJ21: 0.022899 | BK21: 0.022953 | BL21: 0.023028 | BM21: 0.023094 | BN21: 0.023146 | BO21: 0.023212 | BP21: 0.023254 | BQ21: 0.023289 | BR21: 0.023334 | BS21: 0.023373 | BT21: 0.023414 | BU21: 0.023473 | BV21: =INDEX(BV18:BV20, $F17) -> 0.02352 | BW21: 0.023593 | BX21: 0.023661 | BY21: 0.023729 | BZ21: 0.023786 | CA21: 0.023842 | CB21: 0.023908 | CC21: 0.023962 | CD21: 0.024012 | CE21: 0.024071 | CF21: 0.02412 | CG21: 0.024167 | CH21: 0.024216 | CI21: 0.024264 | CJ21: 0.024302 | CK21: 0.024366 | CL21: 0.024409 | CM21: 0.024463 | CN21: 0.024531 | CO21: 0.024587 | CP21: 0.024623 | CQ21: 0.024689 | CR21: 0.024739 | CS21: 0.02479 | CT21: 0.024835 | CU21: 0.024873 | CV21: 0.024931 | CW21: 0.024984 | CX21: 0.025049 | CY21: 0.025112 | CZ21: 0.025182 | DA21: 0.025252 | DB21: 0.02529 | DC21: 0.025333 | DD21: 0.025394 | DE21: 0.025439 | DF21: 0.025491 | DG21: 0.025562 | DH21: 0.025624 | DI21: 0.025666 | DJ21: 0.025739 | DK21: 0.025799 | DL21: 0.025837 | DM21: 0.025907 | DN21: 0.025947 | DO21: 0.025986 | DP21: 0.026059 | DQ21: 0.026104 | DR21: 0.026177 | DS21: 0.02622 | DT21: 0.026291 | DU21: 0.026347 | DV21: 0.026388 | DW21: 0.026447 | DX21: 0.026511 | DY21: 0.026547 | DZ21: 0.026589 | EA21: 0.026655 | EB21: 0.026693 | EC21: 0.026738 | ED21: 0.026811 | EE21: 0.026864 | EF21: 0.026917 | EG21: 0.026985 | EH21: =INDEX(EH18:EH20, $F17) -> 0.027028 | EI21: 0.02709 | EJ21: 0.027134 | EK21: 0.027205 | EL21: 0.02727 | EM21: 0.027308 | EN21: 0.027346 | EO21: 0.027391 | EP21: 0.027437 | EQ21: 0.027496 | ER21: 0.027551 | ES21: 0.027621 | ET21: 0.027689 | EU21: 0.027753 | EV21: 0.027788 | EW21: 0.027828 | EX21: 0.027891 | EY21: 0.027952 | EZ21: 0.028004 | FA21: 0.028051 | FB21: 0.028117 | FC21: 0.028162 | FD21: 0.028226 | FE21: 0.028283 | FF21: 0.028351 | FG21: 0.028407 | FH21: 0.028452 | FI21: 0.028495 | FJ21: 0.02857 | FK21: 0.028613 | FL21: 0.028678 | FM21: 0.028726 | FN21: 0.028797 | FO21: 0.028861 | FP21: 0.028935 | FQ21: 0.028995 | FR21: 0.02905 | FS21: 0.029109 | FT21: 0.029181 | FU21: 0.029232 | FV21: 0.029283 | FW21: 0.029322 | FX21: 0.029382 | FY21: 0.029447 | FZ21: 0.029488 | GA21: 0.029557 | GB21: 0.029595 | GC21: 0.02967 | GD21: 0.029737 | GE21: 0.029788 | GF21: 0.029841 | GG21: 0.029881 | GH21: 0.029955 | GI21: 0.030029 | GJ21: 0.030092
A24: END
AT26: 0.3333333333 | AU26: 0.3333333333 | AV26: 0.3333333333 | AW26: 0.3333333333 | AX26: 0.3333333333 | AY26: 0.3333333333

Sheet Dashboard
C2: Key Project Assumptions | I2: Construction cost | O2: Debt balance
C4: Name | G4: Project Prima | I4: =+ConCost!E49 -> EPC base cost | L4: =+ConCost!G49 -> $ 000s | M4: =+ConCost!H49 -> 300000
C5: Technology | G5: Wind | I5: =+ConCost!E50 -> EPC contingency | L5: =+ConCost!G50 -> $ 000s | M5: =+ConCost!H50 -> 6000
C6: Project size DC | F6: [MWp] | G6: =+InpC!F45 -> 300 | I6: =+ConCost!E51 -> SPV costs during construction | L6: =+ConCost!G51 -> $ 000s | M6: =+ConCost!H51 -> 1500
C7: Capacity Factor | F7: % | G7: =InpC!F$46 -> 0.4 | I7: =+ConCost!E52 -> Construction insurance cost | L7: =+ConCost!G52 -> $ 000s | M7: =+ConCost!H52 -> 1300
C8: =+Ops!E21 -> Year 1 P50 capacity factor | F8: [GWh] | G8: =+Ops!F24 -> 1051.2 | I8: =+ConCost!E53 -> Development costs | L8: =+ConCost!G53 -> $ 000s | M8: =+ConCost!H53 -> 5000
C9: =+Time!E81 -> End of construction period date | F9: [Date] | G9: =+Time!F81 -> 2024-06-30 | I9: =+ConCost!E54 -> Development fee | L9: =+ConCost!G54 -> $ 000s | M9: =+ConCost!H54 -> 2000
I10: =+ConCost!E55 -> O&M mobilisation | L10: =+ConCost!G55 -> $ 000s | M10: =+ConCost!H55 -> 0
C11: IRR eq | F11: % | G11: =+Solve!F9 -> 0.1022787273
C12: Tariff Indexed | F12: US$c/kWh | G12: =+Ops!F65*100 -> 0.7875836931
C13: Tariff no Indexed | F13: US$c/kWh | G13: =+Solve!J87*100 -> 3.528315898
C14: Total Tariff | F14: US$c/kWh | G14: =+G12+G13 -> 4.315899592
I15: =+ConCost!E56 -> Construction costs - m | L15: =+ConCost!G56 -> $ 000s | M15: =+ConCost!H56 -> 315800
C18: Sources | I18: Uses | O18: Debt Balance
C20: =+'S&U'!E9 -> Share capital drawdown - m | F20: =+'S&U'!G9 -> $ 000s | G20: =+'S&U'!H9 -> 100 | I20: =+I15 -> Construction costs - m | L20: =+L15 -> $ 000s | M20: =+M15 -> 315800
C21: =+'S&U'!E13 -> Shareholder drawdown - m | F21: =+'S&U'!G13 -> $ 000s | G21: =+'S&U'!H13 -> 121256.8267 | I21: =+'S&U'!E25 -> Equity bridge upfront fee - paid | L21: =+'S&U'!G25 -> $ 000s | M21: =+'S&U'!H25 -> 0
C22: =+'S&U'!E10 -> Equity bridge drawdown - m | F22: =+'S&U'!G10 -> $ 000s | G22: =+'S&U'!H10 -> 0 | I22: =+'S&U'!E26 -> Equity bridge commitment fee - paid | L22: =+'S&U'!G26 -> $ 000s | M22: =+'S&U'!H26 -> 0
C23: =+'S&U'!E11 -> Construction debt drawdown - m | F23: =+'S&U'!G11 -> $ 000s | G23: =+'S&U'!H11 -> 225376.9639 | I23: =+'S&U'!E27 -> Equity bridge interest - paid | L23: =+'S&U'!G27 -> $ 000s | M23: =+'S&U'!H27 -> 0
C24: =+'S&U'!E12 -> Cash received from EGRs - m P50 | F24: =+'S&U'!G12 -> $ 000s | G24: =+'S&U'!H15 -> 0 | I24: =+'S&U'!E28 -> Repayment of equity bridge POS | L24: =+'S&U'!G28 -> $ 000s | M24: =+'S&U'!H28 -> 0
I25: =+'S&U'!E29 -> Construction debt upfront fee | L25: =+'S&U'!G29 -> $ 000s | M25: =+'S&U'!H29 -> 5867.127689
I26: =+'S&U'!E30 -> Construction debt commitment fee | L26: =+'S&U'!G30 -> $ 000s | M26: =+'S&U'!H30 -> 3622.910425
I27: =+'S&U'!E31 -> Construction debt interest | L27: =+'S&U'!G31 -> $ 000s | M27: =+'S&U'!H31 -> 5860.077245
I28: =+'S&U'!E32 -> Pre-funding of working capital - m P50 | L28: =+'S&U'!G32 -> $ 000s | M28: =+'S&U'!H32 -> 4458.590435
I29: =+'S&U'!E33 -> Pre-funding of DSRA - m | L29: =+'S&U'!G33 -> $ 000s | M29: =+'S&U'!H33 -> 11175.63063
I30: =+'S&U'!E34 -> Cash paid for EG O&M costs - m | L30: =+'S&U'!G34 -> $ 000s | M30: =+'S&U'!H37 -> 828.7671233
C32: =+'S&U'!E14 -> Sources of cash | F32: =+'S&U'!G14 -> $ 000s | G32: =SUM(G20:G24) -> 346733.7907 | I32: =+'S&U'!E36 -> Uses of cash | J32: =+'S&U'!F36 -> 0 | L32: =+'S&U'!G36 -> $ 000s | M32: =SUM(M20:M30) -> 347613.1035
C34: Financing Assumptions | I34: Cash Flow | O34: Cash flow destination
C36: Construction | I36: =Output!E75 -> Operating cashflow P50 | L36: =+Output!G75 -> $ 000s | M36: =+Output!H75 -> 694409.4246
C37: Equity bridge loan active | G37: =IF(+InpC!J77=1,"yes", "no") -> no
C38: =+InpC!E89 -> Equity bridge margin - construction | F38: % | G38: =+InpC!F89 -> 0.025 | I38: =Output!E77 -> Construction costs | L38: =Output!G77 -> $ 000s | M38: =Output!H77 -> -315800
I39: =Output!E78 -> Financing fees | L39: =Output!G78 -> $ 000s | M39: =Output!H78 -> -15350.11536
I40: =Output!E79 -> Pre-funding of working capital P50 | L40: =Output!G79 -> $ 000s | M40: =Output!H79 -> -4458.590435
C41: =+InpC!E95 -> Senior debt - T1 - % of debt | F41: =+InpC!G95 -> % | G41: =+InpC!F95 -> 0.5 | I41: =Output!E80 -> Pre-funding of DSRA | L41: =Output!G80 -> $ 000s | M41: =Output!H80 -> -11175.63063
C42: =+InpC!E96 -> Senior debt - T2 - % of debt | F42: =+InpC!G96 -> % | G42: =+InpC!F96 -> 0.5 | I42: =Output!E81 -> Equity bridge repayment | L42: =Output!G81 -> $ 000s | M42: =Output!H81 -> 0
I43: =Output!E82 -> Share capital drawdown | L43: =Output!G82 -> $ 000s | M43: =Output!H82 -> 100
C44: Operation | I44: =Output!E83 -> Equity bridge drawdown | L44: =Output!G83 -> $ 000s | M44: =Output!H83 -> 0
C45: =+Output!E35 -> Leverage | D45: =+Output!F35 -> 0 | F45: =+Output!G35 -> % | G45: =+Output!H35 -> 0.65 | I45: =Output!E84 -> Shareholder loan drawdown | L45: =Output!G84 -> $ 000s | M45: =Output!H84 -> 121256.8267
C46: =+InpC!E177 -> Senior debt - T1 repayment term | F46: =+InpC!G177 -> years | G46: =+InpC!F177 -> 17 | I46: =Output!E85 -> Construction debt drawdown | L46: =Output!G85 -> $ 000s | M46: =Output!H85 -> 225376.9639
C47: =InpC!E$210 -> Senior debt - T2 repayment term | F47: =InpC!G$210 -> years | G47: =InpC!F$210 -> 17 | I47: =Output!E86 -> Cashflow available for senior debt P50 | L47: =Output!G86 -> $ 000s | M47: =Output!H86 -> 694358.8788
C48: =+Metrics!E173 -> Average cost of debt T1 | F48: =+InpC!G101 -> $ 000s | G48: =+Metrics!F173 -> 0.05721794665
C49: =+Metrics!E194 -> Average cost of debt T2 | F49: =+InpC!G102 -> % p.a. | G49: =+Metrics!F194 -> 0.06263091266 | I49: =Output!E88 -> Senior debt interest - T1 | L49: =Output!G88 -> $ 000s | M49: =Output!H88 -> -41486.9274
C50: =+Metrics!E152 -> Average cost of debt | F50: =+InpC!G103 -> % p.a. | G50: =+Metrics!F152 -> 0.05991656482 | I50: =Output!E89 -> Senior debt principal repayment - T1 | L50: =Output!G89 -> $ 000s | M50: =Output!H89 -> -126013.61
C51: =+Output!E17 -> Min DSCR P50 | F51: =+Output!G17 -> ratio | G51: =+Output!H17 -> 1.613802733 | I51: =Output!E90 -> Senior debt interest - T2 | L51: =Output!G90 -> $ 000s | M51: =Output!H90 -> -46417.03166
C52: =+Output!E20 -> Min DSCR P99 | F52: =+Output!G20 -> ratio | G52: =+Output!H20 -> 1.298932461 | I52: =Output!E91 -> Senior debt principal repayment - T2 | L52: =Output!G91 -> $ 000s | M52: =Output!H91 -> -126013.61
C53: =+Output!E31 -> Weighted average life of loan | F53: =+Output!G31 -> years | G53: =+Output!H31 -> 12.82520361 | I53: =Output!E92 -> Senior debt witholding tax - T1 | L53: =Output!G92 -> $ 000s | M53: =Output!H92 -> -846.6719878
I54: =Output!E93 -> Senior debt witholding tax T2 | L54: =Output!G93 -> $ 000s | M54: =Output!H93 -> -947.2863603
I55: =Output!E94 -> Cashflow available for DSRA P50 | L55: =Output!G94 -> $ 000s | M55: =Output!H94 -> 352633.7415
C56: Tax Assumptions | L56: =Output!G95 -> 0 | M56: =Output!H95 -> 0
I57: =Output!E96 -> DSRA deposit | L57: =Output!G96 -> $ 000s | M57: =Output!H96 -> 0
C58: =InpC!E$266 -> Corporate income tax rate | F58: % | G58: =InpC!F$266 -> 0.2 | I58: =Output!E97 -> DSRA withdrawal | L58: =Output!G97 -> $ 000s | M58: =Output!H97 -> 11175.63063
C59: =InpC!E$270 -> Senior debt witholding tax rate | F59: % | G59: =InpC!F$270 -> 0.02 | I59: =Output!E98 -> Cashflow available for equity bridge loan P50 | L59: =Output!G98 -> $ 000s | M59: =Output!H98 -> 363809.3722
C60: =InpC!E$271 -> Equity cash flows withholding tax rate | F60: % | G60: =InpC!F$271 -> 0.03
I61: =Output!E100 -> Equity bridge interest | L61: =Output!G100 -> $ 000s | M61: =Output!H100 -> 0
C62: =+'FS semi'!E43 -> Corporate income tax paid P50 | F62: $ 000s | G62: =-'FS semi'!H43 -> 28338.78576 | I62: =Output!E101 -> Cashflow available for shareholder loan P50 | L62: =Output!G101 -> $ 000s | M62: =Output!H101 -> 363809.3722
I64: =Output!E103 -> Shareholder loan interest paid P50 | L64: =Output!G103 -> $ 000s | M64: =Output!H103 -> -153638.0778
I65: =Output!E104 -> Shareholder loan principal repayment P50 | L65: =Output!G104 -> $ 000s | M65: =Output!H104 -> -135619.3435
I66: =Output!E105 -> Cashflow available for share capital redemption P50 | L66: =Output!G105 -> $ 000s | M66: =Output!H105 -> 74551.95084
I68: =Output!E107 -> Share capital redemption | L68: =Output!G107 -> $ 000s | M68: =Output!H107 -> -100
I69: =Output!E108 -> Cash flow available for dividends P50 | L69: =Output!G108 -> $ 000s | M69: =Output!H108 -> 74451.95084
L70: =Output!G109 -> 0 | M70: =Output!H109 -> 0
I71: =Output!E110 -> Dividends paid P50 | L71: =Output!G110 -> $ 000s | M71: =Output!H110 -> -74451.95084
I72: =Output!E111 -> Net cash flow P50 | L72: =Output!G111 -> $ 000s | M72: =Output!H111 -> 0
C82: =+'FS Ann'!M4 -> 2024 | D82: =+'FS Ann'!N4 -> 2025 | E82: =+'FS Ann'!O4 -> 2026 | F82: =+'FS Ann'!P4 -> 2027 | G82: =+'FS Ann'!Q4 -> 2028 | H82: =+'FS Ann'!R4 -> 2029 | I82: =+'FS Ann'!S4 -> 2030 | J82: =+'FS Ann'!T4 -> 2031 | K82: =+'FS Ann'!U4 -> 2032 | L82: =+'FS Ann'!V4 -> 2033 | M82: =+'FS Ann'!W4 -> 2034 | N82: =+'FS Ann'!X4 -> 2035 | O82: =+'FS Ann'!Y4 -> 2036 | P82: =+'FS Ann'!Z4 -> 2037 | Q82: =+'FS Ann'!AA4 -> 2038 | R82: =+'FS Ann'!AB4 -> 2039 | S82: =+'FS Ann'!AC4 -> 2040 | T82: =+'FS Ann'!AD4 -> 2041 | U82: =+'FS Ann'!AE4 -> 2042 | V82: =+'FS Ann'!AF4 -> 2043 | W82: =+'FS Ann'!AG4 -> 2044
B83: =+'FS Ann'!E55 -> Senior debt interest - T1 | C83: =(+'FS Ann'!M55)*-1 -> 2419.04608 | D83: =(+'FS Ann'!N55)*-1 -> 4609.349337 | E83: =(+'FS Ann'!O55)*-1 -> 4340.091365 | F83: =(+'FS Ann'!P55)*-1 -> 4064.422154 | G83: =(+'FS Ann'!Q55)*-1 -> 3793.402109 | H83: =(+'FS Ann'!R55)*-1 -> 3577.467993 | I83: =(+'FS Ann'!S55)*-1 -> 3356.783056 | J83: =(+'FS Ann'!T55)*-1 -> 3045.698204 | K83: =(+'FS Ann'!U55)*-1 -> 2734.911981 | L83: =(+'FS Ann'!V55)*-1 -> 2401.60401 | M83: =(+'FS Ann'!W55)*-1 -> 2113.638293 | N83: =(+'FS Ann'!X55)*-1 -> 1808.031962 | O83: =(+'FS Ann'!Y55)*-1 -> 1450.293014 | P83: =(+'FS Ann'!Z55)*-1 -> 1075.809157 | Q83: =(+'FS Ann'!AA55)*-1 -> 695.3345822 | R83: =(+'FS Ann'!AB55)*-1 -> 303.5084189 | S83: =(+'FS Ann'!AC55)*-1 -> -100.166679 | T83: =(+'FS Ann'!AD55)*-1 -> -202.297636 | U83: =(+'FS Ann'!AE55)*-1 -> 0 | V83: =(+'FS Ann'!AF55)*-1 -> 0 | W83: =(+'FS Ann'!AG55)*-1 -> 0
B84: =+'FS Ann'!E56 -> Senior debt principal repayment - T1 | C84: =(+'FS Ann'!M56)*-1 -> 2811.102112 | D84: =(+'FS Ann'!N56)*-1 -> 6291.915259 | E84: =(+'FS Ann'!O56)*-1 -> 6453.310093 | F84: =(+'FS Ann'!P56)*-1 -> 6580.410696 | G84: =(+'FS Ann'!Q56)*-1 -> 6713.518062 | H84: =(+'FS Ann'!R56)*-1 -> 6822.59634 | I84: =(+'FS Ann'!S56)*-1 -> 6932.3333 | J84: =(+'FS Ann'!T56)*-1 -> 7096.62048 | K84: =(+'FS Ann'!U56)*-1 -> 7257.950064 | L84: =(+'FS Ann'!V56)*-1 -> 7431.230843 | M84: =(+'FS Ann'!W56)*-1 -> 7566.9167 | N84: =(+'FS Ann'!X56)*-1 -> 7712.716495 | O84: =(+'FS Ann'!Y56)*-1 -> 7894.318327 | P84: =(+'FS Ann'!Z56)*-1 -> 8097.853075 | Q84: =(+'FS Ann'!AA56)*-1 -> 8339.44275 | R84: =(+'FS Ann'!AB56)*-1 -> 8588.284005 | S84: =(+'FS Ann'!AC56)*-1 -> 8844.918563 | T84: =(+'FS Ann'!AD56)*-1 -> 4578.172786 | U84: =(+'FS Ann'!AE56)*-1 -> 0 | V84: =(+'FS Ann'!AF56)*-1 -> 0 | W84: =(+'FS Ann'!AG56)*-1 -> 0
B85: =+'FS Ann'!E57 -> Senior debt interest - T2 | C85: =(+'FS Ann'!M57)*-1 -> 2707.027756 | D85: =(+'FS Ann'!N57)*-1 -> 5158.081401 | E85: =(+'FS Ann'!O57)*-1 -> 4856.768908 | F85: =(+'FS Ann'!P57)*-1 -> 4548.281935 | G85: =(+'FS Ann'!Q57)*-1 -> 4244.997598 | H85: =(+'FS Ann'!R57)*-1 -> 3993.578446 | I85: =(+'FS Ann'!S57)*-1 -> 3738.235676 | J85: =(+'FS Ann'!T57)*-1 -> 3391.800273 | K85: =(+'FS Ann'!U57)*-1 -> 3045.697433 | L85: =(+'FS Ann'!V57)*-1 -> 2674.513557 | M85: =(+'FS Ann'!W57)*-1 -> 2371.382009 | N85: =(+'FS Ann'!X57)*-1 -> 2043.862217 | O85: =(+'FS Ann'!Y57)*-1 -> 1639.461668 | P85: =(+'FS Ann'!Z57)*-1 -> 1216.13209 | Q85: =(+'FS Ann'!AA57)*-1 -> 786.0303973 | R85: =(+'FS Ann'!AB57)*-1 -> 343.0964735 | S85: =(+'FS Ann'!AC57)*-1 -> -113.2318981 | T85: =(+'FS Ann'!AD57)*-1 -> -228.6842841 | U85: =(+'FS Ann'!AE57)*-1 -> 0 | V85: =(+'FS Ann'!AF57)*-1 -> 0 | W85: =(+'FS Ann'!AG57)*-1 -> 0
B86: =+'FS Ann'!E58 -> Senior debt principal repayment - T2 | C86: =(+'FS Ann'!M58)*-1 -> 2811.102112 | D86: =(+'FS Ann'!N58)*-1 -> 6291.915259 | E86: =(+'FS Ann'!O58)*-1 -> 6453.310093 | F86: =(+'FS Ann'!P58)*-1 -> 6580.410696 | G86: =(+'FS Ann'!Q58)*-1 -> 6713.518062 | H86: =(+'FS Ann'!R58)*-1 -> 6822.59634 | I86: =(+'FS Ann'!S58)*-1 -> 6932.3333 | J86: =(+'FS Ann'!T58)*-1 -> 7096.62048 | K86: =(+'FS Ann'!U58)*-1 -> 7257.950064 | L86: =(+'FS Ann'!V58)*-1 -> 7431.230843 | M86: =(+'FS Ann'!W58)*-1 -> 7566.9167 | N86: =(+'FS Ann'!X58)*-1 -> 7712.716495 | O86: =(+'FS Ann'!Y58)*-1 -> 7894.318327 | P86: =(+'FS Ann'!Z58)*-1 -> 8097.853075 | Q86: =(+'FS Ann'!AA58)*-1 -> 8339.44275 | R86: =(+'FS Ann'!AB58)*-1 -> 8588.284005 | S86: =(+'FS Ann'!AC58)*-1 -> 8844.918563 | T86: =(+'FS Ann'!AD58)*-1 -> 4578.172786 | U86: =(+'FS Ann'!AE58)*-1 -> 0 | V86: =(+'FS Ann'!AF58)*-1 -> 0 | W86: =(+'FS Ann'!AG58)*-1 -> 0
B87: =+'FS Ann'!E59 -> Senior debt witholding tax - T1 | C87: =(+'FS Ann'!M59)*-1 -> 49.36828734 | D87: =(+'FS Ann'!N59)*-1 -> 94.06835381 | E87: =(+'FS Ann'!O59)*-1 -> 88.57329316 | F87: =(+'FS Ann'!P59)*-1 -> 82.9473909 | G87: =(+'FS Ann'!Q59)*-1 -> 77.41636957 | H87: =(+'FS Ann'!R59)*-1 -> 73.00955088 | I87: =(+'FS Ann'!S59)*-1 -> 68.50577665 | J87: =(+'FS Ann'!T59)*-1 -> 62.15710621 | K87: =(+'FS Ann'!U59)*-1 -> 55.81453022 | L87: =(+'FS Ann'!V59)*-1 -> 49.01232674 | M87: =(+'FS Ann'!W59)*-1 -> 43.13547537 | N87: =(+'FS Ann'!X59)*-1 -> 36.89861146 | O87: =(+'FS Ann'!Y59)*-1 -> 29.59781662 | P87: =(+'FS Ann'!Z59)*-1 -> 21.95528891 | Q87: =(+'FS Ann'!AA59)*-1 -> 14.19050168 | R87: =(+'FS Ann'!AB59)*-1 -> 6.194049365 | S87: =(+'FS Ann'!AC59)*-1 -> -2.04421794 | T87: =(+'FS Ann'!AD59)*-1 -> -4.128523183 | U87: =(+'FS Ann'!AE59)*-1 -> 0 | V87: =(+'FS Ann'!AF59)*-1 -> 0 | W87: =(+'FS Ann'!AG59)*-1 -> 0
B88: =+'FS Ann'!E60 -> Senior debt witholding tax T2 | C88: =(+'FS Ann'!M60)*-1 -> 55.2454644 | D88: =(+'FS Ann'!N60)*-1 -> 105.2669674 | E88: =(+'FS Ann'!O60)*-1 -> 99.11773282 | F88: =(+'FS Ann'!P60)*-1 -> 92.8220803 | G88: =(+'FS Ann'!Q60)*-1 -> 86.63260405 | H88: =(+'FS Ann'!R60)*-1 -> 81.50160094 | I88: =(+'FS Ann'!S60)*-1 -> 76.290524 | J88: =(+'FS Ann'!T60)*-1 -> 69.22041374 | K88: =(+'FS Ann'!U60)*-1 -> 62.15709048 | L88: =(+'FS Ann'!V60)*-1 -> 54.58190932 | M88: =(+'FS Ann'!W60)*-1 -> 48.3955512 | N88: =(+'FS Ann'!X60)*-1 -> 41.71147382 | O88: =(+'FS Ann'!Y60)*-1 -> 33.4584014 | P88: =(+'FS Ann'!Z60)*-1 -> 24.81902224 | Q88: =(+'FS Ann'!AA60)*-1 -> 16.04143668 | R88: =(+'FS Ann'!AB60)*-1 -> 7.001968847 | S88: =(+'FS Ann'!AC60)*-1 -> -2.310855062 | T88: =(+'FS Ann'!AD60)*-1 -> -4.667026207 | U88: =(+'FS Ann'!AE60)*-1 -> 0 | V88: =(+'FS Ann'!AF60)*-1 -> 0 | W88: =(+'FS Ann'!AG60)*-1 -> 0
B89: =+'FS Ann'!E70 -> Shareholder loan interest paid P50 | C89: =(+'FS Ann'!M70)*-1 -> 8267.81934 | D89: =(+'FS Ann'!N70)*-1 -> 11870.50597 | E89: =(+'FS Ann'!O70)*-1 -> 11667.81878 | F89: =(+'FS Ann'!P70)*-1 -> 11427.1306 | G89: =(+'FS Ann'!Q70)*-1 -> 11141.62247 | H89: =(+'FS Ann'!R70)*-1 -> 10814.51466 | I89: =(+'FS Ann'!S70)*-1 -> 10440.55754 | J89: =(+'FS Ann'!T70)*-1 -> 10011.20818 | K89: =(+'FS Ann'!U70)*-1 -> 9528.414204 | L89: =(+'FS Ann'!V70)*-1 -> 9034.811436 | M89: =(+'FS Ann'!W70)*-1 -> 8496.776568 | N89: =(+'FS Ann'!X70)*-1 -> 7904.827214 | O89: =(+'FS Ann'!Y70)*-1 -> 7251.125728 | P89: =(+'FS Ann'!Z70)*-1 -> 6535.766912 | Q89: =(+'FS Ann'!AA70)*-1 -> 5755.481134 | R89: =(+'FS Ann'!AB70)*-1 -> 4908.276998 | S89: =(+'FS Ann'!AC70)*-1 -> 3987.088104 | T89: =(+'FS Ann'!AD70)*-1 -> 2412.504947 | U89: =(+'FS Ann'!AE70)*-1 -> 313.0068076 | V89: =(+'FS Ann'!AF70)*-1 -> 0 | W89: =(+'FS Ann'!AG70)*-1 -> 0
B90: =+'FS Ann'!E71 -> Shareholder loan principal repayment P50 | C90: =(+'FS Ann'!M71)*-1 -> 3333.953387 | D90: =(+'FS Ann'!N71)*-1 -> 2131.364071 | E90: =(+'FS Ann'!O71)*-1 -> 2547.599263 | F90: =(+'FS Ann'!P71)*-1 -> 3031.823706 | G90: =(+'FS Ann'!Q71)*-1 -> 3519.828164 | H90: =(+'FS Ann'!R71)*-1 -> 4021.003367 | I90: =(+'FS Ann'!S71)*-1 -> 4608.580145 | J90: =(+'FS Ann'!T71)*-1 -> 5293.575341 | K90: =(+'FS Ann'!U71)*-1 -> 5403.711962 | L90: =(+'FS Ann'!V71)*-1 -> 5842.143004 | M90: =(+'FS Ann'!W71)*-1 -> 6421.821107 | N90: =(+'FS Ann'!X71)*-1 -> 7076.040293 | O90: =(+'FS Ann'!Y71)*-1 -> 7780.07901 | P90: =(+'FS Ann'!Z71)*-1 -> 8490.609677 | Q90: =(+'FS Ann'!AA71)*-1 -> 9223.378448 | R90: =(+'FS Ann'!AB71)*-1 -> 10014.36212 | S90: =(+'FS Ann'!AC71)*-1 -> 15066.32746 | T90: =(+'FS Ann'!AD71)*-1 -> 24857.43612 | U90: =(+'FS Ann'!AE71)*-1 -> 6955.706835 | V90: =(+'FS Ann'!AF71)*-1 -> 0 | W90: =(+'FS Ann'!AG71)*-1 -> 0
B91: =+'FS Ann'!E74 -> Share capital redemption | C91: =(+'FS Ann'!M74)*-1 -> 0 | D91: =(+'FS Ann'!N74)*-1 -> 0 | E91: =(+'FS Ann'!O74)*-1 -> 0 | F91: =(+'FS Ann'!P74)*-1 -> 0 | G91: =(+'FS Ann'!Q74)*-1 -> 0 | H91: =(+'FS Ann'!R74)*-1 -> 0 | I91: =(+'FS Ann'!S74)*-1 -> 0 | J91: =(+'FS Ann'!T74)*-1 -> 0 | K91: =(+'FS Ann'!U74)*-1 -> 0 | L91: =(+'FS Ann'!V74)*-1 -> 0 | M91: =(+'FS Ann'!W74)*-1 -> 0 | N91: =(+'FS Ann'!X74)*-1 -> 0 | O91: =(+'FS Ann'!Y74)*-1 -> 0 | P91: =(+'FS Ann'!Z74)*-1 -> 0 | Q91: =(+'FS Ann'!AA74)*-1 -> 0 | R91: =(+'FS Ann'!AB74)*-1 -> 0 | S91: =(+'FS Ann'!AC74)*-1 -> 0 | T91: =(+'FS Ann'!AD74)*-1 -> 0 | U91: =(+'FS Ann'!AE74)*-1 -> 0 | V91: =(+'FS Ann'!AF74)*-1 -> 0 | W91: =(+'FS Ann'!AG74)*-1 -> 100
B92: =+'FS Ann'!E77 -> Dividends paid P50 | C92: =(+'FS Ann'!M77)*-1 -> 0 | D92: =(+'FS Ann'!N77)*-1 -> 0 | E92: =(+'FS Ann'!O77)*-1 -> 0 | F92: =(+'FS Ann'!P77)*-1 -> 0 | G92: =(+'FS Ann'!Q77)*-1 -> 0 | H92: =(+'FS Ann'!R77)*-1 -> 0 | I92: =(+'FS Ann'!S77)*-1 -> 0 | J92: =(+'FS Ann'!T77)*-1 -> 0 | K92: =(+'FS Ann'!U77)*-1 -> 0 | L92: =(+'FS Ann'!V77)*-1 -> 0 | M92: =(+'FS Ann'!W77)*-1 -> 0 | N92: =(+'FS Ann'!X77)*-1 -> 0 | O92: =(+'FS Ann'!Y77)*-1 -> 0 | P92: =(+'FS Ann'!Z77)*-1 -> 0 | Q92: =(+'FS Ann'!AA77)*-1 -> 0 | R92: =(+'FS Ann'!AB77)*-1 -> 0 | S92: =(+'FS Ann'!AC77)*-1 -> 0 | T92: =(+'FS Ann'!AD77)*-1 -> 0 | U92: =(+'FS Ann'!AE77)*-1 -> 23855.7573 | V92: =(+'FS Ann'!AF77)*-1 -> 30984.12772 | W92: =(+'FS Ann'!AG77)*-1 -> 19612.06583
C93: =+C82 -> 2024 | D93: =+D82 -> 2025 | E93: 2026 | F93: 2027 | G93: 2028 | H93: 2029 | I93: 2030 | J93: 2031 | K93: 2032 | L93: 2033 | M93: 2034 | N93: 2035 | O93: 2036 | P93: 2037 | Q93: 2038 | R93: 2039 | S93: 2040 | T93: 2041 | U93: 2042 | V93: 2043 | W93: 2044
B94: =+'FS Ann'!E98 -> Senior debt balance - T1 | C94: =+'FS Ann'!M98 -> 109877.3799 | D94: =+'FS Ann'!N98 -> 103585.4646 | E94: =+'FS Ann'!O98 -> 97132.15451 | F94: =+'FS Ann'!P98 -> 90551.74381 | G94: =+'FS Ann'!Q98 -> 83838.22575 | H94: =+'FS Ann'!R98 -> 77015.62941 | I94: =+'FS Ann'!S98 -> 70083.29611 | J94: =+'FS Ann'!T98 -> 62986.67563 | K94: =+'FS Ann'!U98 -> 55728.72556 | L94: =+'FS Ann'!V98 -> 48297.49472 | M94: =+'FS Ann'!W98 -> 40730.57802 | N94: =+'FS Ann'!X98 -> 33017.86153 | O94: =+'FS Ann'!Y98 -> 25123.5432 | P94: =+'FS Ann'!Z98 -> 17025.69012 | Q94: =+'FS Ann'!AA98 -> 8686.247374 | R94: =+'FS Ann'!AB98 -> 97.96336834 | S94: =+'FS Ann'!AC98 -> -8746.955195 | T94: =+'FS Ann'!AD98 -> -13325.12798 | U94: =+'FS Ann'!AE98 -> -13325.12798 | V94: =+'FS Ann'!AF98 -> -13325.12798 | W94: =+'FS Ann'!AG98 -> -13325.12798
B95: =+'FS Ann'!E99 -> Senior debt balance - T2 | C95: =+'FS Ann'!M99 -> 109877.3799 | D95: =+'FS Ann'!N99 -> 103585.4646 | E95: =+'FS Ann'!O99 -> 97132.15451 | F95: =+'FS Ann'!P99 -> 90551.74381 | G95: =+'FS Ann'!Q99 -> 83838.22575 | H95: =+'FS Ann'!R99 -> 77015.62941 | I95: =+'FS Ann'!S99 -> 70083.29611 | J95: =+'FS Ann'!T99 -> 62986.67563 | K95: =+'FS Ann'!U99 -> 55728.72556 | L95: =+'FS Ann'!V99 -> 48297.49472 | M95: =+'FS Ann'!W99 -> 40730.57802 | N95: =+'FS Ann'!X99 -> 33017.86153 | O95: =+'FS Ann'!Y99 -> 25123.5432 | P95: =+'FS Ann'!Z99 -> 17025.69012 | Q95: =+'FS Ann'!AA99 -> 8686.247374 | R95: =+'FS Ann'!AB99 -> 97.96336834 | S95: =+'FS Ann'!AC99 -> -8746.955195 | T95: =+'FS Ann'!AD99 -> -13325.12798 | U95: =+'FS Ann'!AE99 -> -13325.12798 | V95: =+'FS Ann'!AF99 -> -13325.12798 | W95: =+'FS Ann'!AG99 -> -13325.12798
B96: =+'FS Ann'!E101 -> Shareholder loan balance P50 | C96: =+'FS Ann'!M101 -> 132285.3901 | D96: =+'FS Ann'!N101 -> 130154.026 | E96: =+'FS Ann'!O101 -> 127606.4268 | F96: =+'FS Ann'!P101 -> 124574.603 | G96: =+'FS Ann'!Q101 -> 121054.7749 | H96: =+'FS Ann'!R101 -> 117033.7715 | I96: =+'FS Ann'!S101 -> 112425.1914 | J96: =+'FS Ann'!T101 -> 107131.616 | K96: =+'FS Ann'!U101 -> 101727.9041 | L96: =+'FS Ann'!V101 -> 95885.76107 | M96: =+'FS Ann'!W101 -> 89463.93996 | N96: =+'FS Ann'!X101 -> 82387.89967 | O96: =+'FS Ann'!Y101 -> 74607.82066 | P96: =+'FS Ann'!Z101 -> 66117.21098 | Q96: =+'FS Ann'!AA101 -> 56893.83253 | R96: =+'FS Ann'!AB101 -> 46879.47042 | S96: =+'FS Ann'!AC101 -> 31813.14296 | T96: =+'FS Ann'!AD101 -> 6955.706835 | U96: =+'FS Ann'!AE101 -> 0 | V96: =+'FS Ann'!AF101 -> 0 | W96: =+'FS Ann'!AG101 -> 0

Sheet Solve
A1: =RIGHT(CELL("filename", A1), LEN(CELL("filename", A1)) - SEARCH("]", CELL("filename", A1))) & " - " & InpC!F3 -> Solve - Seasonal - Leverage Method
F2: =Check!$F$9 -> 4 | G2: Error chks | K2: =InpC!F3 -> Seasonal - Leverage Method
F3: =Output!J2 -> 55 | G3: Track chgs
F4: =Check!$F$28 -> 0 | G4: Alerts | J4: FALSE | K4: Flag for Applying UDF
F5: Constant | G5: Unit | H5: Total
A7: TARIFF SOLVING
E9: =Metrics!E$29 -> Blended equity IRR | F9: =Metrics!F$29 -> 0.1022787273 | G9: =Metrics!G$29 -> %
E10: =InpC!E$32 -> Target IRR | F10: =InpC!F$32 -> 0.1 | G10: =InpC!G$32 -> %
E11: Target IRR as % of actual IRR | F11: =F10 / F9 -> 0.977720418 | G11: %
E13: =InpC!E$31 -> Tariff solving mode | F13: =InpC!F$31 -> 0 | G13: =InpC!G$31 -> 1 = changes go to tariff, 2 = changes go to IRR
E14: =E$87 -> Not indexed power tariff | F14: =J66 -> 0.04 | G14: =G$87 -> USD / kWh
E15: =E$11 -> Target IRR as % of actual IRR | F15: =F$11 -> 0.977720418 | G15: =G$11 -> %
E16: Not indexed power tariff | F16: =IF(F13 = 1, AVERAGE(F14 * F15, F14), F14) -> 0.04 | G16: USD / kWh
A19: COPY LINE ITEMS
E21: =InpC!E$77 -> EBL active switch | F21: =InpC!F$77 -> 0 | G21: =InpC!G$77 -> 1 = yes; 0 = no
H22: From Model
B23: Constants
E24: =E$16 -> Not indexed power tariff | F24: =F$16 -> 0.04 | G24: =G$16 -> USD / kWh | J24: =AVERAGE(F24,J87) -> 0.03764157949 | K24: Bisectional
E25: =ConFin!E$229 -> EBL requirement | F25: =ConFin!F$229 -> 0 | G25: =ConFin!G$229 -> $ 000s | J25: =AVERAGE(F25, J88) * $F$21 -> 0
E26: =ConFin!E$342 -> Equity bridge interest and fees rolled up - total - calc | F26: =ConFin!F$342 -> 0 | G26: =ConFin!G$342 -> $ 000s | J26: =AVERAGE(F26, J89) * $F$21 -> 0
E27: =ConFin!E$402 -> Sum of construction debt drawdown - T1 | F27: =ConFin!F$402 -> 112688.482 | G27: =ConFin!G$402 -> $ 000s | J27: =+F27 -> 112688.482
E28: =ConFin!E$420 -> Sum of construction debt drawdown - T2 | F28: =ConFin!F$420 -> 112688.482 | G28: =ConFin!G$420 -> $ 000s | J28: =+F28 -> 112688.482
E29: =Debt!E$64 -> Debt capacity at target DSCR - Calc | F29: =Debt!F$64 -> 325608.0937 | G29: =Debt!G$64 -> $ 000s | J29: =AVERAGE(F29,J92) -> 308392.6139
E30: =Debt!E$93 -> Debt repayment amount - all tranche active - Calc | F30: =Debt!F$93 -> 325608.0937 | G30: =Debt!G$93 -> $ 000s | J30: =AVERAGE(F30,J93) -> 308392.6139
B32: Monthly line items
E33: =ConTime!E$23 -> Model period ending - m | F33: =ConTime!F$23 -> 00:00:00 | G33: =ConTime!G$23 -> date | H33: =ConTime!H$23 -> 00:00:00 | I33: =ConTime!I$23 -> 00:00:00 | J33: =ConTime!J$23 -> 2021-01-31 | K33: =ConTime!K$23 -> 2021-02-28 | L33: =ConTime!L$23 -> 2021-03-31 | M33: =ConTime!M$23 -> 2021-04-30 | N33: =ConTime!M$23 -> 2021-04-30 | O33: =ConTime!N$23 -> 2021-05-31 | P33: =ConTime!O$23 -> 2021-06-30 | Q33: =ConTime!P$23 -> 2021-07-31 | R33: =ConTime!Q$23 -> 2021-08-31 | S33: =ConTime!R$23 -> 2021-09-30 | T33: =ConTime!S$23 -> 2021-10-31 | U33: =ConTime!T$23 -> 2021-11-30 | V33: =ConTime!U$23 -> 2021-12-31 | W33: =ConTime!V$23 -> 2022-01-31 | X33: =ConTime!W$23 -> 2022-02-28 | Y33: =ConTime!X$23 -> 2022-03-31 | Z33: =ConTime!Y$23 -> 2022-04-30 | AA33: =ConTime!Z$23 -> 2022-05-31 | AB33: =ConTime!AA$23 -> 2022-06-30 | AC33: =ConTime!AB$23 -> 2022-07-31 | AD33: =ConTime!AC$23 -> 2022-08-31 | AE33: =ConTime!AD$23 -> 2022-09-30 | AF33: =ConTime!AE$23 -> 2022-10-31 | AG33: =ConTime!AF$23 -> 2022-11-30 | AH33: =ConTime!AG$23 -> 2022-12-31 | AI33: =ConTime!AH$23 -> 2023-01-31 | AJ33: =ConTime!AI$23 -> 2023-02-28 | AK33: =ConTime!AJ$23 -> 2023-03-31 | AL33: =ConTime!AK$23 -> 2023-04-30 | AM33: =ConTime!AL$23 -> 2023-05-31 | AN33: =ConTime!AM$23 -> 2023-06-30 | AO33: =ConTime!AN$23 -> 2023-07-31 | AP33: =ConTime!AO$23 -> 2023-08-31 | AQ33: =ConTime!AP$23 -> 2023-09-30 | AR33: =ConTime!AQ$23 -> 2023-10-31 | AS33: =ConTime!AR$23 -> 2023-11-30 | AT33: =ConTime!AS$23 -> 2023-12-31 | AU33: =ConTime!AT$23 -> 2024-01-31 | AV33: =ConTime!AU$23 -> 2024-02-29 | AW33: =ConTime!AV$23 -> 2024-03-31 | AX33: =ConTime!AW$23 -> 2024-04-30 | AY33: =ConTime!AX$23 -> 2024-05-31 | AZ33: =ConTime!AY$23 -> 2024-06-30 | BA33: =ConTime!AZ$23 -> 2024-07-31 | BB33: =ConTime!BA$23 -> 2024-08-31 | BC33: =ConTime!BB$23 -> 2024-09-30 | BD33: =ConTime!BC$23 -> 2024-10-31 | BE33: =ConTime!BD$23 -> 2024-11-30 | BF33: =ConTime!BE$23 -> 2024-12-31 | BG33: =ConTime!BF$23 -> 00:00:00 | BH33: =ConTime!BG$23 -> 00:00:00 | BI33: =ConTime!BH$23 -> 00:00:00 | BJ33: =ConTime!BI$23 -> 00:00:00 | BK33: =ConTime!BJ$23 -> 00:00:00 | BL33: =ConTime!BK$23 -> 00:00:00 | BM33: =ConTime!BL$23 -> 00:00:00 | BN33: =ConTime!BM$23 -> 00:00:00 | BO33: =ConTime!BN$23 -> 00:00:00 | BP33: =ConTime!BO$23 -> 00:00:00 | BQ33: =ConTime!BP$23 -> 00:00:00 | BR33: =ConTime!BQ$23 -> 00:00:00 | BS33: =ConTime!BR$23 -> 00:00:00 | BT33: =ConTime!BS$23 -> 00:00:00 | BU33: =ConTime!BT$23 -> 00:00:00 | BV33: =ConTime!BU$23 -> 00:00:00 | BW33: =ConTime!BV$23 -> 00:00:00 | BX33: =ConTime!BW$23 -> 00:00:00 | BY33: =ConTime!BX$23 -> 00:00:00 | BZ33: =ConTime!BY$23 -> 00:00:00 | CA33: =ConTime!BZ$23 -> 00:00:00 | CB33: =ConTime!CA$23 -> 00:00:00 | CC33: =ConTime!CB$23 -> 00:00:00 | CD33: =ConTime!CC$23 -> 00:00:00 | CE33: =ConTime!CD$23 -> 00:00:00 | CF33: =ConTime!CE$23 -> 00:00:00 | CG33: =ConTime!CF$23 -> 00:00:00 | CH33: =ConTime!CG$23 -> 00:00:00 | CI33: =ConTime!CH$23 -> 00:00:00 | CJ33: =ConTime!CI$23 -> 00:00:00 | CK33: =ConTime!CJ$23 -> 00:00:00 | CL33: =ConTime!CK$23 -> 00:00:00 | CM33: =ConTime!CL$23 -> 00:00:00 | CN33: =ConTime!CM$23 -> 00:00:00 | CO33: =ConTime!CN$23 -> 00:00:00 | CP33: =ConTime!CO$23 -> 00:00:00 | CQ33: =ConTime!CP$23 -> 00:00:00 | CR33: =ConTime!CQ$23 -> 00:00:00 | CS33: =ConTime!CR$23 -> 00:00:00 | CT33: =ConTime!CS$23 -> 00:00:00 | CU33: =ConTime!CT$23 -> 00:00:00 | CV33: =ConTime!CU$23 -> 00:00:00 | CW33: =ConTime!CV$23 -> 00:00:00 | CX33: =ConTime!CW$23 -> 00:00:00 | CY33: =ConTime!CX$23 -> 00:00:00 | CZ33: =ConTime!CY$23 -> 00:00:00 | DA33: =ConTime!CZ$23 -> 00:00:00 | DB33: =ConTime!DA$23 -> 00:00:00 | DC33: =ConTime!DB$23 -> 00:00:00 | DD33: =ConTime!DC$23 -> 00:00:00 | DE33: =ConTime!DD$23 -> 00:00:00 | DF33: =ConTime!DE$23 -> 00:00:00 | DG33: =ConTime!DF$23 -> 00:00:00 | DH33: =ConTime!DG$23 -> 00:00:00 | DI33: =ConTime!DH$23 -> 00:00:00 | DJ33: =ConTime!DI$23 -> 00:00:00 | DK33: =ConTime!DJ$23 -> 00:00:00 | DL33: =ConTime!DK$23 -> 00:00:00 | DM33: =ConTime!DL$23 -> 00:00:00 | DN33: =ConTime!DM$23 -> 00:00:00 | DO33: =ConTime!DN$23 -> 00:00:00 | DP33: =ConTime!DO$23 -> 00:00:00 | DQ33: =ConTime!DP$23 -> 00:00:00 | DR33: =ConTime!DQ$23 -> 00:00:00 | DS33: =ConTime!DR$23 -> 00:00:00 | DT33: =ConTime!DS$23 -> 00:00:00 | DU33: =ConTime!DT$23 -> 00:00:00 | DV33: =ConTime!DU$23 -> 00:00:00 | DW33: =ConTime!DV$23 -> 00:00:00 | DX33: =ConTime!DW$23 -> 00:00:00 | DY33: =ConTime!DX$23 -> 00:00:00 | DZ33: =ConTime!DY$23 -> 00:00:00 | EA33: =ConTime!DZ$23 -> 00:00:00 | EB33: =ConTime!EA$23 -> 00:00:00 | EC33: =ConTime!EB$23 -> 00:00:00 | ED33: =ConTime!EC$23 -> 00:00:00 | EE33: =ConTime!ED$23 -> 00:00:00 | EF33: =ConTime!EE$23 -> 00:00:00 | EG33: =ConTime!EF$23 -> 00:00:00 | EH33: =ConTime!EG$23 -> 00:00:00 | EI33: =ConTime!EH$23 -> 00:00:00 | EJ33: =ConTime!EI$23 -> 00:00:00 | EK33: =ConTime!EJ$23 -> 00:00:00 | EL33: =ConTime!EK$23 -> 00:00:00 | EM33: =ConTime!EL$23 -> 00:00:00 | EN33: =ConTime!EM$23 -> 00:00:00 | EO33: =ConTime!EN$23 -> 00:00:00 | EP33: =ConTime!EO$23 -> 00:00:00 | EQ33: =ConTime!EP$23 -> 00:00:00 | ER33: =ConTime!EQ$23 -> 00:00:00 | ES33: =ConTime!ER$23 -> 00:00:00 | ET33: =ConTime!ES$23 -> 00:00:00 | EU33: =ConTime!ET$23 -> 00:00:00 | EV33: =ConTime!EU$23 -> 00:00:00 | EW33: =ConTime!EV$23 -> 00:00:00 | EX33: =ConTime!EW$23 -> 00:00:00 | EY33: =ConTime!EX$23 -> 00:00:00 | EZ33: =ConTime!EY$23 -> 00:00:00 | FA33: =ConTime!EZ$23 -> 00:00:00 | FB33: =ConTime!FA$23 -> 00:00:00 | FC33: =ConTime!FB$23 -> 00:00:00 | FD33: =ConTime!FC$23 -> 00:00:00 | FE33: =ConTime!FD$23 -> 00:00:00 | FF33: =ConTime!FE$23 -> 00:00:00 | FG33: =ConTime!FF$23 -> 00:00:00 | FH33: =ConTime!FG$23 -> 00:00:00 | FI33: =ConTime!FH$23 -> 00:00:00 | FJ33: =ConTime!FI$23 -> 00:00:00 | FK33: =ConTime!FJ$23 -> 00:00:00 | FL33: =ConTime!FK$23 -> 00:00:00 | FM33: =ConTime!FL$23 -> 00:00:00 | FN33: =ConTime!FM$23 -> 00:00:00 | FO33: =ConTime!FN$23 -> 00:00:00 | FP33: =ConTime!FO$23 -> 00:00:00 | FQ33: =ConTime!FP$23 -> 00:00:00 | FR33: =ConTime!FQ$23 -> 00:00:00 | FS33: =ConTime!FR$23 -> 00:00:00 | FT33: =ConTime!FS$23 -> 00:00:00 | FU33: =ConTime!FT$23 -> 00:00:00 | FV33: =ConTime!FU$23 -> 00:00:00 | FW33: =ConTime!FV$23 -> 00:00:00 | FX33: =ConTime!FW$23 -> 00:00:00 | FY33: =ConTime!FX$23 -> 00:00:00 | FZ33: =ConTime!FY$23 -> 00:00:00 | GA33: =ConTime!FZ$23 -> 00:00:00 | GB33: =ConTime!GA$23 -> 00:00:00 | GC33: =ConTime!GB$23 -> 00:00:00 | GD33: =ConTime!GC$23 -> 00:00:00 | GE33: =ConTime!GD$23 -> 00:00:00 | GF33: =ConTime!GE$23 -> 00:00:00 | GG33: =ConTime!GF$23 -> 00:00:00 | GH33: =ConTime!GG$23 -> 00:00:00 | GI33: =ConTime!GH$23 -> 00:00:00 | GJ33: =ConTime!GI$23 -> 00:00:00 | GK33: =ConTime!GJ$23 -> 00:00:00
E34: =ConFin!E$162 -> Project costs / funding requirement | F34: =ConFin!F$162 -> 0 | G34: =ConFin!G$162 -> $ 000s | H34: =ConFin!H$162 -> 342700.0216 | I34: =ConFin!I$162 -> 0 | J34: =AVERAGE(ConFin!J$162, J97) -> 0 | K34: =AVERAGE(ConFin!K$162, K97) -> 0 | L34: =AVERAGE(ConFin!L$162, L97) -> 0 | M34: =AVERAGE(ConFin!M$162, M97) -> 0 | N34: =AVERAGE(ConFin!M$162, N97) -> 0 | O34: =AVERAGE(ConFin!N$162, O97) -> 0 | P34: =AVERAGE(ConFin!O$162, P97) -> 0 | Q34: =AVERAGE(ConFin!P$162, Q97) -> 0 | R34: =AVERAGE(ConFin!Q$162, R97) -> 0 | S34: =AVERAGE(ConFin!R$162, S97) -> 0 | T34: =AVERAGE(ConFin!S$162, T97) -> 0 | U34: =AVERAGE(ConFin!T$162, U97) -> 0 | V34: =AVERAGE(ConFin!U$162, V97) -> 0 | W34: =AVERAGE(ConFin!V$162, W97) -> 0 | X34: =AVERAGE(ConFin!W$162, X97) -> 0 | Y34: =AVERAGE(ConFin!X$162, Y97) -> 0 | Z34: =AVERAGE(ConFin!Y$162, Z97) -> 14167.12766 | AA34: =AVERAGE(ConFin!Z$162, AA97) -> 12008.52465 | AB34: =AVERAGE(ConFin!AA$162, AB97) -> 12008.52465 | AC34: =AVERAGE(ConFin!AB$162, AC97) -> 12008.52465 | AD34: =AVERAGE(ConFin!AC$162, AD97) -> 12008.52465 | AE34: =AVERAGE(ConFin!AD$162, AE97) -> 12008.52465 | AF34: =AVERAGE(ConFin!AE$162, AF97) -> 12015.52871 | AG34: =AVERAGE(ConFin!AF$162, AG97) -> 12031.88296 | AH34: =AVERAGE(ConFin!AG$162, AH97) -> 12050.20739 | AI34: =AVERAGE(ConFin!AH$162, AI97) -> 12067.62307 | AJ34: =AVERAGE(ConFin!AI$162, AJ97) -> 12077.46651 | AK34: =AVERAGE(ConFin!AJ$162, AK97) -> 12121.72424 | AL34: =AVERAGE(ConFin!AK$162, AL97) -> 12150.99268 | AM34: =AVERAGE(ConFin!AL$162, AM97) -> 12192.06618 | AN34: =AVERAGE(ConFin!AM$162, AN97) -> 12218.74811 | AO34: =AVERAGE(ConFin!AN$162, AO97) -> 12262.80591 | AP34: =AVERAGE(ConFin!AO$162, AP97) -> 12298.34539 | AQ34: =AVERAGE(ConFin!AP$162, AQ97) -> 12321.11938 | AR34: =AVERAGE(ConFin!AQ$162, AR97) -> 12369.68615 | AS34: =AVERAGE(ConFin!AR$162, AS97) -> 12389.83691 | AT34: =AVERAGE(ConFin!AS$162, AT97) -> 12441.43036 | AU34: =AVERAGE(ConFin!AT$162, AU97) -> 12477.48437 | AV34: =AVERAGE(ConFin!AU$162, AV97) -> 12473.70044 | AW34: =AVERAGE(ConFin!AV$162, AW97) -> 11503.26785 | AX34: =AVERAGE(ConFin!AW$162, AX97) -> 11581.41754 | AY34: =AVERAGE(ConFin!AX$162, AY97) -> 11570.18699 | AZ34: =AVERAGE(ConFin!AY$162, AZ97) -> 27891.63408 | BA34: =AVERAGE(ConFin!AZ$162, BA97) -> 0 | BB34: =AVERAGE(ConFin!BA$162, BB97) -> 0 | BC34: =AVERAGE(ConFin!BB$162, BC97) -> 0 | BD34: =AVERAGE(ConFin!BC$162, BD97) -> 0 | BE34: =AVERAGE(ConFin!BD$162, BE97) -> 0 | BF34: =AVERAGE(ConFin!BE$162, BF97) -> 0 | BG34: =AVERAGE(ConFin!BF$162, BG97) -> 0 | BH34: =AVERAGE(ConFin!BG$162, BH97) -> 0 | BI34: =AVERAGE(ConFin!BH$162, BI97) -> 0 | BJ34: =AVERAGE(ConFin!BI$162, BJ97) -> 0 | BK34: =AVERAGE(ConFin!BJ$162, BK97) -> 0 | BL34: =AVERAGE(ConFin!BK$162, BL97) -> 0 | BM34: =AVERAGE(ConFin!BL$162, BM97) -> 0 | BN34: =AVERAGE(ConFin!BM$162, BN97) -> 0 | BO34: =AVERAGE(ConFin!BN$162, BO97) -> 0 | BP34: =AVERAGE(ConFin!BO$162, BP97) -> 0 | BQ34: =AVERAGE(ConFin!BP$162, BQ97) -> 0 | BR34: =AVERAGE(ConFin!BQ$162, BR97) -> 0 | BS34: =AVERAGE(ConFin!BR$162, BS97) -> 0 | BT34: =AVERAGE(ConFin!BS$162, BT97) -> 0 | BU34: =AVERAGE(ConFin!BT$162, BU97) -> 0 | BV34: =AVERAGE(ConFin!BU$162, BV97) -> 0 | BW34: =AVERAGE(ConFin!BV$162, BW97) -> 0 | BX34: =AVERAGE(ConFin!BW$162, BX97) -> 0 | BY34: =AVERAGE(ConFin!BX$162, BY97) -> 0 | BZ34: =AVERAGE(ConFin!BY$162, BZ97) -> 0 | CA34: =AVERAGE(ConFin!BZ$162, CA97) -> 0 | CB34: =AVERAGE(ConFin!CA$162, CB97) -> 0 | CC34: =AVERAGE(ConFin!CB$162, CC97) -> 0 | CD34: =AVERAGE(ConFin!CC$162, CD97) -> 0 | CE34: =AVERAGE(ConFin!CD$162, CE97) -> 0 | CF34: =AVERAGE(ConFin!CE$162, CF97) -> 0 | CG34: =AVERAGE(ConFin!CF$162, CG97) -> 0 | CH34: =AVERAGE(ConFin!CG$162, CH97) -> 0 | CI34: =AVERAGE(ConFin!CH$162, CI97) -> 0 | CJ34: =AVERAGE(ConFin!CI$162, CJ97) -> 0 | CK34: =AVERAGE(ConFin!CJ$162, CK97) -> 0 | CL34: =AVERAGE(ConFin!CK$162, CL97) -> 0 | CM34: =AVERAGE(ConFin!CL$162, CM97) -> 0 | CN34: =AVERAGE(ConFin!CM$162, CN97) -> 0 | CO34: =AVERAGE(ConFin!CN$162, CO97) -> 0 | CP34: =AVERAGE(ConFin!CO$162, CP97) -> 0 | CQ34: =AVERAGE(ConFin!CP$162, CQ97) -> 0 | CR34: =AVERAGE(ConFin!CQ$162, CR97) -> 0 | CS34: =AVERAGE(ConFin!CR$162, CS97) -> 0 | CT34: =AVERAGE(ConFin!CS$162, CT97) -> 0 | CU34: =AVERAGE(ConFin!CT$162, CU97) -> 0 | CV34: =AVERAGE(ConFin!CU$162, CV97) -> 0 | CW34: =AVERAGE(ConFin!CV$162, CW97) -> 0 | CX34: =AVERAGE(ConFin!CW$162, CX97) -> 0 | CY34: =AVERAGE(ConFin!CX$162, CY97) -> 0 | CZ34: =AVERAGE(ConFin!CY$162, CZ97) -> 0 | DA34: =AVERAGE(ConFin!CZ$162, DA97) -> 0 | DB34: =AVERAGE(ConFin!DA$162, DB97) -> 0 | DC34: =AVERAGE(ConFin!DB$162, DC97) -> 0 | DD34: =AVERAGE(ConFin!DC$162, DD97) -> 0 | DE34: =AVERAGE(ConFin!DD$162, DE97) -> 0 | DF34: =AVERAGE(ConFin!DE$162, DF97) -> 0 | DG34: =AVERAGE(ConFin!DF$162, DG97) -> 0 | DH34: =AVERAGE(ConFin!DG$162, DH97) -> 0 | DI34: =AVERAGE(ConFin!DH$162, DI97) -> 0 | DJ34: =AVERAGE(ConFin!DI$162, DJ97) -> 0 | DK34: =AVERAGE(ConFin!DJ$162, DK97) -> 0 | DL34: =AVERAGE(ConFin!DK$162, DL97) -> 0 | DM34: =AVERAGE(ConFin!DL$162, DM97) -> 0 | DN34: =AVERAGE(ConFin!DM$162, DN97) -> 0 | DO34: =AVERAGE(ConFin!DN$162, DO97) -> 0 | DP34: =AVERAGE(ConFin!DO$162, DP97) -> 0 | DQ34: =AVERAGE(ConFin!DP$162, DQ97) -> 0 | DR34: =AVERAGE(ConFin!DQ$162, DR97) -> 0 | DS34: =AVERAGE(ConFin!DR$162, DS97) -> 0 | DT34: =AVERAGE(ConFin!DS$162, DT97) -> 0 | DU34: =AVERAGE(ConFin!DT$162, DU97) -> 0 | DV34: =AVERAGE(ConFin!DU$162, DV97) -> 0 | DW34: =AVERAGE(ConFin!DV$162, DW97) -> 0 | DX34: =AVERAGE(ConFin!DW$162, DX97) -> 0 | DY34: =AVERAGE(ConFin!DX$162, DY97) -> 0 | DZ34: =AVERAGE(ConFin!DY$162, DZ97) -> 0 | EA34: =AVERAGE(ConFin!DZ$162, EA97) -> 0 | EB34: =AVERAGE(ConFin!EA$162, EB97) -> 0 | EC34: =AVERAGE(ConFin!EB$162, EC97) -> 0 | ED34: =AVERAGE(ConFin!EC$162, ED97) -> 0 | EE34: =AVERAGE(ConFin!ED$162, EE97) -> 0 | EF34: =AVERAGE(ConFin!EE$162, EF97) -> 0 | EG34: =AVERAGE(ConFin!EF$162, EG97) -> 0 | EH34: =AVERAGE(ConFin!EG$162, EH97) -> 0 | EI34: =AVERAGE(ConFin!EH$162, EI97) -> 0 | EJ34: =AVERAGE(ConFin!EI$162, EJ97) -> 0 | EK34: =AVERAGE(ConFin!EJ$162, EK97) -> 0 | EL34: =AVERAGE(ConFin!EK$162, EL97) -> 0 | EM34: =AVERAGE(ConFin!EL$162, EM97) -> 0 | EN34: =AVERAGE(ConFin!EM$162, EN97) -> 0 | EO34: =AVERAGE(ConFin!EN$162, EO97) -> 0 | EP34: =AVERAGE(ConFin!EO$162, EP97) -> 0 | EQ34: =AVERAGE(ConFin!EP$162, EQ97) -> 0 | ER34: =AVERAGE(ConFin!EQ$162, ER97) -> 0 | ES34: =AVERAGE(ConFin!ER$162, ES97) -> 0 | ET34: =AVERAGE(ConFin!ES$162, ET97) -> 0 | EU34: =AVERAGE(ConFin!ET$162, EU97) -> 0 | EV34: =AVERAGE(ConFin!EU$162, EV97) -> 0 | EW34: =AVERAGE(ConFin!EV$162, EW97) -> 0 | EX34: =AVERAGE(ConFin!EW$162, EX97) -> 0 | EY34: =AVERAGE(ConFin!EX$162, EY97) -> 0 | EZ34: =AVERAGE(ConFin!EY$162, EZ97) -> 0 | FA34: =AVERAGE(ConFin!EZ$162, FA97) -> 0 | FB34: =AVERAGE(ConFin!FA$162, FB97) -> 0 | FC34: =AVERAGE(ConFin!FB$162, FC97) -> 0 | FD34: =AVERAGE(ConFin!FC$162, FD97) -> 0 | FE34: =AVERAGE(ConFin!FD$162, FE97) -> 0 | FF34: =AVERAGE(ConFin!FE$162, FF97) -> 0 | FG34: =AVERAGE(ConFin!FF$162, FG97) -> 0 | FH34: =AVERAGE(ConFin!FG$162, FH97) -> 0 | FI34: =AVERAGE(ConFin!FH$162, FI97) -> 0 | FJ34: =AVERAGE(ConFin!FI$162, FJ97) -> 0 | FK34: =AVERAGE(ConFin!FJ$162, FK97) -> 0 | FL34: =AVERAGE(ConFin!FK$162, FL97) -> 0 | FM34: =AVERAGE(ConFin!FL$162, FM97) -> 0 | FN34: =AVERAGE(ConFin!FM$162, FN97) -> 0 | FO34: =AVERAGE(ConFin!FN$162, FO97) -> 0 | FP34: =AVERAGE(ConFin!FO$162, FP97) -> 0 | FQ34: =AVERAGE(ConFin!FP$162, FQ97) -> 0 | FR34: =AVERAGE(ConFin!FQ$162, FR97) -> 0 | FS34: =AVERAGE(ConFin!FR$162, FS97) -> 0 | FT34: =AVERAGE(ConFin!FS$162, FT97) -> 0 | FU34: =AVERAGE(ConFin!FT$162, FU97) -> 0 | FV34: =AVERAGE(ConFin!FU$162, FV97) -> 0 | FW34: =AVERAGE(ConFin!FV$162, FW97) -> 0 | FX34: =AVERAGE(ConFin!FW$162, FX97) -> 0 | FY34: =AVERAGE(ConFin!FX$162, FY97) -> 0 | FZ34: =AVERAGE(ConFin!FY$162, FZ97) -> 0 | GA34: =AVERAGE(ConFin!FZ$162, GA97) -> 0 | GB34: =AVERAGE(ConFin!GA$162, GB97) -> 0 | GC34: =AVERAGE(ConFin!GB$162, GC97) -> 0 | GD34: =AVERAGE(ConFin!GC$162, GD97) -> 0 | GE34: =AVERAGE(ConFin!GD$162, GE97) -> 0 | GF34: =AVERAGE(ConFin!GE$162, GF97) -> 0 | GG34: =AVERAGE(ConFin!GF$162, GG97) -> 0 | GH34: =AVERAGE(ConFin!GG$162, GH97) -> 0 | GI34: =AVERAGE(ConFin!GH$162, GI97) -> 0 | GJ34: =AVERAGE(ConFin!GI$162, GJ97) -> 0 | GK34: =AVERAGE(ConFin!GJ$162, GK97) -> 0
B36: Quarterly line items
E37: =Time!E$25 -> Model period ending | F37: =Time!F$25 -> 00:00:00 | G37: =Time!G$25 -> date | H37: =Time!H$25 -> 00:00:00 | I37: =Time!I$25 -> 00:00:00 | J37: =Time!J$25 -> 2021-06-30 | K37: =Time!K$25 -> 2021-12-31 | L37: =Time!L$25 -> 2022-06-30 | M37: =Time!M$25 -> 2022-12-31 | N37: =Time!M$25 -> 2022-12-31 | O37: =Time!N$25 -> 2023-06-30 | P37: =Time!O$25 -> 2023-12-31 | Q37: =Time!P$25 -> 2024-06-30 | R37: =Time!Q$25 -> 2024-12-31 | S37: =Time!R$25 -> 2025-06-30 | T37: =Time!S$25 -> 2025-12-31 | U37: =Time!T$25 -> 2026-06-30 | V37: =Time!U$25 -> 2026-12-31 | W37: =Time!V$25 -> 2027-06-30 | X37: =Time!W$25 -> 2027-12-31 | Y37: =Time!X$25 -> 2028-06-30 | Z37: =Time!Y$25 -> 2028-12-31 | AA37: =Time!Z$25 -> 2029-06-30 | AB37: =Time!AA$25 -> 2029-12-31 | AC37: =Time!AB$25 -> 2030-06-30 | AD37: =Time!AC$25 -> 2030-12-31 | AE37: =Time!AD$25 -> 2031-06-30 | AF37: =Time!AE$25 -> 2031-12-31 | AG37: =Time!AF$25 -> 2032-06-30 | AH37: =Time!AG$25 -> 2032-12-31 | AI37: =Time!AH$25 -> 2033-06-30 | AJ37: =Time!AI$25 -> 2033-12-31 | AK37: =Time!AJ$25 -> 2034-06-30 | AL37: =Time!AK$25 -> 2034-12-31 | AM37: =Time!AL$25 -> 2035-06-30 | AN37: =Time!AM$25 -> 2035-12-31 | AO37: =Time!AN$25 -> 2036-06-30 | AP37: =Time!AO$25 -> 2036-12-31 | AQ37: =Time!AP$25 -> 2037-06-30 | AR37: =Time!AQ$25 -> 2037-12-31 | AS37: =Time!AR$25 -> 2038-06-30 | AT37: =Time!AS$25 -> 2038-12-31 | AU37: =Time!AT$25 -> 2039-06-30 | AV37: =Time!AU$25 -> 2039-12-31 | AW37: =Time!AV$25 -> 2040-06-30 | AX37: =Time!AW$25 -> 2040-12-31 | AY37: =Time!AX$25 -> 2041-06-30 | AZ37: =Time!AY$25 -> 2041-12-31 | BA37: =Time!AZ$25 -> 2042-06-30 | BB37: =Time!BA$25 -> 2042-12-31 | BC37: =Time!BB$25 -> 2043-06-30 | BD37: =Time!BC$25 -> 2043-12-31 | BE37: =Time!BD$25 -> 2044-06-30 | BF37: =Time!BE$25 -> 2044-12-31 | BG37: =Time!BF$25 -> 2045-06-30 | BH37: =Time!BG$25 -> 2045-12-31 | BI37: =Time!BH$25 -> 2046-06-30 | BJ37: =Time!BI$25 -> 2046-12-31 | BK37: =Time!BJ$25 -> 2047-06-30 | BL37: =Time!BK$25 -> 2047-12-31 | BM37: =Time!BL$25 -> 2048-06-30 | BN37: =Time!BM$25 -> 2048-12-31 | BO37: =Time!BN$25 -> 2049-06-30 | BP37: =Time!BO$25 -> 2049-12-31 | BQ37: =Time!BP$25 -> 2050-06-30 | BR37: =Time!BQ$25 -> 2050-12-31 | BS37: =Time!BR$25 -> 2051-06-30 | BT37: =Time!BS$25 -> 2051-12-31 | BU37: =Time!BT$25 -> 2052-06-30 | BV37: =Time!BU$25 -> 2052-12-31 | BW37: =Time!BV$25 -> 2053-06-30 | BX37: =Time!BW$25 -> 2053-12-31 | BY37: =Time!BX$25 -> 2054-06-30 | BZ37: =Time!BY$25 -> 2054-12-31 | CA37: =Time!BZ$25 -> 2055-06-30 | CB37: =Time!CA$25 -> 2055-12-31 | CC37: =Time!CB$25 -> 2056-06-30 | CD37: =Time!CC$25 -> 2056-12-31 | CE37: =Time!CD$25 -> 2057-06-30 | CF37: =Time!CE$25 -> 2057-12-31 | CG37: =Time!CF$25 -> 2058-06-30 | CH37: =Time!CG$25 -> 2058-12-31 | CI37: =Time!CH$25 -> 2059-06-30 | CJ37: =Time!CI$25 -> 2059-12-31 | CK37: =Time!CJ$25 -> 2060-06-30 | CL37: =Time!CK$25 -> 2060-12-31 | CM37: =Time!CL$25 -> 2061-06-30 | CN37: =Time!CM$25 -> 2061-12-31 | CO37: =Time!CN$25 -> 2062-06-30 | CP37: =Time!CO$25 -> 2062-12-31 | CQ37: =Time!CP$25 -> 2063-06-30 | CR37: =Time!CQ$25 -> 2063-12-31 | CS37: =Time!CR$25 -> 2064-06-30 | CT37: =Time!CS$25 -> 2064-12-31 | CU37: =Time!CT$25 -> 2065-06-30 | CV37: =Time!CU$25 -> 2065-12-31 | CW37: =Time!CV$25 -> 2066-06-30 | CX37: =Time!CW$25 -> 2066-12-31 | CY37: =Time!CX$25 -> 2067-06-30 | CZ37: =Time!CY$25 -> 2067-12-31 | DA37: =Time!CZ$25 -> 2068-06-30 | DB37: =Time!DA$25 -> 2068-12-31 | DC37: =Time!DB$25 -> 2069-06-30 | DD37: =Time!DC$25 -> 2069-12-31 | DE37: =Time!DD$25 -> 2070-06-30 | DF37: =Time!DE$25 -> 2070-12-31 | DG37: =Time!DF$25 -> 2071-06-30 | DH37: =Time!DG$25 -> 2071-12-31 | DI37: =Time!DH$25 -> 2072-06-30 | DJ37: =Time!DI$25 -> 2072-12-31 | DK37: =Time!DJ$25 -> 2073-06-30 | DL37: =Time!DK$25 -> 2073-12-31 | DM37: =Time!DL$25 -> 2074-06-30 | DN37: =Time!DM$25 -> 2074-12-31 | DO37: =Time!DN$25 -> 2075-06-30 | DP37: =Time!DO$25 -> 2075-12-31 | DQ37: =Time!DP$25 -> 2076-06-30 | DR37: =Time!DQ$25 -> 2076-12-31 | DS37: =Time!DR$25 -> 2077-06-30 | DT37: =Time!DS$25 -> 2077-12-31 | DU37: =Time!DT$25 -> 2078-06-30 | DV37: =Time!DU$25 -> 2078-12-31 | DW37: =Time!DV$25 -> 2079-06-30 | DX37: =Time!DW$25 -> 2079-12-31 | DY37: =Time!DX$25 -> 2080-06-30 | DZ37: =Time!DY$25 -> 2080-12-31 | EA37: =Time!DZ$25 -> 2081-06-30 | EB37: =Time!EA$25 -> 2081-12-31 | EC37: =Time!EB$25 -> 2082-06-30 | ED37: =Time!EC$25 -> 2082-12-31 | EE37: =Time!ED$25 -> 2083-06-30 | EF37: =Time!EE$25 -> 2083-12-31 | EG37: =Time!EF$25 -> 2084-06-30 | EH37: =Time!EG$25 -> 2084-12-31 | EI37: =Time!EH$25 -> 2085-06-30 | EJ37: =Time!EI$25 -> 2085-12-31 | EK37: =Time!EJ$25 -> 2086-06-30 | EL37: =Time!EK$25 -> 2086-12-31 | EM37: =Time!EL$25 -> 2087-06-30 | EN37: =Time!EM$25 -> 2087-12-31 | EO37: =Time!EN$25 -> 2088-06-30 | EP37: =Time!EO$25 -> 2088-12-31 | EQ37: =Time!EP$25 -> 2089-06-30 | ER37: =Time!EQ$25 -> 2089-12-31 | ES37: =Time!ER$25 -> 2090-06-30 | ET37: =Time!ES$25 -> 2090-12-31 | EU37: =Time!ET$25 -> 2091-06-30 | EV37: =Time!EU$25 -> 2091-12-31 | EW37: =Time!EV$25 -> 2092-06-30 | EX37: =Time!EW$25 -> 2092-12-31 | EY37: =Time!EX$25 -> 2093-06-30 | EZ37: =Time!EY$25 -> 2093-12-31 | FA37: =Time!EZ$25 -> 2094-06-30 | FB37: =Time!FA$25 -> 2094-12-31 | FC37: =Time!FB$25 -> 2095-06-30 | FD37: =Time!FC$25 -> 2095-12-31 | FE37: =Time!FD$25 -> 2096-06-30 | FF37: =Time!FE$25 -> 2096-12-31 | FG37: =Time!FF$25 -> 2097-06-30 | FH37: =Time!FG$25 -> 2097-12-31 | FI37: =Time!FH$25 -> 2098-06-30 | FJ37: =Time!FI$25 -> 2098-12-31 | FK37: =Time!FJ$25 -> 2099-06-30 | FL37: =Time!FK$25 -> 2099-12-31 | FM37: =Time!FL$25 -> 2100-06-30 | FN37: =Time!FM$25 -> 2100-12-31 | FO37: =Time!FN$25 -> 2101-06-30 | FP37: =Time!FO$25 -> 2101-12-31 | FQ37: =Time!FP$25 -> 2102-06-30 | FR37: =Time!FQ$25 -> 2102-12-31 | FS37: =Time!FR$25 -> 2103-06-30 | FT37: =Time!FS$25 -> 2103-12-31 | FU37: =Time!FT$25 -> 2104-06-30 | FV37: =Time!FU$25 -> 2104-12-31 | FW37: =Time!FV$25 -> 2105-06-30 | FX37: =Time!FW$25 -> 2105-12-31 | FY37: =Time!FX$25 -> 2106-06-30 | FZ37: =Time!FY$25 -> 2106-12-31 | GA37: =Time!FZ$25 -> 2107-06-30 | GB37: =Time!GA$25 -> 2107-12-31 | GC37: =Time!GB$25 -> 2108-06-30 | GD37: =Time!GC$25 -> 2108-12-31 | GE37: =Time!GD$25 -> 2109-06-30 | GF37: =Time!GE$25 -> 2109-12-31 | GG37: =Time!GF$25 -> 2110-06-30 | GH37: =Time!GG$25 -> 2110-12-31 | GI37: =Time!GH$25 -> 2111-06-30 | GJ37: =Time!GI$25 -> 2111-12-31 | GK37: =Time!GJ$25 -> 2112-06-30
E38: ='FS semi'!E$55 -> Cashflow available for senior debt P50 | F38: ='FS semi'!F$55 -> 0 | G38: ='FS semi'!G$55 -> $ 000s | H38: ='FS semi'!H$55 -> 694358.8788 | I38: ='FS semi'!I$55 -> 0 | J38: =AVERAGE('FS semi'!J$55, J101) -> 0 | K38: =AVERAGE('FS semi'!K$55, K101) -> 0 | L38: =AVERAGE('FS semi'!L$55, L101) -> -7.209515492e-05 | M38: =AVERAGE('FS semi'!M$55, M101) -> 72.04511129 | N38: =AVERAGE('FS semi'!M$55, N101) -> 72.04511129 | O38: =AVERAGE('FS semi'!N$55, O101) -> 418.8347389 | P38: =AVERAGE('FS semi'!O$55, P101) -> 443.5303179 | Q38: =AVERAGE('FS semi'!P$55, Q101) -> 1082.473892 | R38: =AVERAGE('FS semi'!Q$55, R101) -> 19847.17546 | S38: =AVERAGE('FS semi'!R$55, S101) -> 18384.0855 | T38: =AVERAGE('FS semi'!S$55, T101) -> 18047.83338 | U38: =AVERAGE('FS semi'!T$55, U101) -> 18277.22288 | V38: =AVERAGE('FS semi'!U$55, V101) -> 18003.73563 | W38: =AVERAGE('FS semi'!V$55, W101) -> 18126.31172 | X38: =AVERAGE('FS semi'!W$55, X101) -> 17931.92542 | Y38: =AVERAGE('FS semi'!X$55, Y101) -> 18041.70737 | Z38: =AVERAGE('FS semi'!Y$55, Z101) -> 17811.33943 | AA38: =AVERAGE('FS semi'!Z$55, AA101) -> 17918.43585 | AB38: =AVERAGE('FS semi'!AA$55, AB101) -> 17760.58491 | AC38: =AVERAGE('FS semi'!AB$55, AC101) -> 17841.37267 | AD38: =AVERAGE('FS semi'!AC$55, AD101) -> 17658.49164 | AE38: =AVERAGE('FS semi'!AD$55, AE101) -> 17739.11402 | AF38: =AVERAGE('FS semi'!AE$55, AF101) -> 17552.95824 | AG38: =AVERAGE('FS semi'!AF$55, AG101) -> 17534.15961 | AH38: =AVERAGE('FS semi'!AG$55, AH101) -> 17223.82165 | AI38: =AVERAGE('FS semi'!AH$55, AI101) -> 17294.37109 | AJ38: =AVERAGE('FS semi'!AI$55, AJ101) -> 17079.69698 | AK38: =AVERAGE('FS semi'!AJ$55, AK101) -> 17123.60133 | AL38: =AVERAGE('FS semi'!AK$55, AL101) -> 16931.59588 | AM38: =AVERAGE('FS semi'!AL$55, AM101) -> 16971.76412 | AN38: =AVERAGE('FS semi'!AM$55, AN101) -> 16743.51735 | AO38: =AVERAGE('FS semi'!AN$55, AO101) -> 16808.88566 | AP38: =AVERAGE('FS semi'!AO$55, AP101) -> 16521.34013 | AQ38: =AVERAGE('FS semi'!AP$55, AQ101) -> 16584.3686 | AR38: =AVERAGE('FS semi'!AQ$55, AR101) -> 16365.43867 | AS38: =AVERAGE('FS semi'!AR$55, AS101) -> 16422.96936 | AT38: =AVERAGE('FS semi'!AS$55, AT101) -> 16198.25876 | AU38: =AVERAGE('FS semi'!AT$55, AU101) -> 16255.06216 | AV38: =AVERAGE('FS semi'!AU$55, AV101) -> 16024.34147 | AW38: =AVERAGE('FS semi'!AV$55, AW101) -> 16105.30973 | AX38: =AVERAGE('FS semi'!AW$55, AX101) -> 15818.43663 | AY38: =AVERAGE('FS semi'!AX$55, AY101) -> 15879.30124 | AZ38: =AVERAGE('FS semi'!AY$55, AZ101) -> 15585.45156 | BA38: =AVERAGE('FS semi'!AZ$55, BA101) -> 15648.54306 | BB38: =AVERAGE('FS semi'!BA$55, BB101) -> 15448.1373 | BC38: =AVERAGE('FS semi'!BB$55, BC101) -> 15579.1068 | BD38: =AVERAGE('FS semi'!BC$55, BD101) -> 15408.58628 | BE38: =AVERAGE('FS semi'!BD$55, BE101) -> 15565.01696 | BF38: =AVERAGE('FS semi'!BE$55, BF101) -> 4407.532619 | BG38: =AVERAGE('FS semi'!BF$55, BG101) -> 0 | BH38: =AVERAGE('FS semi'!BG$55, BH101) -> 0 | BI38: =AVERAGE('FS semi'!BH$55, BI101) -> 0 | BJ38: =AVERAGE('FS semi'!BI$55, BJ101) -> 0 | BK38: =AVERAGE('FS semi'!BJ$55, BK101) -> 0 | BL38: =AVERAGE('FS semi'!BK$55, BL101) -> 0 | BM38: =AVERAGE('FS semi'!BL$55, BM101) -> 0 | BN38: =AVERAGE('FS semi'!BM$55, BN101) -> 0 | BO38: =AVERAGE('FS semi'!BN$55, BO101) -> 0 | BP38: =AVERAGE('FS semi'!BO$55, BP101) -> 0 | BQ38: =AVERAGE('FS semi'!BP$55, BQ101) -> 0 | BR38: =AVERAGE('FS semi'!BQ$55, BR101) -> 0 | BS38: =AVERAGE('FS semi'!BR$55, BS101) -> 0 | BT38: =AVERAGE('FS semi'!BS$55, BT101) -> 0 | BU38: =AVERAGE('FS semi'!BT$55, BU101) -> 0 | BV38: =AVERAGE('FS semi'!BU$55, BV101) -> 0 | BW38: =AVERAGE('FS semi'!BV$55, BW101) -> 0 | BX38: =AVERAGE('FS semi'!BW$55, BX101) -> 0 | BY38: =AVERAGE('FS semi'!BX$55, BY101) -> 0 | BZ38: =AVERAGE('FS semi'!BY$55, BZ101) -> 0 | CA38: =AVERAGE('FS semi'!BZ$55, CA101) -> 0 | CB38: =AVERAGE('FS semi'!CA$55, CB101) -> 0 | CC38: =AVERAGE('FS semi'!CB$55, CC101) -> 0 | CD38: =AVERAGE('FS semi'!CC$55, CD101) -> 0 | CE38: =AVERAGE('FS semi'!CD$55, CE101) -> 0 | CF38: =AVERAGE('FS semi'!CE$55, CF101) -> 0 | CG38: =AVERAGE('FS semi'!CF$55, CG101) -> 0 | CH38: =AVERAGE('FS semi'!CG$55, CH101) -> 0 | CI38: =AVERAGE('FS semi'!CH$55, CI101) -> 0 | CJ38: =AVERAGE('FS semi'!CI$55, CJ101) -> 0 | CK38: =AVERAGE('FS semi'!CJ$55, CK101) -> 0 | CL38: =AVERAGE('FS semi'!CK$55, CL101) -> 0 | CM38: =AVERAGE('FS semi'!CL$55, CM101) -> 0 | CN38: =AVERAGE('FS semi'!CM$55, CN101) -> 0 | CO38: =AVERAGE('FS semi'!CN$55, CO101) -> 0 | CP38: =AVERAGE('FS semi'!CO$55, CP101) -> 0 | CQ38: =AVERAGE('FS semi'!CP$55, CQ101) -> 0 | CR38: =AVERAGE('FS semi'!CQ$55, CR101) -> 0 | CS38: =AVERAGE('FS semi'!CR$55, CS101) -> 0 | CT38: =AVERAGE('FS semi'!CS$55, CT101) -> 0 | CU38: =AVERAGE('FS semi'!CT$55, CU101) -> 0 | CV38: =AVERAGE('FS semi'!CU$55, CV101) -> 0 | CW38: =AVERAGE('FS semi'!CV$55, CW101) -> 0 | CX38: =AVERAGE('FS semi'!CW$55, CX101) -> 0 | CY38: =AVERAGE('FS semi'!CX$55, CY101) -> 0 | CZ38: =AVERAGE('FS semi'!CY$55, CZ101) -> 0 | DA38: =AVERAGE('FS semi'!CZ$55, DA101) -> 0 | DB38: =AVERAGE('FS semi'!DA$55, DB101) -> 0 | DC38: =AVERAGE('FS semi'!DB$55, DC101) -> 0 | DD38: =AVERAGE('FS semi'!DC$55, DD101) -> 0 | DE38: =AVERAGE('FS semi'!DD$55, DE101) -> 0 | DF38: =AVERAGE('FS semi'!DE$55, DF101) -> 0 | DG38: =AVERAGE('FS semi'!DF$55, DG101) -> 0 | DH38: =AVERAGE('FS semi'!DG$55, DH101) -> 0 | DI38: =AVERAGE('FS semi'!DH$55, DI101) -> 0 | DJ38: =AVERAGE('FS semi'!DI$55, DJ101) -> 0 | DK38: =AVERAGE('FS semi'!DJ$55, DK101) -> 0 | DL38: =AVERAGE('FS semi'!DK$55, DL101) -> 0 | DM38: =AVERAGE('FS semi'!DL$55, DM101) -> 0 | DN38: =AVERAGE('FS semi'!DM$55, DN101) -> 0 | DO38: =AVERAGE('FS semi'!DN$55, DO101) -> 0 | DP38: =AVERAGE('FS semi'!DO$55, DP101) -> 0 | DQ38: =AVERAGE('FS semi'!DP$55, DQ101) -> 0 | DR38: =AVERAGE('FS semi'!DQ$55, DR101) -> 0 | DS38: =AVERAGE('FS semi'!DR$55, DS101) -> 0 | DT38: =AVERAGE('FS semi'!DS$55, DT101) -> 0 | DU38: =AVERAGE('FS semi'!DT$55, DU101) -> 0 | DV38: =AVERAGE('FS semi'!DU$55, DV101) -> 0 | DW38: =AVERAGE('FS semi'!DV$55, DW101) -> 0 | DX38: =AVERAGE('FS semi'!DW$55, DX101) -> 0 | DY38: =AVERAGE('FS semi'!DX$55, DY101) -> 0 | DZ38: =AVERAGE('FS semi'!DY$55, DZ101) -> 0 | EA38: =AVERAGE('FS semi'!DZ$55, EA101) -> 0 | EB38: =AVERAGE('FS semi'!EA$55, EB101) -> 0 | EC38: =AVERAGE('FS semi'!EB$55, EC101) -> 0 | ED38: =AVERAGE('FS semi'!EC$55, ED101) -> 0 | EE38: =AVERAGE('FS semi'!ED$55, EE101) -> 0 | EF38: =AVERAGE('FS semi'!EE$55, EF101) -> 0 | EG38: =AVERAGE('FS semi'!EF$55, EG101) -> 0 | EH38: =AVERAGE('FS semi'!EG$55, EH101) -> 0 | EI38: =AVERAGE('FS semi'!EH$55, EI101) -> 0 | EJ38: =AVERAGE('FS semi'!EI$55, EJ101) -> 0 | EK38: =AVERAGE('FS semi'!EJ$55, EK101) -> 0 | EL38: =AVERAGE('FS semi'!EK$55, EL101) -> 0 | EM38: =AVERAGE('FS semi'!EL$55, EM101) -> 0 | EN38: =AVERAGE('FS semi'!EM$55, EN101) -> 0 | EO38: =AVERAGE('FS semi'!EN$55, EO101) -> 0 | EP38: =AVERAGE('FS semi'!EO$55, EP101) -> 0 | EQ38: =AVERAGE('FS semi'!EP$55, EQ101) -> 0 | ER38: =AVERAGE('FS semi'!EQ$55, ER101) -> 0 | ES38: =AVERAGE('FS semi'!ER$55, ES101) -> 0 | ET38: =AVERAGE('FS semi'!ES$55, ET101) -> 0 | EU38: =AVERAGE('FS semi'!ET$55, EU101) -> 0 | EV38: =AVERAGE('FS semi'!EU$55, EV101) -> 0 | EW38: =AVERAGE('FS semi'!EV$55, EW101) -> 0 | EX38: =AVERAGE('FS semi'!EW$55, EX101) -> 0 | EY38: =AVERAGE('FS semi'!EX$55, EY101) -> 0 | EZ38: =AVERAGE('FS semi'!EY$55, EZ101) -> 0 | FA38: =AVERAGE('FS semi'!EZ$55, FA101) -> 0 | FB38: =AVERAGE('FS semi'!FA$55, FB101) -> 0 | FC38: =AVERAGE('FS semi'!FB$55, FC101) -> 0 | FD38: =AVERAGE('FS semi'!FC$55, FD101) -> 0 | FE38: =AVERAGE('FS semi'!FD$55, FE101) -> 0 | FF38: =AVERAGE('FS semi'!FE$55, FF101) -> 0 | FG38: =AVERAGE('FS semi'!FF$55, FG101) -> 0 | FH38: =AVERAGE('FS semi'!FG$55, FH101) -> 0 | FI38: =AVERAGE('FS semi'!FH$55, FI101) -> 0 | FJ38: =AVERAGE('FS semi'!FI$55, FJ101) -> 0 | FK38: =AVERAGE('FS semi'!FJ$55, FK101) -> 0 | FL38: =AVERAGE('FS semi'!FK$55, FL101) -> 0 | FM38: =AVERAGE('FS semi'!FL$55, FM101) -> 0 | FN38: =AVERAGE('FS semi'!FM$55, FN101) -> 0 | FO38: =AVERAGE('FS semi'!FN$55, FO101) -> 0 | FP38: =AVERAGE('FS semi'!FO$55, FP101) -> 0 | FQ38: =AVERAGE('FS semi'!FP$55, FQ101) -> 0 | FR38: =AVERAGE('FS semi'!FQ$55, FR101) -> 0 | FS38: =AVERAGE('FS semi'!FR$55, FS101) -> 0 | FT38: =AVERAGE('FS semi'!FS$55, FT101) -> 0 | FU38: =AVERAGE('FS semi'!FT$55, FU101) -> 0 | FV38: =AVERAGE('FS semi'!FU$55, FV101) -> 0 | FW38: =AVERAGE('FS semi'!FV$55, FW101) -> 0 | FX38: =AVERAGE('FS semi'!FW$55, FX101) -> 0 | FY38: =AVERAGE('FS semi'!FX$55, FY101) -> 0 | FZ38: =AVERAGE('FS semi'!FY$55, FZ101) -> 0 | GA38: =AVERAGE('FS semi'!FZ$55, GA101) -> 0 | GB38: =AVERAGE('FS semi'!GA$55, GB101) -> 0 | GC38: =AVERAGE('FS semi'!GB$55, GC101) -> 0 | GD38: =AVERAGE('FS semi'!GC$55, GD101) -> 0 | GE38: =AVERAGE('FS semi'!GD$55, GE101) -> 0 | GF38: =AVERAGE('FS semi'!GE$55, GF101) -> 0 | GG38: =AVERAGE('FS semi'!GF$55, GG101) -> 0 | GH38: =AVERAGE('FS semi'!GG$55, GH101) -> 0 | GI38: =AVERAGE('FS semi'!GH$55, GI101) -> 0 | GJ38: =AVERAGE('FS semi'!GI$55, GJ101) -> 0 | GK38: =AVERAGE('FS semi'!GJ$55, GK101) -> 0
A42: Range Name with Pasted Items (Replace SolvePaste, CNTL F3)
J43: Range Name: SolvePaste
B44: Constants
E45: Not indexed power tariff | F45: =J45 -> 0.03528315898 | G45: USD / kWh | J45: 0.03528315898 | K45: Bisectional
E46: EBL requirement fixed | F46: =J46 -> 0 | G46: $ 000s | J46: 0
E47: Equity bridge interest and fees rolled up - total - fixed | F47: =J47 -> 0 | G47: $ 000s | J47: 0
E48: Sum of construction debt drawdown - T1 - Paste | F48: =J48+500 -> 139193.5164 | G48: =SMU -> $ 000s | J48: 138693.5164
E49: Sum of construction debt drawdown - T2 - Paste | F49: =J49+500 -> 139193.5164 | G49: =SMU -> $ 000s | J49: 138693.5164
E50: Debt capacity at target DSCR - Paste | F50: =J50 -> 291177.1341 | G50: $ 000s | J50: 291177.1341
E51: Debt repayment amount - all tranche active - Paste | F51: =J51 -> 291177.1341 | G51: $ 000s | J51: 291177.1341
B53: Monthly line items
E54: Model period ending - m | G54: date | J54: 2021-01-31 | K54: 2021-02-28 | L54: 2021-03-31 | M54: 2021-04-30 | N54: 2021-04-30 | O54: 2021-05-31 | P54: 2021-06-30 | Q54: 2021-07-31 | R54: 2021-08-31 | S54: 2021-09-30 | T54: 2021-10-31 | U54: 2021-11-30 | V54: 2021-12-31 | W54: 2022-01-31 | X54: 2022-02-28 | Y54: 2022-03-31 | Z54: 2022-04-30 | AA54: 2022-05-31 | AB54: 2022-06-30 | AC54: 2022-07-31 | AD54: 2022-08-31 | AE54: 2022-09-30 | AF54: 2022-10-31 | AG54: 2022-11-30 | AH54: 2022-12-31 | AI54: 2023-01-31 | AJ54: 2023-02-28 | AK54: 2023-03-31 | AL54: 2023-04-30 | AM54: 2023-05-31 | AN54: 2023-06-30 | AO54: 2023-07-31 | AP54: 2023-08-31 | AQ54: 2023-09-30 | AR54: 2023-10-31 | AS54: 2023-11-30 | AT54: 2023-12-31 | AU54: 2024-01-31 | AV54: 2024-02-29 | AW54: 2024-03-31 | AX54: 2024-04-30 | AY54: 2024-05-31 | AZ54: 2024-06-30 | BA54: 2024-07-31 | BB54: 2024-08-31 | BC54: 2024-09-30 | BD54: 2024-10-31 | BE54: 2024-11-30 | BF54: 2024-12-31 | BG54: 00:00:00 | BH54: 00:00:00 | BI54: 00:00:00 | BJ54: 00:00:00 | BK54: 00:00:00 | BL54: 00:00:00 | BM54: 00:00:00 | BN54: 00:00:00 | BO54: 00:00:00 | BP54: 00:00:00 | BQ54: 00:00:00 | BR54: 00:00:00 | BS54: 00:00:00 | BT54: 00:00:00 | BU54: 00:00:00 | BV54: 00:00:00 | BW54: 00:00:00 | BX54: 00:00:00 | BY54: 00:00:00 | BZ54: 00:00:00 | CA54: 00:00:00 | CB54: 00:00:00 | CC54: 00:00:00 | CD54: 00:00:00 | CE54: 00:00:00 | CF54: 00:00:00 | CG54: 00:00:00 | CH54: 00:00:00 | CI54: 00:00:00 | CJ54: 00:00:00 | CK54: 00:00:00 | CL54: 00:00:00 | CM54: 00:00:00 | CN54: 00:00:00 | CO54: 00:00:00 | CP54: 00:00:00 | CQ54: 00:00:00 | CR54: 00:00:00 | CS54: 00:00:00 | CT54: 00:00:00 | CU54: 00:00:00 | CV54: 00:00:00 | CW54: 00:00:00 | CX54: 00:00:00 | CY54: 00:00:00 | CZ54: 00:00:00 | DA54: 00:00:00 | DB54: 00:00:00 | DC54: 00:00:00 | DD54: 00:00:00 | DE54: 00:00:00 | DF54: 00:00:00 | DG54: 00:00:00 | DH54: 00:00:00 | DI54: 00:00:00 | DJ54: 00:00:00 | DK54: 00:00:00 | DL54: 00:00:00 | DM54: 00:00:00 | DN54: 00:00:00 | DO54: 00:00:00 | DP54: 00:00:00 | DQ54: 00:00:00 | DR54: 00:00:00 | DS54: 00:00:00 | DT54: 00:00:00 | DU54: 00:00:00 | DV54: 00:00:00 | DW54: 00:00:00 | DX54: 00:00:00 | DY54: 00:00:00 | DZ54: 00:00:00 | EA54: 00:00:00 | EB54: 00:00:00 | EC54: 00:00:00 | ED54: 00:00:00 | EE54: 00:00:00 | EF54: 00:00:00 | EG54: 00:00:00 | EH54: 00:00:00 | EI54: 00:00:00 | EJ54: 00:00:00 | EK54: 00:00:00 | EL54: 00:00:00 | EM54: 00:00:00 | EN54: 00:00:00 | EO54: 00:00:00 | EP54: 00:00:00 | EQ54: 00:00:00 | ER54: 00:00:00 | ES54: 00:00:00 | ET54: 00:00:00 | EU54: 00:00:00 | EV54: 00:00:00 | EW54: 00:00:00 | EX54: 00:00:00 | EY54: 00:00:00 | EZ54: 00:00:00 | FA54: 00:00:00 | FB54: 00:00:00 | FC54: 00:00:00 | FD54: 00:00:00 | FE54: 00:00:00 | FF54: 00:00:00 | FG54: 00:00:00 | FH54: 00:00:00 | FI54: 00:00:00 | FJ54: 00:00:00 | FK54: 00:00:00 | FL54: 00:00:00 | FM54: 00:00:00 | FN54: 00:00:00 | FO54: 00:00:00 | FP54: 00:00:00 | FQ54: 00:00:00 | FR54: 00:00:00 | FS54: 00:00:00 | FT54: 00:00:00 | FU54: 00:00:00 | FV54: 00:00:00 | FW54: 00:00:00 | FX54: 00:00:00 | FY54: 00:00:00 | FZ54: 00:00:00 | GA54: 00:00:00 | GB54: 00:00:00 | GC54: 00:00:00 | GD54: 00:00:00 | GE54: 00:00:00 | GF54: 00:00:00 | GG54: 00:00:00 | GH54: 00:00:00 | GI54: 00:00:00 | GJ54: 00:00:00 | GK54: 00:00:00
E55: Project costs / funding requirement - paste | G55: $ 000s | H55: =SUM(J55:GK55) -> 346733.7907 | J55: 0 | K55: 0 | L55: 0 | M55: 0 | N55: 0 | O55: 0 | P55: 0 | Q55: 0 | R55: 0 | S55: 0 | T55: 0 | U55: 0 | V55: 0 | W55: 0 | X55: 0 | Y55: 0 | Z55: 14167.12764 | AA55: 12008.52465 | AB55: 12008.52465 | AC55: 12008.52465 | AD55: 12008.52465 | AE55: 12008.52465 | AF55: 12022.53277 | AG55: 12055.24127 | AH55: 12091.89013 | AI55: 12126.7215 | AJ55: 12143.4904 | AK55: 12196.63319 | AL55: 12222.93994 | AM55: 12266.97513 | AN55: 12290.69537 | AO55: 12337.71486 | AP55: 12373.25433 | AQ55: 12393.06664 | AR55: 12444.5951 | AS55: 12461.78417 | AT55: 12516.33931 | AU55: 12552.39332 | AV55: 12542.68602 | AW55: 11578.06722 | AX55: 11653.26229 | AY55: 11644.98636 | AZ55: 28608.7705 | BA55: 0 | BB55: 0 | BC55: 0 | BD55: 0 | BE55: 0 | BF55: 0 | BG55: 0 | BH55: 0 | BI55: 0 | BJ55: 0 | BK55: 0 | BL55: 0 | BM55: 0 | BN55: 0 | BO55: 0 | BP55: 0 | BQ55: 0 | BR55: 0 | BS55: 0 | BT55: 0 | BU55: 0 | BV55: 0 | BW55: 0 | BX55: 0 | BY55: 0 | BZ55: 0 | CA55: 0 | CB55: 0 | CC55: 0 | CD55: 0 | CE55: 0 | CF55: 0 | CG55: 0 | CH55: 0 | CI55: 0 | CJ55: 0 | CK55: 0 | CL55: 0 | CM55: 0 | CN55: 0 | CO55: 0 | CP55: 0 | CQ55: 0 | CR55: 0 | CS55: 0 | CT55: 0 | CU55: 0 | CV55: 0 | CW55: 0 | CX55: 0 | CY55: 0 | CZ55: 0 | DA55: 0 | DB55: 0 | DC55: 0 | DD55: 0 | DE55: 0 | DF55: 0 | DG55: 0 | DH55: 0 | DI55: 0 | DJ55: 0 | DK55: 0 | DL55: 0 | DM55: 0 | DN55: 0 | DO55: 0 | DP55: 0 | DQ55: 0 | DR55: 0 | DS55: 0 | DT55: 0 | DU55: 0 | DV55: 0 | DW55: 0 | DX55: 0 | DY55: 0 | DZ55: 0 | EA55: 0 | EB55: 0 | EC55: 0 | ED55: 0 | EE55: 0 | EF55: 0 | EG55: 0 | EH55: 0 | EI55: 0 | EJ55: 0 | EK55: 0 | EL55: 0 | EM55: 0 | EN55: 0 | EO55: 0 | EP55: 0 | EQ55: 0 | ER55: 0 | ES55: 0 | ET55: 0 | EU55: 0 | EV55: 0 | EW55: 0 | EX55: 0 | EY55: 0 | EZ55: 0 | FA55: 0 | FB55: 0 | FC55: 0 | FD55: 0 | FE55: 0 | FF55: 0 | FG55: 0 | FH55: 0 | FI55: 0 | FJ55: 0 | FK55: 0 | FL55: 0 | FM55: 0 | FN55: 0 | FO55: 0 | FP55: 0 | FQ55: 0 | FR55: 0 | FS55: 0 | FT55: 0 | FU55: 0 | FV55: 0 | FW55: 0 | FX55: 0 | FY55: 0 | FZ55: 0 | GA55: 0 | GB55: 0 | GC55: 0 | GD55: 0 | GE55: 0 | GF55: 0 | GG55: 0 | GH55: 0 | GI55: 0 | GJ55: 0 | GK55: 0
B57: Quarterly line items
E58: Model period ending | G58: date | J58: 2021-06-30 | K58: 2021-12-31 | L58: 2022-06-30 | M58: 2022-12-31 | N58: 2022-12-31 | O58: 2023-06-30 | P58: 2023-12-31 | Q58: 2024-06-30 | R58: 2024-12-31 | S58: 2025-06-30 | T58: 2025-12-31 | U58: 2026-06-30 | V58: 2026-12-31 | W58: 2027-06-30 | X58: 2027-12-31 | Y58: 2028-06-30 | Z58: 2028-12-31 | AA58: 2029-06-30 | AB58: 2029-12-31 | AC58: 2030-06-30 | AD58: 2030-12-31 | AE58: 2031-06-30 | AF58: 2031-12-31 | AG58: 2032-06-30 | AH58: 2032-12-31 | AI58: 2033-06-30 | AJ58: 2033-12-31 | AK58: 2034-06-30 | AL58: 2034-12-31 | AM58: 2035-06-30 | AN58: 2035-12-31 | AO58: 2036-06-30 | AP58: 2036-12-31 | AQ58: 2037-06-30 | AR58: 2037-12-31 | AS58: 2038-06-30 | AT58: 2038-12-31 | AU58: 2039-06-30 | AV58: 2039-12-31 | AW58: 2040-06-30 | AX58: 2040-12-31 | AY58: 2041-06-30 | AZ58: 2041-12-31 | BA58: 2042-06-30 | BB58: 2042-12-31 | BC58: 2043-06-30 | BD58: 2043-12-31 | BE58: 2044-06-30 | BF58: 2044-12-31 | BG58: 2045-06-30 | BH58: 2045-12-31 | BI58: 2046-06-30 | BJ58: 2046-12-31 | BK58: 2047-06-30 | BL58: 2047-12-31 | BM58: 2048-06-30 | BN58: 2048-12-31 | BO58: 2049-06-30 | BP58: 2049-12-31 | BQ58: 2050-06-30 | BR58: 2050-12-31 | BS58: 2051-06-30 | BT58: 2051-12-31 | BU58: 2052-06-30 | BV58: 2052-12-31 | BW58: 2053-06-30 | BX58: 2053-12-31 | BY58: 2054-06-30 | BZ58: 2054-12-31 | CA58: 2055-06-30 | CB58: 2055-12-31 | CC58: 2056-06-30 | CD58: 2056-12-31 | CE58: 2057-06-30 | CF58: 2057-12-31 | CG58: 2058-06-30 | CH58: 2058-12-31 | CI58: 2059-06-30 | CJ58: 2059-12-31 | CK58: 2060-06-30 | CL58: 2060-12-31 | CM58: 2061-06-30 | CN58: 2061-12-31 | CO58: 2062-06-30 | CP58: 2062-12-31 | CQ58: 2063-06-30 | CR58: 2063-12-31 | CS58: 2064-06-30 | CT58: 2064-12-31 | CU58: 2065-06-30 | CV58: 2065-12-31 | CW58: 2066-06-30 | CX58: 2066-12-31 | CY58: 2067-06-30 | CZ58: 2067-12-31 | DA58: 2068-06-30 | DB58: 2068-12-31 | DC58: 2069-06-30 | DD58: 2069-12-31 | DE58: 2070-06-30 | DF58: 2070-12-31 | DG58: 2071-06-30 | DH58: 2071-12-31 | DI58: 2072-06-30 | DJ58: 2072-12-31 | DK58: 2073-06-30 | DL58: 2073-12-31 | DM58: 2074-06-30 | DN58: 2074-12-31 | DO58: 2075-06-30 | DP58: 2075-12-31 | DQ58: 2076-06-30 | DR58: 2076-12-31 | DS58: 2077-06-30 | DT58: 2077-12-31 | DU58: 2078-06-30 | DV58: 2078-12-31 | DW58: 2079-06-30 | DX58: 2079-12-31 | DY58: 2080-06-30 | DZ58: 2080-12-31 | EA58: 2081-06-30 | EB58: 2081-12-31 | EC58: 2082-06-30 | ED58: 2082-12-31 | EE58: 2083-06-30 | EF58: 2083-12-31 | EG58: 2084-06-30 | EH58: 2084-12-31 | EI58: 2085-06-30 | EJ58: 2085-12-31 | EK58: 2086-06-30 | EL58: 2086-12-31 | EM58: 2087-06-30 | EN58: 2087-12-31 | EO58: 2088-06-30 | EP58: 2088-12-31 | EQ58: 2089-06-30 | ER58: 2089-12-31 | ES58: 2090-06-30 | ET58: 2090-12-31 | EU58: 2091-06-30 | EV58: 2091-12-31 | EW58: 2092-06-30 | EX58: 2092-12-31 | EY58: 2093-06-30 | EZ58: 2093-12-31 | FA58: 2094-06-30 | FB58: 2094-12-31 | FC58: 2095-06-30 | FD58: 2095-12-31 | FE58: 2096-06-30 | FF58: 2096-12-31 | FG58: 2097-06-30 | FH58: 2097-12-31 | FI58: 2098-06-30 | FJ58: 2098-12-31 | FK58: 2099-06-30 | FL58: 2099-12-31 | FM58: 2100-06-30 | FN58: 2100-12-31 | FO58: 2101-06-30 | FP58: 2101-12-31 | FQ58: 2102-06-30 | FR58: 2102-12-31 | FS58: 2103-06-30 | FT58: 2103-12-31 | FU58: 2104-06-30 | FV58: 2104-12-31 | FW58: 2105-06-30 | FX58: 2105-12-31 | FY58: 2106-06-30 | FZ58: 2106-12-31 | GA58: 2107-06-30 | GB58: 2107-12-31 | GC58: 2108-06-30 | GD58: 2108-12-31 | GE58: 2109-06-30 | GF58: 2109-12-31 | GG58: 2110-06-30 | GH58: 2110-12-31 | GI58: 2111-06-30 | GJ58: 2111-12-31 | GK58: 2112-06-30
E59: Cash flow available for senior debt - paste | G59: $ 000s | H59: =SUM(J59:GK59) -> 678616.7074 | J59: 0 | K59: 0 | L59: -9.27135791e-05 | M59: 2.417402331e-06 | N59: 2.417402331e-06 | O59: 2.053753063e-05 | P59: 2.713757759e-05 | Q59: -0.001100074103 | R59: 19404.63527 | S59: 18611.3894 | T59: 17823.87214 | U59: 18440.88782 | V59: 17779.41717 | W59: 18182.50671 | X59: 17679.76312 | Y59: 18032.24038 | Z59: 17507.51615 | AA59: 17854.32327 | AB59: 17425.72684 | AC59: 17744.3437 | AD59: 17266.23855 | AE59: 17584.22645 | AF59: 17100.13253 | AG59: 17447.50899 | AH59: 16900.81135 | AI59: 17243.07455 | AJ59: 16745.79644 | AK59: 17061.16477 | AL59: 16591.0105 | AM59: 16902.96956 | AN59: 16390.25655 | AO59: 16728.99915 | AP59: 16154.1721 | AQ59: 16492.30207 | AR59: 16010.21263 | AS59: 16364.47253 | AT59: 15877.18048 | AU59: 16232.92002 | AV59: 15740.24638 | AW59: 16123.59328 | AX59: 15573.93787 | AY59: 15958.0599 | AZ59: 15347.61834 | BA59: 15760.85654 | BB59: 15308.03324 | BC59: 15723.14922 | BD59: 15268.10923 | BE59: 15710.13699 | BF59: 4522.896338 | BG59: 0 | BH59: 0 | BI59: 0 | BJ59: 0 | BK59: 0 | BL59: 0 | BM59: 0 | BN59: 0 | BO59: 0 | BP59: 0 | BQ59: 0 | BR59: 0 | BS59: 0 | BT59: 0 | BU59: 0 | BV59: 0 | BW59: 0 | BX59: 0 | BY59: 0 | BZ59: 0 | CA59: 0 | CB59: 0 | CC59: 0 | CD59: 0 | CE59: 0 | CF59: 0 | CG59: 0 | CH59: 0 | CI59: 0 | CJ59: 0 | CK59: 0 | CL59: 0 | CM59: 0 | CN59: 0 | CO59: 0 | CP59: 0 | CQ59: 0 | CR59: 0 | CS59: 0 | CT59: 0 | CU59: 0 | CV59: 0 | CW59: 0 | CX59: 0 | CY59: 0 | CZ59: 0 | DA59: 0 | DB59: 0 | DC59: 0 | DD59: 0 | DE59: 0 | DF59: 0 | DG59: 0 | DH59: 0 | DI59: 0 | DJ59: 0 | DK59: 0 | DL59: 0 | DM59: 0 | DN59: 0 | DO59: 0 | DP59: 0 | DQ59: 0 | DR59: 0 | DS59: 0 | DT59: 0 | DU59: 0 | DV59: 0 | DW59: 0 | DX59: 0 | DY59: 0 | DZ59: 0 | EA59: 0 | EB59: 0 | EC59: 0 | ED59: 0 | EE59: 0 | EF59: 0 | EG59: 0 | EH59: 0 | EI59: 0 | EJ59: 0 | EK59: 0 | EL59: 0 | EM59: 0 | EN59: 0 | EO59: 0 | EP59: 0 | EQ59: 0 | ER59: 0 | ES59: 0 | ET59: 0 | EU59: 0 | EV59: 0 | EW59: 0 | EX59: 0 | EY59: 0 | EZ59: 0 | FA59: 0 | FB59: 0 | FC59: 0 | FD59: 0 | FE59: 0 | FF59: 0 | FG59: 0 | FH59: 0 | FI59: 0 | FJ59: 0 | FK59: 0 | FL59: 0 | FM59: 0 | FN59: 0 | FO59: 0 | FP59: 0 | FQ59: 0 | FR59: 0 | FS59: 0 | FT59: 0 | FU59: 0 | FV59: 0 | FW59: 0 | FX59: 0 | FY59: 0 | FZ59: 0 | GA59: 0 | GB59: 0 | GC59: 0 | GD59: 0 | GE59: 0 | GF59: 0 | GG59: 0 | GH59: 0 | GI59: 0 | GJ59: 0 | GK59: 0
A63: Range Name with UDF Items
J64: Range Name: SolvePaste
B65: Constants
E66: Not indexed power tariff | F66: =J66 -> 0.04 | G66: USD / kWh | J66: 0.04
E67: EBL requirement fixed | F67: =J67 -> 0 | G67: $ 000s | J67: =UDF_Output2!F23 -> 0
E68: Equity bridge interest and fees rolled up - total - fixed | F68: =J68 -> 0 | G68: $ 000s | J68: =UDF_Output2!F24 -> 0
E69: Sum of construction debt drawdown - T1 - Paste | F69: =J69+500 -> 113188.482 | G69: =SMU -> $ 000s | J69: =UDF_Output2!F25 -> 112688.482
E70: Sum of construction debt drawdown - T2 - Paste | F70: =J70+500 -> 113188.482 | G70: =SMU -> $ 000s | J70: =UDF_Output2!F26 -> 112688.482
E71: Debt capacity at target DSCR - Paste | F71: =J71 -> 225376.9639 | G71: $ 000s | J71: =UDF_Output2!F27 -> 225376.9639
E72: Debt repayment amount - all tranche active - Paste | F72: =J72 -> 252027.2199 | G72: $ 000s | J72: =UDF_Output2!F28 -> 252027.2199
B74: Monthly line items
E75: Model period ending - m | G75: date | J75: 2021-01-31 | K75: 2021-02-28 | L75: 2021-03-31 | M75: 2021-04-30 | N75: 2021-04-30 | O75: 2021-05-31 | P75: 2021-06-30 | Q75: 2021-07-31 | R75: 2021-08-31 | S75: 2021-09-30 | T75: 2021-10-31 | U75: 2021-11-30 | V75: 2021-12-31 | W75: 2022-01-31 | X75: 2022-02-28 | Y75: 2022-03-31 | Z75: 2022-04-30 | AA75: 2022-05-31 | AB75: 2022-06-30 | AC75: 2022-07-31 | AD75: 2022-08-31 | AE75: 2022-09-30 | AF75: 2022-10-31 | AG75: 2022-11-30 | AH75: 2022-12-31 | AI75: 2023-01-31 | AJ75: 2023-02-28 | AK75: 2023-03-31 | AL75: 2023-04-30 | AM75: 2023-05-31 | AN75: 2023-06-30 | AO75: 2023-07-31 | AP75: 2023-08-31 | AQ75: 2023-09-30 | AR75: 2023-10-31 | AS75: 2023-11-30 | AT75: 2023-12-31 | AU75: 2024-01-31 | AV75: 2024-02-29 | AW75: 2024-03-31 | AX75: 2024-04-30 | AY75: 2024-05-31 | AZ75: 2024-06-30 | BA75: 2024-07-31 | BB75: 2024-08-31 | BC75: 2024-09-30 | BD75: 2024-10-31 | BE75: 2024-11-30 | BF75: 2024-12-31 | BG75: 00:00:00 | BH75: 00:00:00 | BI75: 00:00:00 | BJ75: 00:00:00 | BK75: 00:00:00 | BL75: 00:00:00 | BM75: 00:00:00 | BN75: 00:00:00 | BO75: 00:00:00 | BP75: 00:00:00 | BQ75: 00:00:00 | BR75: 00:00:00 | BS75: 00:00:00 | BT75: 00:00:00 | BU75: 00:00:00 | BV75: 00:00:00 | BW75: 00:00:00 | BX75: 00:00:00 | BY75: 00:00:00 | BZ75: 00:00:00 | CA75: 00:00:00 | CB75: 00:00:00 | CC75: 00:00:00 | CD75: 00:00:00 | CE75: 00:00:00 | CF75: 00:00:00 | CG75: 00:00:00 | CH75: 00:00:00 | CI75: 00:00:00 | CJ75: 00:00:00 | CK75: 00:00:00 | CL75: 00:00:00 | CM75: 00:00:00 | CN75: 00:00:00 | CO75: 00:00:00 | CP75: 00:00:00 | CQ75: 00:00:00 | CR75: 00:00:00 | CS75: 00:00:00 | CT75: 00:00:00 | CU75: 00:00:00 | CV75: 00:00:00 | CW75: 00:00:00 | CX75: 00:00:00 | CY75: 00:00:00 | CZ75: 00:00:00 | DA75: 00:00:00 | DB75: 00:00:00 | DC75: 00:00:00 | DD75: 00:00:00 | DE75: 00:00:00 | DF75: 00:00:00 | DG75: 00:00:00 | DH75: 00:00:00 | DI75: 00:00:00 | DJ75: 00:00:00 | DK75: 00:00:00 | DL75: 00:00:00 | DM75: 00:00:00 | DN75: 00:00:00 | DO75: 00:00:00 | DP75: 00:00:00 | DQ75: 00:00:00 | DR75: 00:00:00 | DS75: 00:00:00 | DT75: 00:00:00 | DU75: 00:00:00 | DV75: 00:00:00 | DW75: 00:00:00 | DX75: 00:00:00 | DY75: 00:00:00 | DZ75: 00:00:00 | EA75: 00:00:00 | EB75: 00:00:00 | EC75: 00:00:00 | ED75: 00:00:00 | EE75: 00:00:00 | EF75: 00:00:00 | EG75: 00:00:00 | EH75: 00:00:00 | EI75: 00:00:00 | EJ75: 00:00:00 | EK75: 00:00:00 | EL75: 00:00:00 | EM75: 00:00:00 | EN75: 00:00:00 | EO75: 00:00:00 | EP75: 00:00:00 | EQ75: 00:00:00 | ER75: 00:00:00 | ES75: 00:00:00 | ET75: 00:00:00 | EU75: 00:00:00 | EV75: 00:00:00 | EW75: 00:00:00 | EX75: 00:00:00 | EY75: 00:00:00 | EZ75: 00:00:00 | FA75: 00:00:00 | FB75: 00:00:00 | FC75: 00:00:00 | FD75: 00:00:00 | FE75: 00:00:00 | FF75: 00:00:00 | FG75: 00:00:00 | FH75: 00:00:00 | FI75: 00:00:00 | FJ75: 00:00:00 | FK75: 00:00:00 | FL75: 00:00:00 | FM75: 00:00:00 | FN75: 00:00:00 | FO75: 00:00:00 | FP75: 00:00:00 | FQ75: 00:00:00 | FR75: 00:00:00 | FS75: 00:00:00 | FT75: 00:00:00 | FU75: 00:00:00 | FV75: 00:00:00 | FW75: 00:00:00 | FX75: 00:00:00 | FY75: 00:00:00 | FZ75: 00:00:00 | GA75: 00:00:00 | GB75: 00:00:00 | GC75: 00:00:00 | GD75: 00:00:00 | GE75: 00:00:00 | GF75: 00:00:00 | GG75: 00:00:00 | GH75: 00:00:00 | GI75: 00:00:00 | GJ75: 00:00:00 | GK75: 00:00:00
E76: Project costs / funding requirement - paste | G76: $ 000s | H76: =SUM(J76:GK76) -> 340728.8399 | J76: =UDF_Output2!J32 -> 0 | K76: =UDF_Output2!K32 -> 0 | L76: =UDF_Output2!L32 -> 0 | M76: =UDF_Output2!M32 -> 0 | N76: =UDF_Output2!N32 -> 0 | O76: =UDF_Output2!O32 -> 0 | P76: =UDF_Output2!P32 -> 0 | Q76: =UDF_Output2!Q32 -> 0 | R76: =UDF_Output2!R32 -> 0 | S76: =UDF_Output2!S32 -> 0 | T76: =UDF_Output2!T32 -> 0 | U76: =UDF_Output2!U32 -> 0 | V76: =UDF_Output2!V32 -> 0 | W76: =UDF_Output2!W32 -> 0 | X76: =UDF_Output2!X32 -> 0 | Y76: =UDF_Output2!Y32 -> 13074.91624 | Z76: =UDF_Output2!Z32 -> 11974.7181 | AA76: =UDF_Output2!AA32 -> 11974.7181 | AB76: =UDF_Output2!AB32 -> 11974.7181 | AC76: =UDF_Output2!AC32 -> 11974.7181 | AD76: =UDF_Output2!AD32 -> 11974.7181 | AE76: =UDF_Output2!AE32 -> 11974.7181 | AF76: =UDF_Output2!AF32 -> 11974.7181 | AG76: =UDF_Output2!AG32 -> 11974.7181 | AH76: =UDF_Output2!AH32 -> 11974.7181 | AI76: =UDF_Output2!AI32 -> 11977.63607 | AJ76: =UDF_Output2!AJ32 -> 12013.00875 | AK76: =UDF_Output2!AK32 -> 12045.23887 | AL76: =UDF_Output2!AL32 -> 12083.35069 | AM76: =UDF_Output2!AM32 -> 12112.9943 | AN76: =UDF_Output2!AN32 -> 12154.09042 | AO76: =UDF_Output2!AO32 -> 12189.6299 | AP76: =UDF_Output2!AP32 -> 12215.36557 | AQ76: =UDF_Output2!AQ32 -> 12260.97066 | AR76: =UDF_Output2!AR32 -> 12284.0831 | AS76: =UDF_Output2!AS32 -> 12332.71487 | AT76: =UDF_Output2!AT32 -> 12368.76888 | AU76: =UDF_Output2!AU32 -> 12370.90832 | AV76: =UDF_Output2!AV32 -> 11394.66193 | AW76: =UDF_Output2!AW32 -> 11475.76624 | AX76: =UDF_Output2!AX32 -> 11461.58107 | AY76: =UDF_Output2!AY32 -> 27140.69112 | AZ76: =UDF_Output2!AZ32 -> 0 | BA76: =UDF_Output2!BA32 -> 0 | BB76: =UDF_Output2!BB32 -> 0 | BC76: =UDF_Output2!BC32 -> 0 | BD76: =UDF_Output2!BD32 -> 0 | BE76: =UDF_Output2!BE32 -> 0 | BF76: =UDF_Output2!BF32 -> 0 | BG76: =UDF_Output2!BG32 -> 0 | BH76: =UDF_Output2!BH32 -> 0 | BI76: =UDF_Output2!BI32 -> 0 | BJ76: =UDF_Output2!BJ32 -> 0 | BK76: =UDF_Output2!BK32 -> 0 | BL76: =UDF_Output2!BL32 -> 0 | BM76: =UDF_Output2!BM32 -> 0 | BN76: =UDF_Output2!BN32 -> 0 | BO76: =UDF_Output2!BO32 -> 0 | BP76: =UDF_Output2!BP32 -> 0 | BQ76: =UDF_Output2!BQ32 -> 0 | BR76: =UDF_Output2!BR32 -> 0 | BS76: =UDF_Output2!BS32 -> 0 | BT76: =UDF_Output2!BT32 -> 0 | BU76: =UDF_Output2!BU32 -> 0 | BV76: =UDF_Output2!BV32 -> 0 | BW76: =UDF_Output2!BW32 -> 0 | BX76: =UDF_Output2!BX32 -> 0 | BY76: =UDF_Output2!BY32 -> 0 | BZ76: =UDF_Output2!BZ32 -> 0 | CA76: =UDF_Output2!CA32 -> 0 | CB76: =UDF_Output2!CB32 -> 0 | CC76: =UDF_Output2!CC32 -> 0 | CD76: =UDF_Output2!CD32 -> 0 | CE76: =UDF_Output2!CE32 -> 0 | CF76: =UDF_Output2!CF32 -> 0 | CG76: =UDF_Output2!CG32 -> 0 | CH76: =UDF_Output2!CH32 -> 0 | CI76: =UDF_Output2!CI32 -> 0 | CJ76: =UDF_Output2!CJ32 -> 0 | CK76: =UDF_Output2!CK32 -> 0 | CL76: =UDF_Output2!CL32 -> 0 | CM76: =UDF_Output2!CM32 -> 0 | CN76: =UDF_Output2!CN32 -> 0 | CO76: =UDF_Output2!CO32 -> 0 | CP76: =UDF_Output2!CP32 -> 0 | CQ76: =UDF_Output2!CQ32 -> 0 | CR76: =UDF_Output2!CR32 -> 0 | CS76: =UDF_Output2!CS32 -> 0 | CT76: =UDF_Output2!CT32 -> 0 | CU76: =UDF_Output2!CU32 -> 0 | CV76: =UDF_Output2!CV32 -> 0 | CW76: =UDF_Output2!CW32 -> 0 | CX76: =UDF_Output2!CX32 -> 0 | CY76: =UDF_Output2!CY32 -> 0 | CZ76: =UDF_Output2!CZ32 -> 0 | DA76: =UDF_Output2!DA32 -> 0 | DB76: =UDF_Output2!DB32 -> 0 | DC76: =UDF_Output2!DC32 -> 0 | DD76: =UDF_Output2!DD32 -> 0 | DE76: =UDF_Output2!DE32 -> 0 | DF76: =UDF_Output2!DF32 -> 0 | DG76: =UDF_Output2!DG32 -> 0 | DH76: =UDF_Output2!DH32 -> 0 | DI76: =UDF_Output2!DI32 -> 0 | DJ76: =UDF_Output2!DJ32 -> 0 | DK76: =UDF_Output2!DK32 -> 0 | DL76: =UDF_Output2!DL32 -> 0 | DM76: =UDF_Output2!DM32 -> 0 | DN76: =UDF_Output2!DN32 -> 0 | DO76: =UDF_Output2!DO32 -> 0 | DP76: =UDF_Output2!DP32 -> 0 | DQ76: =UDF_Output2!DQ32 -> 0 | DR76: =UDF_Output2!DR32 -> 0 | DS76: =UDF_Output2!DS32 -> 0 | DT76: =UDF_Output2!DT32 -> 0 | DU76: =UDF_Output2!DU32 -> 0 | DV76: =UDF_Output2!DV32 -> 0 | DW76: =UDF_Output2!DW32 -> 0 | DX76: =UDF_Output2!DX32 -> 0 | DY76: =UDF_Output2!DY32 -> 0 | DZ76: =UDF_Output2!DZ32 -> 0 | EA76: =UDF_Output2!EA32 -> 0 | EB76: =UDF_Output2!EB32 -> 0 | EC76: =UDF_Output2!EC32 -> 0 | ED76: =UDF_Output2!ED32 -> 0 | EE76: =UDF_Output2!EE32 -> 0 | EF76: =UDF_Output2!EF32 -> 0 | EG76: =UDF_Output2!EG32 -> 0 | EH76: =UDF_Output2!EH32 -> 0 | EI76: =UDF_Output2!EI32 -> 0 | EJ76: =UDF_Output2!EJ32 -> 0 | EK76: =UDF_Output2!EK32 -> 0 | EL76: =UDF_Output2!EL32 -> 0 | EM76: =UDF_Output2!EM32 -> 0 | EN76: =UDF_Output2!EN32 -> 0 | EO76: =UDF_Output2!EO32 -> 0 | EP76: =UDF_Output2!EP32 -> 0 | EQ76: =UDF_Output2!EQ32 -> 0 | ER76: =UDF_Output2!ER32 -> 0 | ES76: =UDF_Output2!ES32 -> 0 | ET76: =UDF_Output2!ET32 -> 0 | EU76: =UDF_Output2!EU32 -> 0 | EV76: =UDF_Output2!EV32 -> 0 | EW76: =UDF_Output2!EW32 -> 0 | EX76: =UDF_Output2!EX32 -> 0 | EY76: =UDF_Output2!EY32 -> 0 | EZ76: =UDF_Output2!EZ32 -> 0 | FA76: =UDF_Output2!FA32 -> 0 | FB76: =UDF_Output2!FB32 -> 0 | FC76: =UDF_Output2!FC32 -> 0 | FD76: =UDF_Output2!FD32 -> 0 | FE76: =UDF_Output2!FE32 -> 0 | FF76: =UDF_Output2!FF32 -> 0 | FG76: =UDF_Output2!FG32 -> 0 | FH76: =UDF_Output2!FH32 -> 0 | FI76: =UDF_Output2!FI32 -> 0 | FJ76: =UDF_Output2!FJ32 -> 0 | FK76: =UDF_Output2!FK32 -> 0 | FL76: =UDF_Output2!FL32 -> 0 | FM76: =UDF_Output2!FM32 -> 0 | FN76: =UDF_Output2!FN32 -> 0 | FO76: =UDF_Output2!FO32 -> 0 | FP76: =UDF_Output2!FP32 -> 0 | FQ76: =UDF_Output2!FQ32 -> 0 | FR76: =UDF_Output2!FR32 -> 0 | FS76: =UDF_Output2!FS32 -> 0 | FT76: =UDF_Output2!FT32 -> 0 | FU76: =UDF_Output2!FU32 -> 0 | FV76: =UDF_Output2!FV32 -> 0 | FW76: =UDF_Output2!FW32 -> 0 | FX76: =UDF_Output2!FX32 -> 0 | FY76: =UDF_Output2!FY32 -> 0 | FZ76: =UDF_Output2!FZ32 -> 0 | GA76: =UDF_Output2!GA32 -> 0 | GB76: =UDF_Output2!GB32 -> 0 | GC76: =UDF_Output2!GC32 -> 0 | GD76: =UDF_Output2!GD32 -> 0 | GE76: =UDF_Output2!GE32 -> 0 | GF76: =UDF_Output2!GF32 -> 0 | GG76: =UDF_Output2!GG32 -> 0 | GH76: =UDF_Output2!GH32 -> 0 | GI76: =UDF_Output2!GI32 -> 0 | GJ76: =UDF_Output2!GJ32 -> 0 | GK76: =UDF_Output2!GK32 -> 0
B78: Quarterly line items
E79: Model period ending | G79: date | J79: 2021-06-30 | K79: 2021-12-31 | L79: 2022-06-30 | M79: 2022-12-31 | N79: 2022-12-31 | O79: 2023-06-30 | P79: 2023-12-31 | Q79: 2024-06-30 | R79: 2024-12-31 | S79: 2025-06-30 | T79: 2025-12-31 | U79: 2026-06-30 | V79: 2026-12-31 | W79: 2027-06-30 | X79: 2027-12-31 | Y79: 2028-06-30 | Z79: 2028-12-31 | AA79: 2029-06-30 | AB79: 2029-12-31 | AC79: 2030-06-30 | AD79: 2030-12-31 | AE79: 2031-06-30 | AF79: 2031-12-31 | AG79: 2032-06-30 | AH79: 2032-12-31 | AI79: 2033-06-30 | AJ79: 2033-12-31 | AK79: 2034-06-30 | AL79: 2034-12-31 | AM79: 2035-06-30 | AN79: 2035-12-31 | AO79: 2036-06-30 | AP79: 2036-12-31 | AQ79: 2037-06-30 | AR79: 2037-12-31 | AS79: 2038-06-30 | AT79: 2038-12-31 | AU79: 2039-06-30 | AV79: 2039-12-31 | AW79: 2040-06-30 | AX79: 2040-12-31 | AY79: 2041-06-30 | AZ79: 2041-12-31 | BA79: 2042-06-30 | BB79: 2042-12-31 | BC79: 2043-06-30 | BD79: 2043-12-31 | BE79: 2044-06-30 | BF79: 2044-12-31 | BG79: 2045-06-30 | BH79: 2045-12-31 | BI79: 2046-06-30 | BJ79: 2046-12-31 | BK79: 2047-06-30 | BL79: 2047-12-31 | BM79: 2048-06-30 | BN79: 2048-12-31 | BO79: 2049-06-30 | BP79: 2049-12-31 | BQ79: 2050-06-30 | BR79: 2050-12-31 | BS79: 2051-06-30 | BT79: 2051-12-31 | BU79: 2052-06-30 | BV79: 2052-12-31 | BW79: 2053-06-30 | BX79: 2053-12-31 | BY79: 2054-06-30 | BZ79: 2054-12-31 | CA79: 2055-06-30 | CB79: 2055-12-31 | CC79: 2056-06-30 | CD79: 2056-12-31 | CE79: 2057-06-30 | CF79: 2057-12-31 | CG79: 2058-06-30 | CH79: 2058-12-31 | CI79: 2059-06-30 | CJ79: 2059-12-31 | CK79: 2060-06-30 | CL79: 2060-12-31 | CM79: 2061-06-30 | CN79: 2061-12-31 | CO79: 2062-06-30 | CP79: 2062-12-31 | CQ79: 2063-06-30 | CR79: 2063-12-31 | CS79: 2064-06-30 | CT79: 2064-12-31 | CU79: 2065-06-30 | CV79: 2065-12-31 | CW79: 2066-06-30 | CX79: 2066-12-31 | CY79: 2067-06-30 | CZ79: 2067-12-31 | DA79: 2068-06-30 | DB79: 2068-12-31 | DC79: 2069-06-30 | DD79: 2069-12-31 | DE79: 2070-06-30 | DF79: 2070-12-31 | DG79: 2071-06-30 | DH79: 2071-12-31 | DI79: 2072-06-30 | DJ79: 2072-12-31 | DK79: 2073-06-30 | DL79: 2073-12-31 | DM79: 2074-06-30 | DN79: 2074-12-31 | DO79: 2075-06-30 | DP79: 2075-12-31 | DQ79: 2076-06-30 | DR79: 2076-12-31 | DS79: 2077-06-30 | DT79: 2077-12-31 | DU79: 2078-06-30 | DV79: 2078-12-31 | DW79: 2079-06-30 | DX79: 2079-12-31 | DY79: 2080-06-30 | DZ79: 2080-12-31 | EA79: 2081-06-30 | EB79: 2081-12-31 | EC79: 2082-06-30 | ED79: 2082-12-31 | EE79: 2083-06-30 | EF79: 2083-12-31 | EG79: 2084-06-30 | EH79: 2084-12-31 | EI79: 2085-06-30 | EJ79: 2085-12-31 | EK79: 2086-06-30 | EL79: 2086-12-31 | EM79: 2087-06-30 | EN79: 2087-12-31 | EO79: 2088-06-30 | EP79: 2088-12-31 | EQ79: 2089-06-30 | ER79: 2089-12-31 | ES79: 2090-06-30 | ET79: 2090-12-31 | EU79: 2091-06-30 | EV79: 2091-12-31 | EW79: 2092-06-30 | EX79: 2092-12-31 | EY79: 2093-06-30 | EZ79: 2093-12-31 | FA79: 2094-06-30 | FB79: 2094-12-31 | FC79: 2095-06-30 | FD79: 2095-12-31 | FE79: 2096-06-30 | FF79: 2096-12-31 | FG79: 2097-06-30 | FH79: 2097-12-31 | FI79: 2098-06-30 | FJ79: 2098-12-31 | FK79: 2099-06-30 | FL79: 2099-12-31 | FM79: 2100-06-30 | FN79: 2100-12-31 | FO79: 2101-06-30 | FP79: 2101-12-31 | FQ79: 2102-06-30 | FR79: 2102-12-31 | FS79: 2103-06-30 | FT79: 2103-12-31 | FU79: 2104-06-30 | FV79: 2104-12-31 | FW79: 2105-06-30 | FX79: 2105-12-31 | FY79: 2106-06-30 | FZ79: 2106-12-31 | GA79: 2107-06-30 | GB79: 2107-12-31 | GC79: 2108-06-30 | GD79: 2108-12-31 | GE79: 2109-06-30 | GF79: 2109-12-31 | GG79: 2110-06-30 | GH79: 2110-12-31 | GI79: 2111-06-30 | GJ79: 2111-12-31 | GK79: 2112-06-30
E80: Cash flow available for senior debt - paste | G80: $ 000s | H80: =SUM(J80:GK80) -> 676560.8231 | J80: =UDF_Output2!J36 -> 0 | K80: =UDF_Output2!K36 -> 0 | L80: =UDF_Output2!L36 -> 0 | M80: =UDF_Output2!M36 -> 0 | N80: =UDF_Output2!N36 -> 0 | O80: =UDF_Output2!O36 -> 0 | P80: =UDF_Output2!P36 -> 0 | Q80: =UDF_Output2!Q36 -> 0 | R80: =UDF_Output2!R36 -> 0 | S80: =UDF_Output2!S36 -> 0 | T80: =UDF_Output2!T36 -> 0 | U80: =UDF_Output2!U36 -> 0 | V80: =UDF_Output2!V36 -> 0 | W80: =UDF_Output2!W36 -> 0 | X80: =UDF_Output2!X36 -> 0 | Y80: =UDF_Output2!Y36 -> 0 | Z80: =UDF_Output2!Z36 -> 0 | AA80: =UDF_Output2!AA36 -> 0 | AB80: =UDF_Output2!AB36 -> 0 | AC80: =UDF_Output2!AC36 -> 0 | AD80: =UDF_Output2!AD36 -> 0 | AE80: =UDF_Output2!AE36 -> 0 | AF80: =UDF_Output2!AF36 -> 0 | AG80: =UDF_Output2!AG36 -> 0 | AH80: =UDF_Output2!AH36 -> 0 | AI80: =UDF_Output2!AI36 -> 0 | AJ80: =UDF_Output2!AJ36 -> 0 | AK80: =UDF_Output2!AK36 -> 0 | AL80: =UDF_Output2!AL36 -> 0 | AM80: =UDF_Output2!AM36 -> 0 | AN80: =UDF_Output2!AN36 -> 0 | AO80: =UDF_Output2!AO36 -> 0 | AP80: =UDF_Output2!AP36 -> 0 | AQ80: =UDF_Output2!AQ36 -> 0 | AR80: =UDF_Output2!AR36 -> 0 | AS80: =UDF_Output2!AS36 -> 0 | AT80: =UDF_Output2!AT36 -> 0 | AU80: =UDF_Output2!AU36 -> 0 | AV80: =UDF_Output2!AV36 -> 0 | AW80: =UDF_Output2!AW36 -> 0 | AX80: =UDF_Output2!AX36 -> 0 | AY80: =UDF_Output2!AY36 -> 0 | AZ80: =UDF_Output2!AZ36 -> 17345.6005 | BA80: =UDF_Output2!BA36 -> 18611.3894 | BB80: =UDF_Output2!BB36 -> 17823.87214 | BC80: =UDF_Output2!BC36 -> 18440.88782 | BD80: =UDF_Output2!BD36 -> 17779.41717 | BE80: =UDF_Output2!BE36 -> 18182.50671 | BF80: =UDF_Output2!BF36 -> 17679.76312 | BG80: =UDF_Output2!BG36 -> 18032.24038 | BH80: =UDF_Output2!BH36 -> 17507.51615 | BI80: =UDF_Output2!BI36 -> 17854.32327 | BJ80: =UDF_Output2!BJ36 -> 17425.72684 | BK80: =UDF_Output2!BK36 -> 17744.3437 | BL80: =UDF_Output2!BL36 -> 17266.23855 | BM80: =UDF_Output2!BM36 -> 17584.22645 | BN80: =UDF_Output2!BN36 -> 17100.13253 | BO80: =UDF_Output2!BO36 -> 17447.50899 | BP80: =UDF_Output2!BP36 -> 16900.81135 | BQ80: =UDF_Output2!BQ36 -> 17243.07455 | BR80: =UDF_Output2!BR36 -> 16745.79644 | BS80: =UDF_Output2!BS36 -> 17061.16477 | BT80: =UDF_Output2!BT36 -> 16591.0105 | BU80: =UDF_Output2!BU36 -> 16902.96956 | BV80: =UDF_Output2!BV36 -> 16390.25655 | BW80: =UDF_Output2!BW36 -> 16728.99915 | BX80: =UDF_Output2!BX36 -> 16154.1721 | BY80: =UDF_Output2!BY36 -> 16492.30207 | BZ80: =UDF_Output2!BZ36 -> 16010.21263 | CA80: =UDF_Output2!CA36 -> 16364.47253 | CB80: =UDF_Output2!CB36 -> 15877.18048 | CC80: =UDF_Output2!CC36 -> 16232.92002 | CD80: =UDF_Output2!CD36 -> 15740.24638 | CE80: =UDF_Output2!CE36 -> 16123.59328 | CF80: =UDF_Output2!CF36 -> 15573.93787 | CG80: =UDF_Output2!CG36 -> 15958.0599 | CH80: =UDF_Output2!CH36 -> 15823.28477 | CI80: =UDF_Output2!CI36 -> 15536.22958 | CJ80: =UDF_Output2!CJ36 -> 15588.24136 | CK80: =UDF_Output2!CK36 -> 15435.06438 | CL80: =UDF_Output2!CL36 -> 15549.06334 | CM80: =UDF_Output2!CM36 -> 15419.89692 | CN80: =UDF_Output2!CN36 -> 4292.168901 | CO80: =UDF_Output2!CO36 -> 0 | CP80: =UDF_Output2!CP36 -> 0 | CQ80: =UDF_Output2!CQ36 -> 0 | CR80: =UDF_Output2!CR36 -> 0 | CS80: =UDF_Output2!CS36 -> 0 | CT80: =UDF_Output2!CT36 -> 0 | CU80: =UDF_Output2!CU36 -> 0 | CV80: =UDF_Output2!CV36 -> 0 | CW80: =UDF_Output2!CW36 -> 0 | CX80: =UDF_Output2!CX36 -> 0 | CY80: =UDF_Output2!CY36 -> 0 | CZ80: =UDF_Output2!CZ36 -> 0 | DA80: =UDF_Output2!DA36 -> 0 | DB80: =UDF_Output2!DB36 -> 0 | DC80: =UDF_Output2!DC36 -> 0 | DD80: =UDF_Output2!DD36 -> 0 | DE80: =UDF_Output2!DE36 -> 0 | DF80: =UDF_Output2!DF36 -> 0 | DG80: =UDF_Output2!DG36 -> 0 | DH80: =UDF_Output2!DH36 -> 0 | DI80: =UDF_Output2!DI36 -> 0 | DJ80: =UDF_Output2!DJ36 -> 0 | DK80: =UDF_Output2!DK36 -> 0 | DL80: =UDF_Output2!DL36 -> 0 | DM80: =UDF_Output2!DM36 -> 0 | DN80: =UDF_Output2!DN36 -> 0 | DO80: =UDF_Output2!DO36 -> 0 | DP80: =UDF_Output2!DP36 -> 0 | DQ80: =UDF_Output2!DQ36 -> 0 | DR80: =UDF_Output2!DR36 -> 0 | DS80: =UDF_Output2!DS36 -> 0 | DT80: =UDF_Output2!DT36 -> 0 | DU80: =UDF_Output2!DU36 -> 0 | DV80: =UDF_Output2!DV36 -> 0 | DW80: =UDF_Output2!DW36 -> 0 | DX80: =UDF_Output2!DX36 -> 0 | DY80: =UDF_Output2!DY36 -> 0 | DZ80: =UDF_Output2!DZ36 -> 0 | EA80: =UDF_Output2!EA36 -> 0 | EB80: =UDF_Output2!EB36 -> 0 | EC80: =UDF_Output2!EC36 -> 0 | ED80: =UDF_Output2!ED36 -> 0 | EE80: =UDF_Output2!EE36 -> 0 | EF80: =UDF_Output2!EF36 -> 0 | EG80: =UDF_Output2!EG36 -> 0 | EH80: =UDF_Output2!EH36 -> 0 | EI80: =UDF_Output2!EI36 -> 0 | EJ80: =UDF_Output2!EJ36 -> 0 | EK80: =UDF_Output2!EK36 -> 0 | EL80: =UDF_Output2!EL36 -> 0 | EM80: =UDF_Output2!EM36 -> 0 | EN80: =UDF_Output2!EN36 -> 0 | EO80: =UDF_Output2!EO36 -> 0 | EP80: =UDF_Output2!EP36 -> 0 | EQ80: =UDF_Output2!EQ36 -> 0 | ER80: =UDF_Output2!ER36 -> 0 | ES80: =UDF_Output2!ES36 -> 0 | ET80: =UDF_Output2!ET36 -> 0 | EU80: =UDF_Output2!EU36 -> 0 | EV80: =UDF_Output2!EV36 -> 0 | EW80: =UDF_Output2!EW36 -> 0 | EX80: =UDF_Output2!EX36 -> 0 | EY80: =UDF_Output2!EY36 -> 0 | EZ80: =UDF_Output2!EZ36 -> 0 | FA80: =UDF_Output2!FA36 -> 0 | FB80: =UDF_Output2!FB36 -> 0 | FC80: =UDF_Output2!FC36 -> 0 | FD80: =UDF_Output2!FD36 -> 0 | FE80: =UDF_Output2!FE36 -> 0 | FF80: =UDF_Output2!FF36 -> 0 | FG80: =UDF_Output2!FG36 -> 0 | FH80: =UDF_Output2!FH36 -> 0 | FI80: =UDF_Output2!FI36 -> 0 | FJ80: =UDF_Output2!FJ36 -> 0 | FK80: =UDF_Output2!FK36 -> 0 | FL80: =UDF_Output2!FL36 -> 0 | FM80: =UDF_Output2!FM36 -> 0 | FN80: =UDF_Output2!FN36 -> 0 | FO80: =UDF_Output2!FO36 -> 0 | FP80: =UDF_Output2!FP36 -> 0 | FQ80: =UDF_Output2!FQ36 -> 0 | FR80: =UDF_Output2!FR36 -> 0 | FS80: =UDF_Output2!FS36 -> 0 | FT80: =UDF_Output2!FT36 -> 0 | FU80: =UDF_Output2!FU36 -> 0 | FV80: =UDF_Output2!FV36 -> 0 | FW80: =UDF_Output2!FW36 -> 0 | FX80: =UDF_Output2!FX36 -> 0 | FY80: =UDF_Output2!FY36 -> 0 | FZ80: =UDF_Output2!FZ36 -> 0 | GA80: =UDF_Output2!GA36 -> 0 | GB80: =UDF_Output2!GB36 -> 0 | GC80: =UDF_Output2!GC36 -> 0 | GD80: =UDF_Output2!GD36 -> 0 | GE80: =UDF_Output2!GE36 -> 0 | GF80: =UDF_Output2!GF36 -> 0 | GG80: =UDF_Output2!GG36 -> 0 | GH80: =UDF_Output2!GH36 -> 0 | GI80: =UDF_Output2!GI36 -> 0 | GJ80: =UDF_Output2!GJ36 -> 0 | GK80: =UDF_Output2!GK36 -> 0
A84: PASTE OR UDF LINE ITEMS Going To Model with IF statement
H85: To Model | J85: Range Name: SolvePaste
B86: Constants
E87: Not indexed power tariff | F87: =J87 -> 0.03528315898 | G87: USD / kWh | J87: =IF(Flag_for_Applying_UDF,J66,J45) -> 0.03528315898 | K87: Bisectional
E88: EBL requirement fixed | F88: =J88 -> 0 | G88: $ 000s | J88: 0
E89: Equity bridge interest and fees rolled up - total - fixed | F89: =J89 -> 0 | G89: $ 000s | J89: 0
E90: Sum of construction debt drawdown - T1 - Paste | F90: =J90+500 -> 139193.5164 | G90: =SMU -> $ 000s | J90: 138693.5164
E91: Sum of construction debt drawdown - T2 - Paste | F91: =J91+500 -> 139193.5164 | G91: =SMU -> $ 000s | J91: 138693.5164
E92: Debt capacity at target DSCR - Paste | F92: =J92 -> 291177.1341 | G92: $ 000s | J92: 291177.1341
E93: Debt repayment amount - all tranche active - Paste | F93: =J93 -> 291177.1341 | G93: $ 000s | J93: 291177.1341
B95: Monthly line items
E96: Model period ending - m | G96: date | J96: 2021-01-31 | K96: 2021-02-28 | L96: 2021-03-31 | M96: 2021-04-30 | N96: 2021-04-30 | O96: 2021-05-31 | P96: 2021-06-30 | Q96: 2021-07-31 | R96: 2021-08-31 | S96: 2021-09-30 | T96: 2021-10-31 | U96: 2021-11-30 | V96: 2021-12-31 | W96: 2022-01-31 | X96: 2022-02-28 | Y96: 2022-03-31 | Z96: 2022-04-30 | AA96: 2022-05-31 | AB96: 2022-06-30 | AC96: 2022-07-31 | AD96: 2022-08-31 | AE96: 2022-09-30 | AF96: 2022-10-31 | AG96: 2022-11-30 | AH96: 2022-12-31 | AI96: 2023-01-31 | AJ96: 2023-02-28 | AK96: 2023-03-31 | AL96: 2023-04-30 | AM96: 2023-05-31 | AN96: 2023-06-30 | AO96: 2023-07-31 | AP96: 2023-08-31 | AQ96: 2023-09-30 | AR96: 2023-10-31 | AS96: 2023-11-30 | AT96: 2023-12-31 | AU96: 2024-01-31 | AV96: 2024-02-29 | AW96: 2024-03-31 | AX96: 2024-04-30 | AY96: 2024-05-31 | AZ96: 2024-06-30 | BA96: 2024-07-31 | BB96: 2024-08-31 | BC96: 2024-09-30 | BD96: 2024-10-31 | BE96: 2024-11-30 | BF96: 2024-12-31 | BG96: 00:00:00 | BH96: 00:00:00 | BI96: 00:00:00 | BJ96: 00:00:00 | BK96: 00:00:00 | BL96: 00:00:00 | BM96: 00:00:00 | BN96: 00:00:00 | BO96: 00:00:00 | BP96: 00:00:00 | BQ96: 00:00:00 | BR96: 00:00:00 | BS96: 00:00:00 | BT96: 00:00:00 | BU96: 00:00:00 | BV96: 00:00:00 | BW96: 00:00:00 | BX96: 00:00:00 | BY96: 00:00:00 | BZ96: 00:00:00 | CA96: 00:00:00 | CB96: 00:00:00 | CC96: 00:00:00 | CD96: 00:00:00 | CE96: 00:00:00 | CF96: 00:00:00 | CG96: 00:00:00 | CH96: 00:00:00 | CI96: 00:00:00 | CJ96: 00:00:00 | CK96: 00:00:00 | CL96: 00:00:00 | CM96: 00:00:00 | CN96: 00:00:00 | CO96: 00:00:00 | CP96: 00:00:00 | CQ96: 00:00:00 | CR96: 00:00:00 | CS96: 00:00:00 | CT96: 00:00:00 | CU96: 00:00:00 | CV96: 00:00:00 | CW96: 00:00:00 | CX96: 00:00:00 | CY96: 00:00:00 | CZ96: 00:00:00 | DA96: 00:00:00 | DB96: 00:00:00 | DC96: 00:00:00 | DD96: 00:00:00 | DE96: 00:00:00 | DF96: 00:00:00 | DG96: 00:00:00 | DH96: 00:00:00 | DI96: 00:00:00 | DJ96: 00:00:00 | DK96: 00:00:00 | DL96: 00:00:00 | DM96: 00:00:00 | DN96: 00:00:00 | DO96: 00:00:00 | DP96: 00:00:00 | DQ96: 00:00:00 | DR96: 00:00:00 | DS96: 00:00:00 | DT96: 00:00:00 | DU96: 00:00:00 | DV96: 00:00:00 | DW96: 00:00:00 | DX96: 00:00:00 | DY96: 00:00:00 | DZ96: 00:00:00 | EA96: 00:00:00 | EB96: 00:00:00 | EC96: 00:00:00 | ED96: 00:00:00 | EE96: 00:00:00 | EF96: 00:00:00 | EG96: 00:00:00 | EH96: 00:00:00 | EI96: 00:00:00 | EJ96: 00:00:00 | EK96: 00:00:00 | EL96: 00:00:00 | EM96: 00:00:00 | EN96: 00:00:00 | EO96: 00:00:00 | EP96: 00:00:00 | EQ96: 00:00:00 | ER96: 00:00:00 | ES96: 00:00:00 | ET96: 00:00:00 | EU96: 00:00:00 | EV96: 00:00:00 | EW96: 00:00:00 | EX96: 00:00:00 | EY96: 00:00:00 | EZ96: 00:00:00 | FA96: 00:00:00 | FB96: 00:00:00 | FC96: 00:00:00 | FD96: 00:00:00 | FE96: 00:00:00 | FF96: 00:00:00 | FG96: 00:00:00 | FH96: 00:00:00 | FI96: 00:00:00 | FJ96: 00:00:00 | FK96: 00:00:00 | FL96: 00:00:00 | FM96: 00:00:00 | FN96: 00:00:00 | FO96: 00:00:00 | FP96: 00:00:00 | FQ96: 00:00:00 | FR96: 00:00:00 | FS96: 00:00:00 | FT96: 00:00:00 | FU96: 00:00:00 | FV96: 00:00:00 | FW96: 00:00:00 | FX96: 00:00:00 | FY96: 00:00:00 | FZ96: 00:00:00 | GA96: 00:00:00 | GB96: 00:00:00 | GC96: 00:00:00 | GD96: 00:00:00 | GE96: 00:00:00 | GF96: 00:00:00 | GG96: 00:00:00 | GH96: 00:00:00 | GI96: 00:00:00 | GJ96: 00:00:00 | GK96: 00:00:00
E97: Project costs / funding requirement - paste | G97: $ 000s | H97: =SUM(J97:GK97) -> 346733.7907 | J97: =IF(Flag_for_Applying_UDF,J76,J55) -> 0 | K97: 0 | L97: 0 | M97: 0 | N97: 0 | O97: 0 | P97: 0 | Q97: 0 | R97: 0 | S97: 0 | T97: 0 | U97: 0 | V97: 0 | W97: 0 | X97: 0 | Y97: 0 | Z97: 14167.12764 | AA97: 12008.52465 | AB97: 12008.52465 | AC97: 12008.52465 | AD97: 12008.52465 | AE97: 12008.52465 | AF97: 12022.53277 | AG97: 12055.24127 | AH97: 12091.89013 | AI97: 12126.7215 | AJ97: 12143.4904 | AK97: 12196.63319 | AL97: 12222.93994 | AM97: 12266.97513 | AN97: 12290.69537 | AO97: 12337.71486 | AP97: =IF(Flag_for_Applying_UDF,AP76,AP55) -> 12373.25433 | AQ97: 12393.06664 | AR97: 12444.5951 | AS97: 12461.78417 | AT97: 12516.33931 | AU97: 12552.39332 | AV97: 12542.68602 | AW97: 11578.06722 | AX97: 11653.26229 | AY97: 11644.98636 | AZ97: 28608.7705 | BA97: 0 | BB97: 0 | BC97: 0 | BD97: 0 | BE97: 0 | BF97: 0 | BG97: 0 | BH97: 0 | BI97: 0 | BJ97: 0 | BK97: 0 | BL97: 0 | BM97: 0 | BN97: 0 | BO97: 0 | BP97: 0 | BQ97: 0 | BR97: 0 | BS97: 0 | BT97: 0 | BU97: 0 | BV97: =IF(Flag_for_Applying_UDF,BV76,BV55) -> 0 | BW97: 0 | BX97: 0 | BY97: 0 | BZ97: 0 | CA97: 0 | CB97: 0 | CC97: 0 | CD97: 0 | CE97: 0 | CF97: 0 | CG97: 0 | CH97: 0 | CI97: 0 | CJ97: 0 | CK97: 0 | CL97: 0 | CM97: 0 | CN97: 0 | CO97: 0 | CP97: 0 | CQ97: 0 | CR97: 0 | CS97: 0 | CT97: 0 | CU97: 0 | CV97: 0 | CW97: 0 | CX97: 0 | CY97: 0 | CZ97: 0 | DA97: 0 | DB97: =IF(Flag_for_Applying_UDF,DB76,DB55) -> 0 | DC97: 0 | DD97: 0 | DE97: 0 | DF97: 0 | DG97: 0 | DH97: 0 | DI97: 0 | DJ97: 0 | DK97: 0 | DL97: 0 | DM97: 0 | DN97: 0 | DO97: 0 | DP97: 0 | DQ97: 0 | DR97: 0 | DS97: 0 | DT97: 0 | DU97: 0 | DV97: 0 | DW97: 0 | DX97: 0 | DY97: 0 | DZ97: 0 | EA97: 0 | EB97: 0 | EC97: 0 | ED97: 0 | EE97: 0 | EF97: 0 | EG97: 0 | EH97: =IF(Flag_for_Applying_UDF,EH76,EH55) -> 0 | EI97: 0 | EJ97: 0 | EK97: 0 | EL97: 0 | EM97: 0 | EN97: 0 | EO97: 0 | EP97: 0 | EQ97: 0 | ER97: 0 | ES97: 0 | ET97: 0 | EU97: 0 | EV97: 0 | EW97: 0 | EX97: 0 | EY97: 0 | EZ97: 0 | FA97: 0 | FB97: 0 | FC97: 0 | FD97: 0 | FE97: 0 | FF97: 0 | FG97: 0 | FH97: 0 | FI97: 0 | FJ97: 0 | FK97: 0 | FL97: 0 | FM97: 0 | FN97: =IF(Flag_for_Applying_UDF,FN76,FN55) -> 0 | FO97: 0 | FP97: 0 | FQ97: 0 | FR97: 0 | FS97: 0 | FT97: 0 | FU97: 0 | FV97: 0 | FW97: 0 | FX97: 0 | FY97: 0 | FZ97: 0 | GA97: 0 | GB97: 0 | GC97: 0 | GD97: 0 | GE97: 0 | GF97: 0 | GG97: 0 | GH97: 0 | GI97: 0 | GJ97: 0 | GK97: 0
B99: Quarterly line items
E100: Model period ending | G100: date | J100: 2021-06-30 | K100: 2021-12-31 | L100: 2022-06-30 | M100: 2022-12-31 | N100: 2022-12-31 | O100: 2023-06-30 | P100: 2023-12-31 | Q100: 2024-06-30 | R100: 2024-12-31 | S100: 2025-06-30 | T100: 2025-12-31 | U100: 2026-06-30 | V100: 2026-12-31 | W100: 2027-06-30 | X100: 2027-12-31 | Y100: 2028-06-30 | Z100: 2028-12-31 | AA100: 2029-06-30 | AB100: 2029-12-31 | AC100: 2030-06-30 | AD100: 2030-12-31 | AE100: 2031-06-30 | AF100: 2031-12-31 | AG100: 2032-06-30 | AH100: 2032-12-31 | AI100: 2033-06-30 | AJ100: 2033-12-31 | AK100: 2034-06-30 | AL100: 2034-12-31 | AM100: 2035-06-30 | AN100: 2035-12-31 | AO100: 2036-06-30 | AP100: 2036-12-31 | AQ100: 2037-06-30 | AR100: 2037-12-31 | AS100: 2038-06-30 | AT100: 2038-12-31 | AU100: 2039-06-30 | AV100: 2039-12-31 | AW100: 2040-06-30 | AX100: 2040-12-31 | AY100: 2041-06-30 | AZ100: 2041-12-31 | BA100: 2042-06-30 | BB100: 2042-12-31 | BC100: 2043-06-30 | BD100: 2043-12-31 | BE100: 2044-06-30 | BF100: 2044-12-31 | BG100: 2045-06-30 | BH100: 2045-12-31 | BI100: 2046-06-30 | BJ100: 2046-12-31 | BK100: 2047-06-30 | BL100: 2047-12-31 | BM100: 2048-06-30 | BN100: 2048-12-31 | BO100: 2049-06-30 | BP100: 2049-12-31 | BQ100: 2050-06-30 | BR100: 2050-12-31 | BS100: 2051-06-30 | BT100: 2051-12-31 | BU100: 2052-06-30 | BV100: 2052-12-31 | BW100: 2053-06-30 | BX100: 2053-12-31 | BY100: 2054-06-30 | BZ100: 2054-12-31 | CA100: 2055-06-30 | CB100: 2055-12-31 | CC100: 2056-06-30 | CD100: 2056-12-31 | CE100: 2057-06-30 | CF100: 2057-12-31 | CG100: 2058-06-30 | CH100: 2058-12-31 | CI100: 2059-06-30 | CJ100: 2059-12-31 | CK100: 2060-06-30 | CL100: 2060-12-31 | CM100: 2061-06-30 | CN100: 2061-12-31 | CO100: 2062-06-30 | CP100: 2062-12-31 | CQ100: 2063-06-30 | CR100: 2063-12-31 | CS100: 2064-06-30 | CT100: 2064-12-31 | CU100: 2065-06-30 | CV100: 2065-12-31 | CW100: 2066-06-30 | CX100: 2066-12-31 | CY100: 2067-06-30 | CZ100: 2067-12-31 | DA100: 2068-06-30 | DB100: 2068-12-31 | DC100: 2069-06-30 | DD100: 2069-12-31 | DE100: 2070-06-30 | DF100: 2070-12-31 | DG100: 2071-06-30 | DH100: 2071-12-31 | DI100: 2072-06-30 | DJ100: 2072-12-31 | DK100: 2073-06-30 | DL100: 2073-12-31 | DM100: 2074-06-30 | DN100: 2074-12-31 | DO100: 2075-06-30 | DP100: 2075-12-31 | DQ100: 2076-06-30 | DR100: 2076-12-31 | DS100: 2077-06-30 | DT100: 2077-12-31 | DU100: 2078-06-30 | DV100: 2078-12-31 | DW100: 2079-06-30 | DX100: 2079-12-31 | DY100: 2080-06-30 | DZ100: 2080-12-31 | EA100: 2081-06-30 | EB100: 2081-12-31 | EC100: 2082-06-30 | ED100: 2082-12-31 | EE100: 2083-06-30 | EF100: 2083-12-31 | EG100: 2084-06-30 | EH100: 2084-12-31 | EI100: 2085-06-30 | EJ100: 2085-12-31 | EK100: 2086-06-30 | EL100: 2086-12-31 | EM100: 2087-06-30 | EN100: 2087-12-31 | EO100: 2088-06-30 | EP100: 2088-12-31 | EQ100: 2089-06-30 | ER100: 2089-12-31 | ES100: 2090-06-30 | ET100: 2090-12-31 | EU100: 2091-06-30 | EV100: 2091-12-31 | EW100: 2092-06-30 | EX100: 2092-12-31 | EY100: 2093-06-30 | EZ100: 2093-12-31 | FA100: 2094-06-30 | FB100: 2094-12-31 | FC100: 2095-06-30 | FD100: 2095-12-31 | FE100: 2096-06-30 | FF100: 2096-12-31 | FG100: 2097-06-30 | FH100: 2097-12-31 | FI100: 2098-06-30 | FJ100: 2098-12-31 | FK100: 2099-06-30 | FL100: 2099-12-31 | FM100: 2100-06-30 | FN100: 2100-12-31 | FO100: 2101-06-30 | FP100: 2101-12-31 | FQ100: 2102-06-30 | FR100: 2102-12-31 | FS100: 2103-06-30 | FT100: 2103-12-31 | FU100: 2104-06-30 | FV100: 2104-12-31 | FW100: 2105-06-30 | FX100: 2105-12-31 | FY100: 2106-06-30 | FZ100: 2106-12-31 | GA100: 2107-06-30 | GB100: 2107-12-31 | GC100: 2108-06-30 | GD100: 2108-12-31 | GE100: 2109-06-30 | GF100: 2109-12-31 | GG100: 2110-06-30 | GH100: 2110-12-31 | GI100: 2111-06-30 | GJ100: 2111-12-31 | GK100: 2112-06-30
E101: Cash flow available for senior debt - paste | G101: $ 000s | H101: =SUM(J101:GK101) -> 678616.7074 | J101: =IF(Flag_for_Applying_UDF,J80,J59) -> 0 | K101: 0 | L101: -9.27135791e-05 | M101: 2.417402331e-06 | N101: 2.417402331e-06 | O101: 2.053753063e-05 | P101: 2.713757759e-05 | Q101: -0.001100074103 | R101: 19404.63527 | S101: 18611.3894 | T101: 17823.87214 | U101: 18440.88782 | V101: 17779.41717 | W101: 18182.50671 | X101: 17679.76312 | Y101: 18032.24038 | Z101: 17507.51615 | AA101: 17854.32327 | AB101: 17425.72684 | AC101: 17744.3437 | AD101: 17266.23855 | AE101: 17584.22645 | AF101: 17100.13253 | AG101: 17447.50899 | AH101: 16900.81135 | AI101: 17243.07455 | AJ101: 16745.79644 | AK101: 17061.16477 | AL101: 16591.0105 | AM101: 16902.96956 | AN101: 16390.25655 | AO101: 16728.99915 | AP101: =IF(Flag_for_Applying_UDF,AP80,AP59) -> 16154.1721 | AQ101: 16492.30207 | AR101: 16010.21263 | AS101: 16364.47253 | AT101: 15877.18048 | AU101: 16232.92002 | AV101: 15740.24638 | AW101: 16123.59328 | AX101: 15573.93787 | AY101: 15958.0599 | AZ101: 15347.61834 | BA101: 15760.85654 | BB101: 15308.03324 | BC101: 15723.14922 | BD101: 15268.10923 | BE101: 15710.13699 | BF101: 4522.896338 | BG101: 0 | BH101: 0 | BI101: 0 | BJ101: 0 | BK101: 0 | BL101: 0 | BM101: 0 | BN101: 0 | BO101: 0 | BP101: 0 | BQ101: 0 | BR101: 0 | BS101: 0 | BT101: 0 | BU101: 0 | BV101: =IF(Flag_for_Applying_UDF,BV80,BV59) -> 0 | BW101: 0 | BX101: 0 | BY101: 0 | BZ101: 0 | CA101: 0 | CB101: 0 | CC101: 0 | CD101: 0 | CE101: 0 | CF101: 0 | CG101: 0 | CH101: 0 | CI101: 0 | CJ101: 0 | CK101: 0 | CL101: 0 | CM101: 0 | CN101: 0 | CO101: 0 | CP101: 0 | CQ101: 0 | CR101: 0 | CS101: 0 | CT101: 0 | CU101: 0 | CV101: 0 | CW101: 0 | CX101: 0 | CY101: 0 | CZ101: 0 | DA101: 0 | DB101: =IF(Flag_for_Applying_UDF,DB80,DB59) -> 0 | DC101: 0 | DD101: 0 | DE101: 0 | DF101: 0 | DG101: 0 | DH101: 0 | DI101: 0 | DJ101: 0 | DK101: 0 | DL101: 0 | DM101: 0 | DN101: 0 | DO101: 0 | DP101: 0 | DQ101: 0 | DR101: 0 | DS101: 0 | DT101: 0 | DU101: 0 | DV101: 0 | DW101: 0 | DX101: 0 | DY101: 0 | DZ101: 0 | EA101: 0 | EB101: 0 | EC101: 0 | ED101: 0 | EE101: 0 | EF101: 0 | EG101: 0 | EH101: =IF(Flag_for_Applying_UDF,EH80,EH59) -> 0 | EI101: 0 | EJ101: 0 | EK101: 0 | EL101: 0 | EM101: 0 | EN101: 0 | EO101: 0 | EP101: 0 | EQ101: 0 | ER101: 0 | ES101: 0 | ET101: 0 | EU101: 0 | EV101: 0 | EW101: 0 | EX101: 0 | EY101: 0 | EZ101: 0 | FA101: 0 | FB101: 0 | FC101: 0 | FD101: 0 | FE101: 0 | FF101: 0 | FG101: 0 | FH101: 0 | FI101: 0 | FJ101: 0 | FK101: 0 | FL101: 0 | FM101: 0 | FN101: =IF(Flag_for_Applying_UDF,FN80,FN59) -> 0 | FO101: 0 | FP101: 0 | FQ101: 0 | FR101: 0 | FS101: 0 | FT101: 0 | FU101: 0 | FV101: 0 | FW101: 0 | FX101: 0 | FY101: 0 | FZ101: 0 | GA101: 0 | GB101: 0 | GC101: 0 | GD101: 0 | GE101: 0 | GF101: 0 | GG101: 0 | GH101: 0 | GI101: 0 | GJ101: 0 | GK101: 0
A108: CHECKS
E110: =InpC!E$278 -> Tariff check precision adjustment | F110: =InpC!F$278 -> 0.001 | G110: =InpC!G$278 -> factor
E112: Tariff adjustment check | F112: =IF(J112 > CHK_TOL* $F$110, 1, 0) -> 1 | G112: check | J112: =ABS(J24 - J87) -> 0.002358420508
E113: EBL requirement check | F113: =IF(J113 > CHK_TOL, 1, 0) -> 0 | G113: check | J113: =ABS(J25 - J88) -> 0
E114: Equity bridge interest and fees rolled up - total check | F114: =IF(J114 > CHK_TOL, 1, 0) -> 0 | G114: check | J114: =ABS(J26 - J89) -> 0
E115: Project costs / funding requirement - check | F115: =IF( MAX(J115:GK115) > CHK_TOL, 1, 0) -> 1 | G115: check | J115: =ABS(J34 - J97) -> 0 | K115: =ABS(K34 - K97) -> 0 | L115: =ABS(L34 - L97) -> 0 | M115: =ABS(M34 - M97) -> 0 | N115: =ABS(N34 - N97) -> 0 | P115: =ABS(P34 - P97) -> 0 | Q115: 0 | R115: 0 | S115: 0 | T115: 0 | U115: 0 | V115: 0 | W115: 0 | X115: 0 | Y115: 0 | Z115: 2.423792466e-05 | AA115: 7.502221706e-07 | AB115: 7.502221706e-07 | AC115: 7.481739885e-07 | AD115: 7.400958566e-07 | AE115: 7.327162166e-07 | AF115: 7.004059835 | AG115: 23.35830974 | AH115: 41.68274272 | AI115: 59.09842338 | AJ115: 66.02389209 | AK115: 74.90894551 | AL115: 71.94726104 | AM115: 74.90894552 | AN115: 71.94726105 | AO115: 74.90894553 | AP115: 74.90894554 | AQ115: 71.94726107 | AR115: 74.90894555 | AS115: 71.94726108 | AT115: 74.90894556 | AU115: 74.90894557 | AV115: =ABS(AV34 - AV97) -> 68.98557663 | AW115: 74.79937147 | AX115: 71.84475633 | AY115: 74.79937154 | AZ115: 717.1364205 | BA115: 0 | BB115: 0 | BC115: 0 | BD115: 0 | BE115: 0 | BF115: 0 | BG115: 0 | BH115: 0 | BI115: 0 | BJ115: 0 | BK115: 0 | BL115: 0 | BM115: 0 | BN115: 0 | BO115: 0 | BP115: 0 | BQ115: 0 | BR115: 0 | BS115: 0 | BT115: 0 | BU115: 0 | BV115: 0 | BW115: 0 | BX115: 0 | BY115: 0 | BZ115: 0 | CA115: 0 | CB115: =ABS(CB34 - CB97) -> 0 | CC115: 0 | CD115: 0 | CE115: 0 | CF115: 0 | CG115: 0 | CH115: 0 | CI115: 0 | CJ115: 0 | CK115: 0 | CL115: 0 | CM115: 0 | CN115: 0 | CO115: 0 | CP115: 0 | CQ115: 0 | CR115: 0 | CS115: 0 | CT115: 0 | CU115: 0 | CV115: 0 | CW115: 0 | CX115: 0 | CY115: 0 | CZ115: 0 | DA115: 0 | DB115: 0 | DC115: 0 | DD115: 0 | DE115: 0 | DF115: 0 | DG115: 0 | DH115: =ABS(DH34 - DH97) -> 0 | DI115: 0 | DJ115: 0 | DK115: 0 | DL115: 0 | DM115: 0 | DN115: 0 | DO115: 0 | DP115: 0 | DQ115: 0 | DR115: 0 | DS115: 0 | DT115: 0 | DU115: 0 | DV115: 0 | DW115: 0 | DX115: 0 | DY115: 0 | DZ115: 0 | EA115: 0 | EB115: 0 | EC115: 0 | ED115: 0 | EE115: 0 | EF115: 0 | EG115: 0 | EH115: 0 | EI115: 0 | EJ115: 0 | EK115: 0 | EL115: 0 | EM115: 0 | EN115: =ABS(EN34 - EN97) -> 0 | EO115: 0 | EP115: 0 | EQ115: 0 | ER115: 0 | ES115: 0 | ET115: 0 | EU115: 0 | EV115: 0 | EW115: 0 | EX115: 0 | EY115: 0 | EZ115: 0 | FA115: 0 | FB115: 0 | FC115: 0 | FD115: 0 | FE115: 0 | FF115: 0 | FG115: 0 | FH115: 0 | FI115: 0 | FJ115: 0 | FK115: 0 | FL115: 0 | FM115: 0 | FN115: 0 | FO115: 0 | FP115: 0 | FQ115: 0 | FR115: 0 | FS115: 0 | FT115: =ABS(FT34 - FT97) -> 0 | FU115: 0 | FV115: 0 | FW115: 0 | FX115: 0 | FY115: 0 | FZ115: 0 | GA115: 0 | GB115: 0 | GC115: 0 | GD115: 0 | GE115: 0 | GF115: 0 | GG115: 0 | GH115: 0 | GI115: 0 | GJ115: 0 | GK115: 0
E116: Cash flow available for senior debt service - check | F116: =IF( MAX(J116:GK116) > CHK_TOL, 1, 0) -> 1 | G116: check | J116: =ABS(J38 - J101) -> 0 | K116: =ABS(K38 - K101) -> 0 | L116: =ABS(L38 - L101) -> 2.061842419e-05 | M116: =ABS(M38 - M101) -> 72.04510887 | N116: =ABS(N38 - N101) -> 72.04510887 | P116: =ABS(P38 - P101) -> 443.5302908 | Q116: 1082.474992 | R116: 442.5401928 | S116: 227.3039016 | T116: 223.9612418 | U116: 163.6649403 | V116: 224.3184653 | W116: 56.19499616 | X116: 252.1622981 | Y116: 9.466995529 | Z116: 303.8232836 | AA116: 64.11258205 | AB116: 334.8580661 | AC116: 97.02897547 | AD116: 392.2530846 | AE116: 154.887571 | AF116: 452.825705 | AG116: 86.65062147 | AH116: 323.0102985 | AI116: 51.29654111 | AJ116: 333.900543 | AK116: 62.43655446 | AL116: 340.5853758 | AM116: 68.7945631 | AN116: 353.2608073 | AO116: 79.8865037 | AP116: 367.1680305 | AQ116: 92.06652823 | AR116: 355.2260387 | AS116: 58.49682249 | AT116: 321.0782751 | AU116: 22.14213613 | AV116: =ABS(AV38 - AV101) -> 284.0950915 | AW116: 18.28354275 | AX116: 244.4987663 | AY116: 78.75866707 | AZ116: 237.8332174 | BA116: 112.3134822 | BB116: 140.1040619 | BC116: 144.0424189 | BD116: 140.4770521 | BE116: 145.1200313 | BF116: 115.3637181 | BG116: 0 | BH116: 0 | BI116: 0 | BJ116: 0 | BK116: 0 | BL116: 0 | BM116: 0 | BN116: 0 | BO116: 0 | BP116: 0 | BQ116: 0 | BR116: 0 | BS116: 0 | BT116: 0 | BU116: 0 | BV116: 0 | BW116: 0 | BX116: 0 | BY116: 0 | BZ116: 0 | CA116: 0 | CB116: =ABS(CB38 - CB101) -> 0 | CC116: 0 | CD116: 0 | CE116: 0 | CF116: 0 | CG116: 0 | CH116: 0 | CI116: 0 | CJ116: 0 | CK116: 0 | CL116: 0 | CM116: 0 | CN116: 0 | CO116: 0 | CP116: 0 | CQ116: 0 | CR116: 0 | CS116: 0 | CT116: 0 | CU116: 0 | CV116: 0 | CW116: 0 | CX116: 0 | CY116: 0 | CZ116: 0 | DA116: 0 | DB116: 0 | DC116: 0 | DD116: 0 | DE116: 0 | DF116: 0 | DG116: 0 | DH116: =ABS(DH38 - DH101) -> 0 | DI116: 0 | DJ116: 0 | DK116: 0 | DL116: 0 | DM116: 0 | DN116: 0 | DO116: 0 | DP116: 0 | DQ116: 0 | DR116: 0 | DS116: 0 | DT116: 0 | DU116: 0 | DV116: 0 | DW116: 0 | DX116: 0 | DY116: 0 | DZ116: 0 | EA116: 0 | EB116: 0 | EC116: 0 | ED116: 0 | EE116: 0 | EF116: 0 | EG116: 0 | EH116: 0 | EI116: 0 | EJ116: 0 | EK116: 0 | EL116: 0 | EM116: 0 | EN116: =ABS(EN38 - EN101) -> 0 | EO116: 0 | EP116: 0 | EQ116: 0 | ER116: 0 | ES116: 0 | ET116: 0 | EU116: 0 | EV116: 0 | EW116: 0 | EX116: 0 | EY116: 0 | EZ116: 0 | FA116: 0 | FB116: 0 | FC116: 0 | FD116: 0 | FE116: 0 | FF116: 0 | FG116: 0 | FH116: 0 | FI116: 0 | FJ116: 0 | FK116: 0 | FL116: 0 | FM116: 0 | FN116: 0 | FO116: 0 | FP116: 0 | FQ116: 0 | FR116: 0 | FS116: 0 | FT116: =ABS(FT38 - FT101) -> 0 | FU116: 0 | FV116: 0 | FW116: 0 | FX116: 0 | FY116: 0 | FZ116: 0 | GA116: 0 | GB116: 0 | GC116: 0 | GD116: 0 | GE116: 0 | GF116: 0 | GG116: 0 | GH116: 0 | GI116: 0 | GJ116: 0 | GK116: 0
E118: Master solve check | F118: =MAX(F111:F117) -> 1 | G118: check
A120: END

Sheet ConFin
A1: =RIGHT(CELL("filename", A1), LEN(CELL("filename", A1)) - SEARCH("]", CELL("filename", A1))) & " - " & InpC!F3 -> ConFin - Seasonal - Leverage Method
E2: =ConTime!E$23 -> Model period ending - m | F2: =Check!$F$9 -> 4 | G2: Error chks | J2: =ConTime!J$23 -> 2021-01-31 | K2: =ConTime!K$23 -> 2021-02-28 | L2: =ConTime!L$23 -> 2021-03-31 | M2: =ConTime!M$23 -> 2021-04-30 | N2: =ConTime!N$23 -> 2021-05-31 | O2: =ConTime!O$23 -> 2021-06-30 | P2: =ConTime!P$23 -> 2021-07-31 | Q2: =ConTime!Q$23 -> 2021-08-31 | R2: =ConTime!R$23 -> 2021-09-30 | S2: =ConTime!S$23 -> 2021-10-31 | T2: =ConTime!T$23 -> 2021-11-30 | U2: =ConTime!U$23 -> 2021-12-31 | V2: =ConTime!V$23 -> 2022-01-31 | W2: =ConTime!W$23 -> 2022-02-28 | X2: =ConTime!X$23 -> 2022-03-31 | Y2: =ConTime!Y$23 -> 2022-04-30 | Z2: =ConTime!Z$23 -> 2022-05-31 | AA2: =ConTime!AA$23 -> 2022-06-30 | AB2: =ConTime!AB$23 -> 2022-07-31 | AC2: =ConTime!AC$23 -> 2022-08-31 | AD2: =ConTime!AD$23 -> 2022-09-30 | AE2: =ConTime!AE$23 -> 2022-10-31 | AF2: =ConTime!AF$23 -> 2022-11-30 | AG2: =ConTime!AG$23 -> 2022-12-31 | AH2: =ConTime!AH$23 -> 2023-01-31 | AI2: =ConTime!AI$23 -> 2023-02-28 | AJ2: =ConTime!AJ$23 -> 2023-03-31 | AK2: =ConTime!AK$23 -> 2023-04-30 | AL2: =ConTime!AL$23 -> 2023-05-31 | AM2: =ConTime!AM$23 -> 2023-06-30 | AN2: =ConTime!AN$23 -> 2023-07-31 | AO2: =ConTime!AO$23 -> 2023-08-31 | AP2: =ConTime!AP$23 -> 2023-09-30 | AQ2: =ConTime!AQ$23 -> 2023-10-31 | AR2: =ConTime!AR$23 -> 2023-11-30 | AS2: =ConTime!AS$23 -> 2023-12-31 | AT2: =ConTime!AT$23 -> 2024-01-31 | AU2: =ConTime!AU$23 -> 2024-02-29 | AV2: =ConTime!AV$23 -> 2024-03-31 | AW2: =ConTime!AW$23 -> 2024-04-30 | AX2: =ConTime!AX$23 -> 2024-05-31 | AY2: =ConTime!AY$23 -> 2024-06-30 | AZ2: =ConTime!AZ$23 -> 2024-07-31 | BA2: =ConTime!BA$23 -> 2024-08-31 | BB2: =ConTime!BB$23 -> 2024-09-30 | BC2: =ConTime!BC$23 -> 2024-10-31 | BD2: =ConTime!BD$23 -> 2024-11-30 | BE2: =ConTime!BE$23 -> 2024-12-31
E3: =ConTime!E$50 -> Timeline label - m | F3: =Output!J2 -> 55 | G3: Track chgs | J3: =ConTime!J$50 -> Pre-fcst | K3: =ConTime!K$50 -> Pre-fcst | L3: =ConTime!L$50 -> Pre-fcst | M3: =ConTime!M$50 -> Pre-fcst | N3: =ConTime!N$50 -> Pre-fcst | O3: =ConTime!O$50 -> Pre-fcst | P3: =ConTime!P$50 -> Pre-fcst | Q3: =ConTime!Q$50 -> Pre-fcst | R3: =ConTime!R$50 -> Pre-fcst | S3: =ConTime!S$50 -> Pre-fcst | T3: =ConTime!T$50 -> Pre-fcst | U3: =ConTime!U$50 -> Pre-fcst | V3: =ConTime!V$50 -> Pre-fcst | W3: =ConTime!W$50 -> Pre-fcst | X3: =ConTime!X$50 -> Pre-fcst | Y3: =ConTime!Y$50 -> Fin Close | Z3: =ConTime!Z$50 -> Construction | AA3: =ConTime!AA$50 -> Construction | AB3: =ConTime!AB$50 -> Construction | AC3: =ConTime!AC$50 -> Construction | AD3: =ConTime!AD$50 -> Construction | AE3: =ConTime!AE$50 -> Construction | AF3: =ConTime!AF$50 -> Construction | AG3: =ConTime!AG$50 -> Construction | AH3: =ConTime!AH$50 -> Construction | AI3: =ConTime!AI$50 -> Construction | AJ3: =ConTime!AJ$50 -> Construction | AK3: =ConTime!AK$50 -> Construction | AL3: =ConTime!AL$50 -> Construction | AM3: =ConTime!AM$50 -> Construction | AN3: =ConTime!AN$50 -> Construction | AO3: =ConTime!AO$50 -> Construction | AP3: =ConTime!AP$50 -> Construction | AQ3: =ConTime!AQ$50 -> Construction | AR3: =ConTime!AR$50 -> Construction | AS3: =ConTime!AS$50 -> Construction | AT3: =ConTime!AT$50 -> Construction | AU3: =ConTime!AU$50 -> Construction | AV3: =ConTime!AV$50 -> Construction | AW3: =ConTime!AW$50 -> Construction | AX3: =ConTime!AX$50 -> Construction | AY3: =ConTime!AY$50 -> Construction | AZ3: =ConTime!AZ$50 -> Operations | BA3: =ConTime!BA$50 -> Operations | BB3: =ConTime!BB$50 -> Operations | BC3: =ConTime!BC$50 -> Operations | BD3: =ConTime!BD$50 -> Operations | BE3: =ConTime!BE$50 -> Operations
E4: =Time!E$39 -> Financial year | F4: =Check!$F$28 -> 0 | G4: Alerts | J4: =Time!J$39 -> 2021 | K4: =Time!K$39 -> 2021 | L4: =Time!L$39 -> 2022 | M4: =Time!M$39 -> 2022 | N4: =Time!N$39 -> 2023 | O4: =Time!O$39 -> 2023 | P4: =Time!P$39 -> 2024 | Q4: =Time!Q$39 -> 2024 | R4: =Time!R$39 -> 2025 | S4: =Time!S$39 -> 2025 | T4: =Time!T$39 -> 2026 | U4: =Time!U$39 -> 2026 | V4: =Time!V$39 -> 2027 | W4: =Time!W$39 -> 2027 | X4: =Time!X$39 -> 2028 | Y4: =Time!Y$39 -> 2028 | Z4: =Time!Z$39 -> 2029 | AA4: =Time!AA$39 -> 2029 | AB4: =Time!AB$39 -> 2030 | AC4: =Time!AC$39 -> 2030 | AD4: =Time!AD$39 -> 2031 | AE4: =Time!AE$39 -> 2031 | AF4: =Time!AF$39 -> 2032 | AG4: =Time!AG$39 -> 2032 | AH4: =Time!AH$39 -> 2033 | AI4: =Time!AI$39 -> 2033 | AJ4: =Time!AJ$39 -> 2034 | AK4: =Time!AK$39 -> 2034 | AL4: =Time!AL$39 -> 2035 | AM4: =Time!AM$39 -> 2035 | AN4: =Time!AN$39 -> 2036 | AO4: =Time!AO$39 -> 2036 | AP4: =Time!AP$39 -> 2037 | AQ4: =Time!AQ$39 -> 2037 | AR4: =Time!AR$39 -> 2038 | AS4: =Time!AS$39 -> 2038 | AT4: =Time!AT$39 -> 2039 | AU4: =Time!AU$39 -> 2039 | AV4: =Time!AV$39 -> 2040 | AW4: =Time!AW$39 -> 2040 | AX4: =Time!AX$39 -> 2041 | AY4: =Time!AY$39 -> 2041 | AZ4: =Time!AZ$39 -> 2042 | BA4: =Time!BA$39 -> 2042 | BB4: =Time!BB$39 -> 2043 | BC4: =Time!BC$39 -> 2043 | BD4: =Time!BD$39 -> 2044 | BE4: =Time!BE$39 -> 2044
E5: =Time!E$10 -> Model column counter | F5: Constant | G5: Unit | H5: Total | J5: =Time!J$10 -> 1 | K5: =Time!K$10 -> 2 | L5: =Time!L$10 -> 3 | M5: =Time!M$10 -> 4 | N5: =Time!N$10 -> 5 | O5: =Time!O$10 -> 6 | P5: =Time!P$10 -> 7 | Q5: =Time!Q$10 -> 8 | R5: =Time!R$10 -> 9 | S5: =Time!S$10 -> 10 | T5: =Time!T$10 -> 11 | U5: =Time!U$10 -> 12 | V5: =Time!V$10 -> 13 | W5: =Time!W$10 -> 14 | X5: =Time!X$10 -> 15 | Y5: =Time!Y$10 -> 16 | Z5: =Time!Z$10 -> 17 | AA5: =Time!AA$10 -> 18 | AB5: =Time!AB$10 -> 19 | AC5: =Time!AC$10 -> 20 | AD5: =Time!AD$10 -> 21 | AE5: =Time!AE$10 -> 22 | AF5: =Time!AF$10 -> 23 | AG5: =Time!AG$10 -> 24 | AH5: =Time!AH$10 -> 25 | AI5: =Time!AI$10 -> 26 | AJ5: =Time!AJ$10 -> 27 | AK5: =Time!AK$10 -> 28 | AL5: =Time!AL$10 -> 29 | AM5: =Time!AM$10 -> 30 | AN5: =Time!AN$10 -> 31 | AO5: =Time!AO$10 -> 32 | AP5: =Time!AP$10 -> 33 | AQ5: =Time!AQ$10 -> 34 | AR5: =Time!AR$10 -> 35 | AS5: =Time!AS$10 -> 36 | AT5: =Time!AT$10 -> 37 | AU5: =Time!AU$10 -> 38 | AV5: =Time!AV$10 -> 39 | AW5: =Time!AW$10 -> 40 | AX5: =Time!AX$10 -> 41 | AY5: =Time!AY$10 -> 42 | AZ5: =Time!AZ$10 -> 43 | BA5: =Time!BA$10 -> 44 | BB5: =Time!BB$10 -> 45 | BC5: =Time!BC$10 -> 46 | BD5: =Time!BD$10 -> 47 | BE5: =Time!BE$10 -> 48
A7: EARLY GENERATION REVENUE
B9: EGR revenue P50
E10: =Ops!E$24 -> Year 1 P50 production | F10: =Ops!F$24 -> 1051.2 | G10: =Ops!G$24 -> GWh
E11: =InpC!E$280 -> Days in year | F11: =InpC!F$280 -> 365 | G11: =InpC!G$280 -> days
E12: Production per day | F12: =+F10/F11 -> 2.88 | G12: GWh / day
E13: =InpC!E$47 -> Availability | F13: =InpC!F$47 -> 0.98 | G13: =InpC!G$47 -> % | H13: =F13*F12 -> 2.8224
E14: ='InpS -m'!E$13 -> % of plant completed - during EGR period | F14: ='InpS -m'!F$13 -> 0 | G14: ='InpS -m'!G$13 -> % | H14: ='InpS -m'!H$13 -> 0 | I14: ='InpS -m'!I$13 -> 0 | J14: ='InpS -m'!J$13 -> 0 | K14: ='InpS -m'!K$13 -> 0 | L14: ='InpS -m'!L$13 -> 0 | M14: ='InpS -m'!M$13 -> 0 | N14: ='InpS -m'!N$13 -> 0 | O14: ='InpS -m'!O$13 -> 0 | P14: ='InpS -m'!P$13 -> 0 | Q14: ='InpS -m'!Q$13 -> 0 | R14: ='InpS -m'!R$13 -> 0 | S14: ='InpS -m'!S$13 -> 0 | T14: ='InpS -m'!T$13 -> 0 | U14: ='InpS -m'!U$13 -> 0 | V14: ='InpS -m'!V$13 -> 0 | W14: ='InpS -m'!W$13 -> 0 | X14: ='InpS -m'!X$13 -> 0 | Y14: ='InpS -m'!Y$13 -> 0 | Z14: ='InpS -m'!Z$13 -> 0 | AA14: ='InpS -m'!AA$13 -> 0 | AB14: ='InpS -m'!AB$13 -> 0 | AC14: ='InpS -m'!AC$13 -> 0 | AD14: ='InpS -m'!AD$13 -> 0 | AE14: ='InpS -m'!AE$13 -> 0 | AF14: ='InpS -m'!AF$13 -> 0 | AG14: ='InpS -m'!AG$13 -> 0 | AH14: ='InpS -m'!AH$13 -> 0 | AI14: ='InpS -m'!AI$13 -> 0 | AJ14: ='InpS -m'!AJ$13 -> 0 | AK14: ='InpS -m'!AK$13 -> 0 | AL14: ='InpS -m'!AL$13 -> 0 | AM14: ='InpS -m'!AM$13 -> 0 | AN14: ='InpS -m'!AN$13 -> 0 | AO14: ='InpS -m'!AO$13 -> 0 | AP14: ='InpS -m'!AP$13 -> 0 | AQ14: ='InpS -m'!AQ$13 -> 0 | AR14: ='InpS -m'!AR$13 -> 0 | AS14: ='InpS -m'!AS$13 -> 0 | AT14: ='InpS -m'!AT$13 -> 0.3333333333 | AU14: ='InpS -m'!AU$13 -> 0.3333333333 | AV14: ='InpS -m'!AV$13 -> 0.3333333333 | AW14: ='InpS -m'!AW$13 -> 0.3333333333 | AX14: ='InpS -m'!AX$13 -> 0.3333333333 | AY14: ='InpS -m'!AY$13 -> 0.3333333333 | AZ14: ='InpS -m'!AZ$13 -> 0 | BA14: ='InpS -m'!BA$13 -> 0 | BB14: ='InpS -m'!BB$13 -> 0 | BC14: ='InpS -m'!BC$13 -> 0 | BD14: ='InpS -m'!BD$13 -> 0 | BE14: ='InpS -m'!BE$13 -> 0
E15: =ConTime!E$93 -> Days in period - m | F15: =ConTime!F$93 -> 0 | G15: =ConTime!G$93 -> days | H15: =ConTime!H$93 -> 0 | I15: =ConTime!I$93 -> 0 | J15: =ConTime!J$93 -> 31 | K15: =ConTime!K$93 -> 28 | L15: =ConTime!L$93 -> 31 | M15: =ConTime!M$93 -> 30 | N15: =ConTime!N$93 -> 31 | O15: =ConTime!O$93 -> 30 | P15: =ConTime!P$93 -> 31 | Q15: =ConTime!Q$93 -> 31 | R15: =ConTime!R$93 -> 30 | S15: =ConTime!S$93 -> 31 | T15: =ConTime!T$93 -> 30 | U15: =ConTime!U$93 -> 31 | V15: =ConTime!V$93 -> 31 | W15: =ConTime!W$93 -> 28 | X15: =ConTime!X$93 -> 31 | Y15: =ConTime!Y$93 -> 30 | Z15: =ConTime!Z$93 -> 31 | AA15: =ConTime!AA$93 -> 30 | AB15: =ConTime!AB$93 -> 31 | AC15: =ConTime!AC$93 -> 31 | AD15: =ConTime!AD$93 -> 30 | AE15: =ConTime!AE$93 -> 31 | AF15: =ConTime!AF$93 -> 30 | AG15: =ConTime!AG$93 -> 31 | AH15: =ConTime!AH$93 -> 31 | AI15: =ConTime!AI$93 -> 28 | AJ15: =ConTime!AJ$93 -> 31 | AK15: =ConTime!AK$93 -> 30 | AL15: =ConTime!AL$93 -> 31 | AM15: =ConTime!AM$93 -> 30 | AN15: =ConTime!AN$93 -> 31 | AO15: =ConTime!AO$93 -> 31 | AP15: =ConTime!AP$93 -> 30 | AQ15: =ConTime!AQ$93 -> 31 | AR15: =ConTime!AR$93 -> 30 | AS15: =ConTime!AS$93 -> 31 | AT15: =ConTime!AT$93 -> 31 | AU15: =ConTime!AU$93 -> 29 | AV15: =ConTime!AV$93 -> 31 | AW15: =ConTime!AW$93 -> 30 | AX15: =ConTime!AX$93 -> 31 | AY15: =ConTime!AY$93 -> 30 | AZ15: =ConTime!AZ$93 -> 31 | BA15: =ConTime!BA$93 -> 31 | BB15: =ConTime!BB$93 -> 30 | BC15: =ConTime!BC$93 -> 31 | BD15: =ConTime!BD$93 -> 30 | BE15: =ConTime!BE$93 -> 31
E16: EGR production P50 | G16: GWh | H16: =SUM(J16:BE16) -> 171.2256 | J16: =+$F12 * J15 * $F13 * J14 -> 0 | K16: 0 | L16: 0 | M16: 0 | N16: 0 | O16: 0 | P16: 0 | Q16: 0 | R16: 0 | S16: 0 | T16: 0 | U16: 0 | V16: 0 | W16: 0 | X16: 0 | Y16: 0 | Z16: 0 | AA16: 0 | AB16: 0 | AC16: 0 | AD16: 0 | AE16: 0 | AF16: 0 | AG16: 0 | AH16: 0 | AI16: 0 | AJ16: 0 | AK16: 0 | AL16: 0 | AM16: 0 | AN16: 0 | AO16: 0 | AP16: 0 | AQ16: 0 | AR16: 0 | AS16: 0 | AT16: 29.1648 | AU16: 27.2832 | AV16: 29.1648 | AW16: 28.224 | AX16: 29.1648 | AY16: 28.224 | AZ16: 0 | BA16: 0 | BB16: 0 | BC16: 0 | BD16: 0 | BE16: 0
E18: =Ops!E$125 -> Indexed + not indexed power tariff | F18: =Ops!F$125 -> 0.04315899592 | G18: =Ops!G$125 -> USD / kWh | J18: =F18 * 100 -> 4.315899592
E19: =InpC!E$285 -> Units in a thousand | F19: =InpC!F$285 -> 1000 | G19: =InpC!G$285 -> units
E20: =InpC!E$284 -> GWh to KWh conversion | F20: =InpC!F$284 -> 1000000 | G20: =InpC!G$284 -> KWh / GWh
E21: =E$16 -> EGR production P50 | F21: 0 | G21: GWh | H21: 171.2256 | I21: 0 | J21: 0 | K21: 0 | L21: 0 | M21: 0 | N21: 0 | O21: 0 | P21: 0 | Q21: 0 | R21: 0 | S21: 0 | T21: 0 | U21: 0 | V21: 0 | W21: 0 | X21: 0 | Y21: 0 | Z21: 0 | AA21: 0 | AB21: 0 | AC21: 0 | AD21: 0 | AE21: 0 | AF21: 0 | AG21: 0 | AH21: 0 | AI21: 0 | AJ21: 0 | AK21: =AK$16 -> 0 | AL21: 0 | AM21: 0 | AN21: 0 | AO21: 0 | AP21: 0 | AQ21: 0 | AR21: 0 | AS21: 0 | AT21: 29.1648 | AU21: 27.2832 | AV21: 29.1648 | AW21: 28.224 | AX21: 29.1648 | AY21: 28.224 | AZ21: 0 | BA21: 0 | BB21: 0 | BC21: 0 | BD21: 0 | BE21: 0
E22: Early generation revenue - m P50 | G22: =SMU -> $ 000s | H22: =SUM(J22:BE22) -> 7389.924971 | J22: =$F18 / $F19 * J21 * $F20 -> 0 | K22: 0 | L22: 0 | M22: 0 | N22: 0 | O22: 0 | P22: 0 | Q22: 0 | R22: 0 | S22: 0 | T22: 0 | U22: 0 | V22: 0 | W22: 0 | X22: 0 | Y22: 0 | Z22: 0 | AA22: 0 | AB22: 0 | AC22: 0 | AD22: 0 | AE22: 0 | AF22: 0 | AG22: 0 | AH22: 0 | AI22: 0 | AJ22: 0 | AK22: 0 | AL22: 0 | AM22: 0 | AN22: 0 | AO22: 0 | AP22: 0 | AQ22: 0 | AR22: 0 | AS22: 0 | AT22: 1258.723484 | AU22: 1177.515517 | AV22: 1258.723484 | AW22: 1218.119501 | AX22: 1258.723484 | AY22: 1218.119501 | AZ22: 0 | BA22: 0 | BB22: 0 | BC22: 0 | BD22: 0 | BE22: 0
E23: Sum of Electricity generation revenue P50 | F23: =SUM(J22:BE22) -> 7389.924971 | G23: $ 000s
B25: EGR cash received P50
E26: =InpC!E$236 -> EGR payment delay (months) | F26: =InpC!F$236 -> 2 | G26: =InpC!G$236 -> months
E27: =E$22 -> Early generation revenue - m P50 | F27: 0 | G27: $ 000s | H27: 7389.924971 | I27: 0 | J27: 0 | K27: 0 | L27: 0 | M27: 0 | N27: 0 | O27: 0 | P27: 0 | Q27: 0 | R27: 0 | S27: 0 | T27: 0 | U27: 0 | V27: 0 | W27: 0 | X27: 0 | Y27: 0 | Z27: 0 | AA27: 0 | AB27: 0 | AC27: 0 | AD27: 0 | AE27: 0 | AF27: 0 | AG27: 0 | AH27: 0 | AI27: 0 | AJ27: 0 | AK27: =AK$22 -> 0 | AL27: 0 | AM27: 0 | AN27: 0 | AO27: 0 | AP27: 0 | AQ27: 0 | AR27: 0 | AS27: 0 | AT27: 1258.723484 | AU27: 1177.515517 | AV27: 1258.723484 | AW27: 1218.119501 | AX27: 1258.723484 | AY27: 1218.119501 | AZ27: 0 | BA27: 0 | BB27: 0 | BC27: 0 | BD27: 0 | BE27: 0
E28: =Time!E$10 -> Model column counter | F28: =Time!F$10 -> 0 | G28: =Time!G$10 -> counter | H28: =Time!H$10 -> 0 | I28: =Time!I$10 -> 0 | J28: =Time!J$10 -> 1 | K28: =Time!K$10 -> 2 | L28: =Time!L$10 -> 3 | M28: =Time!M$10 -> 4 | N28: =Time!N$10 -> 5 | O28: =Time!O$10 -> 6 | P28: =Time!P$10 -> 7 | Q28: =Time!Q$10 -> 8 | R28: =Time!R$10 -> 9 | S28: =Time!S$10 -> 10 | T28: =Time!T$10 -> 11 | U28: =Time!U$10 -> 12 | V28: =Time!V$10 -> 13 | W28: =Time!W$10 -> 14 | X28: =Time!X$10 -> 15 | Y28: =Time!Y$10 -> 16 | Z28: =Time!Z$10 -> 17 | AA28: =Time!AA$10 -> 18 | AB28: =Time!AB$10 -> 19 | AC28: =Time!AC$10 -> 20 | AD28: =Time!AD$10 -> 21 | AE28: =Time!AE$10 -> 22 | AF28: =Time!AF$10 -> 23 | AG28: =Time!AG$10 -> 24 | AH28: =Time!AH$10 -> 25 | AI28: =Time!AI$10 -> 26 | AJ28: =Time!AJ$10 -> 27 | AK28: =Time!AK$10 -> 28 | AL28: =Time!AL$10 -> 29 | AM28: =Time!AM$10 -> 30 | AN28: =Time!AN$10 -> 31 | AO28: =Time!AO$10 -> 32 | AP28: =Time!AP$10 -> 33 | AQ28: =Time!AQ$10 -> 34 | AR28: =Time!AR$10 -> 35 | AS28: =Time!AS$10 -> 36 | AT28: =Time!AT$10 -> 37 | AU28: =Time!AU$10 -> 38 | AV28: =Time!AV$10 -> 39 | AW28: =Time!AW$10 -> 40 | AX28: =Time!AX$10 -> 41 | AY28: =Time!AY$10 -> 42 | AZ28: =Time!AZ$10 -> 43 | BA28: =Time!BA$10 -> 44 | BB28: =Time!BB$10 -> 45 | BC28: =Time!BC$10 -> 46 | BD28: =Time!BD$10 -> 47 | BE28: =Time!BE$10 -> 48
E29: Cash received from EGRs - m P50 | G29: =SMU -> $ 000s | H29: =SUM(J29:BE29) -> 7389.924971 | J29: =IFERROR( _xlfn.XLOOKUP(J28 - $F26, $J$28:$BE$28, $J$27:$BE$27), 0) -> 0 | K29: 0 | L29: 0 | M29: 0 | N29: 0 | O29: 0 | P29: 0 | Q29: 0 | R29: 0 | S29: 0 | T29: 0 | U29: 0 | V29: 0 | W29: 0 | X29: 0 | Y29: 0 | Z29: 0 | AA29: 0 | AB29: 0 | AC29: 0 | AD29: 0 | AE29: 0 | AF29: 0 | AG29: 0 | AH29: 0 | AI29: 0 | AJ29: 0 | AK29: 0 | AL29: 0 | AM29: 0 | AN29: 0 | AO29: 0 | AP29: 0 | AQ29: 0 | AR29: 0 | AS29: 0 | AT29: 0 | AU29: 0 | AV29: =IFERROR( _xlfn.XLOOKUP(AV28 - $F26, $J$28:$BE$28, $J$27:$BE$27), 0) -> 1258.723484 | AW29: 1177.515517 | AX29: 1258.723484 | AY29: 1218.119501 | AZ29: 1258.723484 | BA29: 1218.119501 | BB29: 0 | BC29: 0 | BD29: 0 | BE29: 0
E30: Sum of Cash received from EGRs P50 | F30: =SUM(J29:BE29) -> 7389.924971 | G30: $ 000s
B32: EGR receivable P50
E34: Accounts receivable during construction balance BEG P50 | G34: =SMU -> $ 000s | J34: =I37 -> 0 | K34: 0 | L34: 0 | M34: 0 | N34: 0 | O34: 0 | P34: 0 | Q34: 0 | R34: 0 | S34: 0 | T34: 0 | U34: 0 | V34: 0 | W34: 0 | X34: 0 | Y34: 0 | Z34: 0 | AA34: 0 | AB34: 0 | AC34: 0 | AD34: 0 | AE34: 0 | AF34: 0 | AG34: 0 | AH34: 0 | AI34: 0 | AJ34: 0 | AK34: 0 | AL34: 0 | AM34: 0 | AN34: 0 | AO34: 0 | AP34: 0 | AQ34: 0 | AR34: 0 | AS34: 0 | AT34: 0 | AU34: 1258.723484 | AV34: 2436.239001 | AW34: 2436.239001 | AX34: 2476.842985 | AY34: 2476.842985 | AZ34: 2476.842985 | BA34: 1218.119501 | BB34: 0 | BC34: 0 | BD34: 0 | BE34: 0
E35: =E$22 -> Early generation revenue - m P50 | F35: 0 | G35: $ 000s | H35: 7389.924971 | I35: 0 | J35: 0 | K35: 0 | L35: 0 | M35: 0 | N35: 0 | O35: 0 | P35: 0 | Q35: 0 | R35: 0 | S35: 0 | T35: 0 | U35: 0 | V35: 0 | W35: 0 | X35: 0 | Y35: 0 | Z35: 0 | AA35: 0 | AB35: 0 | AC35: 0 | AD35: 0 | AE35: 0 | AF35: 0 | AG35: 0 | AH35: 0 | AI35: 0 | AJ35: 0 | AK35: =AK$22 -> 0 | AL35: 0 | AM35: 0 | AN35: 0 | AO35: 0 | AP35: 0 | AQ35: 0 | AR35: 0 | AS35: 0 | AT35: 1258.723484 | AU35: 1177.515517 | AV35: 1258.723484 | AW35: 1218.119501 | AX35: 1258.723484 | AY35: 1218.119501 | AZ35: 0 | BA35: 0 | BB35: 0 | BC35: 0 | BD35: 0 | BE35: 0
E36: =E$29 -> Cash received from EGRs - m P50 | F36: 0 | G36: $ 000s | H36: 7389.924971 | I36: 0 | J36: 0 | K36: 0 | L36: 0 | M36: 0 | N36: 0 | O36: 0 | P36: 0 | Q36: 0 | R36: 0 | S36: 0 | T36: 0 | U36: 0 | V36: 0 | W36: 0 | X36: 0 | Y36: 0 | Z36: 0 | AA36: 0 | AB36: 0 | AC36: 0 | AD36: 0 | AE36: 0 | AF36: 0 | AG36: 0 | AH36: 0 | AI36: 0 | AJ36: 0 | AK36: =AK$29 -> 0 | AL36: 0 | AM36: 0 | AN36: 0 | AO36: 0 | AP36: 0 | AQ36: 0 | AR36: 0 | AS36: 0 | AT36: 0 | AU36: 0 | AV36: 1258.723484 | AW36: 1177.515517 | AX36: 1258.723484 | AY36: 1218.119501 | AZ36: 1258.723484 | BA36: 1218.119501 | BB36: 0 | BC36: 0 | BD36: 0 | BE36: 0
E37: Accounts receivable during construction balance P50 | G37: =SMU -> $ 000s | J37: =J34 + J35 - J36 -> 0 | K37: 0 | L37: 0 | M37: 0 | N37: 0 | O37: 0 | P37: 0 | Q37: 0 | R37: 0 | S37: 0 | T37: 0 | U37: 0 | V37: 0 | W37: 0 | X37: 0 | Y37: 0 | Z37: 0 | AA37: 0 | AB37: 0 | AC37: 0 | AD37: 0 | AE37: 0 | AF37: 0 | AG37: 0 | AH37: 0 | AI37: 0 | AJ37: 0 | AK37: 0 | AL37: 0 | AM37: 0 | AN37: 0 | AO37: 0 | AP37: 0 | AQ37: 0 | AR37: 0 | AS37: 0 | AT37: 1258.723484 | AU37: 2436.239001 | AV37: 2436.239001 | AW37: 2476.842985 | AX37: 2476.842985 | AY37: 2476.842985 | AZ37: 1218.119501 | BA37: 0 | BB37: 0 | BC37: 0 | BD37: 0 | BE37: 0
B39: Aggregation of EGRs P50
E40: =Time!E$10 -> Model column counter | F40: =Time!F$10 -> 0 | G40: =Time!G$10 -> counter | H40: =Time!H$10 -> 0 | I40: =Time!I$10 -> 0 | J40: =Time!J$10 -> 1 | K40: =Time!K$10 -> 2 | L40: =Time!L$10 -> 3 | M40: =Time!M$10 -> 4 | N40: =Time!N$10 -> 5 | O40: =Time!O$10 -> 6 | P40: =Time!P$10 -> 7 | Q40: =Time!Q$10 -> 8 | R40: =Time!R$10 -> 9 | S40: =Time!S$10 -> 10 | T40: =Time!T$10 -> 11 | U40: =Time!U$10 -> 12 | V40: =Time!V$10 -> 13 | W40: =Time!W$10 -> 14 | X40: =Time!X$10 -> 15 | Y40: =Time!Y$10 -> 16 | Z40: =Time!Z$10 -> 17 | AA40: =Time!AA$10 -> 18 | AB40: =Time!AB$10 -> 19 | AC40: =Time!AC$10 -> 20 | AD40: =Time!AD$10 -> 21 | AE40: =Time!AE$10 -> 22 | AF40: =Time!AF$10 -> 23 | AG40: =Time!AG$10 -> 24 | AH40: =Time!AH$10 -> 25 | AI40: =Time!AI$10 -> 26 | AJ40: =Time!AJ$10 -> 27 | AK40: =Time!AK$10 -> 28 | AL40: =Time!AL$10 -> 29 | AM40: =Time!AM$10 -> 30 | AN40: =Time!AN$10 -> 31 | AO40: =Time!AO$10 -> 32 | AP40: =Time!AP$10 -> 33 | AQ40: =Time!AQ$10 -> 34 | AR40: =Time!AR$10 -> 35 | AS40: =Time!AS$10 -> 36 | AT40: =Time!AT$10 -> 37 | AU40: =Time!AU$10 -> 38 | AV40: =Time!AV$10 -> 39 | AW40: =Time!AW$10 -> 40 | AX40: =Time!AX$10 -> 41 | AY40: =Time!AY$10 -> 42 | AZ40: =Time!AZ$10 -> 43 | BA40: =Time!BA$10 -> 44 | BB40: =Time!BB$10 -> 45 | BC40: =Time!BC$10 -> 46 | BD40: =Time!BD$10 -> 47 | BE40: =Time!BE$10 -> 48
E41: =ConTime!E$56 -> Model ops period counter - m | F41: =ConTime!F$56 -> 0 | G41: =ConTime!G$56 -> counter | H41: =ConTime!H$56 -> 0 | I41: =ConTime!I$56 -> 0 | J41: =ConTime!J$56 -> 1 | K41: =ConTime!K$56 -> 1 | L41: =ConTime!L$56 -> 1 | M41: =ConTime!M$56 -> 1 | N41: =ConTime!N$56 -> 1 | O41: =ConTime!O$56 -> 1 | P41: =ConTime!P$56 -> 2 | Q41: =ConTime!Q$56 -> 2 | R41: =ConTime!R$56 -> 2 | S41: =ConTime!S$56 -> 2 | T41: =ConTime!T$56 -> 2 | U41: =ConTime!U$56 -> 2 | V41: =ConTime!V$56 -> 3 | W41: =ConTime!W$56 -> 3 | X41: =ConTime!X$56 -> 3 | Y41: =ConTime!Y$56 -> 3 | Z41: =ConTime!Z$56 -> 3 | AA41: =ConTime!AA$56 -> 3 | AB41: =ConTime!AB$56 -> 4 | AC41: =ConTime!AC$56 -> 4 | AD41: =ConTime!AD$56 -> 4 | AE41: =ConTime!AE$56 -> 4 | AF41: =ConTime!AF$56 -> 4 | AG41: =ConTime!AG$56 -> 4 | AH41: =ConTime!AH$56 -> 5 | AI41: =ConTime!AI$56 -> 5 | AJ41: =ConTime!AJ$56 -> 5 | AK41: =ConTime!AK$56 -> 5 | AL41: =ConTime!AL$56 -> 5 | AM41: =ConTime!AM$56 -> 5 | AN41: =ConTime!AN$56 -> 6 | AO41: =ConTime!AO$56 -> 6 | AP41: =ConTime!AP$56 -> 6 | AQ41: =ConTime!AQ$56 -> 6 | AR41: =ConTime!AR$56 -> 6 | AS41: =ConTime!AS$56 -> 6 | AT41: =ConTime!AT$56 -> 7 | AU41: =ConTime!AU$56 -> 7 | AV41: =ConTime!AV$56 -> 7 | AW41: =ConTime!AW$56 -> 7 | AX41: =ConTime!AX$56 -> 7 | AY41: =ConTime!AY$56 -> 7 | AZ41: =ConTime!AZ$56 -> 8 | BA41: =ConTime!BA$56 -> 8 | BB41: =ConTime!BB$56 -> 8 | BC41: =ConTime!BC$56 -> 8 | BD41: =ConTime!BD$56 -> 8 | BE41: =ConTime!BE$56 -> 8
E42: =E$22 -> Early generation revenue - m P50 | F42: 0 | G42: $ 000s | H42: 7389.924971 | I42: 0 | J42: 0 | K42: 0 | L42: 0 | M42: 0 | N42: 0 | O42: 0 | P42: 0 | Q42: 0 | R42: 0 | S42: 0 | T42: 0 | U42: 0 | V42: 0 | W42: 0 | X42: 0 | Y42: 0 | Z42: 0 | AA42: 0 | AB42: 0 | AC42: 0 | AD42: 0 | AE42: 0 | AF42: 0 | AG42: 0 | AH42: 0 | AI42: 0 | AJ42: 0 | AK42: =AK$22 -> 0 | AL42: 0 | AM42: 0 | AN42: 0 | AO42: 0 | AP42: 0 | AQ42: 0 | AR42: 0 | AS42: 0 | AT42: 1258.723484 | AU42: 1177.515517 | AV42: 1258.723484 | AW42: 1218.119501 | AX42: 1258.723484 | AY42: 1218.119501 | AZ42: 0 | BA42: 0 | BB42: 0 | BC42: 0 | BD42: 0 | BE42: 0
E43: Early generation revenue P50 | G43: =SMU -> $ 000s | H43: =SUM(J43:BE43) -> 7389.924971 | J43: =SUMIF($J41:$BE41, J40, $J42:$BE42) -> 0 | K43: 0 | L43: 0 | M43: 0 | N43: 0 | O43: 0 | P43: 7389.924971 | Q43: 0 | R43: 0 | S43: 0 | T43: 0 | U43: 0 | V43: 0 | W43: 0 | X43: 0 | Y43: 0 | Z43: 0 | AA43: 0 | AB43: 0 | AC43: 0 | AD43: 0 | AE43: 0 | AF43: 0 | AG43: 0 | AH43: 0 | AI43: 0 | AJ43: 0 | AK43: 0 | AL43: 0 | AM43: 0 | AN43: 0 | AO43: 0 | AP43: 0 | AQ43: 0 | AR43: 0 | AS43: 0 | AT43: 0 | AU43: 0 | AV43: 0 | AW43: 0 | AX43: 0 | AY43: 0 | AZ43: 0 | BA43: 0 | BB43: 0 | BC43: 0 | BD43: 0 | BE43: 0
E45: =Time!E$10 -> Model column counter | F45: =Time!F$10 -> 0 | G45: =Time!G$10 -> counter | H45: =Time!H$10 -> 0 | I45: =Time!I$10 -> 0 | J45: =Time!J$10 -> 1 | K45: =Time!K$10 -> 2 | L45: =Time!L$10 -> 3 | M45: =Time!M$10 -> 4 | N45: =Time!N$10 -> 5 | O45: =Time!O$10 -> 6 | P45: =Time!P$10 -> 7 | Q45: =Time!Q$10 -> 8 | R45: =Time!R$10 -> 9 | S45: =Time!S$10 -> 10 | T45: =Time!T$10 -> 11 | U45: =Time!U$10 -> 12 | V45: =Time!V$10 -> 13 | W45: =Time!W$10 -> 14 | X45: =Time!X$10 -> 15 | Y45: =Time!Y$10 -> 16 | Z45: =Time!Z$10 -> 17 | AA45: =Time!AA$10 -> 18 | AB45: =Time!AB$10 -> 19 | AC45: =Time!AC$10 -> 20 | AD45: =Time!AD$10 -> 21 | AE45: =Time!AE$10 -> 22 | AF45: =Time!AF$10 -> 23 | AG45: =Time!AG$10 -> 24 | AH45: =Time!AH$10 -> 25 | AI45: =Time!AI$10 -> 26 | AJ45: =Time!AJ$10 -> 27 | AK45: =Time!AK$10 -> 28 | AL45: =Time!AL$10 -> 29 | AM45: =Time!AM$10 -> 30 | AN45: =Time!AN$10 -> 31 | AO45: =Time!AO$10 -> 32 | AP45: =Time!AP$10 -> 33 | AQ45: =Time!AQ$10 -> 34 | AR45: =Time!AR$10 -> 35 | AS45: =Time!AS$10 -> 36 | AT45: =Time!AT$10 -> 37 | AU45: =Time!AU$10 -> 38 | AV45: =Time!AV$10 -> 39 | AW45: =Time!AW$10 -> 40 | AX45: =Time!AX$10 -> 41 | AY45: =Time!AY$10 -> 42 | AZ45: =Time!AZ$10 -> 43 | BA45: =Time!BA$10 -> 44 | BB45: =Time!BB$10 -> 45 | BC45: =Time!BC$10 -> 46 | BD45: =Time!BD$10 -> 47 | BE45: =Time!BE$10 -> 48
E46: =ConTime!E$56 -> Model ops period counter - m | F46: =ConTime!F$56 -> 0 | G46: =ConTime!G$56 -> counter | H46: =ConTime!H$56 -> 0 | I46: =ConTime!I$56 -> 0 | J46: =ConTime!J$56 -> 1 | K46: =ConTime!K$56 -> 1 | L46: =ConTime!L$56 -> 1 | M46: =ConTime!M$56 -> 1 | N46: =ConTime!N$56 -> 1 | O46: =ConTime!O$56 -> 1 | P46: =ConTime!P$56 -> 2 | Q46: =ConTime!Q$56 -> 2 | R46: =ConTime!R$56 -> 2 | S46: =ConTime!S$56 -> 2 | T46: =ConTime!T$56 -> 2 | U46: =ConTime!U$56 -> 2 | V46: =ConTime!V$56 -> 3 | W46: =ConTime!W$56 -> 3 | X46: =ConTime!X$56 -> 3 | Y46: =ConTime!Y$56 -> 3 | Z46: =ConTime!Z$56 -> 3 | AA46: =ConTime!AA$56 -> 3 | AB46: =ConTime!AB$56 -> 4 | AC46: =ConTime!AC$56 -> 4 | AD46: =ConTime!AD$56 -> 4 | AE46: =ConTime!AE$56 -> 4 | AF46: =ConTime!AF$56 -> 4 | AG46: =ConTime!AG$56 -> 4 | AH46: =ConTime!AH$56 -> 5 | AI46: =ConTime!AI$56 -> 5 | AJ46: =ConTime!AJ$56 -> 5 | AK46: =ConTime!AK$56 -> 5 | AL46: =ConTime!AL$56 -> 5 | AM46: =ConTime!AM$56 -> 5 | AN46: =ConTime!AN$56 -> 6 | AO46: =ConTime!AO$56 -> 6 | AP46: =ConTime!AP$56 -> 6 | AQ46: =ConTime!AQ$56 -> 6 | AR46: =ConTime!AR$56 -> 6 | AS46: =ConTime!AS$56 -> 6 | AT46: =ConTime!AT$56 -> 7 | AU46: =ConTime!AU$56 -> 7 | AV46: =ConTime!AV$56 -> 7 | AW46: =ConTime!AW$56 -> 7 | AX46: =ConTime!AX$56 -> 7 | AY46: =ConTime!AY$56 -> 7 | AZ46: =ConTime!AZ$56 -> 8 | BA46: =ConTime!BA$56 -> 8 | BB46: =ConTime!BB$56 -> 8 | BC46: =ConTime!BC$56 -> 8 | BD46: =ConTime!BD$56 -> 8 | BE46: =ConTime!BE$56 -> 8
E47: =E$29 -> Cash received from EGRs - m P50 | F47: 0 | G47: $ 000s | H47: 7389.924971 | I47: 0 | J47: 0 | K47: 0 | L47: 0 | M47: 0 | N47: 0 | O47: 0 | P47: 0 | Q47: 0 | R47: 0 | S47: 0 | T47: 0 | U47: 0 | V47: 0 | W47: 0 | X47: 0 | Y47: 0 | Z47: 0 | AA47: 0 | AB47: 0 | AC47: 0 | AD47: 0 | AE47: 0 | AF47: 0 | AG47: 0 | AH47: 0 | AI47: 0 | AJ47: 0 | AK47: =AK$29 -> 0 | AL47: 0 | AM47: 0 | AN47: 0 | AO47: 0 | AP47: 0 | AQ47: 0 | AR47: 0 | AS47: 0 | AT47: 0 | AU47: 0 | AV47: 1258.723484 | AW47: 1177.515517 | AX47: 1258.723484 | AY47: 1218.119501 | AZ47: 1258.723484 | BA47: 1218.119501 | BB47: 0 | BC47: 0 | BD47: 0 | BE47: 0
E48: Cash received from EGRs P50 | G48: =SMU -> $ 000s | H48: =SUM(J48:BE48) -> 7389.924971 | J48: =SUMIF($J46:$BE46, J45, $J47:$BE47) -> 0 | K48: 0 | L48: 0 | M48: 0 | N48: 0 | O48: 0 | P48: 4913.081986 | Q48: 2476.842985 | R48: 0 | S48: 0 | T48: 0 | U48: 0 | V48: 0 | W48: 0 | X48: 0 | Y48: 0 | Z48: 0 | AA48: 0 | AB48: 0 | AC48: 0 | AD48: 0 | AE48: 0 | AF48: 0 | AG48: 0 | AH48: 0 | AI48: 0 | AJ48: 0 | AK48: 0 | AL48: 0 | AM48: 0 | AN48: 0 | AO48: 0 | AP48: 0 | AQ48: 0 | AR48: 0 | AS48: 0 | AT48: 0 | AU48: 0 | AV48: 0 | AW48: 0 | AX48: 0 | AY48: 0 | AZ48: 0 | BA48: 0 | BB48: 0 | BC48: 0 | BD48: 0 | BE48: 0
B50: EGR revenue P99
E51: =Ops!E$36 -> Year 1 P99 production | F51: =Ops!F$36 -> 892.2453025 | G51: =Ops!G$36 -> GWh
E52: =InpC!E$280 -> Days in year | F52: =InpC!F$280 -> 365 | G52: =InpC!G$280 -> days
E53: Production per day | F53: =+F51/F52 -> 2.444507678 | G53: GWh / day | AT53: =+$F53 * AT56 * $F54 * AT55 -> 24.75471442
E54: =InpC!E$47 -> Availability | F54: =InpC!F$47 -> 0.98 | G54: =InpC!G$47 -> %
E55: ='InpS -m'!E$13 -> % of plant completed - during EGR period | F55: ='InpS -m'!F$13 -> 0 | G55: ='InpS -m'!G$13 -> % | H55: ='InpS -m'!H$13 -> 0 | I55: ='InpS -m'!I$13 -> 0 | J55: ='InpS -m'!J$13 -> 0 | K55: ='InpS -m'!K$13 -> 0 | L55: ='InpS -m'!L$13 -> 0 | M55: ='InpS -m'!M$13 -> 0 | N55: ='InpS -m'!N$13 -> 0 | O55: ='InpS -m'!O$13 -> 0 | P55: ='InpS -m'!P$13 -> 0 | Q55: ='InpS -m'!Q$13 -> 0 | R55: ='InpS -m'!R$13 -> 0 | S55: ='InpS -m'!S$13 -> 0 | T55: ='InpS -m'!T$13 -> 0 | U55: ='InpS -m'!U$13 -> 0 | V55: ='InpS -m'!V$13 -> 0 | W55: ='InpS -m'!W$13 -> 0 | X55: ='InpS -m'!X$13 -> 0 | Y55: ='InpS -m'!Y$13 -> 0 | Z55: ='InpS -m'!Z$13 -> 0 | AA55: ='InpS -m'!AA$13 -> 0 | AB55: ='InpS -m'!AB$13 -> 0 | AC55: ='InpS -m'!AC$13 -> 0 | AD55: ='InpS -m'!AD$13 -> 0 | AE55: ='InpS -m'!AE$13 -> 0 | AF55: ='InpS -m'!AF$13 -> 0 | AG55: ='InpS -m'!AG$13 -> 0 | AH55: ='InpS -m'!AH$13 -> 0 | AI55: ='InpS -m'!AI$13 -> 0 | AJ55: ='InpS -m'!AJ$13 -> 0 | AK55: ='InpS -m'!AK$13 -> 0 | AL55: ='InpS -m'!AL$13 -> 0 | AM55: ='InpS -m'!AM$13 -> 0 | AN55: ='InpS -m'!AN$13 -> 0 | AO55: ='InpS -m'!AO$13 -> 0 | AP55: ='InpS -m'!AP$13 -> 0 | AQ55: ='InpS -m'!AQ$13 -> 0 | AR55: ='InpS -m'!AR$13 -> 0 | AS55: ='InpS -m'!AS$13 -> 0 | AT55: ='InpS -m'!AT$13 -> 0.3333333333 | AU55: ='InpS -m'!AU$13 -> 0.3333333333 | AV55: ='InpS -m'!AV$13 -> 0.3333333333 | AW55: ='InpS -m'!AW$13 -> 0.3333333333 | AX55: ='InpS -m'!AX$13 -> 0.3333333333 | AY55: ='InpS -m'!AY$13 -> 0.3333333333 | AZ55: ='InpS -m'!AZ$13 -> 0 | BA55: ='InpS -m'!BA$13 -> 0 | BB55: ='InpS -m'!BB$13 -> 0 | BC55: ='InpS -m'!BC$13 -> 0 | BD55: ='InpS -m'!BD$13 -> 0 | BE55: ='InpS -m'!BE$13 -> 0
E56: =ConTime!E$93 -> Days in period - m | F56: =ConTime!F$93 -> 0 | G56: =ConTime!G$93 -> days | H56: =ConTime!H$93 -> 0 | I56: =ConTime!I$93 -> 0 | J56: =ConTime!J$93 -> 31 | K56: =ConTime!K$93 -> 28 | L56: =ConTime!L$93 -> 31 | M56: =ConTime!M$93 -> 30 | N56: =ConTime!N$93 -> 31 | O56: =ConTime!O$93 -> 30 | P56: =ConTime!P$93 -> 31 | Q56: =ConTime!Q$93 -> 31 | R56: =ConTime!R$93 -> 30 | S56: =ConTime!S$93 -> 31 | T56: =ConTime!T$93 -> 30 | U56: =ConTime!U$93 -> 31 | V56: =ConTime!V$93 -> 31 | W56: =ConTime!W$93 -> 28 | X56: =ConTime!X$93 -> 31 | Y56: =ConTime!Y$93 -> 30 | Z56: =ConTime!Z$93 -> 31 | AA56: =ConTime!AA$93 -> 30 | AB56: =ConTime!AB$93 -> 31 | AC56: =ConTime!AC$93 -> 31 | AD56: =ConTime!AD$93 -> 30 | AE56: =ConTime!AE$93 -> 31 | AF56: =ConTime!AF$93 -> 30 | AG56: =ConTime!AG$93 -> 31 | AH56: =ConTime!AH$93 -> 31 | AI56: =ConTime!AI$93 -> 28 | AJ56: =ConTime!AJ$93 -> 31 | AK56: =ConTime!AK$93 -> 30 | AL56: =ConTime!AL$93 -> 31 | AM56: =ConTime!AM$93 -> 30 | AN56: =ConTime!AN$93 -> 31 | AO56: =ConTime!AO$93 -> 31 | AP56: =ConTime!AP$93 -> 30 | AQ56: =ConTime!AQ$93 -> 31 | AR56: =ConTime!AR$93 -> 30 | AS56: =ConTime!AS$93 -> 31 | AT56: =ConTime!AT$93 -> 31 | AU56: =ConTime!AU$93 -> 29 | AV56: =ConTime!AV$93 -> 31 | AW56: =ConTime!AW$93 -> 30 | AX56: =ConTime!AX$93 -> 31 | AY56: =ConTime!AY$93 -> 30 | AZ56: =ConTime!AZ$93 -> 31 | BA56: =ConTime!BA$93 -> 31 | BB56: =ConTime!BB$93 -> 30 | BC56: =ConTime!BC$93 -> 31 | BD56: =ConTime!BD$93 -> 30 | BE56: =ConTime!BE$93 -> 31
E57: EGR production P99 | G57: GWh | H57: =SUM(J57:BE57) -> 145.3341298 | J57: =+$F53 * J56 * $F54 * J55 -> 0 | K57: 0 | L57: 0 | M57: 0 | N57: 0 | O57: 0 | P57: 0 | Q57: 0 | R57: 0 | S57: 0 | T57: 0 | U57: 0 | V57: 0 | W57: 0 | X57: 0 | Y57: 0 | Z57: 0 | AA57: 0 | AB57: 0 | AC57: 0 | AD57: 0 | AE57: 0 | AF57: 0 | AG57: 0 | AH57: 0 | AI57: 0 | AJ57: 0 | AK57: 0 | AL57: 0 | AM57: 0 | AN57: 0 | AO57: 0 | AP57: 0 | AQ57: 0 | AR57: 0 | AS57: 0 | AT57: 24.75471442 | AU57: 23.15763607 | AV57: 24.75471442 | AW57: 23.95617524 | AX57: 24.75471442 | AY57: 23.95617524 | AZ57: 0 | BA57: 0 | BB57: 0 | BC57: 0 | BD57: 0 | BE57: 0
E59: =Ops!E$125 -> Indexed + not indexed power tariff | F59: =Ops!F$125 -> 0.04315899592 | G59: =Ops!G$125 -> USD / kWh
E60: =InpC!E$285 -> Units in a thousand | F60: =InpC!F$285 -> 1000 | G60: =InpC!G$285 -> units
E61: =InpC!E$284 -> GWh to KWh conversion | F61: =InpC!F$284 -> 1000000 | G61: =InpC!G$284 -> KWh / GWh
E62: =E$57 -> EGR production P99 | F62: 0 | G62: GWh | H62: 145.3341298 | I62: 0 | J62: 0 | K62: 0 | L62: 0 | M62: 0 | N62: 0 | O62: 0 | P62: 0 | Q62: 0 | R62: 0 | S62: 0 | T62: 0 | U62: 0 | V62: 0 | W62: 0 | X62: 0 | Y62: 0 | Z62: 0 | AA62: 0 | AB62: 0 | AC62: 0 | AD62: 0 | AE62: 0 | AF62: 0 | AG62: 0 | AH62: 0 | AI62: 0 | AJ62: 0 | AK62: =AK$57 -> 0 | AL62: 0 | AM62: 0 | AN62: 0 | AO62: 0 | AP62: 0 | AQ62: 0 | AR62: 0 | AS62: 0 | AT62: 24.75471442 | AU62: 23.15763607 | AV62: 24.75471442 | AW62: 23.95617524 | AX62: 24.75471442 | AY62: 23.95617524 | AZ62: 0 | BA62: 0 | BB62: 0 | BC62: 0 | BD62: 0 | BE62: 0
E63: Early generation revenue - m P99 | G63: =SMU -> $ 000s | H63: =SUM(J63:BE63) -> 6272.475115 | J63: =$F59 / $F60 * J62 * $F61 -> 0 | K63: 0 | L63: 0 | M63: 0 | N63: 0 | O63: 0 | P63: 0 | Q63: 0 | R63: 0 | S63: 0 | T63: 0 | U63: 0 | V63: 0 | W63: 0 | X63: 0 | Y63: 0 | Z63: 0 | AA63: 0 | AB63: 0 | AC63: 0 | AD63: 0 | AE63: 0 | AF63: 0 | AG63: 0 | AH63: 0 | AI63: 0 | AJ63: 0 | AK63: 0 | AL63: 0 | AM63: 0 | AN63: 0 | AO63: 0 | AP63: 0 | AQ63: 0 | AR63: 0 | AS63: 0 | AT63: 1068.388619 | AU63: 999.4603205 | AV63: 1068.388619 | AW63: 1033.92447 | AX63: 1068.388619 | AY63: 1033.92447 | AZ63: 0 | BA63: 0 | BB63: 0 | BC63: 0 | BD63: 0 | BE63: 0
E64: Sum of Electricity generation revenue P99 | F64: =SUM(J63:BE63) -> 6272.475115 | G64: $ 000s
B66: EGR cash received P50
E67: =InpC!E$236 -> EGR payment delay (months) | F67: =InpC!F$236 -> 2 | G67: =InpC!G$236 -> months
E68: =E$63 -> Early generation revenue - m P99 | F68: 0 | G68: $ 000s | H68: 6272.475115 | I68: 0 | J68: 0 | K68: 0 | L68: 0 | M68: 0 | N68: 0 | O68: 0 | P68: 0 | Q68: 0 | R68: 0 | S68: 0 | T68: 0 | U68: 0 | V68: 0 | W68: 0 | X68: 0 | Y68: 0 | Z68: 0 | AA68: 0 | AB68: 0 | AC68: 0 | AD68: 0 | AE68: 0 | AF68: 0 | AG68: 0 | AH68: 0 | AI68: 0 | AJ68: 0 | AK68: =AK$63 -> 0 | AL68: 0 | AM68: 0 | AN68: 0 | AO68: 0 | AP68: 0 | AQ68: 0 | AR68: 0 | AS68: 0 | AT68: 1068.388619 | AU68: 999.4603205 | AV68: 1068.388619 | AW68: 1033.92447 | AX68: 1068.388619 | AY68: 1033.92447 | AZ68: 0 | BA68: 0 | BB68: 0 | BC68: 0 | BD68: 0 | BE68: 0
E69: =Time!E$10 -> Model column counter | F69: =Time!F$10 -> 0 | G69: =Time!G$10 -> counter | H69: =Time!H$10 -> 0 | I69: =Time!I$10 -> 0 | J69: =Time!J$10 -> 1 | K69: =Time!K$10 -> 2 | L69: =Time!L$10 -> 3 | M69: =Time!M$10 -> 4 | N69: =Time!N$10 -> 5 | O69: =Time!O$10 -> 6 | P69: =Time!P$10 -> 7 | Q69: =Time!Q$10 -> 8 | R69: =Time!R$10 -> 9 | S69: =Time!S$10 -> 10 | T69: =Time!T$10 -> 11 | U69: =Time!U$10 -> 12 | V69: =Time!V$10 -> 13 | W69: =Time!W$10 -> 14 | X69: =Time!X$10 -> 15 | Y69: =Time!Y$10 -> 16 | Z69: =Time!Z$10 -> 17 | AA69: =Time!AA$10 -> 18 | AB69: =Time!AB$10 -> 19 | AC69: =Time!AC$10 -> 20 | AD69: =Time!AD$10 -> 21 | AE69: =Time!AE$10 -> 22 | AF69: =Time!AF$10 -> 23 | AG69: =Time!AG$10 -> 24 | AH69: =Time!AH$10 -> 25 | AI69: =Time!AI$10 -> 26 | AJ69: =Time!AJ$10 -> 27 | AK69: =Time!AK$10 -> 28 | AL69: =Time!AL$10 -> 29 | AM69: =Time!AM$10 -> 30 | AN69: =Time!AN$10 -> 31 | AO69: =Time!AO$10 -> 32 | AP69: =Time!AP$10 -> 33 | AQ69: =Time!AQ$10 -> 34 | AR69: =Time!AR$10 -> 35 | AS69: =Time!AS$10 -> 36 | AT69: =Time!AT$10 -> 37 | AU69: =Time!AU$10 -> 38 | AV69: =Time!AV$10 -> 39 | AW69: =Time!AW$10 -> 40 | AX69: =Time!AX$10 -> 41 | AY69: =Time!AY$10 -> 42 | AZ69: =Time!AZ$10 -> 43 | BA69: =Time!BA$10 -> 44 | BB69: =Time!BB$10 -> 45 | BC69: =Time!BC$10 -> 46 | BD69: =Time!BD$10 -> 47 | BE69: =Time!BE$10 -> 48
E70: Cash received from EGRs - m P99 | G70: =SMU -> $ 000s | H70: =SUM(J70:BE70) -> 6272.475115 | J70: =IFERROR( _xlfn.XLOOKUP(J69 - $F67, $J$69:$BE$69, $J$68:$BE$68), 0) -> 0 | K70: 0 | L70: 0 | M70: 0 | N70: 0 | O70: 0 | P70: 0 | Q70: 0 | R70: 0 | S70: 0 | T70: 0 | U70: 0 | V70: 0 | W70: 0 | X70: 0 | Y70: 0 | Z70: 0 | AA70: 0 | AB70: 0 | AC70: 0 | AD70: 0 | AE70: 0 | AF70: 0 | AG70: 0 | AH70: 0 | AI70: 0 | AJ70: 0 | AK70: 0 | AL70: 0 | AM70: 0 | AN70: 0 | AO70: 0 | AP70: 0 | AQ70: 0 | AR70: 0 | AS70: 0 | AT70: 0 | AU70: 0 | AV70: 1068.388619 | AW70: 999.4603205 | AX70: 1068.388619 | AY70: 1033.92447 | AZ70: 1068.388619 | BA70: 1033.92447 | BB70: 0 | BC70: 0 | BD70: 0 | BE70: 0
E71: Sum of Cash received from EGRs P99 | F71: =SUM(J70:BE70) -> 6272.475115 | G71: $ 000s
B73: EGR receivable P99
E75: Accounts receivable during construction balance BEG P99 | G75: =SMU -> $ 000s | J75: =I78 -> 0 | K75: =J78 -> 0 | L75: =K78 -> 0 | M75: =L78 -> 0 | N75: =M78 -> 0 | O75: =N78 -> 0 | P75: =O78 -> 0 | Q75: =P78 -> 0 | R75: =Q78 -> 0 | S75: =R78 -> 0 | T75: =S78 -> 0 | U75: =T78 -> 0 | V75: =U78 -> 0 | W75: =V78 -> 0 | X75: =W78 -> 0 | Y75: =X78 -> 0 | Z75: =Y78 -> 0 | AA75: =Z78 -> 0 | AB75: =AA78 -> 0 | AC75: =AB78 -> 0 | AD75: =AC78 -> 0 | AE75: =AD78 -> 0 | AF75: =AE78 -> 0 | AG75: =AF78 -> 0 | AH75: =AG78 -> 0 | AI75: =AH78 -> 0 | AJ75: =AI78 -> 0 | AK75: =AJ78 -> 0 | AL75: =AK78 -> 0 | AM75: =AL78 -> 0 | AN75: =AM78 -> 0 | AO75: =AN78 -> 0 | AP75: =AO78 -> 0 | AQ75: =AP78 -> 0 | AR75: =AQ78 -> 0 | AS75: =AR78 -> 0 | AT75: =AS78 -> 0 | AU75: =AT78 -> 1068.388619 | AV75: =AU78 -> 2067.848939 | AW75: =AV78 -> 2067.848939 | AX75: =AW78 -> 2102.313088 | AY75: =AX78 -> 2102.313088 | AZ75: =AY78 -> 2102.313088 | BA75: =AZ78 -> 1033.92447 | BB75: =BA78 -> 0 | BC75: =BB78 -> 0 | BD75: =BC78 -> 0 | BE75: =BD78 -> 0
E76: =E$63 -> Early generation revenue - m P99 | F76: 0 | G76: $ 000s | H76: 6272.475115 | I76: 0 | J76: 0 | K76: 0 | L76: 0 | M76: 0 | N76: 0 | O76: 0 | P76: 0 | Q76: 0 | R76: 0 | S76: 0 | T76: 0 | U76: 0 | V76: 0 | W76: 0 | X76: 0 | Y76: 0 | Z76: 0 | AA76: 0 | AB76: 0 | AC76: 0 | AD76: 0 | AE76: 0 | AF76: 0 | AG76: 0 | AH76: 0 | AI76: 0 | AJ76: 0 | AK76: =AK$63 -> 0 | AL76: 0 | AM76: 0 | AN76: 0 | AO76: 0 | AP76: 0 | AQ76: 0 | AR76: 0 | AS76: 0 | AT76: 1068.388619 | AU76: 999.4603205 | AV76: 1068.388619 | AW76: 1033.92447 | AX76: 1068.388619 | AY76: 1033.92447 | AZ76: 0 | BA76: 0 | BB76: 0 | BC76: 0 | BD76: 0 | BE76: 0
E77: =E$70 -> Cash received from EGRs - m P99 | F77: 0 | G77: $ 000s | H77: 6272.475115 | I77: 0 | J77: 0 | K77: 0 | L77: 0 | M77: 0 | N77: 0 | O77: 0 | P77: 0 | Q77: 0 | R77: 0 | S77: 0 | T77: 0 | U77: 0 | V77: 0 | W77: 0 | X77: 0 | Y77: 0 | Z77: 0 | AA77: 0 | AB77: 0 | AC77: 0 | AD77: 0 | AE77: 0 | AF77: 0 | AG77: 0 | AH77: 0 | AI77: 0 | AJ77: 0 | AK77: =AK$70 -> 0 | AL77: 0 | AM77: 0 | AN77: 0 | AO77: 0 | AP77: 0 | AQ77: 0 | AR77: 0 | AS77: 0 | AT77: 0 | AU77: 0 | AV77: 1068.388619 | AW77: 999.4603205 | AX77: 1068.388619 | AY77: 1033.92447 | AZ77: 1068.388619 | BA77: 1033.92447 | BB77: 0 | BC77: 0 | BD77: 0 | BE77: 0
E78: Accounts receivable during construction balance P99 | G78: =SMU -> $ 000s | J78: =J75 + J76 - J77 -> 0 | K78: 0 | L78: 0 | M78: 0 | N78: 0 | O78: 0 | P78: 0 | Q78: 0 | R78: 0 | S78: 0 | T78: 0 | U78: 0 | V78: 0 | W78: 0 | X78: 0 | Y78: 0 | Z78: 0 | AA78: 0 | AB78: 0 | AC78: 0 | AD78: 0 | AE78: 0 | AF78: 0 | AG78: 0 | AH78: 0 | AI78: 0 | AJ78: 0 | AK78: 0 | AL78: 0 | AM78: 0 | AN78: 0 | AO78: 0 | AP78: 0 | AQ78: 0 | AR78: 0 | AS78: 0 | AT78: 1068.388619 | AU78: 2067.848939 | AV78: 2067.848939 | AW78: 2102.313088 | AX78: 2102.313088 | AY78: 2102.313088 | AZ78: 1033.92447 | BA78: 0 | BB78: 0 | BC78: 0 | BD78: 0 | BE78: 0
B80: Aggregation of EGRs P99
E81: =Time!E$10 -> Model column counter | F81: =Time!F$10 -> 0 | G81: =Time!G$10 -> counter | H81: =Time!H$10 -> 0 | I81: =Time!I$10 -> 0 | J81: =Time!J$10 -> 1 | K81: =Time!K$10 -> 2 | L81: =Time!L$10 -> 3 | M81: =Time!M$10 -> 4 | N81: =Time!N$10 -> 5 | O81: =Time!O$10 -> 6 | P81: =Time!P$10 -> 7 | Q81: =Time!Q$10 -> 8 | R81: =Time!R$10 -> 9 | S81: =Time!S$10 -> 10 | T81: =Time!T$10 -> 11 | U81: =Time!U$10 -> 12 | V81: =Time!V$10 -> 13 | W81: =Time!W$10 -> 14 | X81: =Time!X$10 -> 15 | Y81: =Time!Y$10 -> 16 | Z81: =Time!Z$10 -> 17 | AA81: =Time!AA$10 -> 18 | AB81: =Time!AB$10 -> 19 | AC81: =Time!AC$10 -> 20 | AD81: =Time!AD$10 -> 21 | AE81: =Time!AE$10 -> 22 | AF81: =Time!AF$10 -> 23 | AG81: =Time!AG$10 -> 24 | AH81: =Time!AH$10 -> 25 | AI81: =Time!AI$10 -> 26 | AJ81: =Time!AJ$10 -> 27 | AK81: =Time!AK$10 -> 28 | AL81: =Time!AL$10 -> 29 | AM81: =Time!AM$10 -> 30 | AN81: =Time!AN$10 -> 31 | AO81: =Time!AO$10 -> 32 | AP81: =Time!AP$10 -> 33 | AQ81: =Time!AQ$10 -> 34 | AR81: =Time!AR$10 -> 35 | AS81: =Time!AS$10 -> 36 | AT81: =Time!AT$10 -> 37 | AU81: =Time!AU$10 -> 38 | AV81: =Time!AV$10 -> 39 | AW81: =Time!AW$10 -> 40 | AX81: =Time!AX$10 -> 41 | AY81: =Time!AY$10 -> 42 | AZ81: =Time!AZ$10 -> 43 | BA81: =Time!BA$10 -> 44 | BB81: =Time!BB$10 -> 45 | BC81: =Time!BC$10 -> 46 | BD81: =Time!BD$10 -> 47 | BE81: =Time!BE$10 -> 48
E82: =ConTime!E$56 -> Model ops period counter - m | F82: =ConTime!F$56 -> 0 | G82: =ConTime!G$56 -> counter | H82: =ConTime!H$56 -> 0 | I82: =ConTime!I$56 -> 0 | J82: =ConTime!J$56 -> 1 | K82: =ConTime!K$56 -> 1 | L82: =ConTime!L$56 -> 1 | M82: =ConTime!M$56 -> 1 | N82: =ConTime!N$56 -> 1 | O82: =ConTime!O$56 -> 1 | P82: =ConTime!P$56 -> 2 | Q82: =ConTime!Q$56 -> 2 | R82: =ConTime!R$56 -> 2 | S82: =ConTime!S$56 -> 2 | T82: =ConTime!T$56 -> 2 | U82: =ConTime!U$56 -> 2 | V82: =ConTime!V$56 -> 3 | W82: =ConTime!W$56 -> 3 | X82: =ConTime!X$56 -> 3 | Y82: =ConTime!Y$56 -> 3 | Z82: =ConTime!Z$56 -> 3 | AA82: =ConTime!AA$56 -> 3 | AB82: =ConTime!AB$56 -> 4 | AC82: =ConTime!AC$56 -> 4 | AD82: =ConTime!AD$56 -> 4 | AE82: =ConTime!AE$56 -> 4 | AF82: =ConTime!AF$56 -> 4 | AG82: =ConTime!AG$56 -> 4 | AH82: =ConTime!AH$56 -> 5 | AI82: =ConTime!AI$56 -> 5 | AJ82: =ConTime!AJ$56 -> 5 | AK82: =ConTime!AK$56 -> 5 | AL82: =ConTime!AL$56 -> 5 | AM82: =ConTime!AM$56 -> 5 | AN82: =ConTime!AN$56 -> 6 | AO82: =ConTime!AO$56 -> 6 | AP82: =ConTime!AP$56 -> 6 | AQ82: =ConTime!AQ$56 -> 6 | AR82: =ConTime!AR$56 -> 6 | AS82: =ConTime!AS$56 -> 6 | AT82: =ConTime!AT$56 -> 7 | AU82: =ConTime!AU$56 -> 7 | AV82: =ConTime!AV$56 -> 7 | AW82: =ConTime!AW$56 -> 7 | AX82: =ConTime!AX$56 -> 7 | AY82: =ConTime!AY$56 -> 7 | AZ82: =ConTime!AZ$56 -> 8 | BA82: =ConTime!BA$56 -> 8 | BB82: =ConTime!BB$56 -> 8 | BC82: =ConTime!BC$56 -> 8 | BD82: =ConTime!BD$56 -> 8 | BE82: =ConTime!BE$56 -> 8
E83: =E$63 -> Early generation revenue - m P99 | F83: 0 | G83: $ 000s | H83: 6272.475115 | I83: 0 | J83: 0 | K83: 0 | L83: 0 | M83: 0 | N83: 0 | O83: 0 | P83: 0 | Q83: 0 | R83: 0 | S83: 0 | T83: 0 | U83: 0 | V83: 0 | W83: 0 | X83: 0 | Y83: 0 | Z83: 0 | AA83: 0 | AB83: 0 | AC83: 0 | AD83: 0 | AE83: 0 | AF83: 0 | AG83: 0 | AH83: 0 | AI83: 0 | AJ83: 0 | AK83: =AK$63 -> 0 | AL83: 0 | AM83: 0 | AN83: 0 | AO83: 0 | AP83: 0 | AQ83: 0 | AR83: 0 | AS83: 0 | AT83: 1068.388619 | AU83: 999.4603205 | AV83: 1068.388619 | AW83: 1033.92447 | AX83: 1068.388619 | AY83: 1033.92447 | AZ83: 0 | BA83: 0 | BB83: 0 | BC83: 0 | BD83: 0 | BE83: 0
E84: Early generation revenue P99 | G84: =SMU -> $ 000s | H84: =SUM(J84:BE84) -> 6272.475115 | J84: =SUMIF($J82:$BE82, J81, $J83:$BE83) -> 0 | K84: 0 | L84: 0 | M84: 0 | N84: 0 | O84: 0 | P84: 6272.475115 | Q84: 0 | R84: 0 | S84: 0 | T84: 0 | U84: 0 | V84: 0 | W84: 0 | X84: 0 | Y84: 0 | Z84: 0 | AA84: 0 | AB84: 0 | AC84: 0 | AD84: 0 | AE84: 0 | AF84: 0 | AG84: 0 | AH84: 0 | AI84: 0 | AJ84: 0 | AK84: 0 | AL84: 0 | AM84: 0 | AN84: 0 | AO84: 0 | AP84: 0 | AQ84: 0 | AR84: 0 | AS84: 0 | AT84: 0 | AU84: 0 | AV84: 0 | AW84: 0 | AX84: 0 | AY84: 0 | AZ84: 0 | BA84: 0 | BB84: 0 | BC84: 0 | BD84: 0 | BE84: 0
E86: =Time!E$10 -> Model column counter | F86: =Time!F$10 -> 0 | G86: =Time!G$10 -> counter | H86: =Time!H$10 -> 0 | I86: =Time!I$10 -> 0 | J86: =Time!J$10 -> 1 | K86: =Time!K$10 -> 2 | L86: =Time!L$10 -> 3 | M86: =Time!M$10 -> 4 | N86: =Time!N$10 -> 5 | O86: =Time!O$10 -> 6 | P86: =Time!P$10 -> 7 | Q86: =Time!Q$10 -> 8 | R86: =Time!R$10 -> 9 | S86: =Time!S$10 -> 10 | T86: =Time!T$10 -> 11 | U86: =Time!U$10 -> 12 | V86: =Time!V$10 -> 13 | W86: =Time!W$10 -> 14 | X86: =Time!X$10 -> 15 | Y86: =Time!Y$10 -> 16 | Z86: =Time!Z$10 -> 17 | AA86: =Time!AA$10 -> 18 | AB86: =Time!AB$10 -> 19 | AC86: =Time!AC$10 -> 20 | AD86: =Time!AD$10 -> 21 | AE86: =Time!AE$10 -> 22 | AF86: =Time!AF$10 -> 23 | AG86: =Time!AG$10 -> 24 | AH86: =Time!AH$10 -> 25 | AI86: =Time!AI$10 -> 26 | AJ86: =Time!AJ$10 -> 27 | AK86: =Time!AK$10 -> 28 | AL86: =Time!AL$10 -> 29 | AM86: =Time!AM$10 -> 30 | AN86: =Time!AN$10 -> 31 | AO86: =Time!AO$10 -> 32 | AP86: =Time!AP$10 -> 33 | AQ86: =Time!AQ$10 -> 34 | AR86: =Time!AR$10 -> 35 | AS86: =Time!AS$10 -> 36 | AT86: =Time!AT$10 -> 37 | AU86: =Time!AU$10 -> 38 | AV86: =Time!AV$10 -> 39 | AW86: =Time!AW$10 -> 40 | AX86: =Time!AX$10 -> 41 | AY86: =Time!AY$10 -> 42 | AZ86: =Time!AZ$10 -> 43 | BA86: =Time!BA$10 -> 44 | BB86: =Time!BB$10 -> 45 | BC86: =Time!BC$10 -> 46 | BD86: =Time!BD$10 -> 47 | BE86: =Time!BE$10 -> 48
E87: =ConTime!E$56 -> Model ops period counter - m | F87: =ConTime!F$56 -> 0 | G87: =ConTime!G$56 -> counter | H87: =ConTime!H$56 -> 0 | I87: =ConTime!I$56 -> 0 | J87: =ConTime!J$56 -> 1 | K87: =ConTime!K$56 -> 1 | L87: =ConTime!L$56 -> 1 | M87: =ConTime!M$56 -> 1 | N87: =ConTime!N$56 -> 1 | O87: =ConTime!O$56 -> 1 | P87: =ConTime!P$56 -> 2 | Q87: =ConTime!Q$56 -> 2 | R87: =ConTime!R$56 -> 2 | S87: =ConTime!S$56 -> 2 | T87: =ConTime!T$56 -> 2 | U87: =ConTime!U$56 -> 2 | V87: =ConTime!V$56 -> 3 | W87: =ConTime!W$56 -> 3 | X87: =ConTime!X$56 -> 3 | Y87: =ConTime!Y$56 -> 3 | Z87: =ConTime!Z$56 -> 3 | AA87: =ConTime!AA$56 -> 3 | AB87: =ConTime!AB$56 -> 4 | AC87: =ConTime!AC$56 -> 4 | AD87: =ConTime!AD$56 -> 4 | AE87: =ConTime!AE$56 -> 4 | AF87: =ConTime!AF$56 -> 4 | AG87: =ConTime!AG$56 -> 4 | AH87: =ConTime!AH$56 -> 5 | AI87: =ConTime!AI$56 -> 5 | AJ87: =ConTime!AJ$56 -> 5 | AK87: =ConTime!AK$56 -> 5 | AL87: =ConTime!AL$56 -> 5 | AM87: =ConTime!AM$56 -> 5 | AN87: =ConTime!AN$56 -> 6 | AO87: =ConTime!AO$56 -> 6 | AP87: =ConTime!AP$56 -> 6 | AQ87: =ConTime!AQ$56 -> 6 | AR87: =ConTime!AR$56 -> 6 | AS87: =ConTime!AS$56 -> 6 | AT87: =ConTime!AT$56 -> 7 | AU87: =ConTime!AU$56 -> 7 | AV87: =ConTime!AV$56 -> 7 | AW87: =ConTime!AW$56 -> 7 | AX87: =ConTime!AX$56 -> 7 | AY87: =ConTime!AY$56 -> 7 | AZ87: =ConTime!AZ$56 -> 8 | BA87: =ConTime!BA$56 -> 8 | BB87: =ConTime!BB$56 -> 8 | BC87: =ConTime!BC$56 -> 8 | BD87: =ConTime!BD$56 -> 8 | BE87: =ConTime!BE$56 -> 8
E88: =E$70 -> Cash received from EGRs - m P99 | F88: 0 | G88: $ 000s | H88: 6272.475115 | I88: 0 | J88: 0 | K88: 0 | L88: 0 | M88: 0 | N88: 0 | O88: 0 | P88: 0 | Q88: 0 | R88: 0 | S88: 0 | T88: 0 | U88: 0 | V88: 0 | W88: 0 | X88: 0 | Y88: 0 | Z88: 0 | AA88: 0 | AB88: 0 | AC88: 0 | AD88: 0 | AE88: 0 | AF88: 0 | AG88: 0 | AH88: 0 | AI88: 0 | AJ88: 0 | AK88: =AK$70 -> 0 | AL88: 0 | AM88: 0 | AN88: 0 | AO88: 0 | AP88: 0 | AQ88: 0 | AR88: 0 | AS88: 0 | AT88: 0 | AU88: 0 | AV88: 1068.388619 | AW88: 999.4603205 | AX88: 1068.388619 | AY88: 1033.92447 | AZ88: 1068.388619 | BA88: 1033.92447 | BB88: 0 | BC88: 0 | BD88: 0 | BE88: 0
E89: Cash received from EGRs P99 | G89: =SMU -> $ 000s | H89: =SUM(J89:BE89) -> 6272.475115 | J89: =SUMIF($J87:$BE87, J86, $J88:$BE88) -> 0 | K89: 0 | L89: 0 | M89: 0 | N89: 0 | O89: 0 | P89: 4170.162027 | Q89: 2102.313088 | R89: 0 | S89: 0 | T89: 0 | U89: 0 | V89: 0 | W89: 0 | X89: 0 | Y89: 0 | Z89: 0 | AA89: 0 | AB89: 0 | AC89: 0 | AD89: 0 | AE89: 0 | AF89: 0 | AG89: 0 | AH89: 0 | AI89: 0 | AJ89: 0 | AK89: 0 | AL89: 0 | AM89: 0 | AN89: 0 | AO89: 0 | AP89: 0 | AQ89: 0 | AR89: 0 | AS89: 0 | AT89: 0 | AU89: 0 | AV89: 0 | AW89: 0 | AX89: 0 | AY89: 0 | AZ89: 0 | BA89: 0 | BB89: 0 | BC89: 0 | BD89: 0 | BE89: 0
A91: EARLY GENERATION O&M COSTS
B93: EG O&M cost
E94: =InpC!E$53 -> Annual fixed O&M per MW | F94: =InpC!F$53 -> 25 | G94: =InpC!G$53 -> $ 000s / MW
E95: =InpC!E$45 -> Production capacity | F95: =InpC!F$45 -> 300 | G95: =InpC!G$45 -> MW
E96: Annual fixed O&M | F96: =+F94 * F95 -> 7500 | G96: =SMU -> $ 000s
E97: =InpC!E$280 -> Days in year | F97: =InpC!F$280 -> 365 | G97: =InpC!G$280 -> days
E98: Annual fixed O&M per day | F98: =+F96/F97 -> 20.54794521 | G98: $ 000s / day
E99: ='InpS -m'!E$13 -> % of plant completed - during EGR period | F99: ='InpS -m'!F$13 -> 0 | G99: ='InpS -m'!G$13 -> % | H99: ='InpS -m'!H$13 -> 0 | I99: ='InpS -m'!I$13 -> 0 | J99: ='InpS -m'!J$13 -> 0 | K99: ='InpS -m'!K$13 -> 0 | L99: ='InpS -m'!L$13 -> 0 | M99: ='InpS -m'!M$13 -> 0 | N99: ='InpS -m'!N$13 -> 0 | O99: ='InpS -m'!O$13 -> 0 | P99: ='InpS -m'!P$13 -> 0 | Q99: ='InpS -m'!Q$13 -> 0 | R99: ='InpS -m'!R$13 -> 0 | S99: ='InpS -m'!S$13 -> 0 | T99: ='InpS -m'!T$13 -> 0 | U99: ='InpS -m'!U$13 -> 0 | V99: ='InpS -m'!V$13 -> 0 | W99: ='InpS -m'!W$13 -> 0 | X99: ='InpS -m'!X$13 -> 0 | Y99: ='InpS -m'!Y$13 -> 0 | Z99: ='InpS -m'!Z$13 -> 0 | AA99: ='InpS -m'!AA$13 -> 0 | AB99: ='InpS -m'!AB$13 -> 0 | AC99: ='InpS -m'!AC$13 -> 0 | AD99: ='InpS -m'!AD$13 -> 0 | AE99: ='InpS -m'!AE$13 -> 0 | AF99: ='InpS -m'!AF$13 -> 0 | AG99: ='InpS -m'!AG$13 -> 0 | AH99: ='InpS -m'!AH$13 -> 0 | AI99: ='InpS -m'!AI$13 -> 0 | AJ99: ='InpS -m'!AJ$13 -> 0 | AK99: ='InpS -m'!AK$13 -> 0 | AL99: ='InpS -m'!AL$13 -> 0 | AM99: ='InpS -m'!AM$13 -> 0 | AN99: ='InpS -m'!AN$13 -> 0 | AO99: ='InpS -m'!AO$13 -> 0 | AP99: ='InpS -m'!AP$13 -> 0 | AQ99: ='InpS -m'!AQ$13 -> 0 | AR99: ='InpS -m'!AR$13 -> 0 | AS99: ='InpS -m'!AS$13 -> 0 | AT99: ='InpS -m'!AT$13 -> 0.3333333333 | AU99: ='InpS -m'!AU$13 -> 0.3333333333 | AV99: ='InpS -m'!AV$13 -> 0.3333333333 | AW99: ='InpS -m'!AW$13 -> 0.3333333333 | AX99: ='InpS -m'!AX$13 -> 0.3333333333 | AY99: ='InpS -m'!AY$13 -> 0.3333333333 | AZ99: ='InpS -m'!AZ$13 -> 0 | BA99: ='InpS -m'!BA$13 -> 0 | BB99: ='InpS -m'!BB$13 -> 0 | BC99: ='InpS -m'!BC$13 -> 0 | BD99: ='InpS -m'!BD$13 -> 0 | BE99: ='InpS -m'!BE$13 -> 0
E100: =ConTime!E$93 -> Days in period - m | F100: =ConTime!F$93 -> 0 | G100: =ConTime!G$93 -> days | H100: =ConTime!H$93 -> 0 | I100: =ConTime!I$93 -> 0 | J100: =ConTime!J$93 -> 31 | K100: =ConTime!K$93 -> 28 | L100: =ConTime!L$93 -> 31 | M100: =ConTime!M$93 -> 30 | N100: =ConTime!N$93 -> 31 | O100: =ConTime!O$93 -> 30 | P100: =ConTime!P$93 -> 31 | Q100: =ConTime!Q$93 -> 31 | R100: =ConTime!R$93 -> 30 | S100: =ConTime!S$93 -> 31 | T100: =ConTime!T$93 -> 30 | U100: =ConTime!U$93 -> 31 | V100: =ConTime!V$93 -> 31 | W100: =ConTime!W$93 -> 28 | X100: =ConTime!X$93 -> 31 | Y100: =ConTime!Y$93 -> 30 | Z100: =ConTime!Z$93 -> 31 | AA100: =ConTime!AA$93 -> 30 | AB100: =ConTime!AB$93 -> 31 | AC100: =ConTime!AC$93 -> 31 | AD100: =ConTime!AD$93 -> 30 | AE100: =ConTime!AE$93 -> 31 | AF100: =ConTime!AF$93 -> 30 | AG100: =ConTime!AG$93 -> 31 | AH100: =ConTime!AH$93 -> 31 | AI100: =ConTime!AI$93 -> 28 | AJ100: =ConTime!AJ$93 -> 31 | AK100: =ConTime!AK$93 -> 30 | AL100: =ConTime!AL$93 -> 31 | AM100: =ConTime!AM$93 -> 30 | AN100: =ConTime!AN$93 -> 31 | AO100: =ConTime!AO$93 -> 31 | AP100: =ConTime!AP$93 -> 30 | AQ100: =ConTime!AQ$93 -> 31 | AR100: =ConTime!AR$93 -> 30 | AS100: =ConTime!AS$93 -> 31 | AT100: =ConTime!AT$93 -> 31 | AU100: =ConTime!AU$93 -> 29 | AV100: =ConTime!AV$93 -> 31 | AW100: =ConTime!AW$93 -> 30 | AX100: =ConTime!AX$93 -> 31 | AY100: =ConTime!AY$93 -> 30 | AZ100: =ConTime!AZ$93 -> 31 | BA100: =ConTime!BA$93 -> 31 | BB100: =ConTime!BB$93 -> 30 | BC100: =ConTime!BC$93 -> 31 | BD100: =ConTime!BD$93 -> 30 | BE100: =ConTime!BE$93 -> 31
E101: Early generation O&M cost - m | G101: =SMU -> $ 000s | H101: =SUM(J101:BE101) -> 1246.575342 | J101: =$F98 * J100 * J99 -> 0 | K101: 0 | L101: 0 | M101: 0 | N101: 0 | O101: 0 | P101: 0 | Q101: 0 | R101: 0 | S101: 0 | T101: 0 | U101: 0 | V101: 0 | W101: 0 | X101: 0 | Y101: 0 | Z101: 0 | AA101: 0 | AB101: 0 | AC101: 0 | AD101: 0 | AE101: 0 | AF101: 0 | AG101: 0 | AH101: 0 | AI101: 0 | AJ101: 0 | AK101: 0 | AL101: 0 | AM101: 0 | AN101: 0 | AO101: 0 | AP101: 0 | AQ101: 0 | AR101: 0 | AS101: 0 | AT101: 212.3287671 | AU101: 198.630137 | AV101: 212.3287671 | AW101: 205.4794521 | AX101: 212.3287671 | AY101: 205.4794521 | AZ101: 0 | BA101: 0 | BB101: 0 | BC101: 0 | BD101: 0 | BE101: 0
E102: Sum of Early generation O&M cost - m | F102: =SUM(J101:BE101) -> 1246.575342 | G102: $ 000s
B104: EG O&M costs cash paid
E105: =InpC!E$237 -> EG O&M costs payment delay (months) | F105: =InpC!F$237 -> 2 | G105: =InpC!G$237 -> months
E106: =E$101 -> Early generation O&M cost - m | F106: 0 | G106: $ 000s | H106: 1246.575342 | I106: 0 | J106: 0 | K106: 0 | L106: 0 | M106: 0 | N106: 0 | O106: 0 | P106: 0 | Q106: 0 | R106: 0 | S106: 0 | T106: 0 | U106: 0 | V106: 0 | W106: 0 | X106: 0 | Y106: 0 | Z106: 0 | AA106: 0 | AB106: 0 | AC106: 0 | AD106: 0 | AE106: 0 | AF106: 0 | AG106: 0 | AH106: 0 | AI106: 0 | AJ106: 0 | AK106: =AK$101 -> 0 | AL106: 0 | AM106: 0 | AN106: 0 | AO106: 0 | AP106: 0 | AQ106: 0 | AR106: 0 | AS106: 0 | AT106: 212.3287671 | AU106: 198.630137 | AV106: 212.3287671 | AW106: 205.4794521 | AX106: 212.3287671 | AY106: 205.4794521 | AZ106: 0 | BA106: 0 | BB106: 0 | BC106: 0 | BD106: 0 | BE106: 0
E107: =Time!E$10 -> Model column counter | F107: =Time!F$10 -> 0 | G107: =Time!G$10 -> counter | H107: =Time!H$10 -> 0 | I107: =Time!I$10 -> 0 | J107: =Time!J$10 -> 1 | K107: =Time!K$10 -> 2 | L107: =Time!L$10 -> 3 | M107: =Time!M$10 -> 4 | N107: =Time!N$10 -> 5 | O107: =Time!O$10 -> 6 | P107: =Time!P$10 -> 7 | Q107: =Time!Q$10 -> 8 | R107: =Time!R$10 -> 9 | S107: =Time!S$10 -> 10 | T107: =Time!T$10 -> 11 | U107: =Time!U$10 -> 12 | V107: =Time!V$10 -> 13 | W107: =Time!W$10 -> 14 | X107: =Time!X$10 -> 15 | Y107: =Time!Y$10 -> 16 | Z107: =Time!Z$10 -> 17 | AA107: =Time!AA$10 -> 18 | AB107: =Time!AB$10 -> 19 | AC107: =Time!AC$10 -> 20 | AD107: =Time!AD$10 -> 21 | AE107: =Time!AE$10 -> 22 | AF107: =Time!AF$10 -> 23 | AG107: =Time!AG$10 -> 24 | AH107: =Time!AH$10 -> 25 | AI107: =Time!AI$10 -> 26 | AJ107: =Time!AJ$10 -> 27 | AK107: =Time!AK$10 -> 28 | AL107: =Time!AL$10 -> 29 | AM107: =Time!AM$10 -> 30 | AN107: =Time!AN$10 -> 31 | AO107: =Time!AO$10 -> 32 | AP107: =Time!AP$10 -> 33 | AQ107: =Time!AQ$10 -> 34 | AR107: =Time!AR$10 -> 35 | AS107: =Time!AS$10 -> 36 | AT107: =Time!AT$10 -> 37 | AU107: =Time!AU$10 -> 38 | AV107: =Time!AV$10 -> 39 | AW107: =Time!AW$10 -> 40 | AX107: =Time!AX$10 -> 41 | AY107: =Time!AY$10 -> 42 | AZ107: =Time!AZ$10 -> 43 | BA107: =Time!BA$10 -> 44 | BB107: =Time!BB$10 -> 45 | BC107: =Time!BC$10 -> 46 | BD107: =Time!BD$10 -> 47 | BE107: =Time!BE$10 -> 48
E108: Cash paid for EG O&M costs - m | G108: =SMU -> $ 000s | H108: =SUM(J108:BE108) -> 1246.575342 | J108: =IFERROR( _xlfn.XLOOKUP(J107 - $F105, $J$107:$BE$107, $J$106:$BE$106), 0) -> 0 | K108: 0 | L108: 0 | M108: 0 | N108: 0 | O108: 0 | P108: 0 | Q108: 0 | R108: 0 | S108: 0 | T108: 0 | U108: 0 | V108: 0 | W108: 0 | X108: 0 | Y108: 0 | Z108: 0 | AA108: 0 | AB108: 0 | AC108: 0 | AD108: 0 | AE108: 0 | AF108: 0 | AG108: 0 | AH108: 0 | AI108: 0 | AJ108: 0 | AK108: 0 | AL108: 0 | AM108: 0 | AN108: 0 | AO108: 0 | AP108: 0 | AQ108: 0 | AR108: 0 | AS108: 0 | AT108: =IFERROR( _xlfn.XLOOKUP(AT107 - $F105, $J$107:$BE$107, $J$106:$BE$106), 0) -> 0 | AU108: 0 | AV108: 212.3287671 | AW108: 198.630137 | AX108: 212.3287671 | AY108: 205.4794521 | AZ108: 212.3287671 | BA108: 205.4794521 | BB108: 0 | BC108: 0 | BD108: 0 | BE108: 0
E109: Sum of Cash paid from EG O&M costs | F109: =SUM(J108:BE108) -> 1246.575342 | G109: $ 000s
B111: EG O&M costs payable
E113: Accounts payable during construction balance BEG | G113: =SMU -> $ 000s | J113: =I116 -> 0 | K113: 0 | L113: 0 | M113: 0 | N113: 0 | O113: 0 | P113: 0 | Q113: 0 | R113: 0 | S113: 0 | T113: 0 | U113: 0 | V113: 0 | W113: 0 | X113: 0 | Y113: 0 | Z113: 0 | AA113: 0 | AB113: 0 | AC113: 0 | AD113: 0 | AE113: 0 | AF113: 0 | AG113: 0 | AH113: 0 | AI113: 0 | AJ113: 0 | AK113: 0 | AL113: 0 | AM113: 0 | AN113: 0 | AO113: 0 | AP113: 0 | AQ113: 0 | AR113: 0 | AS113: 0 | AT113: 0 | AU113: 212.3287671 | AV113: 410.9589041 | AW113: 410.9589041 | AX113: 417.8082192 | AY113: 417.8082192 | AZ113: 417.8082192 | BA113: 205.4794521 | BB113: 0 | BC113: 0 | BD113: 0 | BE113: 0
E114: =E$101 -> Early generation O&M cost - m | F114: 0 | G114: $ 000s | H114: 1246.575342 | I114: 0 | J114: 0 | K114: 0 | L114: 0 | M114: 0 | N114: 0 | O114: 0 | P114: 0 | Q114: 0 | R114: 0 | S114: 0 | T114: 0 | U114: 0 | V114: 0 | W114: 0 | X114: 0 | Y114: 0 | Z114: 0 | AA114: 0 | AB114: 0 | AC114: 0 | AD114: 0 | AE114: 0 | AF114: 0 | AG114: 0 | AH114: 0 | AI114: 0 | AJ114: 0 | AK114: =AK$101 -> 0 | AL114: 0 | AM114: 0 | AN114: 0 | AO114: 0 | AP114: 0 | AQ114: 0 | AR114: 0 | AS114: 0 | AT114: 212.3287671 | AU114: 198.630137 | AV114: 212.3287671 | AW114: 205.4794521 | AX114: 212.3287671 | AY114: 205.4794521 | AZ114: 0 | BA114: 0 | BB114: 0 | BC114: 0 | BD114: 0 | BE114: 0
E115: =E$108 -> Cash paid for EG O&M costs - m | F115: 0 | G115: $ 000s | H115: 1246.575342 | I115: 0 | J115: 0 | K115: 0 | L115: 0 | M115: 0 | N115: 0 | O115: 0 | P115: 0 | Q115: 0 | R115: 0 | S115: 0 | T115: 0 | U115: 0 | V115: 0 | W115: 0 | X115: 0 | Y115: 0 | Z115: 0 | AA115: 0 | AB115: 0 | AC115: 0 | AD115: 0 | AE115: 0 | AF115: 0 | AG115: 0 | AH115: 0 | AI115: 0 | AJ115: 0 | AK115: =AK$108 -> 0 | AL115: 0 | AM115: 0 | AN115: 0 | AO115: 0 | AP115: 0 | AQ115: 0 | AR115: 0 | AS115: 0 | AT115: 0 | AU115: 0 | AV115: 212.3287671 | AW115: 198.630137 | AX115: 212.3287671 | AY115: 205.4794521 | AZ115: 212.3287671 | BA115: 205.4794521 | BB115: 0 | BC115: 0 | BD115: 0 | BE115: 0
E116: Accounts payable during construction balance | G116: =SMU -> $ 000s | J116: =J113 + J114 - J115 -> 0 | K116: 0 | L116: 0 | M116: 0 | N116: 0 | O116: 0 | P116: 0 | Q116: 0 | R116: 0 | S116: 0 | T116: 0 | U116: 0 | V116: 0 | W116: 0 | X116: 0 | Y116: 0 | Z116: 0 | AA116: 0 | AB116: 0 | AC116: 0 | AD116: 0 | AE116: 0 | AF116: 0 | AG116: 0 | AH116: 0 | AI116: 0 | AJ116: 0 | AK116: 0 | AL116: 0 | AM116: 0 | AN116: 0 | AO116: 0 | AP116: 0 | AQ116: 0 | AR116: 0 | AS116: 0 | AT116: 212.3287671 | AU116: 410.9589041 | AV116: 410.9589041 | AW116: 417.8082192 | AX116: 417.8082192 | AY116: 417.8082192 | AZ116: 205.4794521 | BA116: 0 | BB116: 0 | BC116: 0 | BD116: 0 | BE116: 0
B118: Aggregation of EG O&M costs
E119: =Time!E$10 -> Model column counter | F119: =Time!F$10 -> 0 | G119: =Time!G$10 -> counter | H119: =Time!H$10 -> 0 | I119: =Time!I$10 -> 0 | J119: =Time!J$10 -> 1 | K119: =Time!K$10 -> 2 | L119: =Time!L$10 -> 3 | M119: =Time!M$10 -> 4 | N119: =Time!N$10 -> 5 | O119: =Time!O$10 -> 6 | P119: =Time!P$10 -> 7 | Q119: =Time!Q$10 -> 8 | R119: =Time!R$10 -> 9 | S119: =Time!S$10 -> 10 | T119: =Time!T$10 -> 11 | U119: =Time!U$10 -> 12 | V119: =Time!V$10 -> 13 | W119: =Time!W$10 -> 14 | X119: =Time!X$10 -> 15 | Y119: =Time!Y$10 -> 16 | Z119: =Time!Z$10 -> 17 | AA119: =Time!AA$10 -> 18 | AB119: =Time!AB$10 -> 19 | AC119: =Time!AC$10 -> 20 | AD119: =Time!AD$10 -> 21 | AE119: =Time!AE$10 -> 22 | AF119: =Time!AF$10 -> 23 | AG119: =Time!AG$10 -> 24 | AH119: =Time!AH$10 -> 25 | AI119: =Time!AI$10 -> 26 | AJ119: =Time!AJ$10 -> 27 | AK119: =Time!AK$10 -> 28 | AL119: =Time!AL$10 -> 29 | AM119: =Time!AM$10 -> 30 | AN119: =Time!AN$10 -> 31 | AO119: =Time!AO$10 -> 32 | AP119: =Time!AP$10 -> 33 | AQ119: =Time!AQ$10 -> 34 | AR119: =Time!AR$10 -> 35 | AS119: =Time!AS$10 -> 36 | AT119: =Time!AT$10 -> 37 | AU119: =Time!AU$10 -> 38 | AV119: =Time!AV$10 -> 39 | AW119: =Time!AW$10 -> 40 | AX119: =Time!AX$10 -> 41 | AY119: =Time!AY$10 -> 42 | AZ119: =Time!AZ$10 -> 43 | BA119: =Time!BA$10 -> 44 | BB119: =Time!BB$10 -> 45 | BC119: =Time!BC$10 -> 46 | BD119: =Time!BD$10 -> 47 | BE119: =Time!BE$10 -> 48
E120: =ConTime!E$56 -> Model ops period counter - m | F120: =ConTime!F$56 -> 0 | G120: =ConTime!G$56 -> counter | H120: =ConTime!H$56 -> 0 | I120: =ConTime!I$56 -> 0 | J120: =ConTime!J$56 -> 1 | K120: =ConTime!K$56 -> 1 | L120: =ConTime!L$56 -> 1 | M120: =ConTime!M$56 -> 1 | N120: =ConTime!N$56 -> 1 | O120: =ConTime!O$56 -> 1 | P120: =ConTime!P$56 -> 2 | Q120: =ConTime!Q$56 -> 2 | R120: =ConTime!R$56 -> 2 | S120: =ConTime!S$56 -> 2 | T120: =ConTime!T$56 -> 2 | U120: =ConTime!U$56 -> 2 | V120: =ConTime!V$56 -> 3 | W120: =ConTime!W$56 -> 3 | X120: =ConTime!X$56 -> 3 | Y120: =ConTime!Y$56 -> 3 | Z120: =ConTime!Z$56 -> 3 | AA120: =ConTime!AA$56 -> 3 | AB120: =ConTime!AB$56 -> 4 | AC120: =ConTime!AC$56 -> 4 | AD120: =ConTime!AD$56 -> 4 | AE120: =ConTime!AE$56 -> 4 | AF120: =ConTime!AF$56 -> 4 | AG120: =ConTime!AG$56 -> 4 | AH120: =ConTime!AH$56 -> 5 | AI120: =ConTime!AI$56 -> 5 | AJ120: =ConTime!AJ$56 -> 5 | AK120: =ConTime!AK$56 -> 5 | AL120: =ConTime!AL$56 -> 5 | AM120: =ConTime!AM$56 -> 5 | AN120: =ConTime!AN$56 -> 6 | AO120: =ConTime!AO$56 -> 6 | AP120: =ConTime!AP$56 -> 6 | AQ120: =ConTime!AQ$56 -> 6 | AR120: =ConTime!AR$56 -> 6 | AS120: =ConTime!AS$56 -> 6 | AT120: =ConTime!AT$56 -> 7 | AU120: =ConTime!AU$56 -> 7 | AV120: =ConTime!AV$56 -> 7 | AW120: =ConTime!AW$56 -> 7 | AX120: =ConTime!AX$56 -> 7 | AY120: =ConTime!AY$56 -> 7 | AZ120: =ConTime!AZ$56 -> 8 | BA120: =ConTime!BA$56 -> 8 | BB120: =ConTime!BB$56 -> 8 | BC120: =ConTime!BC$56 -> 8 | BD120: =ConTime!BD$56 -> 8 | BE120: =ConTime!BE$56 -> 8
E121: =E$101 -> Early generation O&M cost - m | F121: 0 | G121: $ 000s | H121: 1246.575342 | I121: 0 | J121: 0 | K121: 0 | L121: 0 | M121: 0 | N121: 0 | O121: 0 | P121: 0 | Q121: 0 | R121: 0 | S121: 0 | T121: 0 | U121: 0 | V121: 0 | W121: 0 | X121: 0 | Y121: 0 | Z121: 0 | AA121: 0 | AB121: 0 | AC121: 0 | AD121: 0 | AE121: 0 | AF121: 0 | AG121: 0 | AH121: 0 | AI121: 0 | AJ121: 0 | AK121: 0 | AL121: 0 | AM121: 0 | AN121: 0 | AO121: 0 | AP121: 0 | AQ121: 0 | AR121: 0 | AS121: 0 | AT121: 212.3287671 | AU121: 198.630137 | AV121: 212.3287671 | AW121: 205.4794521 | AX121: 212.3287671 | AY121: 205.4794521 | AZ121: 0 | BA121: 0 | BB121: 0 | BC121: 0 | BD121: 0 | BE121: 0
E122: Early generation O&M cost POS | G122: =SMU -> $ 000s | H122: =SUM(J122:BE122) -> 1246.575342 | J122: =SUMIF($J120:$BE120, J119, $J121:$BE121) -> 0 | K122: 0 | L122: 0 | M122: 0 | N122: 0 | O122: 0 | P122: 1246.575342 | Q122: 0 | R122: 0 | S122: 0 | T122: 0 | U122: 0 | V122: 0 | W122: 0 | X122: 0 | Y122: 0 | Z122: 0 | AA122: 0 | AB122: 0 | AC122: 0 | AD122: 0 | AE122: 0 | AF122: 0 | AG122: 0 | AH122: 0 | AI122: 0 | AJ122: 0 | AK122: 0 | AL122: 0 | AM122: 0 | AN122: 0 | AO122: 0 | AP122: 0 | AQ122: 0 | AR122: 0 | AS122: 0 | AT122: 0 | AU122: 0 | AV122: 0 | AW122: 0 | AX122: 0 | AY122: 0 | AZ122: 0 | BA122: 0 | BB122: 0 | BC122: 0 | BD122: 0 | BE122: 0
E123: =LEFT(E122, LEN(E122) - 4) -> Early generation O&M cost | G123: =SMU -> $ 000s | H123: =SUM(J123:GJ123) -> -1246.575342 | J123: =-1 * J122 -> 0 | K123: 0 | L123: 0 | M123: 0 | N123: 0 | O123: 0 | P123: -1246.575342 | Q123: 0 | R123: 0 | S123: 0 | T123: 0 | U123: 0 | V123: 0 | W123: 0 | X123: 0 | Y123: 0 | Z123: 0 | AA123: 0 | AB123: 0 | AC123: 0 | AD123: 0 | AE123: 0 | AF123: 0 | AG123: 0 | AH123: 0 | AI123: 0 | AJ123: 0 | AK123: 0 | AL123: 0 | AM123: 0 | AN123: 0 | AO123: 0 | AP123: 0 | AQ123: 0 | AR123: 0 | AS123: 0 | AT123: 0 | AU123: 0 | AV123: 0 | AW123: 0 | AX123: 0 | AY123: 0 | AZ123: 0 | BA123: 0 | BB123: 0 | BC123: 0 | BD123: 0 | BE123: 0 | BF123: 0 | BG123: 0 | BH123: 0 | BI123: 0 | BJ123: 0 | BK123: 0 | BL123: 0 | BM123: 0 | BN123: 0 | BO123: 0 | BP123: 0 | BQ123: 0 | BR123: 0 | BS123: 0 | BT123: 0 | BU123: 0 | BV123: =-1 * BV122 -> 0 | BW123: 0 | BX123: 0 | BY123: 0 | BZ123: 0 | CA123: 0 | CB123: 0 | CC123: 0 | CD123: 0 | CE123: 0 | CF123: 0 | CG123: 0 | CH123: 0 | CI123: 0 | CJ123: 0 | CK123: 0 | CL123: 0 | CM123: 0 | CN123: 0 | CO123: 0 | CP123: 0 | CQ123: 0 | CR123: 0 | CS123: 0 | CT123: 0 | CU123: 0 | CV123: 0 | CW123: 0 | CX123: 0 | CY123: 0 | CZ123: 0 | DA123: 0 | DB123: 0 | DC123: 0 | DD123: 0 | DE123: 0 | DF123: 0 | DG123: 0 | DH123: 0 | DI123: 0 | DJ123: 0 | DK123: 0 | DL123: 0 | DM123: 0 | DN123: 0 | DO123: 0 | DP123: 0 | DQ123: 0 | DR123: 0 | DS123: 0 | DT123: 0 | DU123: 0 | DV123: 0 | DW123: 0 | DX123: 0 | DY123: 0 | DZ123: 0 | EA123: 0 | EB123: 0 | EC123: 0 | ED123: 0 | EE123: 0 | EF123: 0 | EG123: 0 | EH123: =-1 * EH122 -> 0 | EI123: 0 | EJ123: 0 | EK123: 0 | EL123: 0 | EM123: 0 | EN123: 0 | EO123: 0 | EP123: 0 | EQ123: 0 | ER123: 0 | ES123: 0 | ET123: 0 | EU123: 0 | EV123: 0 | EW123: 0 | EX123: 0 | EY123: 0 | EZ123: 0 | FA123: 0 | FB123: 0 | FC123: 0 | FD123: 0 | FE123: 0 | FF123: 0 | FG123: 0 | FH123: 0 | FI123: 0 | FJ123: 0 | FK123: 0 | FL123: 0 | FM123: 0 | FN123: 0 | FO123: 0 | FP123: 0 | FQ123: 0 | FR123: 0 | FS123: 0 | FT123: 0 | FU123: 0 | FV123: 0 | FW123: 0 | FX123: 0 | FY123: 0 | FZ123: 0 | GA123: 0 | GB123: 0 | GC123: 0 | GD123: 0 | GE123: 0 | GF123: 0 | GG123: 0 | GH123: 0 | GI123: 0 | GJ123: 0
